Workbook

Sheet Control
A1: Sheets | B1: Text File Names | C1: Description | E1: Notes: 50 sheets maximum
A2: P_Flows | B2: Flows\NorthMet_Flow_Output.txt | C2: Project flow in the Partridge River (all locations) | E2: Referenced text files must be in same root folder as this spreadsheet
A3: SDEIS_Flows | B3: SDEIS\Flows\NorthMet_Flow_Output.txt | C3: SDEIS Project flows in the Partridge River (all locations)
F8: Run Time SDEIS: | G8: =SDEIS_Flows!B5 -> 2013-01-28T18:20:45
F9: Run Time FEIS: | G9: =P_Flows!B5 -> 2014-12-15T22:56:18

Sheet PlotControl
A2: Model Name: | B2: Mine Site Version 6.0
A4: Plot: | B4: Annual Average | C4: =B2 & " Model vs. SDEIS (v5.0) " & IF(B4="Annual Max", "Annual Maximum", B4) & " of Flow Statistics Partridge River at " & B6 -> Mine Site Version 6.0 Model vs. SDEIS (v5.0) Annual Average of Flow Statistics Partridge River at SW-002 | V4: Directory to save PDFs to: | W4: C:\Users\jem4\Desktop\temp
C5: =B2 & " Model vs. SDEIS (v5.0) Monthly Flow Statistics Partridge River at " & B6 -> Mine Site Version 6.0 Model vs. SDEIS (v5.0) Monthly Flow Statistics Partridge River at SW-002 | V5: Starting figure caption | W5: Figure A-1-0001
A6: Location to Plot (dropdown): | B6: SW-002 | C6: =MATCH(B6,$A$13:$A$21,0) -> 2
V7: Note: This loops through the plots and location drop down menus.
A8: Initial Time for Monthly Plot (yr): | B8: 50
B9: =B8+20 -> 70
A12: Locations
A13: SW-001
A14: SW-002
A15: SW-003
A16: SW-004
A17: SW-004a
A18: SW-004b
A19: SW-005
A20: SW-006
A21: Colby Lake
C23: Annual Project Results | F23: Annual SDEIS Project Results | K23: Monthly Project Results | N23: Monthly SDEIS Project Results
A24: Plot | B24: Time | C24: P10 | D24: P50 | E24: P90 | F24: P10 | G24: P50 | H24: P90 | J24: Time | K24: P10 | L24: P50 | M24: P90 | N24: P10 | O24: P50 | P24: P90
A25: Annual Average | B25: 1 | C25: =VLOOKUP($B25,P_All!$A$5:$AB$204,3*($C$6-1)+2) -> 3.589241667 | D25: =VLOOKUP($B25,P_All!$A$5:$AB$204,3*($C$6-1)+3) -> 6.853833333 | E25: =VLOOKUP($B25,P_All!$A$5:$AB$204,3*($C$6-1)+4) -> 20.05325833 | F25: =VLOOKUP($B25,SDEIS_All!$A$5:$AB$204,3*($C$6-1)+2) -> 1.989241667 | G25: =VLOOKUP($B25,SDEIS_All!$A$5:$AB$204,3*($C$6-1)+3) -> 5.253833333 | H25: =VLOOKUP($B25,SDEIS_All!$A$5:$AB$204,3*($C$6-1)+4) -> 18.45323333 | J25: =B8 -> 50 | K25: =VLOOKUP($J25,P_All!$AD$5:$BE$245,3*($C$6-1)+2) -> 2.7428 | L25: =VLOOKUP($J25,P_All!$AD$5:$BE$245,3*($C$6-1)+3) -> 3.1556 | M25: =VLOOKUP($J25,P_All!$AD$5:$BE$245,3*($C$6-1)+4) -> 3.6471 | N25: =VLOOKUP($J25,SDEIS_All!$AD$5:$BE$245,3*($C$6-1)+2) -> 1.1428 | O25: =VLOOKUP($J25,SDEIS_All!$AD$5:$BE$245,3*($C$6-1)+3) -> 1.5556 | P25: =VLOOKUP($J25,SDEIS_All!$AD$5:$BE$245,3*($C$6-1)+4) -> 2.0471
A26: Annual Max | B26: 2 | C26: =VLOOKUP($B26,P_All!$A$5:$AB$204,3*($C$6-1)+2) -> 3.496133333 | D26: =VLOOKUP($B26,P_All!$A$5:$AB$204,3*($C$6-1)+3) -> 6.623641667 | E26: =VLOOKUP($B26,P_All!$A$5:$AB$204,3*($C$6-1)+4) -> 19.42015833 | F26: =VLOOKUP($B26,SDEIS_All!$A$5:$AB$204,3*($C$6-1)+2) -> 1.896133333 | G26: =VLOOKUP($B26,SDEIS_All!$A$5:$AB$204,3*($C$6-1)+3) -> 5.023641667 | H26: =VLOOKUP($B26,SDEIS_All!$A$5:$AB$204,3*($C$6-1)+4) -> 17.82016667 | J26: =J25+1/12 -> 50.08333333 | K26: =VLOOKUP($J26,P_All!$AD$5:$BE$245,3*($C$6-1)+2) -> 2.6918 | L26: =VLOOKUP($J26,P_All!$AD$5:$BE$245,3*($C$6-1)+3) -> 2.8321 | M26: =VLOOKUP($J26,P_All!$AD$5:$BE$245,3*($C$6-1)+4) -> 3.6716 | N26: =VLOOKUP($J26,SDEIS_All!$AD$5:$BE$245,3*($C$6-1)+2) -> 1.0918 | O26: =VLOOKUP($J26,SDEIS_All!$AD$5:$BE$245,3*($C$6-1)+3) -> 1.2321 | P26: =VLOOKUP($J26,SDEIS_All!$AD$5:$BE$245,3*($C$6-1)+4) -> 2.0716
B27: 3 | C27: =VLOOKUP($B27,P_All!$A$5:$AB$204,3*($C$6-1)+2) -> 3.494008333 | D27: =VLOOKUP($B27,P_All!$A$5:$AB$204,3*($C$6-1)+3) -> 6.748375 | E27: =VLOOKUP($B27,P_All!$A$5:$AB$204,3*($C$6-1)+4) -> 19.32293333 | F27: =VLOOKUP($B27,SDEIS_All!$A$5:$AB$204,3*($C$6-1)+2) -> 1.894008333 | G27: =VLOOKUP($B27,SDEIS_All!$A$5:$AB$204,3*($C$6-1)+3) -> 5.148375 | H27: =VLOOKUP($B27,SDEIS_All!$A$5:$AB$204,3*($C$6-1)+4) -> 17.72296667 | J27: =J26+1/12 -> 50.16666667 | K27: =VLOOKUP($J27,P_All!$AD$5:$BE$245,3*($C$6-1)+2) -> 2.709 | L27: =VLOOKUP($J27,P_All!$AD$5:$BE$245,3*($C$6-1)+3) -> 3.2737 | M27: =VLOOKUP($J27,P_All!$AD$5:$BE$245,3*($C$6-1)+4) -> 11.501 | N27: =VLOOKUP($J27,SDEIS_All!$AD$5:$BE$245,3*($C$6-1)+2) -> 1.109 | O27: =VLOOKUP($J27,SDEIS_All!$AD$5:$BE$245,3*($C$6-1)+3) -> 1.6737 | P27: =VLOOKUP($J27,SDEIS_All!$AD$5:$BE$245,3*($C$6-1)+4) -> 9.9006
B28: 4 | C28: =VLOOKUP($B28,P_All!$A$5:$AB$204,3*($C$6-1)+2) -> 3.497966667 | D28: =VLOOKUP($B28,P_All!$A$5:$AB$204,3*($C$6-1)+3) -> 6.608075 | E28: =VLOOKUP($B28,P_All!$A$5:$AB$204,3*($C$6-1)+4) -> 19.912925 | F28: =VLOOKUP($B28,SDEIS_All!$A$5:$AB$204,3*($C$6-1)+2) -> 1.897966667 | G28: =VLOOKUP($B28,SDEIS_All!$A$5:$AB$204,3*($C$6-1)+3) -> 5.008075 | H28: =VLOOKUP($B28,SDEIS_All!$A$5:$AB$204,3*($C$6-1)+4) -> 18.312925 | J28: 50.25 | K28: =VLOOKUP($J28,P_All!$AD$5:$BE$245,3*($C$6-1)+2) -> 5.7007 | L28: =VLOOKUP($J28,P_All!$AD$5:$BE$245,3*($C$6-1)+3) -> 15.384 | M28: =VLOOKUP($J28,P_All!$AD$5:$BE$245,3*($C$6-1)+4) -> 39.257 | N28: =VLOOKUP($J28,SDEIS_All!$AD$5:$BE$245,3*($C$6-1)+2) -> 4.1007 | O28: =VLOOKUP($J28,SDEIS_All!$AD$5:$BE$245,3*($C$6-1)+3) -> 13.784 | P28: =VLOOKUP($J28,SDEIS_All!$AD$5:$BE$245,3*($C$6-1)+4) -> 37.657
B29: 5 | C29: =VLOOKUP($B29,P_All!$A$5:$AB$204,3*($C$6-1)+2) -> 3.496691667 | D29: =VLOOKUP($B29,P_All!$A$5:$AB$204,3*($C$6-1)+3) -> 6.76105 | E29: =VLOOKUP($B29,P_All!$A$5:$AB$204,3*($C$6-1)+4) -> 20.025675 | F29: =VLOOKUP($B29,SDEIS_All!$A$5:$AB$204,3*($C$6-1)+2) -> 1.896691667 | G29: =VLOOKUP($B29,SDEIS_All!$A$5:$AB$204,3*($C$6-1)+3) -> 5.16105 | H29: =VLOOKUP($B29,SDEIS_All!$A$5:$AB$204,3*($C$6-1)+4) -> 18.42568333 | J29: 50.33333333 | K29: =VLOOKUP($J29,P_All!$AD$5:$BE$245,3*($C$6-1)+2) -> 5.6932 | L29: =VLOOKUP($J29,P_All!$AD$5:$BE$245,3*($C$6-1)+3) -> 13.958 | M29: =VLOOKUP($J29,P_All!$AD$5:$BE$245,3*($C$6-1)+4) -> 40.729 | N29: =VLOOKUP($J29,SDEIS_All!$AD$5:$BE$245,3*($C$6-1)+2) -> 4.0932 | O29: =VLOOKUP($J29,SDEIS_All!$AD$5:$BE$245,3*($C$6-1)+3) -> 12.358 | P29: =VLOOKUP($J29,SDEIS_All!$AD$5:$BE$245,3*($C$6-1)+4) -> 39.129
B30: 6 | C30: =VLOOKUP($B30,P_All!$A$5:$AB$204,3*($C$6-1)+2) -> 3.534416667 | D30: =VLOOKUP($B30,P_All!$A$5:$AB$204,3*($C$6-1)+3) -> 6.981666667 | E30: =VLOOKUP($B30,P_All!$A$5:$AB$204,3*($C$6-1)+4) -> 19.81955 | F30: =VLOOKUP($B30,SDEIS_All!$A$5:$AB$204,3*($C$6-1)+2) -> 1.934416667 | G30: =VLOOKUP($B30,SDEIS_All!$A$5:$AB$204,3*($C$6-1)+3) -> 5.381666667 | H30: =VLOOKUP($B30,SDEIS_All!$A$5:$AB$204,3*($C$6-1)+4) -> 18.219525 | J30: 50.41666667 | K30: =VLOOKUP($J30,P_All!$AD$5:$BE$245,3*($C$6-1)+2) -> 3.542 | L30: =VLOOKUP($J30,P_All!$AD$5:$BE$245,3*($C$6-1)+3) -> 9.7843 | M30: =VLOOKUP($J30,P_All!$AD$5:$BE$245,3*($C$6-1)+4) -> 21.241 | N30: =VLOOKUP($J30,SDEIS_All!$AD$5:$BE$245,3*($C$6-1)+2) -> 1.942 | O30: =VLOOKUP($J30,SDEIS_All!$AD$5:$BE$245,3*($C$6-1)+3) -> 8.1843 | P30: =VLOOKUP($J30,SDEIS_All!$AD$5:$BE$245,3*($C$6-1)+4) -> 19.641
B31: 7 | C31: =VLOOKUP($B31,P_All!$A$5:$AB$204,3*($C$6-1)+2) -> 3.504375 | D31: =VLOOKUP($B31,P_All!$A$5:$AB$204,3*($C$6-1)+3) -> 6.748591667 | E31: =VLOOKUP($B31,P_All!$A$5:$AB$204,3*($C$6-1)+4) -> 19.26270833 | F31: =VLOOKUP($B31,SDEIS_All!$A$5:$AB$204,3*($C$6-1)+2) -> 1.904375 | G31: =VLOOKUP($B31,SDEIS_All!$A$5:$AB$204,3*($C$6-1)+3) -> 5.1486 | H31: =VLOOKUP($B31,SDEIS_All!$A$5:$AB$204,3*($C$6-1)+4) -> 17.66275 | J31: 50.5 | K31: =VLOOKUP($J31,P_All!$AD$5:$BE$245,3*($C$6-1)+2) -> 2.8921 | L31: =VLOOKUP($J31,P_All!$AD$5:$BE$245,3*($C$6-1)+3) -> 5.9977 | M31: =VLOOKUP($J31,P_All!$AD$5:$BE$245,3*($C$6-1)+4) -> 43.775 | N31: =VLOOKUP($J31,SDEIS_All!$AD$5:$BE$245,3*($C$6-1)+2) -> 1.2921 | O31: =VLOOKUP($J31,SDEIS_All!$AD$5:$BE$245,3*($C$6-1)+3) -> 4.3977 | P31: =VLOOKUP($J31,SDEIS_All!$AD$5:$BE$245,3*($C$6-1)+4) -> 42.175
B32: 8 | C32: =VLOOKUP($B32,P_All!$A$5:$AB$204,3*($C$6-1)+2) -> 3.509041667 | D32: =VLOOKUP($B32,P_All!$A$5:$AB$204,3*($C$6-1)+3) -> 6.878258333 | E32: =VLOOKUP($B32,P_All!$A$5:$AB$204,3*($C$6-1)+4) -> 19.61075833 | F32: =VLOOKUP($B32,SDEIS_All!$A$5:$AB$204,3*($C$6-1)+2) -> 1.909041667 | G32: =VLOOKUP($B32,SDEIS_All!$A$5:$AB$204,3*($C$6-1)+3) -> 5.278258333 | H32: =VLOOKUP($B32,SDEIS_All!$A$5:$AB$204,3*($C$6-1)+4) -> 18.01075 | J32: 50.58333333 | K32: =VLOOKUP($J32,P_All!$AD$5:$BE$245,3*($C$6-1)+2) -> 3.6175 | L32: =VLOOKUP($J32,P_All!$AD$5:$BE$245,3*($C$6-1)+3) -> 5.7825 | M32: =VLOOKUP($J32,P_All!$AD$5:$BE$245,3*($C$6-1)+4) -> 24.74 | N32: =VLOOKUP($J32,SDEIS_All!$AD$5:$BE$245,3*($C$6-1)+2) -> 2.0175 | O32: =VLOOKUP($J32,SDEIS_All!$AD$5:$BE$245,3*($C$6-1)+3) -> 4.1825 | P32: =VLOOKUP($J32,SDEIS_All!$AD$5:$BE$245,3*($C$6-1)+4) -> 23.14
B33: 9 | C33: =VLOOKUP($B33,P_All!$A$5:$AB$204,3*($C$6-1)+2) -> 3.55385 | D33: =VLOOKUP($B33,P_All!$A$5:$AB$204,3*($C$6-1)+3) -> 6.72615 | E33: =VLOOKUP($B33,P_All!$A$5:$AB$204,3*($C$6-1)+4) -> 20.051675 | F33: =VLOOKUP($B33,SDEIS_All!$A$5:$AB$204,3*($C$6-1)+2) -> 1.95385 | G33: =VLOOKUP($B33,SDEIS_All!$A$5:$AB$204,3*($C$6-1)+3) -> 5.12615 | H33: =VLOOKUP($B33,SDEIS_All!$A$5:$AB$204,3*($C$6-1)+4) -> 18.45166667 | J33: 50.66666667 | K33: =VLOOKUP($J33,P_All!$AD$5:$BE$245,3*($C$6-1)+2) -> 3.159 | L33: =VLOOKUP($J33,P_All!$AD$5:$BE$245,3*($C$6-1)+3) -> 7.2828 | M33: =VLOOKUP($J33,P_All!$AD$5:$BE$245,3*($C$6-1)+4) -> 16.061 | N33: =VLOOKUP($J33,SDEIS_All!$AD$5:$BE$245,3*($C$6-1)+2) -> 1.559 | O33: =VLOOKUP($J33,SDEIS_All!$AD$5:$BE$245,3*($C$6-1)+3) -> 5.6828 | P33: =VLOOKUP($J33,SDEIS_All!$AD$5:$BE$245,3*($C$6-1)+4) -> 14.461
B34: 10 | C34: =VLOOKUP($B34,P_All!$A$5:$AB$204,3*($C$6-1)+2) -> 3.611633333 | D34: =VLOOKUP($B34,P_All!$A$5:$AB$204,3*($C$6-1)+3) -> 7.098858333 | E34: =VLOOKUP($B34,P_All!$A$5:$AB$204,3*($C$6-1)+4) -> 19.9481 | F34: =VLOOKUP($B34,SDEIS_All!$A$5:$AB$204,3*($C$6-1)+2) -> 2.011633333 | G34: =VLOOKUP($B34,SDEIS_All!$A$5:$AB$204,3*($C$6-1)+3) -> 5.498858333 | H34: =VLOOKUP($B34,SDEIS_All!$A$5:$AB$204,3*($C$6-1)+4) -> 18.34810833 | J34: 50.75 | K34: =VLOOKUP($J34,P_All!$AD$5:$BE$245,3*($C$6-1)+2) -> 3.9275 | L34: =VLOOKUP($J34,P_All!$AD$5:$BE$245,3*($C$6-1)+3) -> 7.3112 | M34: =VLOOKUP($J34,P_All!$AD$5:$BE$245,3*($C$6-1)+4) -> 22.032 | N34: =VLOOKUP($J34,SDEIS_All!$AD$5:$BE$245,3*($C$6-1)+2) -> 2.3275 | O34: =VLOOKUP($J34,SDEIS_All!$AD$5:$BE$245,3*($C$6-1)+3) -> 5.7112 | P34: =VLOOKUP($J34,SDEIS_All!$AD$5:$BE$245,3*($C$6-1)+4) -> 20.432
B35: 11 | C35: =VLOOKUP($B35,P_All!$A$5:$AB$204,3*($C$6-1)+2) -> 3.5558 | D35: =VLOOKUP($B35,P_All!$A$5:$AB$204,3*($C$6-1)+3) -> 6.915058333 | E35: =VLOOKUP($B35,P_All!$A$5:$AB$204,3*($C$6-1)+4) -> 19.99918333 | F35: =VLOOKUP($B35,SDEIS_All!$A$5:$AB$204,3*($C$6-1)+2) -> 1.9558 | G35: =VLOOKUP($B35,SDEIS_All!$A$5:$AB$204,3*($C$6-1)+3) -> 5.315058333 | H35: =VLOOKUP($B35,SDEIS_All!$A$5:$AB$204,3*($C$6-1)+4) -> 18.39919167 | J35: 50.83333333 | K35: =VLOOKUP($J35,P_All!$AD$5:$BE$245,3*($C$6-1)+2) -> 3.5324 | L35: =VLOOKUP($J35,P_All!$AD$5:$BE$245,3*($C$6-1)+3) -> 4.7181 | M35: =VLOOKUP($J35,P_All!$AD$5:$BE$245,3*($C$6-1)+4) -> 11.107 | N35: =VLOOKUP($J35,SDEIS_All!$AD$5:$BE$245,3*($C$6-1)+2) -> 1.9324 | O35: =VLOOKUP($J35,SDEIS_All!$AD$5:$BE$245,3*($C$6-1)+3) -> 3.1181 | P35: =VLOOKUP($J35,SDEIS_All!$AD$5:$BE$245,3*($C$6-1)+4) -> 9.5067
B36: 12 | C36: =VLOOKUP($B36,P_All!$A$5:$AB$204,3*($C$6-1)+2) -> 3.482175 | D36: =VLOOKUP($B36,P_All!$A$5:$AB$204,3*($C$6-1)+3) -> 6.90125 | E36: =VLOOKUP($B36,P_All!$A$5:$AB$204,3*($C$6-1)+4) -> 20.60888333 | F36: =VLOOKUP($B36,SDEIS_All!$A$5:$AB$204,3*($C$6-1)+2) -> 1.882175 | G36: =VLOOKUP($B36,SDEIS_All!$A$5:$AB$204,3*($C$6-1)+3) -> 5.30125 | H36: =VLOOKUP($B36,SDEIS_All!$A$5:$AB$204,3*($C$6-1)+4) -> 19.00890833 | J36: 50.91666667 | K36: =VLOOKUP($J36,P_All!$AD$5:$BE$245,3*($C$6-1)+2) -> 3.0142 | L36: =VLOOKUP($J36,P_All!$AD$5:$BE$245,3*($C$6-1)+3) -> 3.4526 | M36: =VLOOKUP($J36,P_All!$AD$5:$BE$245,3*($C$6-1)+4) -> 4.4439 | N36: =VLOOKUP($J36,SDEIS_All!$AD$5:$BE$245,3*($C$6-1)+2) -> 1.4142 | O36: =VLOOKUP($J36,SDEIS_All!$AD$5:$BE$245,3*($C$6-1)+3) -> 1.8526 | P36: =VLOOKUP($J36,SDEIS_All!$AD$5:$BE$245,3*($C$6-1)+4) -> 2.8439
B37: 13 | C37: =VLOOKUP($B37,P_All!$A$5:$AB$204,3*($C$6-1)+2) -> 3.569983333 | D37: =VLOOKUP($B37,P_All!$A$5:$AB$204,3*($C$6-1)+3) -> 6.840683333 | E37: =VLOOKUP($B37,P_All!$A$5:$AB$204,3*($C$6-1)+4) -> 20.36173333 | F37: =VLOOKUP($B37,SDEIS_All!$A$5:$AB$204,3*($C$6-1)+2) -> 1.969983333 | G37: =VLOOKUP($B37,SDEIS_All!$A$5:$AB$204,3*($C$6-1)+3) -> 5.240683333 | H37: =VLOOKUP($B37,SDEIS_All!$A$5:$AB$204,3*($C$6-1)+4) -> 18.76175833 | J37: 51 | K37: =VLOOKUP($J37,P_All!$AD$5:$BE$245,3*($C$6-1)+2) -> 2.7428 | L37: =VLOOKUP($J37,P_All!$AD$5:$BE$245,3*($C$6-1)+3) -> 3.1735 | M37: =VLOOKUP($J37,P_All!$AD$5:$BE$245,3*($C$6-1)+4) -> 3.6547 | N37: =VLOOKUP($J37,SDEIS_All!$AD$5:$BE$245,3*($C$6-1)+2) -> 1.1428 | O37: =VLOOKUP($J37,SDEIS_All!$AD$5:$BE$245,3*($C$6-1)+3) -> 1.5735 | P37: =VLOOKUP($J37,SDEIS_All!$AD$5:$BE$245,3*($C$6-1)+4) -> 2.0547
B38: 14 | C38: =VLOOKUP($B38,P_All!$A$5:$AB$204,3*($C$6-1)+2) -> 3.571308333 | D38: =VLOOKUP($B38,P_All!$A$5:$AB$204,3*($C$6-1)+3) -> 6.963933333 | E38: =VLOOKUP($B38,P_All!$A$5:$AB$204,3*($C$6-1)+4) -> 19.81203333 | F38: =VLOOKUP($B38,SDEIS_All!$A$5:$AB$204,3*($C$6-1)+2) -> 1.971308333 | G38: =VLOOKUP($B38,SDEIS_All!$A$5:$AB$204,3*($C$6-1)+3) -> 5.363933333 | H38: =VLOOKUP($B38,SDEIS_All!$A$5:$AB$204,3*($C$6-1)+4) -> 18.21196667 | J38: 51.08333333 | K38: =VLOOKUP($J38,P_All!$AD$5:$BE$245,3*($C$6-1)+2) -> 2.6913 | L38: =VLOOKUP($J38,P_All!$AD$5:$BE$245,3*($C$6-1)+3) -> 2.7545 | M38: =VLOOKUP($J38,P_All!$AD$5:$BE$245,3*($C$6-1)+4) -> 3.6464 | N38: =VLOOKUP($J38,SDEIS_All!$AD$5:$BE$245,3*($C$6-1)+2) -> 1.0913 | O38: =VLOOKUP($J38,SDEIS_All!$AD$5:$BE$245,3*($C$6-1)+3) -> 1.1545 | P38: =VLOOKUP($J38,SDEIS_All!$AD$5:$BE$245,3*($C$6-1)+4) -> 2.0464
B39: 15 | C39: =VLOOKUP($B39,P_All!$A$5:$AB$204,3*($C$6-1)+2) -> 3.449008333 | D39: =VLOOKUP($B39,P_All!$A$5:$AB$204,3*($C$6-1)+3) -> 6.782616667 | E39: =VLOOKUP($B39,P_All!$A$5:$AB$204,3*($C$6-1)+4) -> 21.16083333 | F39: =VLOOKUP($B39,SDEIS_All!$A$5:$AB$204,3*($C$6-1)+2) -> 1.849008333 | G39: =VLOOKUP($B39,SDEIS_All!$A$5:$AB$204,3*($C$6-1)+3) -> 5.182616667 | H39: =VLOOKUP($B39,SDEIS_All!$A$5:$AB$204,3*($C$6-1)+4) -> 19.56085833 | J39: 51.16666667 | K39: =VLOOKUP($J39,P_All!$AD$5:$BE$245,3*($C$6-1)+2) -> 2.6944 | L39: =VLOOKUP($J39,P_All!$AD$5:$BE$245,3*($C$6-1)+3) -> 3.3785 | M39: =VLOOKUP($J39,P_All!$AD$5:$BE$245,3*($C$6-1)+4) -> 10.964 | N39: =VLOOKUP($J39,SDEIS_All!$AD$5:$BE$245,3*($C$6-1)+2) -> 1.0944 | O39: =VLOOKUP($J39,SDEIS_All!$AD$5:$BE$245,3*($C$6-1)+3) -> 1.7785 | P39: =VLOOKUP($J39,SDEIS_All!$AD$5:$BE$245,3*($C$6-1)+4) -> 9.3637
B40: 16 | C40: =VLOOKUP($B40,P_All!$A$5:$AB$204,3*($C$6-1)+2) -> 3.607925 | D40: =VLOOKUP($B40,P_All!$A$5:$AB$204,3*($C$6-1)+3) -> 6.948383333 | E40: =VLOOKUP($B40,P_All!$A$5:$AB$204,3*($C$6-1)+4) -> 20.15678333 | F40: =VLOOKUP($B40,SDEIS_All!$A$5:$AB$204,3*($C$6-1)+2) -> 2.007925 | G40: =VLOOKUP($B40,SDEIS_All!$A$5:$AB$204,3*($C$6-1)+3) -> 5.348383333 | H40: =VLOOKUP($B40,SDEIS_All!$A$5:$AB$204,3*($C$6-1)+4) -> 18.556775 | J40: 51.25 | K40: =VLOOKUP($J40,P_All!$AD$5:$BE$245,3*($C$6-1)+2) -> 5.7045 | L40: =VLOOKUP($J40,P_All!$AD$5:$BE$245,3*($C$6-1)+3) -> 14.212 | M40: =VLOOKUP($J40,P_All!$AD$5:$BE$245,3*($C$6-1)+4) -> 39.287 | N40: =VLOOKUP($J40,SDEIS_All!$AD$5:$BE$245,3*($C$6-1)+2) -> 4.1045 | O40: =VLOOKUP($J40,SDEIS_All!$AD$5:$BE$245,3*($C$6-1)+3) -> 12.612 | P40: =VLOOKUP($J40,SDEIS_All!$AD$5:$BE$245,3*($C$6-1)+4) -> 37.687
B41: 17 | C41: =VLOOKUP($B41,P_All!$A$5:$AB$204,3*($C$6-1)+2) -> 3.5722 | D41: =VLOOKUP($B41,P_All!$A$5:$AB$204,3*($C$6-1)+3) -> 6.924975 | E41: =VLOOKUP($B41,P_All!$A$5:$AB$204,3*($C$6-1)+4) -> 20.404225 | F41: =VLOOKUP($B41,SDEIS_All!$A$5:$AB$204,3*($C$6-1)+2) -> 1.9722 | G41: =VLOOKUP($B41,SDEIS_All!$A$5:$AB$204,3*($C$6-1)+3) -> 5.324975 | H41: =VLOOKUP($B41,SDEIS_All!$A$5:$AB$204,3*($C$6-1)+4) -> 18.80429167 | J41: 51.33333333 | K41: =VLOOKUP($J41,P_All!$AD$5:$BE$245,3*($C$6-1)+2) -> 5.1191 | L41: =VLOOKUP($J41,P_All!$AD$5:$BE$245,3*($C$6-1)+3) -> 12.394 | M41: =VLOOKUP($J41,P_All!$AD$5:$BE$245,3*($C$6-1)+4) -> 43.038 | N41: =VLOOKUP($J41,SDEIS_All!$AD$5:$BE$245,3*($C$6-1)+2) -> 3.5191 | O41: =VLOOKUP($J41,SDEIS_All!$AD$5:$BE$245,3*($C$6-1)+3) -> 10.794 | P41: =VLOOKUP($J41,SDEIS_All!$AD$5:$BE$245,3*($C$6-1)+4) -> 41.438
B42: 18 | C42: =VLOOKUP($B42,P_All!$A$5:$AB$204,3*($C$6-1)+2) -> 3.564791667 | D42: =VLOOKUP($B42,P_All!$A$5:$AB$204,3*($C$6-1)+3) -> 7.0229 | E42: =VLOOKUP($B42,P_All!$A$5:$AB$204,3*($C$6-1)+4) -> 21.0813 | F42: =VLOOKUP($B42,SDEIS_All!$A$5:$AB$204,3*($C$6-1)+2) -> 1.964791667 | G42: =VLOOKUP($B42,SDEIS_All!$A$5:$AB$204,3*($C$6-1)+3) -> 5.4229 | H42: =VLOOKUP($B42,SDEIS_All!$A$5:$AB$204,3*($C$6-1)+4) -> 19.481325 | J42: 51.41666667 | K42: =VLOOKUP($J42,P_All!$AD$5:$BE$245,3*($C$6-1)+2) -> 3.4399 | L42: =VLOOKUP($J42,P_All!$AD$5:$BE$245,3*($C$6-1)+3) -> 9.0229 | M42: =VLOOKUP($J42,P_All!$AD$5:$BE$245,3*($C$6-1)+4) -> 19.03 | N42: =VLOOKUP($J42,SDEIS_All!$AD$5:$BE$245,3*($C$6-1)+2) -> 1.8399 | O42: =VLOOKUP($J42,SDEIS_All!$AD$5:$BE$245,3*($C$6-1)+3) -> 7.4229 | P42: =VLOOKUP($J42,SDEIS_All!$AD$5:$BE$245,3*($C$6-1)+4) -> 17.43
B43: 19 | C43: =VLOOKUP($B43,P_All!$A$5:$AB$204,3*($C$6-1)+2) -> 3.584525 | D43: =VLOOKUP($B43,P_All!$A$5:$AB$204,3*($C$6-1)+3) -> 7.053975 | E43: =VLOOKUP($B43,P_All!$A$5:$AB$204,3*($C$6-1)+4) -> 21.2121 | F43: =VLOOKUP($B43,SDEIS_All!$A$5:$AB$204,3*($C$6-1)+2) -> 1.984525 | G43: =VLOOKUP($B43,SDEIS_All!$A$5:$AB$204,3*($C$6-1)+3) -> 5.453975 | H43: =VLOOKUP($B43,SDEIS_All!$A$5:$AB$204,3*($C$6-1)+4) -> 19.612125 | J43: 51.5 | K43: =VLOOKUP($J43,P_All!$AD$5:$BE$245,3*($C$6-1)+2) -> 2.9148 | L43: =VLOOKUP($J43,P_All!$AD$5:$BE$245,3*($C$6-1)+3) -> 5.9273 | M43: =VLOOKUP($J43,P_All!$AD$5:$BE$245,3*($C$6-1)+4) -> 50.816 | N43: =VLOOKUP($J43,SDEIS_All!$AD$5:$BE$245,3*($C$6-1)+2) -> 1.3148 | O43: =VLOOKUP($J43,SDEIS_All!$AD$5:$BE$245,3*($C$6-1)+3) -> 4.3273 | P43: =VLOOKUP($J43,SDEIS_All!$AD$5:$BE$245,3*($C$6-1)+4) -> 49.216
B44: 20 | C44: =VLOOKUP($B44,P_All!$A$5:$AB$204,3*($C$6-1)+2) -> 3.608258333 | D44: =VLOOKUP($B44,P_All!$A$5:$AB$204,3*($C$6-1)+3) -> 6.941791667 | E44: =VLOOKUP($B44,P_All!$A$5:$AB$204,3*($C$6-1)+4) -> 20.2535 | F44: =VLOOKUP($B44,SDEIS_All!$A$5:$AB$204,3*($C$6-1)+2) -> 2.008258333 | G44: =VLOOKUP($B44,SDEIS_All!$A$5:$AB$204,3*($C$6-1)+3) -> 5.341791667 | H44: =VLOOKUP($B44,SDEIS_All!$A$5:$AB$204,3*($C$6-1)+4) -> 18.65346667 | J44: 51.58333333 | K44: =VLOOKUP($J44,P_All!$AD$5:$BE$245,3*($C$6-1)+2) -> 3.4598 | L44: =VLOOKUP($J44,P_All!$AD$5:$BE$245,3*($C$6-1)+3) -> 6.0014 | M44: =VLOOKUP($J44,P_All!$AD$5:$BE$245,3*($C$6-1)+4) -> 29.105 | N44: =VLOOKUP($J44,SDEIS_All!$AD$5:$BE$245,3*($C$6-1)+2) -> 1.8598 | O44: =VLOOKUP($J44,SDEIS_All!$AD$5:$BE$245,3*($C$6-1)+3) -> 4.4014 | P44: =VLOOKUP($J44,SDEIS_All!$AD$5:$BE$245,3*($C$6-1)+4) -> 27.505
B45: 21 | C45: =VLOOKUP($B45,P_All!$A$5:$AB$204,3*($C$6-1)+2) -> 3.629033333 | D45: =VLOOKUP($B45,P_All!$A$5:$AB$204,3*($C$6-1)+3) -> 6.810291667 | E45: =VLOOKUP($B45,P_All!$A$5:$AB$204,3*($C$6-1)+4) -> 20.29159167 | F45: =VLOOKUP($B45,SDEIS_All!$A$5:$AB$204,3*($C$6-1)+2) -> 2.029033333 | G45: =VLOOKUP($B45,SDEIS_All!$A$5:$AB$204,3*($C$6-1)+3) -> 5.210291667 | H45: =VLOOKUP($B45,SDEIS_All!$A$5:$AB$204,3*($C$6-1)+4) -> 18.69161667 | J45: 51.66666667 | K45: =VLOOKUP($J45,P_All!$AD$5:$BE$245,3*($C$6-1)+2) -> 3.1643 | L45: =VLOOKUP($J45,P_All!$AD$5:$BE$245,3*($C$6-1)+3) -> 7.826 | M45: =VLOOKUP($J45,P_All!$AD$5:$BE$245,3*($C$6-1)+4) -> 16.602 | N45: =VLOOKUP($J45,SDEIS_All!$AD$5:$BE$245,3*($C$6-1)+2) -> 1.5643 | O45: =VLOOKUP($J45,SDEIS_All!$AD$5:$BE$245,3*($C$6-1)+3) -> 6.226 | P45: =VLOOKUP($J45,SDEIS_All!$AD$5:$BE$245,3*($C$6-1)+4) -> 15.002
B46: 22 | C46: =VLOOKUP($B46,P_All!$A$5:$AB$204,3*($C$6-1)+2) -> 3.584225 | D46: =VLOOKUP($B46,P_All!$A$5:$AB$204,3*($C$6-1)+3) -> 7.095358333 | E46: =VLOOKUP($B46,P_All!$A$5:$AB$204,3*($C$6-1)+4) -> 21.4407 | F46: =VLOOKUP($B46,SDEIS_All!$A$5:$AB$204,3*($C$6-1)+2) -> 1.984225 | G46: =VLOOKUP($B46,SDEIS_All!$A$5:$AB$204,3*($C$6-1)+3) -> 5.495366667 | H46: =VLOOKUP($B46,SDEIS_All!$A$5:$AB$204,3*($C$6-1)+4) -> 19.84081667 | J46: 51.75 | K46: =VLOOKUP($J46,P_All!$AD$5:$BE$245,3*($C$6-1)+2) -> 4.1648 | L46: =VLOOKUP($J46,P_All!$AD$5:$BE$245,3*($C$6-1)+3) -> 7.9748 | M46: =VLOOKUP($J46,P_All!$AD$5:$BE$245,3*($C$6-1)+4) -> 22.578 | N46: =VLOOKUP($J46,SDEIS_All!$AD$5:$BE$245,3*($C$6-1)+2) -> 2.5648 | O46: =VLOOKUP($J46,SDEIS_All!$AD$5:$BE$245,3*($C$6-1)+3) -> 6.3748 | P46: =VLOOKUP($J46,SDEIS_All!$AD$5:$BE$245,3*($C$6-1)+4) -> 20.978
B47: 23 | C47: =VLOOKUP($B47,P_All!$A$5:$AB$204,3*($C$6-1)+2) -> 3.628033333 | D47: =VLOOKUP($B47,P_All!$A$5:$AB$204,3*($C$6-1)+3) -> 7.089433333 | E47: =VLOOKUP($B47,P_All!$A$5:$AB$204,3*($C$6-1)+4) -> 20.98470833 | F47: =VLOOKUP($B47,SDEIS_All!$A$5:$AB$204,3*($C$6-1)+2) -> 2.028033333 | G47: =VLOOKUP($B47,SDEIS_All!$A$5:$AB$204,3*($C$6-1)+3) -> 5.489441667 | H47: =VLOOKUP($B47,SDEIS_All!$A$5:$AB$204,3*($C$6-1)+4) -> 19.384825 | J47: 51.83333333 | K47: =VLOOKUP($J47,P_All!$AD$5:$BE$245,3*($C$6-1)+2) -> 3.5448 | L47: =VLOOKUP($J47,P_All!$AD$5:$BE$245,3*($C$6-1)+3) -> 5.137 | M47: =VLOOKUP($J47,P_All!$AD$5:$BE$245,3*($C$6-1)+4) -> 10.755 | N47: =VLOOKUP($J47,SDEIS_All!$AD$5:$BE$245,3*($C$6-1)+2) -> 1.9448 | O47: =VLOOKUP($J47,SDEIS_All!$AD$5:$BE$245,3*($C$6-1)+3) -> 3.537 | P47: =VLOOKUP($J47,SDEIS_All!$AD$5:$BE$245,3*($C$6-1)+4) -> 9.1554
B48: 24 | C48: =VLOOKUP($B48,P_All!$A$5:$AB$204,3*($C$6-1)+2) -> 3.590558333 | D48: =VLOOKUP($B48,P_All!$A$5:$AB$204,3*($C$6-1)+3) -> 6.869925 | E48: =VLOOKUP($B48,P_All!$A$5:$AB$204,3*($C$6-1)+4) -> 19.74096667 | F48: =VLOOKUP($B48,SDEIS_All!$A$5:$AB$204,3*($C$6-1)+2) -> 1.990566667 | G48: =VLOOKUP($B48,SDEIS_All!$A$5:$AB$204,3*($C$6-1)+3) -> 5.269933333 | H48: =VLOOKUP($B48,SDEIS_All!$A$5:$AB$204,3*($C$6-1)+4) -> 18.14113333 | J48: 51.91666667 | K48: =VLOOKUP($J48,P_All!$AD$5:$BE$245,3*($C$6-1)+2) -> 3.0206 | L48: =VLOOKUP($J48,P_All!$AD$5:$BE$245,3*($C$6-1)+3) -> 3.4708 | M48: =VLOOKUP($J48,P_All!$AD$5:$BE$245,3*($C$6-1)+4) -> 4.7634 | N48: =VLOOKUP($J48,SDEIS_All!$AD$5:$BE$245,3*($C$6-1)+2) -> 1.4206 | O48: =VLOOKUP($J48,SDEIS_All!$AD$5:$BE$245,3*($C$6-1)+3) -> 1.8708 | P48: =VLOOKUP($J48,SDEIS_All!$AD$5:$BE$245,3*($C$6-1)+4) -> 3.1634
B49: 25 | C49: =VLOOKUP($B49,P_All!$A$5:$AB$204,3*($C$6-1)+2) -> 3.53285 | D49: =VLOOKUP($B49,P_All!$A$5:$AB$204,3*($C$6-1)+3) -> 6.85655 | E49: =VLOOKUP($B49,P_All!$A$5:$AB$204,3*($C$6-1)+4) -> 19.74009167 | F49: =VLOOKUP($B49,SDEIS_All!$A$5:$AB$204,3*($C$6-1)+2) -> 1.932858333 | G49: =VLOOKUP($B49,SDEIS_All!$A$5:$AB$204,3*($C$6-1)+3) -> 5.256566667 | H49: =VLOOKUP($B49,SDEIS_All!$A$5:$AB$204,3*($C$6-1)+4) -> 18.140175 | J49: 52 | K49: =VLOOKUP($J49,P_All!$AD$5:$BE$245,3*($C$6-1)+2) -> 2.7428 | L49: =VLOOKUP($J49,P_All!$AD$5:$BE$245,3*($C$6-1)+3) -> 3.1749 | M49: =VLOOKUP($J49,P_All!$AD$5:$BE$245,3*($C$6-1)+4) -> 3.6958 | N49: =VLOOKUP($J49,SDEIS_All!$AD$5:$BE$245,3*($C$6-1)+2) -> 1.1428 | O49: =VLOOKUP($J49,SDEIS_All!$AD$5:$BE$245,3*($C$6-1)+3) -> 1.5749 | P49: =VLOOKUP($J49,SDEIS_All!$AD$5:$BE$245,3*($C$6-1)+4) -> 2.0958
B50: 26 | C50: =VLOOKUP($B50,P_All!$A$5:$AB$204,3*($C$6-1)+2) -> 3.574741667 | D50: =VLOOKUP($B50,P_All!$A$5:$AB$204,3*($C$6-1)+3) -> 6.886883333 | E50: =VLOOKUP($B50,P_All!$A$5:$AB$204,3*($C$6-1)+4) -> 20.8959 | F50: =VLOOKUP($B50,SDEIS_All!$A$5:$AB$204,3*($C$6-1)+2) -> 1.97475 | G50: =VLOOKUP($B50,SDEIS_All!$A$5:$AB$204,3*($C$6-1)+3) -> 5.286908333 | H50: =VLOOKUP($B50,SDEIS_All!$A$5:$AB$204,3*($C$6-1)+4) -> 19.2961 | J50: 52.08333333 | K50: =VLOOKUP($J50,P_All!$AD$5:$BE$245,3*($C$6-1)+2) -> 2.6947 | L50: =VLOOKUP($J50,P_All!$AD$5:$BE$245,3*($C$6-1)+3) -> 2.756 | M50: =VLOOKUP($J50,P_All!$AD$5:$BE$245,3*($C$6-1)+4) -> 3.6143 | N50: =VLOOKUP($J50,SDEIS_All!$AD$5:$BE$245,3*($C$6-1)+2) -> 1.0947 | O50: =VLOOKUP($J50,SDEIS_All!$AD$5:$BE$245,3*($C$6-1)+3) -> 1.156 | P50: =VLOOKUP($J50,SDEIS_All!$AD$5:$BE$245,3*($C$6-1)+4) -> 2.0143
B51: 27 | C51: =VLOOKUP($B51,P_All!$A$5:$AB$204,3*($C$6-1)+2) -> 3.56145 | D51: =VLOOKUP($B51,P_All!$A$5:$AB$204,3*($C$6-1)+3) -> 7.157633333 | E51: =VLOOKUP($B51,P_All!$A$5:$AB$204,3*($C$6-1)+4) -> 20.39505 | F51: =VLOOKUP($B51,SDEIS_All!$A$5:$AB$204,3*($C$6-1)+2) -> 1.961458333 | G51: =VLOOKUP($B51,SDEIS_All!$A$5:$AB$204,3*($C$6-1)+3) -> 5.557666667 | H51: =VLOOKUP($B51,SDEIS_All!$A$5:$AB$204,3*($C$6-1)+4) -> 18.7953 | J51: 52.16666667 | K51: =VLOOKUP($J51,P_All!$AD$5:$BE$245,3*($C$6-1)+2) -> 2.7051 | L51: =VLOOKUP($J51,P_All!$AD$5:$BE$245,3*($C$6-1)+3) -> 3.1611 | M51: =VLOOKUP($J51,P_All!$AD$5:$BE$245,3*($C$6-1)+4) -> 11.156 | N51: =VLOOKUP($J51,SDEIS_All!$AD$5:$BE$245,3*($C$6-1)+2) -> 1.1051 | O51: =VLOOKUP($J51,SDEIS_All!$AD$5:$BE$245,3*($C$6-1)+3) -> 1.5611 | P51: =VLOOKUP($J51,SDEIS_All!$AD$5:$BE$245,3*($C$6-1)+4) -> 9.5556
B52: 28 | C52: =VLOOKUP($B52,P_All!$A$5:$AB$204,3*($C$6-1)+2) -> 3.602808333 | D52: =VLOOKUP($B52,P_All!$A$5:$AB$204,3*($C$6-1)+3) -> 6.869766667 | E52: =VLOOKUP($B52,P_All!$A$5:$AB$204,3*($C$6-1)+4) -> 20.8373 | F52: =VLOOKUP($B52,SDEIS_All!$A$5:$AB$204,3*($C$6-1)+2) -> 2.002825 | G52: =VLOOKUP($B52,SDEIS_All!$A$5:$AB$204,3*($C$6-1)+3) -> 5.269808333 | H52: =VLOOKUP($B52,SDEIS_All!$A$5:$AB$204,3*($C$6-1)+4) -> 19.23760833 | J52: 52.25 | K52: =VLOOKUP($J52,P_All!$AD$5:$BE$245,3*($C$6-1)+2) -> 5.7626 | L52: =VLOOKUP($J52,P_All!$AD$5:$BE$245,3*($C$6-1)+3) -> 14.647 | M52: =VLOOKUP($J52,P_All!$AD$5:$BE$245,3*($C$6-1)+4) -> 39.935 | N52: =VLOOKUP($J52,SDEIS_All!$AD$5:$BE$245,3*($C$6-1)+2) -> 4.1626 | O52: =VLOOKUP($J52,SDEIS_All!$AD$5:$BE$245,3*($C$6-1)+3) -> 13.047 | P52: =VLOOKUP($J52,SDEIS_All!$AD$5:$BE$245,3*($C$6-1)+4) -> 38.335
B53: 29 | C53: =VLOOKUP($B53,P_All!$A$5:$AB$204,3*($C$6-1)+2) -> 3.544241667 | D53: =VLOOKUP($B53,P_All!$A$5:$AB$204,3*($C$6-1)+3) -> 6.982958333 | E53: =VLOOKUP($B53,P_All!$A$5:$AB$204,3*($C$6-1)+4) -> 20.20690833 | F53: =VLOOKUP($B53,SDEIS_All!$A$5:$AB$204,3*($C$6-1)+2) -> 1.94425 | G53: =VLOOKUP($B53,SDEIS_All!$A$5:$AB$204,3*($C$6-1)+3) -> 5.383 | H53: =VLOOKUP($B53,SDEIS_All!$A$5:$AB$204,3*($C$6-1)+4) -> 18.607175 | J53: 52.33333333 | K53: =VLOOKUP($J53,P_All!$AD$5:$BE$245,3*($C$6-1)+2) -> 5.6104 | L53: =VLOOKUP($J53,P_All!$AD$5:$BE$245,3*($C$6-1)+3) -> 13.742 | M53: =VLOOKUP($J53,P_All!$AD$5:$BE$245,3*($C$6-1)+4) -> 43.592 | N53: =VLOOKUP($J53,SDEIS_All!$AD$5:$BE$245,3*($C$6-1)+2) -> 4.0104 | O53: =VLOOKUP($J53,SDEIS_All!$AD$5:$BE$245,3*($C$6-1)+3) -> 12.142 | P53: =VLOOKUP($J53,SDEIS_All!$AD$5:$BE$245,3*($C$6-1)+4) -> 41.992
B54: 30 | C54: =VLOOKUP($B54,P_All!$A$5:$AB$204,3*($C$6-1)+2) -> 3.581091667 | D54: =VLOOKUP($B54,P_All!$A$5:$AB$204,3*($C$6-1)+3) -> 7.171275 | E54: =VLOOKUP($B54,P_All!$A$5:$AB$204,3*($C$6-1)+4) -> 20.070775 | F54: =VLOOKUP($B54,SDEIS_All!$A$5:$AB$204,3*($C$6-1)+2) -> 1.981108333 | G54: =VLOOKUP($B54,SDEIS_All!$A$5:$AB$204,3*($C$6-1)+3) -> 5.571341667 | H54: =VLOOKUP($B54,SDEIS_All!$A$5:$AB$204,3*($C$6-1)+4) -> 18.47113333 | J54: 52.41666667 | K54: =VLOOKUP($J54,P_All!$AD$5:$BE$245,3*($C$6-1)+2) -> 3.4244 | L54: =VLOOKUP($J54,P_All!$AD$5:$BE$245,3*($C$6-1)+3) -> 8.7868 | M54: =VLOOKUP($J54,P_All!$AD$5:$BE$245,3*($C$6-1)+4) -> 22.186 | N54: =VLOOKUP($J54,SDEIS_All!$AD$5:$BE$245,3*($C$6-1)+2) -> 1.8244 | O54: =VLOOKUP($J54,SDEIS_All!$AD$5:$BE$245,3*($C$6-1)+3) -> 7.1868 | P54: =VLOOKUP($J54,SDEIS_All!$AD$5:$BE$245,3*($C$6-1)+4) -> 20.586
B55: 31 | C55: =VLOOKUP($B55,P_All!$A$5:$AB$204,3*($C$6-1)+2) -> 3.540083333 | D55: =VLOOKUP($B55,P_All!$A$5:$AB$204,3*($C$6-1)+3) -> 7.12685 | E55: =VLOOKUP($B55,P_All!$A$5:$AB$204,3*($C$6-1)+4) -> 20.31491667 | F55: =VLOOKUP($B55,SDEIS_All!$A$5:$AB$204,3*($C$6-1)+2) -> 1.9401 | G55: =VLOOKUP($B55,SDEIS_All!$A$5:$AB$204,3*($C$6-1)+3) -> 5.526916667 | H55: =VLOOKUP($B55,SDEIS_All!$A$5:$AB$204,3*($C$6-1)+4) -> 18.71525833 | J55: 52.5 | K55: =VLOOKUP($J55,P_All!$AD$5:$BE$245,3*($C$6-1)+2) -> 2.8761 | L55: =VLOOKUP($J55,P_All!$AD$5:$BE$245,3*($C$6-1)+3) -> 5.8305 | M55: =VLOOKUP($J55,P_All!$AD$5:$BE$245,3*($C$6-1)+4) -> 40.08 | N55: =VLOOKUP($J55,SDEIS_All!$AD$5:$BE$245,3*($C$6-1)+2) -> 1.2761 | O55: =VLOOKUP($J55,SDEIS_All!$AD$5:$BE$245,3*($C$6-1)+3) -> 4.2305 | P55: =VLOOKUP($J55,SDEIS_All!$AD$5:$BE$245,3*($C$6-1)+4) -> 38.48
B56: 32 | C56: =VLOOKUP($B56,P_All!$A$5:$AB$204,3*($C$6-1)+2) -> 3.559183333 | D56: =VLOOKUP($B56,P_All!$A$5:$AB$204,3*($C$6-1)+3) -> 7.038233333 | E56: =VLOOKUP($B56,P_All!$A$5:$AB$204,3*($C$6-1)+4) -> 21.28815833 | F56: =VLOOKUP($B56,SDEIS_All!$A$5:$AB$204,3*($C$6-1)+2) -> 1.9592 | G56: =VLOOKUP($B56,SDEIS_All!$A$5:$AB$204,3*($C$6-1)+3) -> 5.438308333 | H56: =VLOOKUP($B56,SDEIS_All!$A$5:$AB$204,3*($C$6-1)+4) -> 19.688575 | J56: 52.58333333 | K56: =VLOOKUP($J56,P_All!$AD$5:$BE$245,3*($C$6-1)+2) -> 3.3804 | L56: =VLOOKUP($J56,P_All!$AD$5:$BE$245,3*($C$6-1)+3) -> 5.847 | M56: =VLOOKUP($J56,P_All!$AD$5:$BE$245,3*($C$6-1)+4) -> 29.555 | N56: =VLOOKUP($J56,SDEIS_All!$AD$5:$BE$245,3*($C$6-1)+2) -> 1.7804 | O56: =VLOOKUP($J56,SDEIS_All!$AD$5:$BE$245,3*($C$6-1)+3) -> 4.247 | P56: =VLOOKUP($J56,SDEIS_All!$AD$5:$BE$245,3*($C$6-1)+4) -> 27.955
B57: 33 | C57: =VLOOKUP($B57,P_All!$A$5:$AB$204,3*($C$6-1)+2) -> 3.623291667 | D57: =VLOOKUP($B57,P_All!$A$5:$AB$204,3*($C$6-1)+3) -> 6.979825 | E57: =VLOOKUP($B57,P_All!$A$5:$AB$204,3*($C$6-1)+4) -> 20.8359 | F57: =VLOOKUP($B57,SDEIS_All!$A$5:$AB$204,3*($C$6-1)+2) -> 2.023308333 | G57: =VLOOKUP($B57,SDEIS_All!$A$5:$AB$204,3*($C$6-1)+3) -> 5.3799 | H57: =VLOOKUP($B57,SDEIS_All!$A$5:$AB$204,3*($C$6-1)+4) -> 19.23645833 | J57: 52.66666667 | K57: =VLOOKUP($J57,P_All!$AD$5:$BE$245,3*($C$6-1)+2) -> 3.3396 | L57: =VLOOKUP($J57,P_All!$AD$5:$BE$245,3*($C$6-1)+3) -> 7.9996 | M57: =VLOOKUP($J57,P_All!$AD$5:$BE$245,3*($C$6-1)+4) -> 17.406 | N57: =VLOOKUP($J57,SDEIS_All!$AD$5:$BE$245,3*($C$6-1)+2) -> 1.7396 | O57: =VLOOKUP($J57,SDEIS_All!$AD$5:$BE$245,3*($C$6-1)+3) -> 6.3996 | P57: =VLOOKUP($J57,SDEIS_All!$AD$5:$BE$245,3*($C$6-1)+4) -> 15.806
B58: 34 | C58: =VLOOKUP($B58,P_All!$A$5:$AB$204,3*($C$6-1)+2) -> 3.49295 | D58: =VLOOKUP($B58,P_All!$A$5:$AB$204,3*($C$6-1)+3) -> 6.969066667 | E58: =VLOOKUP($B58,P_All!$A$5:$AB$204,3*($C$6-1)+4) -> 20.86298333 | F58: =VLOOKUP($B58,SDEIS_All!$A$5:$AB$204,3*($C$6-1)+2) -> 1.892975 | G58: =VLOOKUP($B58,SDEIS_All!$A$5:$AB$204,3*($C$6-1)+3) -> 5.36915 | H58: =VLOOKUP($B58,SDEIS_All!$A$5:$AB$204,3*($C$6-1)+4) -> 19.26358333 | J58: 52.75 | K58: =VLOOKUP($J58,P_All!$AD$5:$BE$245,3*($C$6-1)+2) -> 3.923 | L58: =VLOOKUP($J58,P_All!$AD$5:$BE$245,3*($C$6-1)+3) -> 7.5688 | M58: =VLOOKUP($J58,P_All!$AD$5:$BE$245,3*($C$6-1)+4) -> 26.424 | N58: =VLOOKUP($J58,SDEIS_All!$AD$5:$BE$245,3*($C$6-1)+2) -> 2.323 | O58: =VLOOKUP($J58,SDEIS_All!$AD$5:$BE$245,3*($C$6-1)+3) -> 5.9688 | P58: =VLOOKUP($J58,SDEIS_All!$AD$5:$BE$245,3*($C$6-1)+4) -> 24.824
B59: 35 | C59: =VLOOKUP($B59,P_All!$A$5:$AB$204,3*($C$6-1)+2) -> 3.526233333 | D59: =VLOOKUP($B59,P_All!$A$5:$AB$204,3*($C$6-1)+3) -> 6.939808333 | E59: =VLOOKUP($B59,P_All!$A$5:$AB$204,3*($C$6-1)+4) -> 20.030675 | F59: =VLOOKUP($B59,SDEIS_All!$A$5:$AB$204,3*($C$6-1)+2) -> 1.926258333 | G59: =VLOOKUP($B59,SDEIS_All!$A$5:$AB$204,3*($C$6-1)+3) -> 5.339916667 | H59: =VLOOKUP($B59,SDEIS_All!$A$5:$AB$204,3*($C$6-1)+4) -> 18.43138333 | J59: 52.83333333 | K59: =VLOOKUP($J59,P_All!$AD$5:$BE$245,3*($C$6-1)+2) -> 3.5324 | L59: =VLOOKUP($J59,P_All!$AD$5:$BE$245,3*($C$6-1)+3) -> 5.039 | M59: =VLOOKUP($J59,P_All!$AD$5:$BE$245,3*($C$6-1)+4) -> 11.508 | N59: =VLOOKUP($J59,SDEIS_All!$AD$5:$BE$245,3*($C$6-1)+2) -> 1.9324 | O59: =VLOOKUP($J59,SDEIS_All!$AD$5:$BE$245,3*($C$6-1)+3) -> 3.439 | P59: =VLOOKUP($J59,SDEIS_All!$AD$5:$BE$245,3*($C$6-1)+4) -> 9.9083
B60: 36 | C60: =VLOOKUP($B60,P_All!$A$5:$AB$204,3*($C$6-1)+2) -> 3.590958333 | D60: =VLOOKUP($B60,P_All!$A$5:$AB$204,3*($C$6-1)+3) -> 7.144608333 | E60: =VLOOKUP($B60,P_All!$A$5:$AB$204,3*($C$6-1)+4) -> 20.30859167 | F60: =VLOOKUP($B60,SDEIS_All!$A$5:$AB$204,3*($C$6-1)+2) -> 1.990975 | G60: =VLOOKUP($B60,SDEIS_All!$A$5:$AB$204,3*($C$6-1)+3) -> 5.544691667 | H60: =VLOOKUP($B60,SDEIS_All!$A$5:$AB$204,3*($C$6-1)+4) -> 18.70924167 | J60: 52.91666667 | K60: =VLOOKUP($J60,P_All!$AD$5:$BE$245,3*($C$6-1)+2) -> 3.0098 | L60: =VLOOKUP($J60,P_All!$AD$5:$BE$245,3*($C$6-1)+3) -> 3.4043 | M60: =VLOOKUP($J60,P_All!$AD$5:$BE$245,3*($C$6-1)+4) -> 4.4095 | N60: =VLOOKUP($J60,SDEIS_All!$AD$5:$BE$245,3*($C$6-1)+2) -> 1.4098 | O60: =VLOOKUP($J60,SDEIS_All!$AD$5:$BE$245,3*($C$6-1)+3) -> 1.8043 | P60: =VLOOKUP($J60,SDEIS_All!$AD$5:$BE$245,3*($C$6-1)+4) -> 2.8095
B61: 37 | C61: =VLOOKUP($B61,P_All!$A$5:$AB$204,3*($C$6-1)+2) -> 3.535258333 | D61: =VLOOKUP($B61,P_All!$A$5:$AB$204,3*($C$6-1)+3) -> 7.048325 | E61: =VLOOKUP($B61,P_All!$A$5:$AB$204,3*($C$6-1)+4) -> 21.138 | F61: =VLOOKUP($B61,SDEIS_All!$A$5:$AB$204,3*($C$6-1)+2) -> 1.935291667 | G61: =VLOOKUP($B61,SDEIS_All!$A$5:$AB$204,3*($C$6-1)+3) -> 5.448433333 | H61: =VLOOKUP($B61,SDEIS_All!$A$5:$AB$204,3*($C$6-1)+4) -> 19.53856667 | J61: 53 | K61: =VLOOKUP($J61,P_All!$AD$5:$BE$245,3*($C$6-1)+2) -> 2.7371 | L61: =VLOOKUP($J61,P_All!$AD$5:$BE$245,3*($C$6-1)+3) -> 3.0906 | M61: =VLOOKUP($J61,P_All!$AD$5:$BE$245,3*($C$6-1)+4) -> 3.6573 | N61: =VLOOKUP($J61,SDEIS_All!$AD$5:$BE$245,3*($C$6-1)+2) -> 1.1371 | O61: =VLOOKUP($J61,SDEIS_All!$AD$5:$BE$245,3*($C$6-1)+3) -> 1.4906 | P61: =VLOOKUP($J61,SDEIS_All!$AD$5:$BE$245,3*($C$6-1)+4) -> 2.0573
B62: 38 | C62: =VLOOKUP($B62,P_All!$A$5:$AB$204,3*($C$6-1)+2) -> 3.485508333 | D62: =VLOOKUP($B62,P_All!$A$5:$AB$204,3*($C$6-1)+3) -> 6.842958333 | E62: =VLOOKUP($B62,P_All!$A$5:$AB$204,3*($C$6-1)+4) -> 21.6165 | F62: =VLOOKUP($B62,SDEIS_All!$A$5:$AB$204,3*($C$6-1)+2) -> 1.885533333 | G62: =VLOOKUP($B62,SDEIS_All!$A$5:$AB$204,3*($C$6-1)+3) -> 5.243041667 | H62: =VLOOKUP($B62,SDEIS_All!$A$5:$AB$204,3*($C$6-1)+4) -> 20.01714167 | J62: 53.08333333 | K62: =VLOOKUP($J62,P_All!$AD$5:$BE$245,3*($C$6-1)+2) -> 2.6954 | L62: =VLOOKUP($J62,P_All!$AD$5:$BE$245,3*($C$6-1)+3) -> 2.7574 | M62: =VLOOKUP($J62,P_All!$AD$5:$BE$245,3*($C$6-1)+4) -> 3.6992 | N62: =VLOOKUP($J62,SDEIS_All!$AD$5:$BE$245,3*($C$6-1)+2) -> 1.0954 | O62: =VLOOKUP($J62,SDEIS_All!$AD$5:$BE$245,3*($C$6-1)+3) -> 1.1574 | P62: =VLOOKUP($J62,SDEIS_All!$AD$5:$BE$245,3*($C$6-1)+4) -> 2.0992
B63: 39 | C63: =VLOOKUP($B63,P_All!$A$5:$AB$204,3*($C$6-1)+2) -> 3.485225 | D63: =VLOOKUP($B63,P_All!$A$5:$AB$204,3*($C$6-1)+3) -> 6.772075 | E63: =VLOOKUP($B63,P_All!$A$5:$AB$204,3*($C$6-1)+4) -> 20.29611667 | F63: =VLOOKUP($B63,SDEIS_All!$A$5:$AB$204,3*($C$6-1)+2) -> 1.885258333 | G63: =VLOOKUP($B63,SDEIS_All!$A$5:$AB$204,3*($C$6-1)+3) -> 5.172166667 | H63: =VLOOKUP($B63,SDEIS_All!$A$5:$AB$204,3*($C$6-1)+4) -> 18.69691667 | J63: 53.16666667 | K63: =VLOOKUP($J63,P_All!$AD$5:$BE$245,3*($C$6-1)+2) -> 2.703 | L63: =VLOOKUP($J63,P_All!$AD$5:$BE$245,3*($C$6-1)+3) -> 3.1534 | M63: =VLOOKUP($J63,P_All!$AD$5:$BE$245,3*($C$6-1)+4) -> 10.932 | N63: =VLOOKUP($J63,SDEIS_All!$AD$5:$BE$245,3*($C$6-1)+2) -> 1.103 | O63: =VLOOKUP($J63,SDEIS_All!$AD$5:$BE$245,3*($C$6-1)+3) -> 1.5534 | P63: =VLOOKUP($J63,SDEIS_All!$AD$5:$BE$245,3*($C$6-1)+4) -> 9.3317
B64: 40 | C64: =VLOOKUP($B64,P_All!$A$5:$AB$204,3*($C$6-1)+2) -> 3.586833333 | D64: =VLOOKUP($B64,P_All!$A$5:$AB$204,3*($C$6-1)+3) -> 6.915525 | E64: =VLOOKUP($B64,P_All!$A$5:$AB$204,3*($C$6-1)+4) -> 21.2467 | F64: =VLOOKUP($B64,SDEIS_All!$A$5:$AB$204,3*($C$6-1)+2) -> 1.986858333 | G64: =VLOOKUP($B64,SDEIS_All!$A$5:$AB$204,3*($C$6-1)+3) -> 5.315625 | H64: =VLOOKUP($B64,SDEIS_All!$A$5:$AB$204,3*($C$6-1)+4) -> 19.64758333 | J64: 53.25 | K64: =VLOOKUP($J64,P_All!$AD$5:$BE$245,3*($C$6-1)+2) -> 5.7251 | L64: =VLOOKUP($J64,P_All!$AD$5:$BE$245,3*($C$6-1)+3) -> 14.833 | M64: =VLOOKUP($J64,P_All!$AD$5:$BE$245,3*($C$6-1)+4) -> 40.365 | N64: =VLOOKUP($J64,SDEIS_All!$AD$5:$BE$245,3*($C$6-1)+2) -> 4.1251 | O64: =VLOOKUP($J64,SDEIS_All!$AD$5:$BE$245,3*($C$6-1)+3) -> 13.233 | P64: =VLOOKUP($J64,SDEIS_All!$AD$5:$BE$245,3*($C$6-1)+4) -> 38.765
B65: 41 | C65: =VLOOKUP($B65,P_All!$A$5:$AB$204,3*($C$6-1)+2) -> 3.543658333 | D65: =VLOOKUP($B65,P_All!$A$5:$AB$204,3*($C$6-1)+3) -> 6.850916667 | E65: =VLOOKUP($B65,P_All!$A$5:$AB$204,3*($C$6-1)+4) -> 19.8983 | F65: =VLOOKUP($B65,SDEIS_All!$A$5:$AB$204,3*($C$6-1)+2) -> 1.943683333 | G65: =VLOOKUP($B65,SDEIS_All!$A$5:$AB$204,3*($C$6-1)+3) -> 5.251016667 | H65: =VLOOKUP($B65,SDEIS_All!$A$5:$AB$204,3*($C$6-1)+4) -> 18.29904167 | J65: 53.33333333 | K65: =VLOOKUP($J65,P_All!$AD$5:$BE$245,3*($C$6-1)+2) -> 5.4665 | L65: =VLOOKUP($J65,P_All!$AD$5:$BE$245,3*($C$6-1)+3) -> 14.713 | M65: =VLOOKUP($J65,P_All!$AD$5:$BE$245,3*($C$6-1)+4) -> 41.149 | N65: =VLOOKUP($J65,SDEIS_All!$AD$5:$BE$245,3*($C$6-1)+2) -> 3.8665 | O65: =VLOOKUP($J65,SDEIS_All!$AD$5:$BE$245,3*($C$6-1)+3) -> 13.113 | P65: =VLOOKUP($J65,SDEIS_All!$AD$5:$BE$245,3*($C$6-1)+4) -> 39.549
B66: 42 | C66: =VLOOKUP($B66,P_All!$A$5:$AB$204,3*($C$6-1)+2) -> 3.590233333 | D66: =VLOOKUP($B66,P_All!$A$5:$AB$204,3*($C$6-1)+3) -> 7.064416667 | E66: =VLOOKUP($B66,P_All!$A$5:$AB$204,3*($C$6-1)+4) -> 20.39216667 | F66: =VLOOKUP($B66,SDEIS_All!$A$5:$AB$204,3*($C$6-1)+2) -> 1.99025 | G66: =VLOOKUP($B66,SDEIS_All!$A$5:$AB$204,3*($C$6-1)+3) -> 5.464533333 | H66: =VLOOKUP($B66,SDEIS_All!$A$5:$AB$204,3*($C$6-1)+4) -> 18.79296667 | J66: 53.41666667 | K66: =VLOOKUP($J66,P_All!$AD$5:$BE$245,3*($C$6-1)+2) -> 3.5501 | L66: =VLOOKUP($J66,P_All!$AD$5:$BE$245,3*($C$6-1)+3) -> 8.9682 | M66: =VLOOKUP($J66,P_All!$AD$5:$BE$245,3*($C$6-1)+4) -> 18.948 | N66: =VLOOKUP($J66,SDEIS_All!$AD$5:$BE$245,3*($C$6-1)+2) -> 1.9501 | O66: =VLOOKUP($J66,SDEIS_All!$AD$5:$BE$245,3*($C$6-1)+3) -> 7.3682 | P66: =VLOOKUP($J66,SDEIS_All!$AD$5:$BE$245,3*($C$6-1)+4) -> 17.348
B67: 43 | C67: =VLOOKUP($B67,P_All!$A$5:$AB$204,3*($C$6-1)+2) -> 3.52865 | D67: =VLOOKUP($B67,P_All!$A$5:$AB$204,3*($C$6-1)+3) -> 7.144691667 | E67: =VLOOKUP($B67,P_All!$A$5:$AB$204,3*($C$6-1)+4) -> 20.63221667 | F67: =VLOOKUP($B67,SDEIS_All!$A$5:$AB$204,3*($C$6-1)+2) -> 1.928675 | G67: =VLOOKUP($B67,SDEIS_All!$A$5:$AB$204,3*($C$6-1)+3) -> 5.544808333 | H67: =VLOOKUP($B67,SDEIS_All!$A$5:$AB$204,3*($C$6-1)+4) -> 19.0328 | J67: 53.5 | K67: =VLOOKUP($J67,P_All!$AD$5:$BE$245,3*($C$6-1)+2) -> 2.9027 | L67: =VLOOKUP($J67,P_All!$AD$5:$BE$245,3*($C$6-1)+3) -> 5.792 | M67: =VLOOKUP($J67,P_All!$AD$5:$BE$245,3*($C$6-1)+4) -> 40.106 | N67: =VLOOKUP($J67,SDEIS_All!$AD$5:$BE$245,3*($C$6-1)+2) -> 1.3027 | O67: =VLOOKUP($J67,SDEIS_All!$AD$5:$BE$245,3*($C$6-1)+3) -> 4.192 | P67: =VLOOKUP($J67,SDEIS_All!$AD$5:$BE$245,3*($C$6-1)+4) -> 38.506
B68: 44 | C68: =VLOOKUP($B68,P_All!$A$5:$AB$204,3*($C$6-1)+2) -> 3.581333333 | D68: =VLOOKUP($B68,P_All!$A$5:$AB$204,3*($C$6-1)+3) -> 6.869158333 | E68: =VLOOKUP($B68,P_All!$A$5:$AB$204,3*($C$6-1)+4) -> 20.07041667 | F68: =VLOOKUP($B68,SDEIS_All!$A$5:$AB$204,3*($C$6-1)+2) -> 1.98135 | G68: =VLOOKUP($B68,SDEIS_All!$A$5:$AB$204,3*($C$6-1)+3) -> 5.269225 | H68: =VLOOKUP($B68,SDEIS_All!$A$5:$AB$204,3*($C$6-1)+4) -> 18.47090833 | J68: 53.58333333 | K68: =VLOOKUP($J68,P_All!$AD$5:$BE$245,3*($C$6-1)+2) -> 3.5262 | L68: =VLOOKUP($J68,P_All!$AD$5:$BE$245,3*($C$6-1)+3) -> 7.2457 | M68: =VLOOKUP($J68,P_All!$AD$5:$BE$245,3*($C$6-1)+4) -> 25.918 | N68: =VLOOKUP($J68,SDEIS_All!$AD$5:$BE$245,3*($C$6-1)+2) -> 1.9262 | O68: =VLOOKUP($J68,SDEIS_All!$AD$5:$BE$245,3*($C$6-1)+3) -> 5.6457 | P68: =VLOOKUP($J68,SDEIS_All!$AD$5:$BE$245,3*($C$6-1)+4) -> 24.318
B69: 45 | C69: =VLOOKUP($B69,P_All!$A$5:$AB$204,3*($C$6-1)+2) -> 3.549425 | D69: =VLOOKUP($B69,P_All!$A$5:$AB$204,3*($C$6-1)+3) -> 7.135983333 | E69: =VLOOKUP($B69,P_All!$A$5:$AB$204,3*($C$6-1)+4) -> 21.31945833 | F69: =VLOOKUP($B69,SDEIS_All!$A$5:$AB$204,3*($C$6-1)+2) -> 1.94945 | G69: =VLOOKUP($B69,SDEIS_All!$A$5:$AB$204,3*($C$6-1)+3) -> 5.536041667 | H69: =VLOOKUP($B69,SDEIS_All!$A$5:$AB$204,3*($C$6-1)+4) -> 19.71984167 | J69: 53.66666667 | K69: =VLOOKUP($J69,P_All!$AD$5:$BE$245,3*($C$6-1)+2) -> 3.212 | L69: =VLOOKUP($J69,P_All!$AD$5:$BE$245,3*($C$6-1)+3) -> 7.4939 | M69: =VLOOKUP($J69,P_All!$AD$5:$BE$245,3*($C$6-1)+4) -> 15.098 | N69: =VLOOKUP($J69,SDEIS_All!$AD$5:$BE$245,3*($C$6-1)+2) -> 1.612 | O69: =VLOOKUP($J69,SDEIS_All!$AD$5:$BE$245,3*($C$6-1)+3) -> 5.8939 | P69: =VLOOKUP($J69,SDEIS_All!$AD$5:$BE$245,3*($C$6-1)+4) -> 13.498
B70: 46 | C70: =VLOOKUP($B70,P_All!$A$5:$AB$204,3*($C$6-1)+2) -> 3.5598 | D70: =VLOOKUP($B70,P_All!$A$5:$AB$204,3*($C$6-1)+3) -> 6.972116667 | E70: =VLOOKUP($B70,P_All!$A$5:$AB$204,3*($C$6-1)+4) -> 20.65745 | F70: =VLOOKUP($B70,SDEIS_All!$A$5:$AB$204,3*($C$6-1)+2) -> 1.959808333 | G70: =VLOOKUP($B70,SDEIS_All!$A$5:$AB$204,3*($C$6-1)+3) -> 5.372166667 | H70: =VLOOKUP($B70,SDEIS_All!$A$5:$AB$204,3*($C$6-1)+4) -> 19.05786667 | J70: 53.75 | K70: =VLOOKUP($J70,P_All!$AD$5:$BE$245,3*($C$6-1)+2) -> 3.9722 | L70: =VLOOKUP($J70,P_All!$AD$5:$BE$245,3*($C$6-1)+3) -> 7.5993 | M70: =VLOOKUP($J70,P_All!$AD$5:$BE$245,3*($C$6-1)+4) -> 24.929 | N70: =VLOOKUP($J70,SDEIS_All!$AD$5:$BE$245,3*($C$6-1)+2) -> 2.3722 | O70: =VLOOKUP($J70,SDEIS_All!$AD$5:$BE$245,3*($C$6-1)+3) -> 5.9993 | P70: =VLOOKUP($J70,SDEIS_All!$AD$5:$BE$245,3*($C$6-1)+4) -> 23.329
B71: 47 | C71: =VLOOKUP($B71,P_All!$A$5:$AB$204,3*($C$6-1)+2) -> 3.552741667 | D71: =VLOOKUP($B71,P_All!$A$5:$AB$204,3*($C$6-1)+3) -> 6.870458333 | E71: =VLOOKUP($B71,P_All!$A$5:$AB$204,3*($C$6-1)+4) -> 20.24873333 | F71: =VLOOKUP($B71,SDEIS_All!$A$5:$AB$204,3*($C$6-1)+2) -> 1.95275 | G71: =VLOOKUP($B71,SDEIS_All!$A$5:$AB$204,3*($C$6-1)+3) -> 5.2705 | H71: =VLOOKUP($B71,SDEIS_All!$A$5:$AB$204,3*($C$6-1)+4) -> 18.648975 | J71: 53.83333333 | K71: =VLOOKUP($J71,P_All!$AD$5:$BE$245,3*($C$6-1)+2) -> 3.5324 | L71: =VLOOKUP($J71,P_All!$AD$5:$BE$245,3*($C$6-1)+3) -> 4.9116 | M71: =VLOOKUP($J71,P_All!$AD$5:$BE$245,3*($C$6-1)+4) -> 11.427 | N71: =VLOOKUP($J71,SDEIS_All!$AD$5:$BE$245,3*($C$6-1)+2) -> 1.9324 | O71: =VLOOKUP($J71,SDEIS_All!$AD$5:$BE$245,3*($C$6-1)+3) -> 3.3116 | P71: =VLOOKUP($J71,SDEIS_All!$AD$5:$BE$245,3*($C$6-1)+4) -> 9.8275
B72: 48 | C72: =VLOOKUP($B72,P_All!$A$5:$AB$204,3*($C$6-1)+2) -> 3.602941667 | D72: =VLOOKUP($B72,P_All!$A$5:$AB$204,3*($C$6-1)+3) -> 6.980741667 | E72: =VLOOKUP($B72,P_All!$A$5:$AB$204,3*($C$6-1)+4) -> 20.41530833 | F72: =VLOOKUP($B72,SDEIS_All!$A$5:$AB$204,3*($C$6-1)+2) -> 2.00295 | G72: =VLOOKUP($B72,SDEIS_All!$A$5:$AB$204,3*($C$6-1)+3) -> 5.380775 | H72: =VLOOKUP($B72,SDEIS_All!$A$5:$AB$204,3*($C$6-1)+4) -> 18.815525 | J72: 53.91666667 | K72: =VLOOKUP($J72,P_All!$AD$5:$BE$245,3*($C$6-1)+2) -> 3.0108 | L72: =VLOOKUP($J72,P_All!$AD$5:$BE$245,3*($C$6-1)+3) -> 3.4483 | M72: =VLOOKUP($J72,P_All!$AD$5:$BE$245,3*($C$6-1)+4) -> 4.4762 | N72: =VLOOKUP($J72,SDEIS_All!$AD$5:$BE$245,3*($C$6-1)+2) -> 1.4108 | O72: =VLOOKUP($J72,SDEIS_All!$AD$5:$BE$245,3*($C$6-1)+3) -> 1.8483 | P72: =VLOOKUP($J72,SDEIS_All!$AD$5:$BE$245,3*($C$6-1)+4) -> 2.8762
B73: 49 | C73: =VLOOKUP($B73,P_All!$A$5:$AB$204,3*($C$6-1)+2) -> 3.643216667 | D73: =VLOOKUP($B73,P_All!$A$5:$AB$204,3*($C$6-1)+3) -> 7.276191667 | E73: =VLOOKUP($B73,P_All!$A$5:$AB$204,3*($C$6-1)+4) -> 21.24214167 | F73: =VLOOKUP($B73,SDEIS_All!$A$5:$AB$204,3*($C$6-1)+2) -> 2.043225 | G73: =VLOOKUP($B73,SDEIS_All!$A$5:$AB$204,3*($C$6-1)+3) -> 5.676216667 | H73: =VLOOKUP($B73,SDEIS_All!$A$5:$AB$204,3*($C$6-1)+4) -> 19.64234167 | J73: 54 | K73: =VLOOKUP($J73,P_All!$AD$5:$BE$245,3*($C$6-1)+2) -> 2.7383 | L73: =VLOOKUP($J73,P_All!$AD$5:$BE$245,3*($C$6-1)+3) -> 3.1674 | M73: =VLOOKUP($J73,P_All!$AD$5:$BE$245,3*($C$6-1)+4) -> 3.7244 | N73: =VLOOKUP($J73,SDEIS_All!$AD$5:$BE$245,3*($C$6-1)+2) -> 1.1383 | O73: =VLOOKUP($J73,SDEIS_All!$AD$5:$BE$245,3*($C$6-1)+3) -> 1.5674 | P73: =VLOOKUP($J73,SDEIS_All!$AD$5:$BE$245,3*($C$6-1)+4) -> 2.1244
B74: 50 | C74: =VLOOKUP($B74,P_All!$A$5:$AB$204,3*($C$6-1)+2) -> 3.619541667 | D74: =VLOOKUP($B74,P_All!$A$5:$AB$204,3*($C$6-1)+3) -> 7.062591667 | E74: =VLOOKUP($B74,P_All!$A$5:$AB$204,3*($C$6-1)+4) -> 20.67596667 | F74: =VLOOKUP($B74,SDEIS_All!$A$5:$AB$204,3*($C$6-1)+2) -> 2.019541667 | G74: =VLOOKUP($B74,SDEIS_All!$A$5:$AB$204,3*($C$6-1)+3) -> 5.4626 | H74: =VLOOKUP($B74,SDEIS_All!$A$5:$AB$204,3*($C$6-1)+4) -> 19.07605833 | J74: 54.08333333 | K74: =VLOOKUP($J74,P_All!$AD$5:$BE$245,3*($C$6-1)+2) -> 2.6911 | L74: =VLOOKUP($J74,P_All!$AD$5:$BE$245,3*($C$6-1)+3) -> 2.7538 | M74: =VLOOKUP($J74,P_All!$AD$5:$BE$245,3*($C$6-1)+4) -> 3.718 | N74: =VLOOKUP($J74,SDEIS_All!$AD$5:$BE$245,3*($C$6-1)+2) -> 1.0911 | O74: =VLOOKUP($J74,SDEIS_All!$AD$5:$BE$245,3*($C$6-1)+3) -> 1.1538 | P74: =VLOOKUP($J74,SDEIS_All!$AD$5:$BE$245,3*($C$6-1)+4) -> 2.118
B75: 51 | C75: =VLOOKUP($B75,P_All!$A$5:$AB$204,3*($C$6-1)+2) -> 3.60185 | D75: =VLOOKUP($B75,P_All!$A$5:$AB$204,3*($C$6-1)+3) -> 6.91105 | E75: =VLOOKUP($B75,P_All!$A$5:$AB$204,3*($C$6-1)+4) -> 20.1838 | F75: =VLOOKUP($B75,SDEIS_All!$A$5:$AB$204,3*($C$6-1)+2) -> 2.00185 | G75: =VLOOKUP($B75,SDEIS_All!$A$5:$AB$204,3*($C$6-1)+3) -> 5.31105 | H75: =VLOOKUP($B75,SDEIS_All!$A$5:$AB$204,3*($C$6-1)+4) -> 18.58374167 | J75: 54.16666667 | K75: =VLOOKUP($J75,P_All!$AD$5:$BE$245,3*($C$6-1)+2) -> 2.7034 | L75: =VLOOKUP($J75,P_All!$AD$5:$BE$245,3*($C$6-1)+3) -> 3.1594 | M75: =VLOOKUP($J75,P_All!$AD$5:$BE$245,3*($C$6-1)+4) -> 10.191 | N75: =VLOOKUP($J75,SDEIS_All!$AD$5:$BE$245,3*($C$6-1)+2) -> 1.1034 | O75: =VLOOKUP($J75,SDEIS_All!$AD$5:$BE$245,3*($C$6-1)+3) -> 1.5594 | P75: =VLOOKUP($J75,SDEIS_All!$AD$5:$BE$245,3*($C$6-1)+4) -> 8.5907
B76: 52 | C76: =VLOOKUP($B76,P_All!$A$5:$AB$204,3*($C$6-1)+2) -> 3.555091667 | D76: =VLOOKUP($B76,P_All!$A$5:$AB$204,3*($C$6-1)+3) -> 6.772725 | E76: =VLOOKUP($B76,P_All!$A$5:$AB$204,3*($C$6-1)+4) -> 21.186625 | F76: =VLOOKUP($B76,SDEIS_All!$A$5:$AB$204,3*($C$6-1)+2) -> 1.955091667 | G76: =VLOOKUP($B76,SDEIS_All!$A$5:$AB$204,3*($C$6-1)+3) -> 5.172725 | H76: =VLOOKUP($B76,SDEIS_All!$A$5:$AB$204,3*($C$6-1)+4) -> 19.58663333 | J76: 54.25 | K76: =VLOOKUP($J76,P_All!$AD$5:$BE$245,3*($C$6-1)+2) -> 5.5072 | L76: =VLOOKUP($J76,P_All!$AD$5:$BE$245,3*($C$6-1)+3) -> 15.047 | M76: =VLOOKUP($J76,P_All!$AD$5:$BE$245,3*($C$6-1)+4) -> 40.203 | N76: =VLOOKUP($J76,SDEIS_All!$AD$5:$BE$245,3*($C$6-1)+2) -> 3.9072 | O76: =VLOOKUP($J76,SDEIS_All!$AD$5:$BE$245,3*($C$6-1)+3) -> 13.447 | P76: =VLOOKUP($J76,SDEIS_All!$AD$5:$BE$245,3*($C$6-1)+4) -> 38.603
B77: 53 | C77: =VLOOKUP($B77,P_All!$A$5:$AB$204,3*($C$6-1)+2) -> 3.583441667 | D77: =VLOOKUP($B77,P_All!$A$5:$AB$204,3*($C$6-1)+3) -> 6.82975 | E77: =VLOOKUP($B77,P_All!$A$5:$AB$204,3*($C$6-1)+4) -> 21.13013333 | F77: =VLOOKUP($B77,SDEIS_All!$A$5:$AB$204,3*($C$6-1)+2) -> 1.983441667 | G77: =VLOOKUP($B77,SDEIS_All!$A$5:$AB$204,3*($C$6-1)+3) -> 5.22975 | H77: =VLOOKUP($B77,SDEIS_All!$A$5:$AB$204,3*($C$6-1)+4) -> 19.530125 | J77: 54.33333333 | K77: =VLOOKUP($J77,P_All!$AD$5:$BE$245,3*($C$6-1)+2) -> 5.5108 | L77: =VLOOKUP($J77,P_All!$AD$5:$BE$245,3*($C$6-1)+3) -> 14.837 | M77: =VLOOKUP($J77,P_All!$AD$5:$BE$245,3*($C$6-1)+4) -> 40.563 | N77: =VLOOKUP($J77,SDEIS_All!$AD$5:$BE$245,3*($C$6-1)+2) -> 3.9108 | O77: =VLOOKUP($J77,SDEIS_All!$AD$5:$BE$245,3*($C$6-1)+3) -> 13.237 | P77: =VLOOKUP($J77,SDEIS_All!$AD$5:$BE$245,3*($C$6-1)+4) -> 38.963
B78: 54 | C78: =VLOOKUP($B78,P_All!$A$5:$AB$204,3*($C$6-1)+2) -> 3.586125 | D78: =VLOOKUP($B78,P_All!$A$5:$AB$204,3*($C$6-1)+3) -> 7.000533333 | E78: =VLOOKUP($B78,P_All!$A$5:$AB$204,3*($C$6-1)+4) -> 20.058725 | F78: =VLOOKUP($B78,SDEIS_All!$A$5:$AB$204,3*($C$6-1)+2) -> 1.986125 | G78: =VLOOKUP($B78,SDEIS_All!$A$5:$AB$204,3*($C$6-1)+3) -> 5.400533333 | H78: =VLOOKUP($B78,SDEIS_All!$A$5:$AB$204,3*($C$6-1)+4) -> 18.45874167 | J78: 54.41666667 | K78: =VLOOKUP($J78,P_All!$AD$5:$BE$245,3*($C$6-1)+2) -> 3.4436 | L78: =VLOOKUP($J78,P_All!$AD$5:$BE$245,3*($C$6-1)+3) -> 8.5568 | M78: =VLOOKUP($J78,P_All!$AD$5:$BE$245,3*($C$6-1)+4) -> 20.652 | N78: =VLOOKUP($J78,SDEIS_All!$AD$5:$BE$245,3*($C$6-1)+2) -> 1.8436 | O78: =VLOOKUP($J78,SDEIS_All!$AD$5:$BE$245,3*($C$6-1)+3) -> 6.9568 | P78: =VLOOKUP($J78,SDEIS_All!$AD$5:$BE$245,3*($C$6-1)+4) -> 19.052
B79: 55 | C79: =VLOOKUP($B79,P_All!$A$5:$AB$204,3*($C$6-1)+2) -> 3.553308333 | D79: =VLOOKUP($B79,P_All!$A$5:$AB$204,3*($C$6-1)+3) -> 6.91125 | E79: =VLOOKUP($B79,P_All!$A$5:$AB$204,3*($C$6-1)+4) -> 20.24731667 | F79: =VLOOKUP($B79,SDEIS_All!$A$5:$AB$204,3*($C$6-1)+2) -> 1.953308333 | G79: =VLOOKUP($B79,SDEIS_All!$A$5:$AB$204,3*($C$6-1)+3) -> 5.31125 | H79: =VLOOKUP($B79,SDEIS_All!$A$5:$AB$204,3*($C$6-1)+4) -> 18.647275 | J79: 54.5 | K79: =VLOOKUP($J79,P_All!$AD$5:$BE$245,3*($C$6-1)+2) -> 2.8642 | L79: =VLOOKUP($J79,P_All!$AD$5:$BE$245,3*($C$6-1)+3) -> 5.6955 | M79: =VLOOKUP($J79,P_All!$AD$5:$BE$245,3*($C$6-1)+4) -> 39.396 | N79: =VLOOKUP($J79,SDEIS_All!$AD$5:$BE$245,3*($C$6-1)+2) -> 1.2642 | O79: =VLOOKUP($J79,SDEIS_All!$AD$5:$BE$245,3*($C$6-1)+3) -> 4.0955 | P79: =VLOOKUP($J79,SDEIS_All!$AD$5:$BE$245,3*($C$6-1)+4) -> 37.796
B80: 56 | C80: =VLOOKUP($B80,P_All!$A$5:$AB$204,3*($C$6-1)+2) -> 1.159632167 | D80: =VLOOKUP($B80,P_All!$A$5:$AB$204,3*($C$6-1)+3) -> 4.626819167 | E80: =VLOOKUP($B80,P_All!$A$5:$AB$204,3*($C$6-1)+4) -> 19.13446667 | F80: =VLOOKUP($B80,SDEIS_All!$A$5:$AB$204,3*($C$6-1)+2) -> 1.942958333 | G80: =VLOOKUP($B80,SDEIS_All!$A$5:$AB$204,3*($C$6-1)+3) -> 5.41015 | H80: =VLOOKUP($B80,SDEIS_All!$A$5:$AB$204,3*($C$6-1)+4) -> 19.91783333 | J80: 54.58333333 | K80: =VLOOKUP($J80,P_All!$AD$5:$BE$245,3*($C$6-1)+2) -> 3.4822 | L80: =VLOOKUP($J80,P_All!$AD$5:$BE$245,3*($C$6-1)+3) -> 5.7617 | M80: =VLOOKUP($J80,P_All!$AD$5:$BE$245,3*($C$6-1)+4) -> 26.249 | N80: =VLOOKUP($J80,SDEIS_All!$AD$5:$BE$245,3*($C$6-1)+2) -> 1.8822 | O80: =VLOOKUP($J80,SDEIS_All!$AD$5:$BE$245,3*($C$6-1)+3) -> 4.1617 | P80: =VLOOKUP($J80,SDEIS_All!$AD$5:$BE$245,3*($C$6-1)+4) -> 24.649
B81: 57 | C81: =VLOOKUP($B81,P_All!$A$5:$AB$204,3*($C$6-1)+2) -> 0.99894075 | D81: =VLOOKUP($B81,P_All!$A$5:$AB$204,3*($C$6-1)+3) -> 4.445584167 | E81: =VLOOKUP($B81,P_All!$A$5:$AB$204,3*($C$6-1)+4) -> 19.026175 | F81: =VLOOKUP($B81,SDEIS_All!$A$5:$AB$204,3*($C$6-1)+2) -> 1.998941667 | G81: =VLOOKUP($B81,SDEIS_All!$A$5:$AB$204,3*($C$6-1)+3) -> 5.445591667 | H81: =VLOOKUP($B81,SDEIS_All!$A$5:$AB$204,3*($C$6-1)+4) -> 20.026175 | J81: 54.66666667 | K81: =VLOOKUP($J81,P_All!$AD$5:$BE$245,3*($C$6-1)+2) -> 3.1816 | L81: =VLOOKUP($J81,P_All!$AD$5:$BE$245,3*($C$6-1)+3) -> 8.3144 | M81: =VLOOKUP($J81,P_All!$AD$5:$BE$245,3*($C$6-1)+4) -> 17.337 | N81: =VLOOKUP($J81,SDEIS_All!$AD$5:$BE$245,3*($C$6-1)+2) -> 1.5816 | O81: =VLOOKUP($J81,SDEIS_All!$AD$5:$BE$245,3*($C$6-1)+3) -> 6.7144 | P81: =VLOOKUP($J81,SDEIS_All!$AD$5:$BE$245,3*($C$6-1)+4) -> 15.737
B82: 58 | C82: =VLOOKUP($B82,P_All!$A$5:$AB$204,3*($C$6-1)+2) -> 0.9524844167 | D82: =VLOOKUP($B82,P_All!$A$5:$AB$204,3*($C$6-1)+3) -> 4.445578333 | E82: =VLOOKUP($B82,P_All!$A$5:$AB$204,3*($C$6-1)+4) -> 18.39741667 | F82: =VLOOKUP($B82,SDEIS_All!$A$5:$AB$204,3*($C$6-1)+2) -> 1.952491667 | G82: =VLOOKUP($B82,SDEIS_All!$A$5:$AB$204,3*($C$6-1)+3) -> 5.445575 | H82: =VLOOKUP($B82,SDEIS_All!$A$5:$AB$204,3*($C$6-1)+4) -> 19.397375 | J82: 54.75 | K82: =VLOOKUP($J82,P_All!$AD$5:$BE$245,3*($C$6-1)+2) -> 3.9707 | L82: =VLOOKUP($J82,P_All!$AD$5:$BE$245,3*($C$6-1)+3) -> 7.1455 | M82: =VLOOKUP($J82,P_All!$AD$5:$BE$245,3*($C$6-1)+4) -> 25.211 | N82: =VLOOKUP($J82,SDEIS_All!$AD$5:$BE$245,3*($C$6-1)+2) -> 2.3707 | O82: =VLOOKUP($J82,SDEIS_All!$AD$5:$BE$245,3*($C$6-1)+3) -> 5.5455 | P82: =VLOOKUP($J82,SDEIS_All!$AD$5:$BE$245,3*($C$6-1)+4) -> 23.611
B83: 59 | C83: =VLOOKUP($B83,P_All!$A$5:$AB$204,3*($C$6-1)+2) -> 0.9501423333 | D83: =VLOOKUP($B83,P_All!$A$5:$AB$204,3*($C$6-1)+3) -> 4.2308575 | E83: =VLOOKUP($B83,P_All!$A$5:$AB$204,3*($C$6-1)+4) -> 19.01669167 | F83: =VLOOKUP($B83,SDEIS_All!$A$5:$AB$204,3*($C$6-1)+2) -> 1.950141667 | G83: =VLOOKUP($B83,SDEIS_All!$A$5:$AB$204,3*($C$6-1)+3) -> 5.230858333 | H83: =VLOOKUP($B83,SDEIS_All!$A$5:$AB$204,3*($C$6-1)+4) -> 20.016675 | J83: 54.83333333 | K83: =VLOOKUP($J83,P_All!$AD$5:$BE$245,3*($C$6-1)+2) -> 3.5324 | L83: =VLOOKUP($J83,P_All!$AD$5:$BE$245,3*($C$6-1)+3) -> 5.0046 | M83: =VLOOKUP($J83,P_All!$AD$5:$BE$245,3*($C$6-1)+4) -> 11.046 | N83: =VLOOKUP($J83,SDEIS_All!$AD$5:$BE$245,3*($C$6-1)+2) -> 1.9324 | O83: =VLOOKUP($J83,SDEIS_All!$AD$5:$BE$245,3*($C$6-1)+3) -> 3.4046 | P83: =VLOOKUP($J83,SDEIS_All!$AD$5:$BE$245,3*($C$6-1)+4) -> 9.4458
B84: 60 | C84: =VLOOKUP($B84,P_All!$A$5:$AB$204,3*($C$6-1)+2) -> 0.97412275 | D84: =VLOOKUP($B84,P_All!$A$5:$AB$204,3*($C$6-1)+3) -> 4.056115 | E84: =VLOOKUP($B84,P_All!$A$5:$AB$204,3*($C$6-1)+4) -> 17.44925833 | F84: =VLOOKUP($B84,SDEIS_All!$A$5:$AB$204,3*($C$6-1)+2) -> 1.974116667 | G84: =VLOOKUP($B84,SDEIS_All!$A$5:$AB$204,3*($C$6-1)+3) -> 5.056108333 | H84: =VLOOKUP($B84,SDEIS_All!$A$5:$AB$204,3*($C$6-1)+4) -> 18.44925 | J84: 54.91666667 | K84: =VLOOKUP($J84,P_All!$AD$5:$BE$245,3*($C$6-1)+2) -> 3.0142 | L84: =VLOOKUP($J84,P_All!$AD$5:$BE$245,3*($C$6-1)+3) -> 3.4919 | M84: =VLOOKUP($J84,P_All!$AD$5:$BE$245,3*($C$6-1)+4) -> 4.6774 | N84: =VLOOKUP($J84,SDEIS_All!$AD$5:$BE$245,3*($C$6-1)+2) -> 1.4142 | O84: =VLOOKUP($J84,SDEIS_All!$AD$5:$BE$245,3*($C$6-1)+3) -> 1.8919 | P84: =VLOOKUP($J84,SDEIS_All!$AD$5:$BE$245,3*($C$6-1)+4) -> 3.0774
B85: 61 | C85: =VLOOKUP($B85,P_All!$A$5:$AB$204,3*($C$6-1)+2) -> 0.9825925833 | D85: =VLOOKUP($B85,P_All!$A$5:$AB$204,3*($C$6-1)+3) -> 4.3422 | E85: =VLOOKUP($B85,P_All!$A$5:$AB$204,3*($C$6-1)+4) -> 17.78165833 | F85: =VLOOKUP($B85,SDEIS_All!$A$5:$AB$204,3*($C$6-1)+2) -> 1.9826 | G85: =VLOOKUP($B85,SDEIS_All!$A$5:$AB$204,3*($C$6-1)+3) -> 5.3422 | H85: =VLOOKUP($B85,SDEIS_All!$A$5:$AB$204,3*($C$6-1)+4) -> 18.78165833 | J85: 55 | K85: =VLOOKUP($J85,P_All!$AD$5:$BE$245,3*($C$6-1)+2) -> 2.7432 | L85: =VLOOKUP($J85,P_All!$AD$5:$BE$245,3*($C$6-1)+3) -> 3.1702 | M85: =VLOOKUP($J85,P_All!$AD$5:$BE$245,3*($C$6-1)+4) -> 3.7186 | N85: =VLOOKUP($J85,SDEIS_All!$AD$5:$BE$245,3*($C$6-1)+2) -> 1.1432 | O85: =VLOOKUP($J85,SDEIS_All!$AD$5:$BE$245,3*($C$6-1)+3) -> 1.5702 | P85: =VLOOKUP($J85,SDEIS_All!$AD$5:$BE$245,3*($C$6-1)+4) -> 2.1186
B86: 62 | C86: =VLOOKUP($B86,P_All!$A$5:$AB$204,3*($C$6-1)+2) -> 0.9983711667 | D86: =VLOOKUP($B86,P_All!$A$5:$AB$204,3*($C$6-1)+3) -> 4.3030125 | E86: =VLOOKUP($B86,P_All!$A$5:$AB$204,3*($C$6-1)+4) -> 17.95476667 | F86: =VLOOKUP($B86,SDEIS_All!$A$5:$AB$204,3*($C$6-1)+2) -> 1.998366667 | G86: =VLOOKUP($B86,SDEIS_All!$A$5:$AB$204,3*($C$6-1)+3) -> 5.303016667 | H86: =VLOOKUP($B86,SDEIS_All!$A$5:$AB$204,3*($C$6-1)+4) -> 18.95479167 | J86: 55.08333333 | K86: =VLOOKUP($J86,P_All!$AD$5:$BE$245,3*($C$6-1)+2) -> 0.091078 | L86: =VLOOKUP($J86,P_All!$AD$5:$BE$245,3*($C$6-1)+3) -> 0.15723 | M86: =VLOOKUP($J86,P_All!$AD$5:$BE$245,3*($C$6-1)+4) -> 1.0984 | N86: =VLOOKUP($J86,SDEIS_All!$AD$5:$BE$245,3*($C$6-1)+2) -> 1.0911 | O86: =VLOOKUP($J86,SDEIS_All!$AD$5:$BE$245,3*($C$6-1)+3) -> 1.1572 | P86: =VLOOKUP($J86,SDEIS_All!$AD$5:$BE$245,3*($C$6-1)+4) -> 2.0984
B87: 63 | C87: =VLOOKUP($B87,P_All!$A$5:$AB$204,3*($C$6-1)+2) -> 0.956083 | D87: =VLOOKUP($B87,P_All!$A$5:$AB$204,3*($C$6-1)+3) -> 4.4408025 | E87: =VLOOKUP($B87,P_All!$A$5:$AB$204,3*($C$6-1)+4) -> 17.54730833 | F87: =VLOOKUP($B87,SDEIS_All!$A$5:$AB$204,3*($C$6-1)+2) -> 1.956075 | G87: =VLOOKUP($B87,SDEIS_All!$A$5:$AB$204,3*($C$6-1)+3) -> 5.4408 | H87: =VLOOKUP($B87,SDEIS_All!$A$5:$AB$204,3*($C$6-1)+4) -> 18.54730833 | J87: 55.16666667 | K87: =VLOOKUP($J87,P_All!$AD$5:$BE$245,3*($C$6-1)+2) -> 0.096138 | L87: =VLOOKUP($J87,P_All!$AD$5:$BE$245,3*($C$6-1)+3) -> 0.52965 | M87: =VLOOKUP($J87,P_All!$AD$5:$BE$245,3*($C$6-1)+4) -> 8.2914 | N87: =VLOOKUP($J87,SDEIS_All!$AD$5:$BE$245,3*($C$6-1)+2) -> 1.0961 | O87: =VLOOKUP($J87,SDEIS_All!$AD$5:$BE$245,3*($C$6-1)+3) -> 1.5296 | P87: =VLOOKUP($J87,SDEIS_All!$AD$5:$BE$245,3*($C$6-1)+4) -> 9.2914
B88: 64 | C88: =VLOOKUP($B88,P_All!$A$5:$AB$204,3*($C$6-1)+2) -> 1.006073417 | D88: =VLOOKUP($B88,P_All!$A$5:$AB$204,3*($C$6-1)+3) -> 4.474459167 | E88: =VLOOKUP($B88,P_All!$A$5:$AB$204,3*($C$6-1)+4) -> 17.91935 | F88: =VLOOKUP($B88,SDEIS_All!$A$5:$AB$204,3*($C$6-1)+2) -> 2.006075 | G88: =VLOOKUP($B88,SDEIS_All!$A$5:$AB$204,3*($C$6-1)+3) -> 5.474458333 | H88: =VLOOKUP($B88,SDEIS_All!$A$5:$AB$204,3*($C$6-1)+4) -> 18.91930833 | J88: 55.25 | K88: =VLOOKUP($J88,P_All!$AD$5:$BE$245,3*($C$6-1)+2) -> 2.8932 | L88: =VLOOKUP($J88,P_All!$AD$5:$BE$245,3*($C$6-1)+3) -> 13.009 | M88: =VLOOKUP($J88,P_All!$AD$5:$BE$245,3*($C$6-1)+4) -> 38.133 | N88: =VLOOKUP($J88,SDEIS_All!$AD$5:$BE$245,3*($C$6-1)+2) -> 3.8932 | O88: =VLOOKUP($J88,SDEIS_All!$AD$5:$BE$245,3*($C$6-1)+3) -> 14.009 | P88: =VLOOKUP($J88,SDEIS_All!$AD$5:$BE$245,3*($C$6-1)+4) -> 39.133
B89: 65 | C89: =VLOOKUP($B89,P_All!$A$5:$AB$204,3*($C$6-1)+2) -> 0.9483965833 | D89: =VLOOKUP($B89,P_All!$A$5:$AB$204,3*($C$6-1)+3) -> 4.239319167 | E89: =VLOOKUP($B89,P_All!$A$5:$AB$204,3*($C$6-1)+4) -> 17.77775 | F89: =VLOOKUP($B89,SDEIS_All!$A$5:$AB$204,3*($C$6-1)+2) -> 1.9484 | G89: =VLOOKUP($B89,SDEIS_All!$A$5:$AB$204,3*($C$6-1)+3) -> 5.239316667 | H89: =VLOOKUP($B89,SDEIS_All!$A$5:$AB$204,3*($C$6-1)+4) -> 18.77775 | J89: 55.33333333 | K89: =VLOOKUP($J89,P_All!$AD$5:$BE$245,3*($C$6-1)+2) -> 2.5842 | L89: =VLOOKUP($J89,P_All!$AD$5:$BE$245,3*($C$6-1)+3) -> 12.066 | M89: =VLOOKUP($J89,P_All!$AD$5:$BE$245,3*($C$6-1)+4) -> 43.484 | N89: =VLOOKUP($J89,SDEIS_All!$AD$5:$BE$245,3*($C$6-1)+2) -> 3.5842 | O89: =VLOOKUP($J89,SDEIS_All!$AD$5:$BE$245,3*($C$6-1)+3) -> 13.066 | P89: =VLOOKUP($J89,SDEIS_All!$AD$5:$BE$245,3*($C$6-1)+4) -> 44.484
B90: 66 | C90: =VLOOKUP($B90,P_All!$A$5:$AB$204,3*($C$6-1)+2) -> 0.9259035833 | D90: =VLOOKUP($B90,P_All!$A$5:$AB$204,3*($C$6-1)+3) -> 4.441351667 | E90: =VLOOKUP($B90,P_All!$A$5:$AB$204,3*($C$6-1)+4) -> 18.13945 | F90: =VLOOKUP($B90,SDEIS_All!$A$5:$AB$204,3*($C$6-1)+2) -> 1.925908333 | G90: =VLOOKUP($B90,SDEIS_All!$A$5:$AB$204,3*($C$6-1)+3) -> 5.441358333 | H90: =VLOOKUP($B90,SDEIS_All!$A$5:$AB$204,3*($C$6-1)+4) -> 19.13945 | J90: 55.41666667 | K90: =VLOOKUP($J90,P_All!$AD$5:$BE$245,3*($C$6-1)+2) -> 0.89117 | L90: =VLOOKUP($J90,P_All!$AD$5:$BE$245,3*($C$6-1)+3) -> 6.1921 | M90: =VLOOKUP($J90,P_All!$AD$5:$BE$245,3*($C$6-1)+4) -> 17 | N90: =VLOOKUP($J90,SDEIS_All!$AD$5:$BE$245,3*($C$6-1)+2) -> 1.8912 | O90: =VLOOKUP($J90,SDEIS_All!$AD$5:$BE$245,3*($C$6-1)+3) -> 7.1921 | P90: =VLOOKUP($J90,SDEIS_All!$AD$5:$BE$245,3*($C$6-1)+4) -> 18
B91: 67 | C91: =VLOOKUP($B91,P_All!$A$5:$AB$204,3*($C$6-1)+2) -> 0.9618333333 | D91: =VLOOKUP($B91,P_All!$A$5:$AB$204,3*($C$6-1)+3) -> 4.496896667 | E91: =VLOOKUP($B91,P_All!$A$5:$AB$204,3*($C$6-1)+4) -> 18.65525833 | F91: =VLOOKUP($B91,SDEIS_All!$A$5:$AB$204,3*($C$6-1)+2) -> 1.961825 | G91: =VLOOKUP($B91,SDEIS_All!$A$5:$AB$204,3*($C$6-1)+3) -> 5.4969 | H91: =VLOOKUP($B91,SDEIS_All!$A$5:$AB$204,3*($C$6-1)+4) -> 19.65525833 | J91: =J90+1/12 -> 55.5 | K91: =VLOOKUP($J91,P_All!$AD$5:$BE$245,3*($C$6-1)+2) -> 0.20825 | L91: =VLOOKUP($J91,P_All!$AD$5:$BE$245,3*($C$6-1)+3) -> 4.0919 | M91: =VLOOKUP($J91,P_All!$AD$5:$BE$245,3*($C$6-1)+4) -> 45.285 | N91: =VLOOKUP($J91,SDEIS_All!$AD$5:$BE$245,3*($C$6-1)+2) -> 1.2082 | O91: =VLOOKUP($J91,SDEIS_All!$AD$5:$BE$245,3*($C$6-1)+3) -> 5.0919 | P91: =VLOOKUP($J91,SDEIS_All!$AD$5:$BE$245,3*($C$6-1)+4) -> 46.285
B92: 68 | C92: =VLOOKUP($B92,P_All!$A$5:$AB$204,3*($C$6-1)+2) -> 0.9333810833 | D92: =VLOOKUP($B92,P_All!$A$5:$AB$204,3*($C$6-1)+3) -> 4.4766075 | E92: =VLOOKUP($B92,P_All!$A$5:$AB$204,3*($C$6-1)+4) -> 18.280325 | F92: =VLOOKUP($B92,SDEIS_All!$A$5:$AB$204,3*($C$6-1)+2) -> 1.933375 | G92: =VLOOKUP($B92,SDEIS_All!$A$5:$AB$204,3*($C$6-1)+3) -> 5.476608333 | H92: =VLOOKUP($B92,SDEIS_All!$A$5:$AB$204,3*($C$6-1)+4) -> 19.280325 | J92: 55.58333333 | K92: =VLOOKUP($J92,P_All!$AD$5:$BE$245,3*($C$6-1)+2) -> 0.99897 | L92: =VLOOKUP($J92,P_All!$AD$5:$BE$245,3*($C$6-1)+3) -> 3.4189 | M92: =VLOOKUP($J92,P_All!$AD$5:$BE$245,3*($C$6-1)+4) -> 27.887 | N92: =VLOOKUP($J92,SDEIS_All!$AD$5:$BE$245,3*($C$6-1)+2) -> 1.999 | O92: =VLOOKUP($J92,SDEIS_All!$AD$5:$BE$245,3*($C$6-1)+3) -> 4.4189 | P92: =VLOOKUP($J92,SDEIS_All!$AD$5:$BE$245,3*($C$6-1)+4) -> 28.887
B93: 69 | C93: =VLOOKUP($B93,P_All!$A$5:$AB$204,3*($C$6-1)+2) -> 0.9622779167 | D93: =VLOOKUP($B93,P_All!$A$5:$AB$204,3*($C$6-1)+3) -> 4.323453333 | E93: =VLOOKUP($B93,P_All!$A$5:$AB$204,3*($C$6-1)+4) -> 19.30395 | F93: =VLOOKUP($B93,SDEIS_All!$A$5:$AB$204,3*($C$6-1)+2) -> 1.962275 | G93: =VLOOKUP($B93,SDEIS_All!$A$5:$AB$204,3*($C$6-1)+3) -> 5.32345 | H93: =VLOOKUP($B93,SDEIS_All!$A$5:$AB$204,3*($C$6-1)+4) -> 20.30395 | J93: 55.66666667 | K93: =VLOOKUP($J93,P_All!$AD$5:$BE$245,3*($C$6-1)+2) -> 0.69193 | L93: =VLOOKUP($J93,P_All!$AD$5:$BE$245,3*($C$6-1)+3) -> 4.7078 | M93: =VLOOKUP($J93,P_All!$AD$5:$BE$245,3*($C$6-1)+4) -> 13.368 | N93: =VLOOKUP($J93,SDEIS_All!$AD$5:$BE$245,3*($C$6-1)+2) -> 1.6919 | O93: =VLOOKUP($J93,SDEIS_All!$AD$5:$BE$245,3*($C$6-1)+3) -> 5.7078 | P93: =VLOOKUP($J93,SDEIS_All!$AD$5:$BE$245,3*($C$6-1)+4) -> 14.368
B94: 70 | C94: =VLOOKUP($B94,P_All!$A$5:$AB$204,3*($C$6-1)+2) -> 1.015267917 | D94: =VLOOKUP($B94,P_All!$A$5:$AB$204,3*($C$6-1)+3) -> 4.4475775 | E94: =VLOOKUP($B94,P_All!$A$5:$AB$204,3*($C$6-1)+4) -> 18.545325 | F94: =VLOOKUP($B94,SDEIS_All!$A$5:$AB$204,3*($C$6-1)+2) -> 2.015275 | G94: =VLOOKUP($B94,SDEIS_All!$A$5:$AB$204,3*($C$6-1)+3) -> 5.447575 | H94: =VLOOKUP($B94,SDEIS_All!$A$5:$AB$204,3*($C$6-1)+4) -> 19.545325 | J94: 55.75 | K94: =VLOOKUP($J94,P_All!$AD$5:$BE$245,3*($C$6-1)+2) -> 1.3264 | L94: =VLOOKUP($J94,P_All!$AD$5:$BE$245,3*($C$6-1)+3) -> 4.8867 | M94: =VLOOKUP($J94,P_All!$AD$5:$BE$245,3*($C$6-1)+4) -> 19.636 | N94: =VLOOKUP($J94,SDEIS_All!$AD$5:$BE$245,3*($C$6-1)+2) -> 2.3264 | O94: =VLOOKUP($J94,SDEIS_All!$AD$5:$BE$245,3*($C$6-1)+3) -> 5.8867 | P94: =VLOOKUP($J94,SDEIS_All!$AD$5:$BE$245,3*($C$6-1)+4) -> 20.636
B95: 71 | C95: =VLOOKUP($B95,P_All!$A$5:$AB$204,3*($C$6-1)+2) -> 0.98474275 | D95: =VLOOKUP($B95,P_All!$A$5:$AB$204,3*($C$6-1)+3) -> 4.397056667 | E95: =VLOOKUP($B95,P_All!$A$5:$AB$204,3*($C$6-1)+4) -> 17.84196667 | F95: =VLOOKUP($B95,SDEIS_All!$A$5:$AB$204,3*($C$6-1)+2) -> 1.984758333 | G95: =VLOOKUP($B95,SDEIS_All!$A$5:$AB$204,3*($C$6-1)+3) -> 5.397058333 | H95: =VLOOKUP($B95,SDEIS_All!$A$5:$AB$204,3*($C$6-1)+4) -> 18.841925 | J95: 55.83333333 | K95: =VLOOKUP($J95,P_All!$AD$5:$BE$245,3*($C$6-1)+2) -> 0.96813 | L95: =VLOOKUP($J95,P_All!$AD$5:$BE$245,3*($C$6-1)+3) -> 2.3736 | M95: =VLOOKUP($J95,P_All!$AD$5:$BE$245,3*($C$6-1)+4) -> 9.6046 | N95: =VLOOKUP($J95,SDEIS_All!$AD$5:$BE$245,3*($C$6-1)+2) -> 1.9681 | O95: =VLOOKUP($J95,SDEIS_All!$AD$5:$BE$245,3*($C$6-1)+3) -> 3.3736 | P95: =VLOOKUP($J95,SDEIS_All!$AD$5:$BE$245,3*($C$6-1)+4) -> 10.605
B96: 72 | C96: =VLOOKUP($B96,P_All!$A$5:$AB$204,3*($C$6-1)+2) -> 0.9629589167 | D96: =VLOOKUP($B96,P_All!$A$5:$AB$204,3*($C$6-1)+3) -> 4.310735833 | E96: =VLOOKUP($B96,P_All!$A$5:$AB$204,3*($C$6-1)+4) -> 18.61021667 | F96: =VLOOKUP($B96,SDEIS_All!$A$5:$AB$204,3*($C$6-1)+2) -> 1.962966667 | G96: =VLOOKUP($B96,SDEIS_All!$A$5:$AB$204,3*($C$6-1)+3) -> 5.310725 | H96: =VLOOKUP($B96,SDEIS_All!$A$5:$AB$204,3*($C$6-1)+4) -> 19.61025 | J96: 55.91666667 | K96: =VLOOKUP($J96,P_All!$AD$5:$BE$245,3*($C$6-1)+2) -> 0.42292 | L96: =VLOOKUP($J96,P_All!$AD$5:$BE$245,3*($C$6-1)+3) -> 0.91875 | M96: =VLOOKUP($J96,P_All!$AD$5:$BE$245,3*($C$6-1)+4) -> 2.1076 | N96: =VLOOKUP($J96,SDEIS_All!$AD$5:$BE$245,3*($C$6-1)+2) -> 1.4229 | O96: =VLOOKUP($J96,SDEIS_All!$AD$5:$BE$245,3*($C$6-1)+3) -> 1.9188 | P96: =VLOOKUP($J96,SDEIS_All!$AD$5:$BE$245,3*($C$6-1)+4) -> 3.1076
B97: 73 | C97: =VLOOKUP($B97,P_All!$A$5:$AB$204,3*($C$6-1)+2) -> 0.9765638333 | D97: =VLOOKUP($B97,P_All!$A$5:$AB$204,3*($C$6-1)+3) -> 4.462975 | E97: =VLOOKUP($B97,P_All!$A$5:$AB$204,3*($C$6-1)+4) -> 18.7349 | F97: =VLOOKUP($B97,SDEIS_All!$A$5:$AB$204,3*($C$6-1)+2) -> 1.976566667 | G97: =VLOOKUP($B97,SDEIS_All!$A$5:$AB$204,3*($C$6-1)+3) -> 5.462975 | H97: =VLOOKUP($B97,SDEIS_All!$A$5:$AB$204,3*($C$6-1)+4) -> 19.734925 | J97: 56 | K97: =VLOOKUP($J97,P_All!$AD$5:$BE$245,3*($C$6-1)+2) -> 0.13876 | L97: =VLOOKUP($J97,P_All!$AD$5:$BE$245,3*($C$6-1)+3) -> 0.54865 | M97: =VLOOKUP($J97,P_All!$AD$5:$BE$245,3*($C$6-1)+4) -> 1.0668 | N97: =VLOOKUP($J97,SDEIS_All!$AD$5:$BE$245,3*($C$6-1)+2) -> 1.1388 | O97: =VLOOKUP($J97,SDEIS_All!$AD$5:$BE$245,3*($C$6-1)+3) -> 1.5487 | P97: =VLOOKUP($J97,SDEIS_All!$AD$5:$BE$245,3*($C$6-1)+4) -> 2.0668
B98: 74 | C98: =VLOOKUP($B98,P_All!$A$5:$AB$204,3*($C$6-1)+2) -> 0.9638784167 | D98: =VLOOKUP($B98,P_All!$A$5:$AB$204,3*($C$6-1)+3) -> 4.426541667 | E98: =VLOOKUP($B98,P_All!$A$5:$AB$204,3*($C$6-1)+4) -> 17.53149167 | F98: =VLOOKUP($B98,SDEIS_All!$A$5:$AB$204,3*($C$6-1)+2) -> 1.963883333 | G98: =VLOOKUP($B98,SDEIS_All!$A$5:$AB$204,3*($C$6-1)+3) -> 5.426541667 | H98: =VLOOKUP($B98,SDEIS_All!$A$5:$AB$204,3*($C$6-1)+4) -> 18.53140833 | J98: 56.08333333 | K98: =VLOOKUP($J98,P_All!$AD$5:$BE$245,3*($C$6-1)+2) -> 0.090656 | L98: =VLOOKUP($J98,P_All!$AD$5:$BE$245,3*($C$6-1)+3) -> 0.1547 | M98: =VLOOKUP($J98,P_All!$AD$5:$BE$245,3*($C$6-1)+4) -> 1.0485 | N98: =VLOOKUP($J98,SDEIS_All!$AD$5:$BE$245,3*($C$6-1)+2) -> 1.0907 | O98: =VLOOKUP($J98,SDEIS_All!$AD$5:$BE$245,3*($C$6-1)+3) -> 1.1547 | P98: =VLOOKUP($J98,SDEIS_All!$AD$5:$BE$245,3*($C$6-1)+4) -> 2.0485
B99: 75 | C99: =VLOOKUP($B99,P_All!$A$5:$AB$204,3*($C$6-1)+2) -> 0.9849875 | D99: =VLOOKUP($B99,P_All!$A$5:$AB$204,3*($C$6-1)+3) -> 4.485188333 | E99: =VLOOKUP($B99,P_All!$A$5:$AB$204,3*($C$6-1)+4) -> 17.85948333 | F99: =VLOOKUP($B99,SDEIS_All!$A$5:$AB$204,3*($C$6-1)+2) -> 1.984983333 | G99: =VLOOKUP($B99,SDEIS_All!$A$5:$AB$204,3*($C$6-1)+3) -> 5.485191667 | H99: =VLOOKUP($B99,SDEIS_All!$A$5:$AB$204,3*($C$6-1)+4) -> 18.85948333 | J99: 56.16666667 | K99: =VLOOKUP($J99,P_All!$AD$5:$BE$245,3*($C$6-1)+2) -> 0.097933 | L99: =VLOOKUP($J99,P_All!$AD$5:$BE$245,3*($C$6-1)+3) -> 0.57089 | M99: =VLOOKUP($J99,P_All!$AD$5:$BE$245,3*($C$6-1)+4) -> 10.053 | N99: =VLOOKUP($J99,SDEIS_All!$AD$5:$BE$245,3*($C$6-1)+2) -> 1.0979 | O99: =VLOOKUP($J99,SDEIS_All!$AD$5:$BE$245,3*($C$6-1)+3) -> 1.5709 | P99: =VLOOKUP($J99,SDEIS_All!$AD$5:$BE$245,3*($C$6-1)+4) -> 11.053
B100: 76 | C100: =VLOOKUP($B100,P_All!$A$5:$AB$204,3*($C$6-1)+2) -> 0.9491163333 | D100: =VLOOKUP($B100,P_All!$A$5:$AB$204,3*($C$6-1)+3) -> 4.3448225 | E100: =VLOOKUP($B100,P_All!$A$5:$AB$204,3*($C$6-1)+4) -> 18.76245 | F100: =VLOOKUP($B100,SDEIS_All!$A$5:$AB$204,3*($C$6-1)+2) -> 1.949108333 | G100: =VLOOKUP($B100,SDEIS_All!$A$5:$AB$204,3*($C$6-1)+3) -> 5.344825 | H100: =VLOOKUP($B100,SDEIS_All!$A$5:$AB$204,3*($C$6-1)+4) -> 19.76245 | J100: 56.25 | K100: =VLOOKUP($J100,P_All!$AD$5:$BE$245,3*($C$6-1)+2) -> 3.0617 | L100: =VLOOKUP($J100,P_All!$AD$5:$BE$245,3*($C$6-1)+3) -> 13.252 | M100: =VLOOKUP($J100,P_All!$AD$5:$BE$245,3*($C$6-1)+4) -> 40.049 | N100: =VLOOKUP($J100,SDEIS_All!$AD$5:$BE$245,3*($C$6-1)+2) -> 4.0617 | O100: =VLOOKUP($J100,SDEIS_All!$AD$5:$BE$245,3*($C$6-1)+3) -> 14.252 | P100: =VLOOKUP($J100,SDEIS_All!$AD$5:$BE$245,3*($C$6-1)+4) -> 41.049
B101: 77 | C101: =VLOOKUP($B101,P_All!$A$5:$AB$204,3*($C$6-1)+2) -> 0.9414829167 | D101: =VLOOKUP($B101,P_All!$A$5:$AB$204,3*($C$6-1)+3) -> 4.442268333 | E101: =VLOOKUP($B101,P_All!$A$5:$AB$204,3*($C$6-1)+4) -> 18.223525 | F101: =VLOOKUP($B101,SDEIS_All!$A$5:$AB$204,3*($C$6-1)+2) -> 1.941483333 | G101: =VLOOKUP($B101,SDEIS_All!$A$5:$AB$204,3*($C$6-1)+3) -> 5.442275 | H101: =VLOOKUP($B101,SDEIS_All!$A$5:$AB$204,3*($C$6-1)+4) -> 19.22354167 | J101: 56.33333333 | K101: =VLOOKUP($J101,P_All!$AD$5:$BE$245,3*($C$6-1)+2) -> 3.1552 | L101: =VLOOKUP($J101,P_All!$AD$5:$BE$245,3*($C$6-1)+3) -> 11.932 | M101: =VLOOKUP($J101,P_All!$AD$5:$BE$245,3*($C$6-1)+4) -> 38.16 | N101: =VLOOKUP($J101,SDEIS_All!$AD$5:$BE$245,3*($C$6-1)+2) -> 4.1552 | O101: =VLOOKUP($J101,SDEIS_All!$AD$5:$BE$245,3*($C$6-1)+3) -> 12.932 | P101: =VLOOKUP($J101,SDEIS_All!$AD$5:$BE$245,3*($C$6-1)+4) -> 39.16
B102: 78 | C102: =VLOOKUP($B102,P_All!$A$5:$AB$204,3*($C$6-1)+2) -> 0.9979170833 | D102: =VLOOKUP($B102,P_All!$A$5:$AB$204,3*($C$6-1)+3) -> 4.456880833 | E102: =VLOOKUP($B102,P_All!$A$5:$AB$204,3*($C$6-1)+4) -> 18.02290833 | F102: =VLOOKUP($B102,SDEIS_All!$A$5:$AB$204,3*($C$6-1)+2) -> 1.997908333 | G102: =VLOOKUP($B102,SDEIS_All!$A$5:$AB$204,3*($C$6-1)+3) -> 5.456875 | H102: =VLOOKUP($B102,SDEIS_All!$A$5:$AB$204,3*($C$6-1)+4) -> 19.02290833 | J102: 56.41666667 | K102: =VLOOKUP($J102,P_All!$AD$5:$BE$245,3*($C$6-1)+2) -> 0.97168 | L102: =VLOOKUP($J102,P_All!$AD$5:$BE$245,3*($C$6-1)+3) -> 7.325 | M102: =VLOOKUP($J102,P_All!$AD$5:$BE$245,3*($C$6-1)+4) -> 20.628 | N102: =VLOOKUP($J102,SDEIS_All!$AD$5:$BE$245,3*($C$6-1)+2) -> 1.9717 | O102: =VLOOKUP($J102,SDEIS_All!$AD$5:$BE$245,3*($C$6-1)+3) -> 8.325 | P102: =VLOOKUP($J102,SDEIS_All!$AD$5:$BE$245,3*($C$6-1)+4) -> 21.628
B103: 79 | C103: =VLOOKUP($B103,P_All!$A$5:$AB$204,3*($C$6-1)+2) -> 1.072624083 | D103: =VLOOKUP($B103,P_All!$A$5:$AB$204,3*($C$6-1)+3) -> 4.428975833 | E103: =VLOOKUP($B103,P_All!$A$5:$AB$204,3*($C$6-1)+4) -> 17.89688333 | F103: =VLOOKUP($B103,SDEIS_All!$A$5:$AB$204,3*($C$6-1)+2) -> 2.072625 | G103: =VLOOKUP($B103,SDEIS_All!$A$5:$AB$204,3*($C$6-1)+3) -> 5.428975 | H103: =VLOOKUP($B103,SDEIS_All!$A$5:$AB$204,3*($C$6-1)+4) -> 18.89688333 | J103: 56.5 | K103: =VLOOKUP($J103,P_All!$AD$5:$BE$245,3*($C$6-1)+2) -> 0.23344 | L103: =VLOOKUP($J103,P_All!$AD$5:$BE$245,3*($C$6-1)+3) -> 2.8369 | M103: =VLOOKUP($J103,P_All!$AD$5:$BE$245,3*($C$6-1)+4) -> 45.228 | N103: =VLOOKUP($J103,SDEIS_All!$AD$5:$BE$245,3*($C$6-1)+2) -> 1.2334 | O103: =VLOOKUP($J103,SDEIS_All!$AD$5:$BE$245,3*($C$6-1)+3) -> 3.8369 | P103: =VLOOKUP($J103,SDEIS_All!$AD$5:$BE$245,3*($C$6-1)+4) -> 46.228
B104: 80 | C104: =VLOOKUP($B104,P_All!$A$5:$AB$204,3*($C$6-1)+2) -> 0.93348025 | D104: =VLOOKUP($B104,P_All!$A$5:$AB$204,3*($C$6-1)+3) -> 4.520880833 | E104: =VLOOKUP($B104,P_All!$A$5:$AB$204,3*($C$6-1)+4) -> 18.494375 | F104: =VLOOKUP($B104,SDEIS_All!$A$5:$AB$204,3*($C$6-1)+2) -> 1.933466667 | G104: =VLOOKUP($B104,SDEIS_All!$A$5:$AB$204,3*($C$6-1)+3) -> 5.520883333 | H104: =VLOOKUP($B104,SDEIS_All!$A$5:$AB$204,3*($C$6-1)+4) -> 19.49435 | J104: 56.58333333 | K104: =VLOOKUP($J104,P_All!$AD$5:$BE$245,3*($C$6-1)+2) -> 0.86363 | L104: =VLOOKUP($J104,P_All!$AD$5:$BE$245,3*($C$6-1)+3) -> 3.1316 | M104: =VLOOKUP($J104,P_All!$AD$5:$BE$245,3*($C$6-1)+4) -> 23.982 | N104: =VLOOKUP($J104,SDEIS_All!$AD$5:$BE$245,3*($C$6-1)+2) -> 1.8636 | O104: =VLOOKUP($J104,SDEIS_All!$AD$5:$BE$245,3*($C$6-1)+3) -> 4.1316 | P104: =VLOOKUP($J104,SDEIS_All!$AD$5:$BE$245,3*($C$6-1)+4) -> 24.982
B105: 81 | C105: =VLOOKUP($B105,P_All!$A$5:$AB$204,3*($C$6-1)+2) -> 0.94974225 | D105: =VLOOKUP($B105,P_All!$A$5:$AB$204,3*($C$6-1)+3) -> 4.5057325 | E105: =VLOOKUP($B105,P_All!$A$5:$AB$204,3*($C$6-1)+4) -> 18.55753333 | F105: =VLOOKUP($B105,SDEIS_All!$A$5:$AB$204,3*($C$6-1)+2) -> 1.949741667 | G105: =VLOOKUP($B105,SDEIS_All!$A$5:$AB$204,3*($C$6-1)+3) -> 5.505725 | H105: =VLOOKUP($B105,SDEIS_All!$A$5:$AB$204,3*($C$6-1)+4) -> 19.55753333 | J105: 56.66666667 | K105: =VLOOKUP($J105,P_All!$AD$5:$BE$245,3*($C$6-1)+2) -> 0.68642 | L105: =VLOOKUP($J105,P_All!$AD$5:$BE$245,3*($C$6-1)+3) -> 4.7551 | M105: =VLOOKUP($J105,P_All!$AD$5:$BE$245,3*($C$6-1)+4) -> 14.647 | N105: =VLOOKUP($J105,SDEIS_All!$AD$5:$BE$245,3*($C$6-1)+2) -> 1.6864 | O105: =VLOOKUP($J105,SDEIS_All!$AD$5:$BE$245,3*($C$6-1)+3) -> 5.7551 | P105: =VLOOKUP($J105,SDEIS_All!$AD$5:$BE$245,3*($C$6-1)+4) -> 15.647
B106: 82 | C106: =VLOOKUP($B106,P_All!$A$5:$AB$204,3*($C$6-1)+2) -> 0.9469613333 | D106: =VLOOKUP($B106,P_All!$A$5:$AB$204,3*($C$6-1)+3) -> 4.449224167 | E106: =VLOOKUP($B106,P_All!$A$5:$AB$204,3*($C$6-1)+4) -> 17.22625833 | F106: =VLOOKUP($B106,SDEIS_All!$A$5:$AB$204,3*($C$6-1)+2) -> 1.946966667 | G106: =VLOOKUP($B106,SDEIS_All!$A$5:$AB$204,3*($C$6-1)+3) -> 5.449225 | H106: =VLOOKUP($B106,SDEIS_All!$A$5:$AB$204,3*($C$6-1)+4) -> 18.22623333 | J106: 56.75 | K106: =VLOOKUP($J106,P_All!$AD$5:$BE$245,3*($C$6-1)+2) -> 1.323 | L106: =VLOOKUP($J106,P_All!$AD$5:$BE$245,3*($C$6-1)+3) -> 5.3644 | M106: =VLOOKUP($J106,P_All!$AD$5:$BE$245,3*($C$6-1)+4) -> 23.054 | N106: =VLOOKUP($J106,SDEIS_All!$AD$5:$BE$245,3*($C$6-1)+2) -> 2.323 | O106: =VLOOKUP($J106,SDEIS_All!$AD$5:$BE$245,3*($C$6-1)+3) -> 6.3644 | P106: =VLOOKUP($J106,SDEIS_All!$AD$5:$BE$245,3*($C$6-1)+4) -> 24.054
B107: 83 | C107: =VLOOKUP($B107,P_All!$A$5:$AB$204,3*($C$6-1)+2) -> 0.9618950833 | D107: =VLOOKUP($B107,P_All!$A$5:$AB$204,3*($C$6-1)+3) -> 4.538428333 | E107: =VLOOKUP($B107,P_All!$A$5:$AB$204,3*($C$6-1)+4) -> 18.23919167 | F107: =VLOOKUP($B107,SDEIS_All!$A$5:$AB$204,3*($C$6-1)+2) -> 1.961891667 | G107: =VLOOKUP($B107,SDEIS_All!$A$5:$AB$204,3*($C$6-1)+3) -> 5.538425 | H107: =VLOOKUP($B107,SDEIS_All!$A$5:$AB$204,3*($C$6-1)+4) -> 19.2392 | J107: 56.83333333 | K107: =VLOOKUP($J107,P_All!$AD$5:$BE$245,3*($C$6-1)+2) -> 0.95918 | L107: =VLOOKUP($J107,P_All!$AD$5:$BE$245,3*($C$6-1)+3) -> 2.6302 | M107: =VLOOKUP($J107,P_All!$AD$5:$BE$245,3*($C$6-1)+4) -> 8.4258 | N107: =VLOOKUP($J107,SDEIS_All!$AD$5:$BE$245,3*($C$6-1)+2) -> 1.9592 | O107: =VLOOKUP($J107,SDEIS_All!$AD$5:$BE$245,3*($C$6-1)+3) -> 3.6302 | P107: =VLOOKUP($J107,SDEIS_All!$AD$5:$BE$245,3*($C$6-1)+4) -> 9.4258
B108: 84 | C108: =VLOOKUP($B108,P_All!$A$5:$AB$204,3*($C$6-1)+2) -> 1.01431925 | D108: =VLOOKUP($B108,P_All!$A$5:$AB$204,3*($C$6-1)+3) -> 4.588185833 | E108: =VLOOKUP($B108,P_All!$A$5:$AB$204,3*($C$6-1)+4) -> 18.58911667 | F108: =VLOOKUP($B108,SDEIS_All!$A$5:$AB$204,3*($C$6-1)+2) -> 2.014316667 | G108: =VLOOKUP($B108,SDEIS_All!$A$5:$AB$204,3*($C$6-1)+3) -> 5.588191667 | H108: =VLOOKUP($B108,SDEIS_All!$A$5:$AB$204,3*($C$6-1)+4) -> 19.58911667 | J108: 56.91666667 | K108: =VLOOKUP($J108,P_All!$AD$5:$BE$245,3*($C$6-1)+2) -> 0.40569 | L108: =VLOOKUP($J108,P_All!$AD$5:$BE$245,3*($C$6-1)+3) -> 0.84557 | M108: =VLOOKUP($J108,P_All!$AD$5:$BE$245,3*($C$6-1)+4) -> 1.972 | N108: =VLOOKUP($J108,SDEIS_All!$AD$5:$BE$245,3*($C$6-1)+2) -> 1.4057 | O108: =VLOOKUP($J108,SDEIS_All!$AD$5:$BE$245,3*($C$6-1)+3) -> 1.8456 | P108: =VLOOKUP($J108,SDEIS_All!$AD$5:$BE$245,3*($C$6-1)+4) -> 2.972
B109: 85 | C109: =VLOOKUP($B109,P_All!$A$5:$AB$204,3*($C$6-1)+2) -> 0.9786654167 | D109: =VLOOKUP($B109,P_All!$A$5:$AB$204,3*($C$6-1)+3) -> 4.2866075 | E109: =VLOOKUP($B109,P_All!$A$5:$AB$204,3*($C$6-1)+4) -> 17.63050833 | F109: =VLOOKUP($B109,SDEIS_All!$A$5:$AB$204,3*($C$6-1)+2) -> 1.978666667 | G109: =VLOOKUP($B109,SDEIS_All!$A$5:$AB$204,3*($C$6-1)+3) -> 5.286608333 | H109: =VLOOKUP($B109,SDEIS_All!$A$5:$AB$204,3*($C$6-1)+4) -> 18.63050833 | J109: 57 | K109: =VLOOKUP($J109,P_All!$AD$5:$BE$245,3*($C$6-1)+2) -> 0.13925 | L109: =VLOOKUP($J109,P_All!$AD$5:$BE$245,3*($C$6-1)+3) -> 0.5683 | M109: =VLOOKUP($J109,P_All!$AD$5:$BE$245,3*($C$6-1)+4) -> 1.083 | N109: =VLOOKUP($J109,SDEIS_All!$AD$5:$BE$245,3*($C$6-1)+2) -> 1.1393 | O109: =VLOOKUP($J109,SDEIS_All!$AD$5:$BE$245,3*($C$6-1)+3) -> 1.5683 | P109: =VLOOKUP($J109,SDEIS_All!$AD$5:$BE$245,3*($C$6-1)+4) -> 2.083
B110: 86 | C110: =VLOOKUP($B110,P_All!$A$5:$AB$204,3*($C$6-1)+2) -> 0.9710671667 | D110: =VLOOKUP($B110,P_All!$A$5:$AB$204,3*($C$6-1)+3) -> 4.2364 | E110: =VLOOKUP($B110,P_All!$A$5:$AB$204,3*($C$6-1)+4) -> 17.68230833 | F110: =VLOOKUP($B110,SDEIS_All!$A$5:$AB$204,3*($C$6-1)+2) -> 1.971075 | G110: =VLOOKUP($B110,SDEIS_All!$A$5:$AB$204,3*($C$6-1)+3) -> 5.2364 | H110: =VLOOKUP($B110,SDEIS_All!$A$5:$AB$204,3*($C$6-1)+4) -> 18.68230833 | J110: 57.08333333 | K110: =VLOOKUP($J110,P_All!$AD$5:$BE$245,3*($C$6-1)+2) -> 0.092353 | L110: =VLOOKUP($J110,P_All!$AD$5:$BE$245,3*($C$6-1)+3) -> 0.24364 | M110: =VLOOKUP($J110,P_All!$AD$5:$BE$245,3*($C$6-1)+4) -> 1.3027 | N110: =VLOOKUP($J110,SDEIS_All!$AD$5:$BE$245,3*($C$6-1)+2) -> 1.0924 | O110: =VLOOKUP($J110,SDEIS_All!$AD$5:$BE$245,3*($C$6-1)+3) -> 1.2436 | P110: =VLOOKUP($J110,SDEIS_All!$AD$5:$BE$245,3*($C$6-1)+4) -> 2.3027
B111: 87 | C111: =VLOOKUP($B111,P_All!$A$5:$AB$204,3*($C$6-1)+2) -> 0.98430925 | D111: =VLOOKUP($B111,P_All!$A$5:$AB$204,3*($C$6-1)+3) -> 4.527465 | E111: =VLOOKUP($B111,P_All!$A$5:$AB$204,3*($C$6-1)+4) -> 18.30645 | F111: =VLOOKUP($B111,SDEIS_All!$A$5:$AB$204,3*($C$6-1)+2) -> 1.984291667 | G111: =VLOOKUP($B111,SDEIS_All!$A$5:$AB$204,3*($C$6-1)+3) -> 5.527458333 | H111: =VLOOKUP($B111,SDEIS_All!$A$5:$AB$204,3*($C$6-1)+4) -> 19.30645 | J111: 57.16666667 | K111: =VLOOKUP($J111,P_All!$AD$5:$BE$245,3*($C$6-1)+2) -> 0.10664 | L111: =VLOOKUP($J111,P_All!$AD$5:$BE$245,3*($C$6-1)+3) -> 0.55018 | M111: =VLOOKUP($J111,P_All!$AD$5:$BE$245,3*($C$6-1)+4) -> 7.693 | N111: =VLOOKUP($J111,SDEIS_All!$AD$5:$BE$245,3*($C$6-1)+2) -> 1.1066 | O111: =VLOOKUP($J111,SDEIS_All!$AD$5:$BE$245,3*($C$6-1)+3) -> 1.5502 | P111: =VLOOKUP($J111,SDEIS_All!$AD$5:$BE$245,3*($C$6-1)+4) -> 8.693
B112: 88 | C112: =VLOOKUP($B112,P_All!$A$5:$AB$204,3*($C$6-1)+2) -> 0.93976975 | D112: =VLOOKUP($B112,P_All!$A$5:$AB$204,3*($C$6-1)+3) -> 4.3458975 | E112: =VLOOKUP($B112,P_All!$A$5:$AB$204,3*($C$6-1)+4) -> 17.74706667 | F112: =VLOOKUP($B112,SDEIS_All!$A$5:$AB$204,3*($C$6-1)+2) -> 1.939766667 | G112: =VLOOKUP($B112,SDEIS_All!$A$5:$AB$204,3*($C$6-1)+3) -> 5.3459 | H112: =VLOOKUP($B112,SDEIS_All!$A$5:$AB$204,3*($C$6-1)+4) -> 18.74706667 | J112: 57.25 | K112: =VLOOKUP($J112,P_All!$AD$5:$BE$245,3*($C$6-1)+2) -> 2.9409 | L112: =VLOOKUP($J112,P_All!$AD$5:$BE$245,3*($C$6-1)+3) -> 12.256 | M112: =VLOOKUP($J112,P_All!$AD$5:$BE$245,3*($C$6-1)+4) -> 37.31 | N112: =VLOOKUP($J112,SDEIS_All!$AD$5:$BE$245,3*($C$6-1)+2) -> 3.9409 | O112: =VLOOKUP($J112,SDEIS_All!$AD$5:$BE$245,3*($C$6-1)+3) -> 13.256 | P112: =VLOOKUP($J112,SDEIS_All!$AD$5:$BE$245,3*($C$6-1)+4) -> 38.31
B113: 89 | C113: =VLOOKUP($B113,P_All!$A$5:$AB$204,3*($C$6-1)+2) -> 1.014970917 | D113: =VLOOKUP($B113,P_All!$A$5:$AB$204,3*($C$6-1)+3) -> 4.414463333 | E113: =VLOOKUP($B113,P_All!$A$5:$AB$204,3*($C$6-1)+4) -> 18.31373333 | F113: =VLOOKUP($B113,SDEIS_All!$A$5:$AB$204,3*($C$6-1)+2) -> 2.014983333 | G113: =VLOOKUP($B113,SDEIS_All!$A$5:$AB$204,3*($C$6-1)+3) -> 5.414466667 | H113: =VLOOKUP($B113,SDEIS_All!$A$5:$AB$204,3*($C$6-1)+4) -> 19.31373333 | J113: 57.33333333 | K113: =VLOOKUP($J113,P_All!$AD$5:$BE$245,3*($C$6-1)+2) -> 2.7237 | L113: =VLOOKUP($J113,P_All!$AD$5:$BE$245,3*($C$6-1)+3) -> 12.338 | M113: =VLOOKUP($J113,P_All!$AD$5:$BE$245,3*($C$6-1)+4) -> 42.852 | N113: =VLOOKUP($J113,SDEIS_All!$AD$5:$BE$245,3*($C$6-1)+2) -> 3.7237 | O113: =VLOOKUP($J113,SDEIS_All!$AD$5:$BE$245,3*($C$6-1)+3) -> 13.338 | P113: =VLOOKUP($J113,SDEIS_All!$AD$5:$BE$245,3*($C$6-1)+4) -> 43.852
B114: 90 | C114: =VLOOKUP($B114,P_All!$A$5:$AB$204,3*($C$6-1)+2) -> 0.9770971667 | D114: =VLOOKUP($B114,P_All!$A$5:$AB$204,3*($C$6-1)+3) -> 4.462764167 | E114: =VLOOKUP($B114,P_All!$A$5:$AB$204,3*($C$6-1)+4) -> 18.02713333 | F114: =VLOOKUP($B114,SDEIS_All!$A$5:$AB$204,3*($C$6-1)+2) -> 1.977091667 | G114: =VLOOKUP($B114,SDEIS_All!$A$5:$AB$204,3*($C$6-1)+3) -> 5.462766667 | H114: =VLOOKUP($B114,SDEIS_All!$A$5:$AB$204,3*($C$6-1)+4) -> 19.027125 | J114: 57.41666667 | K114: =VLOOKUP($J114,P_All!$AD$5:$BE$245,3*($C$6-1)+2) -> 0.95229 | L114: =VLOOKUP($J114,P_All!$AD$5:$BE$245,3*($C$6-1)+3) -> 6.0556 | M114: =VLOOKUP($J114,P_All!$AD$5:$BE$245,3*($C$6-1)+4) -> 16.949 | N114: =VLOOKUP($J114,SDEIS_All!$AD$5:$BE$245,3*($C$6-1)+2) -> 1.9523 | O114: =VLOOKUP($J114,SDEIS_All!$AD$5:$BE$245,3*($C$6-1)+3) -> 7.0556 | P114: =VLOOKUP($J114,SDEIS_All!$AD$5:$BE$245,3*($C$6-1)+4) -> 17.949
B115: 91 | C115: =VLOOKUP($B115,P_All!$A$5:$AB$204,3*($C$6-1)+2) -> 0.9116288333 | D115: =VLOOKUP($B115,P_All!$A$5:$AB$204,3*($C$6-1)+3) -> 4.1721075 | E115: =VLOOKUP($B115,P_All!$A$5:$AB$204,3*($C$6-1)+4) -> 18.24574167 | F115: =VLOOKUP($B115,SDEIS_All!$A$5:$AB$204,3*($C$6-1)+2) -> 1.911633333 | G115: =VLOOKUP($B115,SDEIS_All!$A$5:$AB$204,3*($C$6-1)+3) -> 5.172108333 | H115: =VLOOKUP($B115,SDEIS_All!$A$5:$AB$204,3*($C$6-1)+4) -> 19.24574167 | J115: 57.5 | K115: =VLOOKUP($J115,P_All!$AD$5:$BE$245,3*($C$6-1)+2) -> 0.33632 | L115: =VLOOKUP($J115,P_All!$AD$5:$BE$245,3*($C$6-1)+3) -> 3.9664 | M115: =VLOOKUP($J115,P_All!$AD$5:$BE$245,3*($C$6-1)+4) -> 43.099 | N115: =VLOOKUP($J115,SDEIS_All!$AD$5:$BE$245,3*($C$6-1)+2) -> 1.3363 | O115: =VLOOKUP($J115,SDEIS_All!$AD$5:$BE$245,3*($C$6-1)+3) -> 4.9664 | P115: =VLOOKUP($J115,SDEIS_All!$AD$5:$BE$245,3*($C$6-1)+4) -> 44.099
B116: 92 | C116: =VLOOKUP($B116,P_All!$A$5:$AB$204,3*($C$6-1)+2) -> 0.8993951667 | D116: =VLOOKUP($B116,P_All!$A$5:$AB$204,3*($C$6-1)+3) -> 4.219269167 | E116: =VLOOKUP($B116,P_All!$A$5:$AB$204,3*($C$6-1)+4) -> 17.6936 | F116: =VLOOKUP($B116,SDEIS_All!$A$5:$AB$204,3*($C$6-1)+2) -> 1.899383333 | G116: =VLOOKUP($B116,SDEIS_All!$A$5:$AB$204,3*($C$6-1)+3) -> 5.219266667 | H116: =VLOOKUP($B116,SDEIS_All!$A$5:$AB$204,3*($C$6-1)+4) -> 18.693575 | J116: 57.58333333 | K116: =VLOOKUP($J116,P_All!$AD$5:$BE$245,3*($C$6-1)+2) -> 0.84447 | L116: =VLOOKUP($J116,P_All!$AD$5:$BE$245,3*($C$6-1)+3) -> 3.5548 | M116: =VLOOKUP($J116,P_All!$AD$5:$BE$245,3*($C$6-1)+4) -> 22.435 | N116: =VLOOKUP($J116,SDEIS_All!$AD$5:$BE$245,3*($C$6-1)+2) -> 1.8445 | O116: =VLOOKUP($J116,SDEIS_All!$AD$5:$BE$245,3*($C$6-1)+3) -> 4.5548 | P116: =VLOOKUP($J116,SDEIS_All!$AD$5:$BE$245,3*($C$6-1)+4) -> 23.435
B117: 93 | C117: =VLOOKUP($B117,P_All!$A$5:$AB$204,3*($C$6-1)+2) -> 0.9984576667 | D117: =VLOOKUP($B117,P_All!$A$5:$AB$204,3*($C$6-1)+3) -> 4.43653 | E117: =VLOOKUP($B117,P_All!$A$5:$AB$204,3*($C$6-1)+4) -> 18.10469167 | F117: =VLOOKUP($B117,SDEIS_All!$A$5:$AB$204,3*($C$6-1)+2) -> 1.99845 | G117: =VLOOKUP($B117,SDEIS_All!$A$5:$AB$204,3*($C$6-1)+3) -> 5.436541667 | H117: =VLOOKUP($B117,SDEIS_All!$A$5:$AB$204,3*($C$6-1)+4) -> 19.10469167 | J117: 57.66666667 | K117: =VLOOKUP($J117,P_All!$AD$5:$BE$245,3*($C$6-1)+2) -> 0.61132 | L117: =VLOOKUP($J117,P_All!$AD$5:$BE$245,3*($C$6-1)+3) -> 4.8709 | M117: =VLOOKUP($J117,P_All!$AD$5:$BE$245,3*($C$6-1)+4) -> 12.99 | N117: =VLOOKUP($J117,SDEIS_All!$AD$5:$BE$245,3*($C$6-1)+2) -> 1.6113 | O117: =VLOOKUP($J117,SDEIS_All!$AD$5:$BE$245,3*($C$6-1)+3) -> 5.8709 | P117: =VLOOKUP($J117,SDEIS_All!$AD$5:$BE$245,3*($C$6-1)+4) -> 13.99
B118: 94 | C118: =VLOOKUP($B118,P_All!$A$5:$AB$204,3*($C$6-1)+2) -> 0.9749911667 | D118: =VLOOKUP($B118,P_All!$A$5:$AB$204,3*($C$6-1)+3) -> 4.541598333 | E118: =VLOOKUP($B118,P_All!$A$5:$AB$204,3*($C$6-1)+4) -> 18.48190833 | F118: =VLOOKUP($B118,SDEIS_All!$A$5:$AB$204,3*($C$6-1)+2) -> 1.974991667 | G118: =VLOOKUP($B118,SDEIS_All!$A$5:$AB$204,3*($C$6-1)+3) -> 5.5416 | H118: =VLOOKUP($B118,SDEIS_All!$A$5:$AB$204,3*($C$6-1)+4) -> 19.48194167 | J118: 57.75 | K118: =VLOOKUP($J118,P_All!$AD$5:$BE$245,3*($C$6-1)+2) -> 1.3188 | L118: =VLOOKUP($J118,P_All!$AD$5:$BE$245,3*($C$6-1)+3) -> 5.6633 | M118: =VLOOKUP($J118,P_All!$AD$5:$BE$245,3*($C$6-1)+4) -> 23.251 | N118: =VLOOKUP($J118,SDEIS_All!$AD$5:$BE$245,3*($C$6-1)+2) -> 2.3188 | O118: =VLOOKUP($J118,SDEIS_All!$AD$5:$BE$245,3*($C$6-1)+3) -> 6.6633 | P118: =VLOOKUP($J118,SDEIS_All!$AD$5:$BE$245,3*($C$6-1)+4) -> 24.251
B119: 95 | C119: =VLOOKUP($B119,P_All!$A$5:$AB$204,3*($C$6-1)+2) -> 0.93705425 | D119: =VLOOKUP($B119,P_All!$A$5:$AB$204,3*($C$6-1)+3) -> 4.264931667 | E119: =VLOOKUP($B119,P_All!$A$5:$AB$204,3*($C$6-1)+4) -> 18.411475 | F119: =VLOOKUP($B119,SDEIS_All!$A$5:$AB$204,3*($C$6-1)+2) -> 1.93705 | G119: =VLOOKUP($B119,SDEIS_All!$A$5:$AB$204,3*($C$6-1)+3) -> 5.264933333 | H119: =VLOOKUP($B119,SDEIS_All!$A$5:$AB$204,3*($C$6-1)+4) -> 19.41145 | J119: 57.83333333 | K119: =VLOOKUP($J119,P_All!$AD$5:$BE$245,3*($C$6-1)+2) -> 0.94321 | L119: =VLOOKUP($J119,P_All!$AD$5:$BE$245,3*($C$6-1)+3) -> 2.445 | M119: =VLOOKUP($J119,P_All!$AD$5:$BE$245,3*($C$6-1)+4) -> 9.7895 | N119: =VLOOKUP($J119,SDEIS_All!$AD$5:$BE$245,3*($C$6-1)+2) -> 1.9432 | O119: =VLOOKUP($J119,SDEIS_All!$AD$5:$BE$245,3*($C$6-1)+3) -> 3.445 | P119: =VLOOKUP($J119,SDEIS_All!$AD$5:$BE$245,3*($C$6-1)+4) -> 10.789
B120: 96 | C120: =VLOOKUP($B120,P_All!$A$5:$AB$204,3*($C$6-1)+2) -> 0.99286975 | D120: =VLOOKUP($B120,P_All!$A$5:$AB$204,3*($C$6-1)+3) -> 4.1503375 | E120: =VLOOKUP($B120,P_All!$A$5:$AB$204,3*($C$6-1)+4) -> 17.5828 | F120: =VLOOKUP($B120,SDEIS_All!$A$5:$AB$204,3*($C$6-1)+2) -> 1.992875 | G120: =VLOOKUP($B120,SDEIS_All!$A$5:$AB$204,3*($C$6-1)+3) -> 5.150341667 | H120: =VLOOKUP($B120,SDEIS_All!$A$5:$AB$204,3*($C$6-1)+4) -> 18.5828 | J120: 57.91666667 | K120: =VLOOKUP($J120,P_All!$AD$5:$BE$245,3*($C$6-1)+2) -> 0.42056 | L120: =VLOOKUP($J120,P_All!$AD$5:$BE$245,3*($C$6-1)+3) -> 0.83482 | M120: =VLOOKUP($J120,P_All!$AD$5:$BE$245,3*($C$6-1)+4) -> 2.0148 | N120: =VLOOKUP($J120,SDEIS_All!$AD$5:$BE$245,3*($C$6-1)+2) -> 1.4206 | O120: =VLOOKUP($J120,SDEIS_All!$AD$5:$BE$245,3*($C$6-1)+3) -> 1.8348 | P120: =VLOOKUP($J120,SDEIS_All!$AD$5:$BE$245,3*($C$6-1)+4) -> 3.0148
B121: 97 | C121: =VLOOKUP($B121,P_All!$A$5:$AB$204,3*($C$6-1)+2) -> 0.9911921667 | D121: =VLOOKUP($B121,P_All!$A$5:$AB$204,3*($C$6-1)+3) -> 4.358075833 | E121: =VLOOKUP($B121,P_All!$A$5:$AB$204,3*($C$6-1)+4) -> 18.29395833 | F121: =VLOOKUP($B121,SDEIS_All!$A$5:$AB$204,3*($C$6-1)+2) -> 1.991183333 | G121: =VLOOKUP($B121,SDEIS_All!$A$5:$AB$204,3*($C$6-1)+3) -> 5.358075 | H121: =VLOOKUP($B121,SDEIS_All!$A$5:$AB$204,3*($C$6-1)+4) -> 19.29395833 | J121: 58 | K121: =VLOOKUP($J121,P_All!$AD$5:$BE$245,3*($C$6-1)+2) -> 0.1386 | L121: =VLOOKUP($J121,P_All!$AD$5:$BE$245,3*($C$6-1)+3) -> 0.52377 | M121: =VLOOKUP($J121,P_All!$AD$5:$BE$245,3*($C$6-1)+4) -> 1.0383 | N121: =VLOOKUP($J121,SDEIS_All!$AD$5:$BE$245,3*($C$6-1)+2) -> 1.1386 | O121: =VLOOKUP($J121,SDEIS_All!$AD$5:$BE$245,3*($C$6-1)+3) -> 1.5238 | P121: =VLOOKUP($J121,SDEIS_All!$AD$5:$BE$245,3*($C$6-1)+4) -> 2.0383
B122: 98 | C122: =VLOOKUP($B122,P_All!$A$5:$AB$204,3*($C$6-1)+2) -> 1.033759333 | D122: =VLOOKUP($B122,P_All!$A$5:$AB$204,3*($C$6-1)+3) -> 4.407003333 | E122: =VLOOKUP($B122,P_All!$A$5:$AB$204,3*($C$6-1)+4) -> 17.93645833 | F122: =VLOOKUP($B122,SDEIS_All!$A$5:$AB$204,3*($C$6-1)+2) -> 2.033758333 | G122: =VLOOKUP($B122,SDEIS_All!$A$5:$AB$204,3*($C$6-1)+3) -> 5.407008333 | H122: =VLOOKUP($B122,SDEIS_All!$A$5:$AB$204,3*($C$6-1)+4) -> 18.9365 | J122: 58.08333333 | K122: =VLOOKUP($J122,P_All!$AD$5:$BE$245,3*($C$6-1)+2) -> 0.091319 | L122: =VLOOKUP($J122,P_All!$AD$5:$BE$245,3*($C$6-1)+3) -> 0.15254 | M122: =VLOOKUP($J122,P_All!$AD$5:$BE$245,3*($C$6-1)+4) -> 1.225 | N122: =VLOOKUP($J122,SDEIS_All!$AD$5:$BE$245,3*($C$6-1)+2) -> 1.0913 | O122: =VLOOKUP($J122,SDEIS_All!$AD$5:$BE$245,3*($C$6-1)+3) -> 1.1525 | P122: =VLOOKUP($J122,SDEIS_All!$AD$5:$BE$245,3*($C$6-1)+4) -> 2.225
B123: 99 | C123: =VLOOKUP($B123,P_All!$A$5:$AB$204,3*($C$6-1)+2) -> 0.99619 | D123: =VLOOKUP($B123,P_All!$A$5:$AB$204,3*($C$6-1)+3) -> 4.69728 | E123: =VLOOKUP($B123,P_All!$A$5:$AB$204,3*($C$6-1)+4) -> 17.9762 | F123: =VLOOKUP($B123,SDEIS_All!$A$5:$AB$204,3*($C$6-1)+2) -> 1.996183333 | G123: =VLOOKUP($B123,SDEIS_All!$A$5:$AB$204,3*($C$6-1)+3) -> 5.697283333 | H123: =VLOOKUP($B123,SDEIS_All!$A$5:$AB$204,3*($C$6-1)+4) -> 18.9762 | J123: 58.16666667 | K123: =VLOOKUP($J123,P_All!$AD$5:$BE$245,3*($C$6-1)+2) -> 0.098309 | L123: =VLOOKUP($J123,P_All!$AD$5:$BE$245,3*($C$6-1)+3) -> 0.64679 | M123: =VLOOKUP($J123,P_All!$AD$5:$BE$245,3*($C$6-1)+4) -> 7.9995 | N123: =VLOOKUP($J123,SDEIS_All!$AD$5:$BE$245,3*($C$6-1)+2) -> 1.0983 | O123: =VLOOKUP($J123,SDEIS_All!$AD$5:$BE$245,3*($C$6-1)+3) -> 1.6468 | P123: =VLOOKUP($J123,SDEIS_All!$AD$5:$BE$245,3*($C$6-1)+4) -> 8.9995
B124: 100 | C124: =VLOOKUP($B124,P_All!$A$5:$AB$204,3*($C$6-1)+2) -> 0.954156 | D124: =VLOOKUP($B124,P_All!$A$5:$AB$204,3*($C$6-1)+3) -> 4.362884167 | E124: =VLOOKUP($B124,P_All!$A$5:$AB$204,3*($C$6-1)+4) -> 17.320325 | F124: =VLOOKUP($B124,SDEIS_All!$A$5:$AB$204,3*($C$6-1)+2) -> 1.954158333 | G124: =VLOOKUP($B124,SDEIS_All!$A$5:$AB$204,3*($C$6-1)+3) -> 5.362883333 | H124: =VLOOKUP($B124,SDEIS_All!$A$5:$AB$204,3*($C$6-1)+4) -> 18.320325 | J124: 58.25 | K124: =VLOOKUP($J124,P_All!$AD$5:$BE$245,3*($C$6-1)+2) -> 3.1582 | L124: =VLOOKUP($J124,P_All!$AD$5:$BE$245,3*($C$6-1)+3) -> 11.707 | M124: =VLOOKUP($J124,P_All!$AD$5:$BE$245,3*($C$6-1)+4) -> 38.554 | N124: =VLOOKUP($J124,SDEIS_All!$AD$5:$BE$245,3*($C$6-1)+2) -> 4.1582 | O124: =VLOOKUP($J124,SDEIS_All!$AD$5:$BE$245,3*($C$6-1)+3) -> 12.707 | P124: =VLOOKUP($J124,SDEIS_All!$AD$5:$BE$245,3*($C$6-1)+4) -> 39.554
B125: 101 | C125: =VLOOKUP($B125,P_All!$A$5:$AB$204,3*($C$6-1)+2) -> 0.9651528333 | D125: =VLOOKUP($B125,P_All!$A$5:$AB$204,3*($C$6-1)+3) -> 4.3520825 | E125: =VLOOKUP($B125,P_All!$A$5:$AB$204,3*($C$6-1)+4) -> 18.02050833 | F125: =VLOOKUP($B125,SDEIS_All!$A$5:$AB$204,3*($C$6-1)+2) -> 1.96515 | G125: =VLOOKUP($B125,SDEIS_All!$A$5:$AB$204,3*($C$6-1)+3) -> 5.352083333 | H125: =VLOOKUP($B125,SDEIS_All!$A$5:$AB$204,3*($C$6-1)+4) -> 19.02050833 | J125: 58.33333333 | K125: =VLOOKUP($J125,P_All!$AD$5:$BE$245,3*($C$6-1)+2) -> 2.4403 | L125: =VLOOKUP($J125,P_All!$AD$5:$BE$245,3*($C$6-1)+3) -> 12.166 | M125: =VLOOKUP($J125,P_All!$AD$5:$BE$245,3*($C$6-1)+4) -> 46.749 | N125: =VLOOKUP($J125,SDEIS_All!$AD$5:$BE$245,3*($C$6-1)+2) -> 3.4403 | O125: =VLOOKUP($J125,SDEIS_All!$AD$5:$BE$245,3*($C$6-1)+3) -> 13.166 | P125: =VLOOKUP($J125,SDEIS_All!$AD$5:$BE$245,3*($C$6-1)+4) -> 47.749
B126: 102 | C126: =VLOOKUP($B126,P_All!$A$5:$AB$204,3*($C$6-1)+2) -> 0.935279 | D126: =VLOOKUP($B126,P_All!$A$5:$AB$204,3*($C$6-1)+3) -> 4.668550833 | E126: =VLOOKUP($B126,P_All!$A$5:$AB$204,3*($C$6-1)+4) -> 18.63573333 | F126: =VLOOKUP($B126,SDEIS_All!$A$5:$AB$204,3*($C$6-1)+2) -> 1.935266667 | G126: =VLOOKUP($B126,SDEIS_All!$A$5:$AB$204,3*($C$6-1)+3) -> 5.668558333 | H126: =VLOOKUP($B126,SDEIS_All!$A$5:$AB$204,3*($C$6-1)+4) -> 19.63569167 | J126: 58.41666667 | K126: =VLOOKUP($J126,P_All!$AD$5:$BE$245,3*($C$6-1)+2) -> 0.82071 | L126: =VLOOKUP($J126,P_All!$AD$5:$BE$245,3*($C$6-1)+3) -> 6.3472 | M126: =VLOOKUP($J126,P_All!$AD$5:$BE$245,3*($C$6-1)+4) -> 19.99 | N126: =VLOOKUP($J126,SDEIS_All!$AD$5:$BE$245,3*($C$6-1)+2) -> 1.8207 | O126: =VLOOKUP($J126,SDEIS_All!$AD$5:$BE$245,3*($C$6-1)+3) -> 7.3472 | P126: =VLOOKUP($J126,SDEIS_All!$AD$5:$BE$245,3*($C$6-1)+4) -> 20.99
B127: 103 | C127: =VLOOKUP($B127,P_All!$A$5:$AB$204,3*($C$6-1)+2) -> 0.99662075 | D127: =VLOOKUP($B127,P_All!$A$5:$AB$204,3*($C$6-1)+3) -> 4.304289167 | E127: =VLOOKUP($B127,P_All!$A$5:$AB$204,3*($C$6-1)+4) -> 17.79474167 | F127: =VLOOKUP($B127,SDEIS_All!$A$5:$AB$204,3*($C$6-1)+2) -> 1.996616667 | G127: =VLOOKUP($B127,SDEIS_All!$A$5:$AB$204,3*($C$6-1)+3) -> 5.304283333 | H127: =VLOOKUP($B127,SDEIS_All!$A$5:$AB$204,3*($C$6-1)+4) -> 18.79474167 | J127: 58.5 | K127: =VLOOKUP($J127,P_All!$AD$5:$BE$245,3*($C$6-1)+2) -> 0.30724 | L127: =VLOOKUP($J127,P_All!$AD$5:$BE$245,3*($C$6-1)+3) -> 2.9427 | M127: =VLOOKUP($J127,P_All!$AD$5:$BE$245,3*($C$6-1)+4) -> 39.322 | N127: =VLOOKUP($J127,SDEIS_All!$AD$5:$BE$245,3*($C$6-1)+2) -> 1.3072 | O127: =VLOOKUP($J127,SDEIS_All!$AD$5:$BE$245,3*($C$6-1)+3) -> 3.9427 | P127: =VLOOKUP($J127,SDEIS_All!$AD$5:$BE$245,3*($C$6-1)+4) -> 40.322
B128: 104 | C128: =VLOOKUP($B128,P_All!$A$5:$AB$204,3*($C$6-1)+2) -> 0.9692183333 | D128: =VLOOKUP($B128,P_All!$A$5:$AB$204,3*($C$6-1)+3) -> 4.426905 | E128: =VLOOKUP($B128,P_All!$A$5:$AB$204,3*($C$6-1)+4) -> 17.97929167 | F128: =VLOOKUP($B128,SDEIS_All!$A$5:$AB$204,3*($C$6-1)+2) -> 1.969216667 | G128: =VLOOKUP($B128,SDEIS_All!$A$5:$AB$204,3*($C$6-1)+3) -> 5.426908333 | H128: =VLOOKUP($B128,SDEIS_All!$A$5:$AB$204,3*($C$6-1)+4) -> 18.97929167 | J128: 58.58333333 | K128: =VLOOKUP($J128,P_All!$AD$5:$BE$245,3*($C$6-1)+2) -> 0.9207 | L128: =VLOOKUP($J128,P_All!$AD$5:$BE$245,3*($C$6-1)+3) -> 3.0861 | M128: =VLOOKUP($J128,P_All!$AD$5:$BE$245,3*($C$6-1)+4) -> 25.753 | N128: =VLOOKUP($J128,SDEIS_All!$AD$5:$BE$245,3*($C$6-1)+2) -> 1.9207 | O128: =VLOOKUP($J128,SDEIS_All!$AD$5:$BE$245,3*($C$6-1)+3) -> 4.0861 | P128: =VLOOKUP($J128,SDEIS_All!$AD$5:$BE$245,3*($C$6-1)+4) -> 26.753
B129: 105 | C129: =VLOOKUP($B129,P_All!$A$5:$AB$204,3*($C$6-1)+2) -> 0.9608085833 | D129: =VLOOKUP($B129,P_All!$A$5:$AB$204,3*($C$6-1)+3) -> 4.360573333 | E129: =VLOOKUP($B129,P_All!$A$5:$AB$204,3*($C$6-1)+4) -> 17.8184 | F129: =VLOOKUP($B129,SDEIS_All!$A$5:$AB$204,3*($C$6-1)+2) -> 1.960816667 | G129: =VLOOKUP($B129,SDEIS_All!$A$5:$AB$204,3*($C$6-1)+3) -> 5.360566667 | H129: =VLOOKUP($B129,SDEIS_All!$A$5:$AB$204,3*($C$6-1)+4) -> 18.81848333 | J129: 58.66666667 | K129: =VLOOKUP($J129,P_All!$AD$5:$BE$245,3*($C$6-1)+2) -> 0.67245 | L129: =VLOOKUP($J129,P_All!$AD$5:$BE$245,3*($C$6-1)+3) -> 4.7194 | M129: =VLOOKUP($J129,P_All!$AD$5:$BE$245,3*($C$6-1)+4) -> 12.987 | N129: =VLOOKUP($J129,SDEIS_All!$AD$5:$BE$245,3*($C$6-1)+2) -> 1.6725 | O129: =VLOOKUP($J129,SDEIS_All!$AD$5:$BE$245,3*($C$6-1)+3) -> 5.7194 | P129: =VLOOKUP($J129,SDEIS_All!$AD$5:$BE$245,3*($C$6-1)+4) -> 13.987
B130: 106 | C130: =VLOOKUP($B130,P_All!$A$5:$AB$204,3*($C$6-1)+2) -> 0.92650275 | D130: =VLOOKUP($B130,P_All!$A$5:$AB$204,3*($C$6-1)+3) -> 4.592844167 | E130: =VLOOKUP($B130,P_All!$A$5:$AB$204,3*($C$6-1)+4) -> 18.34743333 | F130: =VLOOKUP($B130,SDEIS_All!$A$5:$AB$204,3*($C$6-1)+2) -> 1.9265 | G130: =VLOOKUP($B130,SDEIS_All!$A$5:$AB$204,3*($C$6-1)+3) -> 5.592841667 | H130: =VLOOKUP($B130,SDEIS_All!$A$5:$AB$204,3*($C$6-1)+4) -> 19.34743333 | J130: 58.75 | K130: =VLOOKUP($J130,P_All!$AD$5:$BE$245,3*($C$6-1)+2) -> 1.3728 | L130: =VLOOKUP($J130,P_All!$AD$5:$BE$245,3*($C$6-1)+3) -> 4.9139 | M130: =VLOOKUP($J130,P_All!$AD$5:$BE$245,3*($C$6-1)+4) -> 22.915 | N130: =VLOOKUP($J130,SDEIS_All!$AD$5:$BE$245,3*($C$6-1)+2) -> 2.3728 | O130: =VLOOKUP($J130,SDEIS_All!$AD$5:$BE$245,3*($C$6-1)+3) -> 5.9139 | P130: =VLOOKUP($J130,SDEIS_All!$AD$5:$BE$245,3*($C$6-1)+4) -> 23.915
B131: 107 | C131: =VLOOKUP($B131,P_All!$A$5:$AB$204,3*($C$6-1)+2) -> 0.97141475 | D131: =VLOOKUP($B131,P_All!$A$5:$AB$204,3*($C$6-1)+3) -> 4.382155 | E131: =VLOOKUP($B131,P_All!$A$5:$AB$204,3*($C$6-1)+4) -> 18.18621667 | F131: =VLOOKUP($B131,SDEIS_All!$A$5:$AB$204,3*($C$6-1)+2) -> 1.971408333 | G131: =VLOOKUP($B131,SDEIS_All!$A$5:$AB$204,3*($C$6-1)+3) -> 5.382158333 | H131: =VLOOKUP($B131,SDEIS_All!$A$5:$AB$204,3*($C$6-1)+4) -> 19.18621667 | J131: 58.83333333 | K131: =VLOOKUP($J131,P_All!$AD$5:$BE$245,3*($C$6-1)+2) -> 0.97833 | L131: =VLOOKUP($J131,P_All!$AD$5:$BE$245,3*($C$6-1)+3) -> 2.7373 | M131: =VLOOKUP($J131,P_All!$AD$5:$BE$245,3*($C$6-1)+4) -> 9.8172 | N131: =VLOOKUP($J131,SDEIS_All!$AD$5:$BE$245,3*($C$6-1)+2) -> 1.9783 | O131: =VLOOKUP($J131,SDEIS_All!$AD$5:$BE$245,3*($C$6-1)+3) -> 3.7373 | P131: =VLOOKUP($J131,SDEIS_All!$AD$5:$BE$245,3*($C$6-1)+4) -> 10.817
B132: 108 | C132: =VLOOKUP($B132,P_All!$A$5:$AB$204,3*($C$6-1)+2) -> 0.9987235833 | D132: =VLOOKUP($B132,P_All!$A$5:$AB$204,3*($C$6-1)+3) -> 4.252268333 | E132: =VLOOKUP($B132,P_All!$A$5:$AB$204,3*($C$6-1)+4) -> 18.14813333 | F132: =VLOOKUP($B132,SDEIS_All!$A$5:$AB$204,3*($C$6-1)+2) -> 1.998716667 | G132: =VLOOKUP($B132,SDEIS_All!$A$5:$AB$204,3*($C$6-1)+3) -> 5.252275 | H132: =VLOOKUP($B132,SDEIS_All!$A$5:$AB$204,3*($C$6-1)+4) -> 19.14814167 | J132: 58.91666667 | K132: =VLOOKUP($J132,P_All!$AD$5:$BE$245,3*($C$6-1)+2) -> 0.40275 | L132: =VLOOKUP($J132,P_All!$AD$5:$BE$245,3*($C$6-1)+3) -> 0.82759 | M132: =VLOOKUP($J132,P_All!$AD$5:$BE$245,3*($C$6-1)+4) -> 1.8503 | N132: =VLOOKUP($J132,SDEIS_All!$AD$5:$BE$245,3*($C$6-1)+2) -> 1.4028 | O132: =VLOOKUP($J132,SDEIS_All!$AD$5:$BE$245,3*($C$6-1)+3) -> 1.8276 | P132: =VLOOKUP($J132,SDEIS_All!$AD$5:$BE$245,3*($C$6-1)+4) -> 2.8503
B133: 109 | C133: =VLOOKUP($B133,P_All!$A$5:$AB$204,3*($C$6-1)+2) -> 1.044295083 | D133: =VLOOKUP($B133,P_All!$A$5:$AB$204,3*($C$6-1)+3) -> 4.409430833 | E133: =VLOOKUP($B133,P_All!$A$5:$AB$204,3*($C$6-1)+4) -> 17.91779167 | F133: =VLOOKUP($B133,SDEIS_All!$A$5:$AB$204,3*($C$6-1)+2) -> 2.044291667 | G133: =VLOOKUP($B133,SDEIS_All!$A$5:$AB$204,3*($C$6-1)+3) -> 5.409433333 | H133: =VLOOKUP($B133,SDEIS_All!$A$5:$AB$204,3*($C$6-1)+4) -> 18.91779167 | J133: 59 | K133: =VLOOKUP($J133,P_All!$AD$5:$BE$245,3*($C$6-1)+2) -> 0.1386 | L133: =VLOOKUP($J133,P_All!$AD$5:$BE$245,3*($C$6-1)+3) -> 0.54244 | M133: =VLOOKUP($J133,P_All!$AD$5:$BE$245,3*($C$6-1)+4) -> 1.0821 | N133: =VLOOKUP($J133,SDEIS_All!$AD$5:$BE$245,3*($C$6-1)+2) -> 1.1386 | O133: =VLOOKUP($J133,SDEIS_All!$AD$5:$BE$245,3*($C$6-1)+3) -> 1.5424 | P133: =VLOOKUP($J133,SDEIS_All!$AD$5:$BE$245,3*($C$6-1)+4) -> 2.0821
B134: 110 | C134: =VLOOKUP($B134,P_All!$A$5:$AB$204,3*($C$6-1)+2) -> 1.006822167 | D134: =VLOOKUP($B134,P_All!$A$5:$AB$204,3*($C$6-1)+3) -> 4.299408333 | E134: =VLOOKUP($B134,P_All!$A$5:$AB$204,3*($C$6-1)+4) -> 17.65304167 | F134: =VLOOKUP($B134,SDEIS_All!$A$5:$AB$204,3*($C$6-1)+2) -> 2.006825 | G134: =VLOOKUP($B134,SDEIS_All!$A$5:$AB$204,3*($C$6-1)+3) -> 5.2994 | H134: =VLOOKUP($B134,SDEIS_All!$A$5:$AB$204,3*($C$6-1)+4) -> 18.65304167 | J134: 59.08333333 | K134: =VLOOKUP($J134,P_All!$AD$5:$BE$245,3*($C$6-1)+2) -> 0.093247 | L134: =VLOOKUP($J134,P_All!$AD$5:$BE$245,3*($C$6-1)+3) -> 0.1563 | M134: =VLOOKUP($J134,P_All!$AD$5:$BE$245,3*($C$6-1)+4) -> 1.1503 | N134: =VLOOKUP($J134,SDEIS_All!$AD$5:$BE$245,3*($C$6-1)+2) -> 1.0932 | O134: =VLOOKUP($J134,SDEIS_All!$AD$5:$BE$245,3*($C$6-1)+3) -> 1.1563 | P134: =VLOOKUP($J134,SDEIS_All!$AD$5:$BE$245,3*($C$6-1)+4) -> 2.1503
B135: 111 | C135: =VLOOKUP($B135,P_All!$A$5:$AB$204,3*($C$6-1)+2) -> 0.9413625833 | D135: =VLOOKUP($B135,P_All!$A$5:$AB$204,3*($C$6-1)+3) -> 4.277546667 | E135: =VLOOKUP($B135,P_All!$A$5:$AB$204,3*($C$6-1)+4) -> 17.26473333 | F135: =VLOOKUP($B135,SDEIS_All!$A$5:$AB$204,3*($C$6-1)+2) -> 1.941366667 | G135: =VLOOKUP($B135,SDEIS_All!$A$5:$AB$204,3*($C$6-1)+3) -> 5.27755 | H135: =VLOOKUP($B135,SDEIS_All!$A$5:$AB$204,3*($C$6-1)+4) -> 18.26473333 | J135: 59.16666667 | K135: =VLOOKUP($J135,P_All!$AD$5:$BE$245,3*($C$6-1)+2) -> 0.096736 | L135: =VLOOKUP($J135,P_All!$AD$5:$BE$245,3*($C$6-1)+3) -> 0.51394 | M135: =VLOOKUP($J135,P_All!$AD$5:$BE$245,3*($C$6-1)+4) -> 8.6064 | N135: =VLOOKUP($J135,SDEIS_All!$AD$5:$BE$245,3*($C$6-1)+2) -> 1.0967 | O135: =VLOOKUP($J135,SDEIS_All!$AD$5:$BE$245,3*($C$6-1)+3) -> 1.5139 | P135: =VLOOKUP($J135,SDEIS_All!$AD$5:$BE$245,3*($C$6-1)+4) -> 9.6064
B136: 112 | C136: =VLOOKUP($B136,P_All!$A$5:$AB$204,3*($C$6-1)+2) -> 0.8903426667 | D136: =VLOOKUP($B136,P_All!$A$5:$AB$204,3*($C$6-1)+3) -> 4.166930833 | E136: =VLOOKUP($B136,P_All!$A$5:$AB$204,3*($C$6-1)+4) -> 17.58664167 | F136: =VLOOKUP($B136,SDEIS_All!$A$5:$AB$204,3*($C$6-1)+2) -> 1.890341667 | G136: =VLOOKUP($B136,SDEIS_All!$A$5:$AB$204,3*($C$6-1)+3) -> 5.166925 | H136: =VLOOKUP($B136,SDEIS_All!$A$5:$AB$204,3*($C$6-1)+4) -> 18.58664167 | J136: 59.25 | K136: =VLOOKUP($J136,P_All!$AD$5:$BE$245,3*($C$6-1)+2) -> 2.9478 | L136: =VLOOKUP($J136,P_All!$AD$5:$BE$245,3*($C$6-1)+3) -> 11.815 | M136: =VLOOKUP($J136,P_All!$AD$5:$BE$245,3*($C$6-1)+4) -> 34.983 | N136: =VLOOKUP($J136,SDEIS_All!$AD$5:$BE$245,3*($C$6-1)+2) -> 3.9478 | O136: =VLOOKUP($J136,SDEIS_All!$AD$5:$BE$245,3*($C$6-1)+3) -> 12.815 | P136: =VLOOKUP($J136,SDEIS_All!$AD$5:$BE$245,3*($C$6-1)+4) -> 35.983
B137: 113 | C137: =VLOOKUP($B137,P_All!$A$5:$AB$204,3*($C$6-1)+2) -> 0.9090786667 | D137: =VLOOKUP($B137,P_All!$A$5:$AB$204,3*($C$6-1)+3) -> 4.334545833 | E137: =VLOOKUP($B137,P_All!$A$5:$AB$204,3*($C$6-1)+4) -> 17.939225 | F137: =VLOOKUP($B137,SDEIS_All!$A$5:$AB$204,3*($C$6-1)+2) -> 1.909091667 | G137: =VLOOKUP($B137,SDEIS_All!$A$5:$AB$204,3*($C$6-1)+3) -> 5.334541667 | H137: =VLOOKUP($B137,SDEIS_All!$A$5:$AB$204,3*($C$6-1)+4) -> 18.93921667 | J137: 59.33333333 | K137: =VLOOKUP($J137,P_All!$AD$5:$BE$245,3*($C$6-1)+2) -> 2.9379 | L137: =VLOOKUP($J137,P_All!$AD$5:$BE$245,3*($C$6-1)+3) -> 10.43 | M137: =VLOOKUP($J137,P_All!$AD$5:$BE$245,3*($C$6-1)+4) -> 37.165 | N137: =VLOOKUP($J137,SDEIS_All!$AD$5:$BE$245,3*($C$6-1)+2) -> 3.9379 | O137: =VLOOKUP($J137,SDEIS_All!$AD$5:$BE$245,3*($C$6-1)+3) -> 11.43 | P137: =VLOOKUP($J137,SDEIS_All!$AD$5:$BE$245,3*($C$6-1)+4) -> 38.165
B138: 114 | C138: =VLOOKUP($B138,P_All!$A$5:$AB$204,3*($C$6-1)+2) -> 0.9415849167 | D138: =VLOOKUP($B138,P_All!$A$5:$AB$204,3*($C$6-1)+3) -> 4.368510833 | E138: =VLOOKUP($B138,P_All!$A$5:$AB$204,3*($C$6-1)+4) -> 17.50474167 | F138: =VLOOKUP($B138,SDEIS_All!$A$5:$AB$204,3*($C$6-1)+2) -> 1.941583333 | G138: =VLOOKUP($B138,SDEIS_All!$A$5:$AB$204,3*($C$6-1)+3) -> 5.368508333 | H138: =VLOOKUP($B138,SDEIS_All!$A$5:$AB$204,3*($C$6-1)+4) -> 18.50474167 | J138: 59.41666667 | K138: =VLOOKUP($J138,P_All!$AD$5:$BE$245,3*($C$6-1)+2) -> 0.87011 | L138: =VLOOKUP($J138,P_All!$AD$5:$BE$245,3*($C$6-1)+3) -> 5.8857 | M138: =VLOOKUP($J138,P_All!$AD$5:$BE$245,3*($C$6-1)+4) -> 19.922 | N138: =VLOOKUP($J138,SDEIS_All!$AD$5:$BE$245,3*($C$6-1)+2) -> 1.8701 | O138: =VLOOKUP($J138,SDEIS_All!$AD$5:$BE$245,3*($C$6-1)+3) -> 6.8857 | P138: =VLOOKUP($J138,SDEIS_All!$AD$5:$BE$245,3*($C$6-1)+4) -> 20.922
B139: 115 | C139: =VLOOKUP($B139,P_All!$A$5:$AB$204,3*($C$6-1)+2) -> 0.9261408333 | D139: =VLOOKUP($B139,P_All!$A$5:$AB$204,3*($C$6-1)+3) -> 4.369215833 | E139: =VLOOKUP($B139,P_All!$A$5:$AB$204,3*($C$6-1)+4) -> 18.49568333 | F139: =VLOOKUP($B139,SDEIS_All!$A$5:$AB$204,3*($C$6-1)+2) -> 1.92615 | G139: =VLOOKUP($B139,SDEIS_All!$A$5:$AB$204,3*($C$6-1)+3) -> 5.369208333 | H139: =VLOOKUP($B139,SDEIS_All!$A$5:$AB$204,3*($C$6-1)+4) -> 19.495675 | J139: 59.5 | K139: =VLOOKUP($J139,P_All!$AD$5:$BE$245,3*($C$6-1)+2) -> 0.23982 | L139: =VLOOKUP($J139,P_All!$AD$5:$BE$245,3*($C$6-1)+3) -> 2.986 | M139: =VLOOKUP($J139,P_All!$AD$5:$BE$245,3*($C$6-1)+4) -> 37.933 | N139: =VLOOKUP($J139,SDEIS_All!$AD$5:$BE$245,3*($C$6-1)+2) -> 1.2398 | O139: =VLOOKUP($J139,SDEIS_All!$AD$5:$BE$245,3*($C$6-1)+3) -> 3.986 | P139: =VLOOKUP($J139,SDEIS_All!$AD$5:$BE$245,3*($C$6-1)+4) -> 38.933
B140: 116 | C140: =VLOOKUP($B140,P_All!$A$5:$AB$204,3*($C$6-1)+2) -> 0.9202393333 | D140: =VLOOKUP($B140,P_All!$A$5:$AB$204,3*($C$6-1)+3) -> 4.280438333 | E140: =VLOOKUP($B140,P_All!$A$5:$AB$204,3*($C$6-1)+4) -> 18.36901667 | F140: =VLOOKUP($B140,SDEIS_All!$A$5:$AB$204,3*($C$6-1)+2) -> 1.920233333 | G140: =VLOOKUP($B140,SDEIS_All!$A$5:$AB$204,3*($C$6-1)+3) -> 5.280433333 | H140: =VLOOKUP($B140,SDEIS_All!$A$5:$AB$204,3*($C$6-1)+4) -> 19.36905 | J140: 59.58333333 | K140: =VLOOKUP($J140,P_All!$AD$5:$BE$245,3*($C$6-1)+2) -> 1.0288 | L140: =VLOOKUP($J140,P_All!$AD$5:$BE$245,3*($C$6-1)+3) -> 3.0996 | M140: =VLOOKUP($J140,P_All!$AD$5:$BE$245,3*($C$6-1)+4) -> 23.707 | N140: =VLOOKUP($J140,SDEIS_All!$AD$5:$BE$245,3*($C$6-1)+2) -> 2.0288 | O140: =VLOOKUP($J140,SDEIS_All!$AD$5:$BE$245,3*($C$6-1)+3) -> 4.0996 | P140: =VLOOKUP($J140,SDEIS_All!$AD$5:$BE$245,3*($C$6-1)+4) -> 24.707
B141: 117 | C141: =VLOOKUP($B141,P_All!$A$5:$AB$204,3*($C$6-1)+2) -> 1.013918333 | D141: =VLOOKUP($B141,P_All!$A$5:$AB$204,3*($C$6-1)+3) -> 4.6017625 | E141: =VLOOKUP($B141,P_All!$A$5:$AB$204,3*($C$6-1)+4) -> 18.10729167 | F141: =VLOOKUP($B141,SDEIS_All!$A$5:$AB$204,3*($C$6-1)+2) -> 2.013916667 | G141: =VLOOKUP($B141,SDEIS_All!$A$5:$AB$204,3*($C$6-1)+3) -> 5.601766667 | H141: =VLOOKUP($B141,SDEIS_All!$A$5:$AB$204,3*($C$6-1)+4) -> 19.1073 | J141: 59.66666667 | K141: =VLOOKUP($J141,P_All!$AD$5:$BE$245,3*($C$6-1)+2) -> 0.55775 | L141: =VLOOKUP($J141,P_All!$AD$5:$BE$245,3*($C$6-1)+3) -> 4.6152 | M141: =VLOOKUP($J141,P_All!$AD$5:$BE$245,3*($C$6-1)+4) -> 13.509 | N141: =VLOOKUP($J141,SDEIS_All!$AD$5:$BE$245,3*($C$6-1)+2) -> 1.5578 | O141: =VLOOKUP($J141,SDEIS_All!$AD$5:$BE$245,3*($C$6-1)+3) -> 5.6152 | P141: =VLOOKUP($J141,SDEIS_All!$AD$5:$BE$245,3*($C$6-1)+4) -> 14.509
B142: 118 | C142: =VLOOKUP($B142,P_All!$A$5:$AB$204,3*($C$6-1)+2) -> 0.96660275 | D142: =VLOOKUP($B142,P_All!$A$5:$AB$204,3*($C$6-1)+3) -> 4.221649167 | E142: =VLOOKUP($B142,P_All!$A$5:$AB$204,3*($C$6-1)+4) -> 17.77361667 | F142: =VLOOKUP($B142,SDEIS_All!$A$5:$AB$204,3*($C$6-1)+2) -> 1.9666 | G142: =VLOOKUP($B142,SDEIS_All!$A$5:$AB$204,3*($C$6-1)+3) -> 5.221641667 | H142: =VLOOKUP($B142,SDEIS_All!$A$5:$AB$204,3*($C$6-1)+4) -> 18.77361667 | J142: 59.75 | K142: =VLOOKUP($J142,P_All!$AD$5:$BE$245,3*($C$6-1)+2) -> 1.4398 | L142: =VLOOKUP($J142,P_All!$AD$5:$BE$245,3*($C$6-1)+3) -> 5.3326 | M142: =VLOOKUP($J142,P_All!$AD$5:$BE$245,3*($C$6-1)+4) -> 20.005 | N142: =VLOOKUP($J142,SDEIS_All!$AD$5:$BE$245,3*($C$6-1)+2) -> 2.4398 | O142: =VLOOKUP($J142,SDEIS_All!$AD$5:$BE$245,3*($C$6-1)+3) -> 6.3326 | P142: =VLOOKUP($J142,SDEIS_All!$AD$5:$BE$245,3*($C$6-1)+4) -> 21.005
B143: 119 | C143: =VLOOKUP($B143,P_All!$A$5:$AB$204,3*($C$6-1)+2) -> 1.03015225 | D143: =VLOOKUP($B143,P_All!$A$5:$AB$204,3*($C$6-1)+3) -> 4.4472325 | E143: =VLOOKUP($B143,P_All!$A$5:$AB$204,3*($C$6-1)+4) -> 18.2489 | F143: =VLOOKUP($B143,SDEIS_All!$A$5:$AB$204,3*($C$6-1)+2) -> 2.030158333 | G143: =VLOOKUP($B143,SDEIS_All!$A$5:$AB$204,3*($C$6-1)+3) -> 5.447225 | H143: =VLOOKUP($B143,SDEIS_All!$A$5:$AB$204,3*($C$6-1)+4) -> 19.248875 | J143: 59.83333333 | K143: =VLOOKUP($J143,P_All!$AD$5:$BE$245,3*($C$6-1)+2) -> 0.9324 | L143: =VLOOKUP($J143,P_All!$AD$5:$BE$245,3*($C$6-1)+3) -> 2.4604 | M143: =VLOOKUP($J143,P_All!$AD$5:$BE$245,3*($C$6-1)+4) -> 9.4331 | N143: =VLOOKUP($J143,SDEIS_All!$AD$5:$BE$245,3*($C$6-1)+2) -> 1.9324 | O143: =VLOOKUP($J143,SDEIS_All!$AD$5:$BE$245,3*($C$6-1)+3) -> 3.4604 | P143: =VLOOKUP($J143,SDEIS_All!$AD$5:$BE$245,3*($C$6-1)+4) -> 10.433
B144: 120 | C144: =VLOOKUP($B144,P_All!$A$5:$AB$204,3*($C$6-1)+2) -> 0.9911498333 | D144: =VLOOKUP($B144,P_All!$A$5:$AB$204,3*($C$6-1)+3) -> 4.450958333 | E144: =VLOOKUP($B144,P_All!$A$5:$AB$204,3*($C$6-1)+4) -> 18.17900833 | F144: =VLOOKUP($B144,SDEIS_All!$A$5:$AB$204,3*($C$6-1)+2) -> 1.99115 | G144: =VLOOKUP($B144,SDEIS_All!$A$5:$AB$204,3*($C$6-1)+3) -> 5.450966667 | H144: =VLOOKUP($B144,SDEIS_All!$A$5:$AB$204,3*($C$6-1)+4) -> 19.179025 | J144: 59.91666667 | K144: =VLOOKUP($J144,P_All!$AD$5:$BE$245,3*($C$6-1)+2) -> 0.40651 | L144: =VLOOKUP($J144,P_All!$AD$5:$BE$245,3*($C$6-1)+3) -> 0.8362 | M144: =VLOOKUP($J144,P_All!$AD$5:$BE$245,3*($C$6-1)+4) -> 1.8952 | N144: =VLOOKUP($J144,SDEIS_All!$AD$5:$BE$245,3*($C$6-1)+2) -> 1.4065 | O144: =VLOOKUP($J144,SDEIS_All!$AD$5:$BE$245,3*($C$6-1)+3) -> 1.8362 | P144: =VLOOKUP($J144,SDEIS_All!$AD$5:$BE$245,3*($C$6-1)+4) -> 2.8952
B145: 121 | C145: =VLOOKUP($B145,P_All!$A$5:$AB$204,3*($C$6-1)+2) -> 0.9592301667 | D145: =VLOOKUP($B145,P_All!$A$5:$AB$204,3*($C$6-1)+3) -> 4.2187575 | E145: =VLOOKUP($B145,P_All!$A$5:$AB$204,3*($C$6-1)+4) -> 18.42425833 | F145: =VLOOKUP($B145,SDEIS_All!$A$5:$AB$204,3*($C$6-1)+2) -> 1.959225 | G145: =VLOOKUP($B145,SDEIS_All!$A$5:$AB$204,3*($C$6-1)+3) -> 5.21875 | H145: =VLOOKUP($B145,SDEIS_All!$A$5:$AB$204,3*($C$6-1)+4) -> 19.42425833 | J145: 60 | K145: =VLOOKUP($J145,P_All!$AD$5:$BE$245,3*($C$6-1)+2) -> 0.13912 | L145: =VLOOKUP($J145,P_All!$AD$5:$BE$245,3*($C$6-1)+3) -> 0.5839 | M145: =VLOOKUP($J145,P_All!$AD$5:$BE$245,3*($C$6-1)+4) -> 1.0226 | N145: =VLOOKUP($J145,SDEIS_All!$AD$5:$BE$245,3*($C$6-1)+2) -> 1.1391 | O145: =VLOOKUP($J145,SDEIS_All!$AD$5:$BE$245,3*($C$6-1)+3) -> 1.5839 | P145: =VLOOKUP($J145,SDEIS_All!$AD$5:$BE$245,3*($C$6-1)+4) -> 2.0226
B146: 122 | C146: =VLOOKUP($B146,P_All!$A$5:$AB$204,3*($C$6-1)+2) -> 0.9780791667 | D146: =VLOOKUP($B146,P_All!$A$5:$AB$204,3*($C$6-1)+3) -> 4.261459167 | E146: =VLOOKUP($B146,P_All!$A$5:$AB$204,3*($C$6-1)+4) -> 18.49185833 | F146: =VLOOKUP($B146,SDEIS_All!$A$5:$AB$204,3*($C$6-1)+2) -> 1.978083333 | G146: =VLOOKUP($B146,SDEIS_All!$A$5:$AB$204,3*($C$6-1)+3) -> 5.26145 | H146: =VLOOKUP($B146,SDEIS_All!$A$5:$AB$204,3*($C$6-1)+4) -> 19.49185833 | J146: 60.08333333 | K146: =VLOOKUP($J146,P_All!$AD$5:$BE$245,3*($C$6-1)+2) -> 0.095203 | L146: =VLOOKUP($J146,P_All!$AD$5:$BE$245,3*($C$6-1)+3) -> 0.28086 | M146: =VLOOKUP($J146,P_All!$AD$5:$BE$245,3*($C$6-1)+4) -> 1.1793 | N146: =VLOOKUP($J146,SDEIS_All!$AD$5:$BE$245,3*($C$6-1)+2) -> 1.0952 | O146: =VLOOKUP($J146,SDEIS_All!$AD$5:$BE$245,3*($C$6-1)+3) -> 1.2809 | P146: =VLOOKUP($J146,SDEIS_All!$AD$5:$BE$245,3*($C$6-1)+4) -> 2.1793
B147: 123 | C147: =VLOOKUP($B147,P_All!$A$5:$AB$204,3*($C$6-1)+2) -> 1.011265667 | D147: =VLOOKUP($B147,P_All!$A$5:$AB$204,3*($C$6-1)+3) -> 4.4896925 | E147: =VLOOKUP($B147,P_All!$A$5:$AB$204,3*($C$6-1)+4) -> 18.32258333 | F147: =VLOOKUP($B147,SDEIS_All!$A$5:$AB$204,3*($C$6-1)+2) -> 2.011275 | G147: =VLOOKUP($B147,SDEIS_All!$A$5:$AB$204,3*($C$6-1)+3) -> 5.489691667 | H147: =VLOOKUP($B147,SDEIS_All!$A$5:$AB$204,3*($C$6-1)+4) -> 19.32258333 | J147: 60.16666667 | K147: =VLOOKUP($J147,P_All!$AD$5:$BE$245,3*($C$6-1)+2) -> 0.093888 | L147: =VLOOKUP($J147,P_All!$AD$5:$BE$245,3*($C$6-1)+3) -> 0.50564 | M147: =VLOOKUP($J147,P_All!$AD$5:$BE$245,3*($C$6-1)+4) -> 8.2763 | N147: =VLOOKUP($J147,SDEIS_All!$AD$5:$BE$245,3*($C$6-1)+2) -> 1.0939 | O147: =VLOOKUP($J147,SDEIS_All!$AD$5:$BE$245,3*($C$6-1)+3) -> 1.5056 | P147: =VLOOKUP($J147,SDEIS_All!$AD$5:$BE$245,3*($C$6-1)+4) -> 9.2763
B148: 124 | C148: =VLOOKUP($B148,P_All!$A$5:$AB$204,3*($C$6-1)+2) -> 0.9724619167 | D148: =VLOOKUP($B148,P_All!$A$5:$AB$204,3*($C$6-1)+3) -> 4.389195 | E148: =VLOOKUP($B148,P_All!$A$5:$AB$204,3*($C$6-1)+4) -> 17.427675 | F148: =VLOOKUP($B148,SDEIS_All!$A$5:$AB$204,3*($C$6-1)+2) -> 1.972466667 | G148: =VLOOKUP($B148,SDEIS_All!$A$5:$AB$204,3*($C$6-1)+3) -> 5.3892 | H148: =VLOOKUP($B148,SDEIS_All!$A$5:$AB$204,3*($C$6-1)+4) -> 18.427675 | J148: 60.25 | K148: =VLOOKUP($J148,P_All!$AD$5:$BE$245,3*($C$6-1)+2) -> 3.2913 | L148: =VLOOKUP($J148,P_All!$AD$5:$BE$245,3*($C$6-1)+3) -> 13.78 | M148: =VLOOKUP($J148,P_All!$AD$5:$BE$245,3*($C$6-1)+4) -> 37.553 | N148: =VLOOKUP($J148,SDEIS_All!$AD$5:$BE$245,3*($C$6-1)+2) -> 4.2913 | O148: =VLOOKUP($J148,SDEIS_All!$AD$5:$BE$245,3*($C$6-1)+3) -> 14.78 | P148: =VLOOKUP($J148,SDEIS_All!$AD$5:$BE$245,3*($C$6-1)+4) -> 38.553
B149: 125 | C149: =VLOOKUP($B149,P_All!$A$5:$AB$204,3*($C$6-1)+2) -> 1.008625167 | D149: =VLOOKUP($B149,P_All!$A$5:$AB$204,3*($C$6-1)+3) -> 4.409933333 | E149: =VLOOKUP($B149,P_All!$A$5:$AB$204,3*($C$6-1)+4) -> 18.3031 | F149: =VLOOKUP($B149,SDEIS_All!$A$5:$AB$204,3*($C$6-1)+2) -> 2.008625 | G149: =VLOOKUP($B149,SDEIS_All!$A$5:$AB$204,3*($C$6-1)+3) -> 5.409933333 | H149: =VLOOKUP($B149,SDEIS_All!$A$5:$AB$204,3*($C$6-1)+4) -> 19.30311667 | J149: 60.33333333 | K149: =VLOOKUP($J149,P_All!$AD$5:$BE$245,3*($C$6-1)+2) -> 2.7982 | L149: =VLOOKUP($J149,P_All!$AD$5:$BE$245,3*($C$6-1)+3) -> 11.008 | M149: =VLOOKUP($J149,P_All!$AD$5:$BE$245,3*($C$6-1)+4) -> 43.934 | N149: =VLOOKUP($J149,SDEIS_All!$AD$5:$BE$245,3*($C$6-1)+2) -> 3.7982 | O149: =VLOOKUP($J149,SDEIS_All!$AD$5:$BE$245,3*($C$6-1)+3) -> 12.008 | P149: =VLOOKUP($J149,SDEIS_All!$AD$5:$BE$245,3*($C$6-1)+4) -> 44.934
B150: 126 | C150: =VLOOKUP($B150,P_All!$A$5:$AB$204,3*($C$6-1)+2) -> 0.96823425 | D150: =VLOOKUP($B150,P_All!$A$5:$AB$204,3*($C$6-1)+3) -> 4.236125 | E150: =VLOOKUP($B150,P_All!$A$5:$AB$204,3*($C$6-1)+4) -> 17.76856667 | F150: =VLOOKUP($B150,SDEIS_All!$A$5:$AB$204,3*($C$6-1)+2) -> 1.968241667 | G150: =VLOOKUP($B150,SDEIS_All!$A$5:$AB$204,3*($C$6-1)+3) -> 5.236125 | H150: =VLOOKUP($B150,SDEIS_All!$A$5:$AB$204,3*($C$6-1)+4) -> 18.76856667 | J150: 60.41666667 | K150: =VLOOKUP($J150,P_All!$AD$5:$BE$245,3*($C$6-1)+2) -> 0.84075 | L150: =VLOOKUP($J150,P_All!$AD$5:$BE$245,3*($C$6-1)+3) -> 5.8366 | M150: =VLOOKUP($J150,P_All!$AD$5:$BE$245,3*($C$6-1)+4) -> 16.169 | N150: =VLOOKUP($J150,SDEIS_All!$AD$5:$BE$245,3*($C$6-1)+2) -> 1.8408 | O150: =VLOOKUP($J150,SDEIS_All!$AD$5:$BE$245,3*($C$6-1)+3) -> 6.8366 | P150: =VLOOKUP($J150,SDEIS_All!$AD$5:$BE$245,3*($C$6-1)+4) -> 17.169
B151: 127 | C151: =VLOOKUP($B151,P_All!$A$5:$AB$204,3*($C$6-1)+2) -> 0.9675996667 | D151: =VLOOKUP($B151,P_All!$A$5:$AB$204,3*($C$6-1)+3) -> 4.4858625 | E151: =VLOOKUP($B151,P_All!$A$5:$AB$204,3*($C$6-1)+4) -> 17.6794 | F151: =VLOOKUP($B151,SDEIS_All!$A$5:$AB$204,3*($C$6-1)+2) -> 1.9676 | G151: =VLOOKUP($B151,SDEIS_All!$A$5:$AB$204,3*($C$6-1)+3) -> 5.485858333 | H151: =VLOOKUP($B151,SDEIS_All!$A$5:$AB$204,3*($C$6-1)+4) -> 18.6794 | J151: 60.5 | K151: =VLOOKUP($J151,P_All!$AD$5:$BE$245,3*($C$6-1)+2) -> 0.2692 | L151: =VLOOKUP($J151,P_All!$AD$5:$BE$245,3*($C$6-1)+3) -> 3.2366 | M151: =VLOOKUP($J151,P_All!$AD$5:$BE$245,3*($C$6-1)+4) -> 39.315 | N151: =VLOOKUP($J151,SDEIS_All!$AD$5:$BE$245,3*($C$6-1)+2) -> 1.2692 | O151: =VLOOKUP($J151,SDEIS_All!$AD$5:$BE$245,3*($C$6-1)+3) -> 4.2366 | P151: =VLOOKUP($J151,SDEIS_All!$AD$5:$BE$245,3*($C$6-1)+4) -> 40.315
B152: 128 | C152: =VLOOKUP($B152,P_All!$A$5:$AB$204,3*($C$6-1)+2) -> 1.016386167 | D152: =VLOOKUP($B152,P_All!$A$5:$AB$204,3*($C$6-1)+3) -> 4.358678333 | E152: =VLOOKUP($B152,P_All!$A$5:$AB$204,3*($C$6-1)+4) -> 17.78105833 | F152: =VLOOKUP($B152,SDEIS_All!$A$5:$AB$204,3*($C$6-1)+2) -> 2.016383333 | G152: =VLOOKUP($B152,SDEIS_All!$A$5:$AB$204,3*($C$6-1)+3) -> 5.358683333 | H152: =VLOOKUP($B152,SDEIS_All!$A$5:$AB$204,3*($C$6-1)+4) -> 18.78105833 | J152: 60.58333333 | K152: =VLOOKUP($J152,P_All!$AD$5:$BE$245,3*($C$6-1)+2) -> 0.99844 | L152: =VLOOKUP($J152,P_All!$AD$5:$BE$245,3*($C$6-1)+3) -> 3.3464 | M152: =VLOOKUP($J152,P_All!$AD$5:$BE$245,3*($C$6-1)+4) -> 21.553 | N152: =VLOOKUP($J152,SDEIS_All!$AD$5:$BE$245,3*($C$6-1)+2) -> 1.9984 | O152: =VLOOKUP($J152,SDEIS_All!$AD$5:$BE$245,3*($C$6-1)+3) -> 4.3464 | P152: =VLOOKUP($J152,SDEIS_All!$AD$5:$BE$245,3*($C$6-1)+4) -> 22.553
B153: 129 | C153: =VLOOKUP($B153,P_All!$A$5:$AB$204,3*($C$6-1)+2) -> 0.9575365833 | D153: =VLOOKUP($B153,P_All!$A$5:$AB$204,3*($C$6-1)+3) -> 4.675110833 | E153: =VLOOKUP($B153,P_All!$A$5:$AB$204,3*($C$6-1)+4) -> 18.09771667 | F153: =VLOOKUP($B153,SDEIS_All!$A$5:$AB$204,3*($C$6-1)+2) -> 1.957533333 | G153: =VLOOKUP($B153,SDEIS_All!$A$5:$AB$204,3*($C$6-1)+3) -> 5.675116667 | H153: =VLOOKUP($B153,SDEIS_All!$A$5:$AB$204,3*($C$6-1)+4) -> 19.09768333 | J153: 60.66666667 | K153: =VLOOKUP($J153,P_All!$AD$5:$BE$245,3*($C$6-1)+2) -> 0.55436 | L153: =VLOOKUP($J153,P_All!$AD$5:$BE$245,3*($C$6-1)+3) -> 5.1383 | M153: =VLOOKUP($J153,P_All!$AD$5:$BE$245,3*($C$6-1)+4) -> 13.337 | N153: =VLOOKUP($J153,SDEIS_All!$AD$5:$BE$245,3*($C$6-1)+2) -> 1.5544 | O153: =VLOOKUP($J153,SDEIS_All!$AD$5:$BE$245,3*($C$6-1)+3) -> 6.1383 | P153: =VLOOKUP($J153,SDEIS_All!$AD$5:$BE$245,3*($C$6-1)+4) -> 14.337
B154: 130 | C154: =VLOOKUP($B154,P_All!$A$5:$AB$204,3*($C$6-1)+2) -> 0.9331369167 | D154: =VLOOKUP($B154,P_All!$A$5:$AB$204,3*($C$6-1)+3) -> 4.286060833 | E154: =VLOOKUP($B154,P_All!$A$5:$AB$204,3*($C$6-1)+4) -> 18.260975 | F154: =VLOOKUP($B154,SDEIS_All!$A$5:$AB$204,3*($C$6-1)+2) -> 1.93315 | G154: =VLOOKUP($B154,SDEIS_All!$A$5:$AB$204,3*($C$6-1)+3) -> 5.286058333 | H154: =VLOOKUP($B154,SDEIS_All!$A$5:$AB$204,3*($C$6-1)+4) -> 19.26095 | J154: 60.75 | K154: =VLOOKUP($J154,P_All!$AD$5:$BE$245,3*($C$6-1)+2) -> 1.3235 | L154: =VLOOKUP($J154,P_All!$AD$5:$BE$245,3*($C$6-1)+3) -> 4.9649 | M154: =VLOOKUP($J154,P_All!$AD$5:$BE$245,3*($C$6-1)+4) -> 20.341 | N154: =VLOOKUP($J154,SDEIS_All!$AD$5:$BE$245,3*($C$6-1)+2) -> 2.3235 | O154: =VLOOKUP($J154,SDEIS_All!$AD$5:$BE$245,3*($C$6-1)+3) -> 5.9649 | P154: =VLOOKUP($J154,SDEIS_All!$AD$5:$BE$245,3*($C$6-1)+4) -> 21.341
B155: 131 | C155: =VLOOKUP($B155,P_All!$A$5:$AB$204,3*($C$6-1)+2) -> 0.9649658333 | D155: =VLOOKUP($B155,P_All!$A$5:$AB$204,3*($C$6-1)+3) -> 4.344279167 | E155: =VLOOKUP($B155,P_All!$A$5:$AB$204,3*($C$6-1)+4) -> 18.490075 | F155: =VLOOKUP($B155,SDEIS_All!$A$5:$AB$204,3*($C$6-1)+2) -> 1.964966667 | G155: =VLOOKUP($B155,SDEIS_All!$A$5:$AB$204,3*($C$6-1)+3) -> 5.344266667 | H155: =VLOOKUP($B155,SDEIS_All!$A$5:$AB$204,3*($C$6-1)+4) -> 19.49008333 | J155: =J154+1/12 -> 60.83333333 | K155: =VLOOKUP($J155,P_All!$AD$5:$BE$245,3*($C$6-1)+2) -> 0.97359 | L155: =VLOOKUP($J155,P_All!$AD$5:$BE$245,3*($C$6-1)+3) -> 2.6007 | M155: =VLOOKUP($J155,P_All!$AD$5:$BE$245,3*($C$6-1)+4) -> 8.7083 | N155: =VLOOKUP($J155,SDEIS_All!$AD$5:$BE$245,3*($C$6-1)+2) -> 1.9736 | O155: =VLOOKUP($J155,SDEIS_All!$AD$5:$BE$245,3*($C$6-1)+3) -> 3.6007 | P155: =VLOOKUP($J155,SDEIS_All!$AD$5:$BE$245,3*($C$6-1)+4) -> 9.7083
B156: 132 | C156: =VLOOKUP($B156,P_All!$A$5:$AB$204,3*($C$6-1)+2) -> 0.9886999167 | D156: =VLOOKUP($B156,P_All!$A$5:$AB$204,3*($C$6-1)+3) -> 4.35273 | E156: =VLOOKUP($B156,P_All!$A$5:$AB$204,3*($C$6-1)+4) -> 18.56908333 | F156: =VLOOKUP($B156,SDEIS_All!$A$5:$AB$204,3*($C$6-1)+2) -> 1.988708333 | G156: =VLOOKUP($B156,SDEIS_All!$A$5:$AB$204,3*($C$6-1)+3) -> 5.352733333 | H156: =VLOOKUP($B156,SDEIS_All!$A$5:$AB$204,3*($C$6-1)+4) -> 19.56910833 | J156: 60.91666667 | K156: =VLOOKUP($J156,P_All!$AD$5:$BE$245,3*($C$6-1)+2) -> 0.41356 | L156: =VLOOKUP($J156,P_All!$AD$5:$BE$245,3*($C$6-1)+3) -> 0.8245 | M156: =VLOOKUP($J156,P_All!$AD$5:$BE$245,3*($C$6-1)+4) -> 1.9914 | N156: =VLOOKUP($J156,SDEIS_All!$AD$5:$BE$245,3*($C$6-1)+2) -> 1.4136 | O156: =VLOOKUP($J156,SDEIS_All!$AD$5:$BE$245,3*($C$6-1)+3) -> 1.8245 | P156: =VLOOKUP($J156,SDEIS_All!$AD$5:$BE$245,3*($C$6-1)+4) -> 2.9914
B157: 133 | C157: =VLOOKUP($B157,P_All!$A$5:$AB$204,3*($C$6-1)+2) -> 0.9752300833 | D157: =VLOOKUP($B157,P_All!$A$5:$AB$204,3*($C$6-1)+3) -> 4.3867075 | E157: =VLOOKUP($B157,P_All!$A$5:$AB$204,3*($C$6-1)+4) -> 18.31835833 | F157: =VLOOKUP($B157,SDEIS_All!$A$5:$AB$204,3*($C$6-1)+2) -> 1.975225 | G157: =VLOOKUP($B157,SDEIS_All!$A$5:$AB$204,3*($C$6-1)+3) -> 5.386708333 | H157: =VLOOKUP($B157,SDEIS_All!$A$5:$AB$204,3*($C$6-1)+4) -> 19.31835833 | J157: 61 | K157: =VLOOKUP($J157,P_All!$AD$5:$BE$245,3*($C$6-1)+2) -> 0.13906 | L157: =VLOOKUP($J157,P_All!$AD$5:$BE$245,3*($C$6-1)+3) -> 0.52492 | M157: =VLOOKUP($J157,P_All!$AD$5:$BE$245,3*($C$6-1)+4) -> 1.0439 | N157: =VLOOKUP($J157,SDEIS_All!$AD$5:$BE$245,3*($C$6-1)+2) -> 1.1391 | O157: =VLOOKUP($J157,SDEIS_All!$AD$5:$BE$245,3*($C$6-1)+3) -> 1.5249 | P157: =VLOOKUP($J157,SDEIS_All!$AD$5:$BE$245,3*($C$6-1)+4) -> 2.0439
B158: 134 | C158: =VLOOKUP($B158,P_All!$A$5:$AB$204,3*($C$6-1)+2) -> 0.9792079167 | D158: =VLOOKUP($B158,P_All!$A$5:$AB$204,3*($C$6-1)+3) -> 4.217181667 | E158: =VLOOKUP($B158,P_All!$A$5:$AB$204,3*($C$6-1)+4) -> 18.05374167 | F158: =VLOOKUP($B158,SDEIS_All!$A$5:$AB$204,3*($C$6-1)+2) -> 1.979208333 | G158: =VLOOKUP($B158,SDEIS_All!$A$5:$AB$204,3*($C$6-1)+3) -> 5.217175 | H158: =VLOOKUP($B158,SDEIS_All!$A$5:$AB$204,3*($C$6-1)+4) -> 19.05374167 | J158: 61.08333333 | K158: =VLOOKUP($J158,P_All!$AD$5:$BE$245,3*($C$6-1)+2) -> 0.091813 | L158: =VLOOKUP($J158,P_All!$AD$5:$BE$245,3*($C$6-1)+3) -> 0.15748 | M158: =VLOOKUP($J158,P_All!$AD$5:$BE$245,3*($C$6-1)+4) -> 1.0985 | N158: =VLOOKUP($J158,SDEIS_All!$AD$5:$BE$245,3*($C$6-1)+2) -> 1.0918 | O158: =VLOOKUP($J158,SDEIS_All!$AD$5:$BE$245,3*($C$6-1)+3) -> 1.1575 | P158: =VLOOKUP($J158,SDEIS_All!$AD$5:$BE$245,3*($C$6-1)+4) -> 2.0985
B159: 135 | C159: =VLOOKUP($B159,P_All!$A$5:$AB$204,3*($C$6-1)+2) -> 0.9388025833 | D159: =VLOOKUP($B159,P_All!$A$5:$AB$204,3*($C$6-1)+3) -> 4.368220833 | E159: =VLOOKUP($B159,P_All!$A$5:$AB$204,3*($C$6-1)+4) -> 17.479825 | F159: =VLOOKUP($B159,SDEIS_All!$A$5:$AB$204,3*($C$6-1)+2) -> 1.9388 | G159: =VLOOKUP($B159,SDEIS_All!$A$5:$AB$204,3*($C$6-1)+3) -> 5.368216667 | H159: =VLOOKUP($B159,SDEIS_All!$A$5:$AB$204,3*($C$6-1)+4) -> 18.47983333 | J159: 61.16666667 | K159: =VLOOKUP($J159,P_All!$AD$5:$BE$245,3*($C$6-1)+2) -> 0.094041 | L159: =VLOOKUP($J159,P_All!$AD$5:$BE$245,3*($C$6-1)+3) -> 0.56778 | M159: =VLOOKUP($J159,P_All!$AD$5:$BE$245,3*($C$6-1)+4) -> 9.2997 | N159: =VLOOKUP($J159,SDEIS_All!$AD$5:$BE$245,3*($C$6-1)+2) -> 1.094 | O159: =VLOOKUP($J159,SDEIS_All!$AD$5:$BE$245,3*($C$6-1)+3) -> 1.5678 | P159: =VLOOKUP($J159,SDEIS_All!$AD$5:$BE$245,3*($C$6-1)+4) -> 10.3
B160: 136 | C160: =VLOOKUP($B160,P_All!$A$5:$AB$204,3*($C$6-1)+2) -> 0.9417039167 | D160: =VLOOKUP($B160,P_All!$A$5:$AB$204,3*($C$6-1)+3) -> 4.360915 | E160: =VLOOKUP($B160,P_All!$A$5:$AB$204,3*($C$6-1)+4) -> 18.46650833 | F160: =VLOOKUP($B160,SDEIS_All!$A$5:$AB$204,3*($C$6-1)+2) -> 1.941708333 | G160: =VLOOKUP($B160,SDEIS_All!$A$5:$AB$204,3*($C$6-1)+3) -> 5.360916667 | H160: =VLOOKUP($B160,SDEIS_All!$A$5:$AB$204,3*($C$6-1)+4) -> 19.46650833 | J160: 61.25 | K160: =VLOOKUP($J160,P_All!$AD$5:$BE$245,3*($C$6-1)+2) -> 3.143 | L160: =VLOOKUP($J160,P_All!$AD$5:$BE$245,3*($C$6-1)+3) -> 11.505 | M160: =VLOOKUP($J160,P_All!$AD$5:$BE$245,3*($C$6-1)+4) -> 36.686 | N160: =VLOOKUP($J160,SDEIS_All!$AD$5:$BE$245,3*($C$6-1)+2) -> 4.143 | O160: =VLOOKUP($J160,SDEIS_All!$AD$5:$BE$245,3*($C$6-1)+3) -> 12.505 | P160: =VLOOKUP($J160,SDEIS_All!$AD$5:$BE$245,3*($C$6-1)+4) -> 37.686
B161: 137 | C161: =VLOOKUP($B161,P_All!$A$5:$AB$204,3*($C$6-1)+2) -> 0.9562105 | D161: =VLOOKUP($B161,P_All!$A$5:$AB$204,3*($C$6-1)+3) -> 4.274365 | E161: =VLOOKUP($B161,P_All!$A$5:$AB$204,3*($C$6-1)+4) -> 19.339575 | F161: =VLOOKUP($B161,SDEIS_All!$A$5:$AB$204,3*($C$6-1)+2) -> 1.956208333 | G161: =VLOOKUP($B161,SDEIS_All!$A$5:$AB$204,3*($C$6-1)+3) -> 5.274375 | H161: =VLOOKUP($B161,SDEIS_All!$A$5:$AB$204,3*($C$6-1)+4) -> 20.339575 | J161: 61.33333333 | K161: =VLOOKUP($J161,P_All!$AD$5:$BE$245,3*($C$6-1)+2) -> 3.0636 | L161: =VLOOKUP($J161,P_All!$AD$5:$BE$245,3*($C$6-1)+3) -> 12.499 | M161: =VLOOKUP($J161,P_All!$AD$5:$BE$245,3*($C$6-1)+4) -> 42.96 | N161: =VLOOKUP($J161,SDEIS_All!$AD$5:$BE$245,3*($C$6-1)+2) -> 4.0636 | O161: =VLOOKUP($J161,SDEIS_All!$AD$5:$BE$245,3*($C$6-1)+3) -> 13.499 | P161: =VLOOKUP($J161,SDEIS_All!$AD$5:$BE$245,3*($C$6-1)+4) -> 43.96
B162: 138 | C162: =VLOOKUP($B162,P_All!$A$5:$AB$204,3*($C$6-1)+2) -> 0.9806679167 | D162: =VLOOKUP($B162,P_All!$A$5:$AB$204,3*($C$6-1)+3) -> 4.511909167 | E162: =VLOOKUP($B162,P_All!$A$5:$AB$204,3*($C$6-1)+4) -> 17.35028333 | F162: =VLOOKUP($B162,SDEIS_All!$A$5:$AB$204,3*($C$6-1)+2) -> 1.980658333 | G162: =VLOOKUP($B162,SDEIS_All!$A$5:$AB$204,3*($C$6-1)+3) -> 5.511908333 | H162: =VLOOKUP($B162,SDEIS_All!$A$5:$AB$204,3*($C$6-1)+4) -> 18.35028333 | J162: 61.41666667 | K162: =VLOOKUP($J162,P_All!$AD$5:$BE$245,3*($C$6-1)+2) -> 0.99237 | L162: =VLOOKUP($J162,P_All!$AD$5:$BE$245,3*($C$6-1)+3) -> 6.1805 | M162: =VLOOKUP($J162,P_All!$AD$5:$BE$245,3*($C$6-1)+4) -> 16.872 | N162: =VLOOKUP($J162,SDEIS_All!$AD$5:$BE$245,3*($C$6-1)+2) -> 1.9924 | O162: =VLOOKUP($J162,SDEIS_All!$AD$5:$BE$245,3*($C$6-1)+3) -> 7.1805 | P162: =VLOOKUP($J162,SDEIS_All!$AD$5:$BE$245,3*($C$6-1)+4) -> 17.872
B163: 139 | C163: =VLOOKUP($B163,P_All!$A$5:$AB$204,3*($C$6-1)+2) -> 0.9844584167 | D163: =VLOOKUP($B163,P_All!$A$5:$AB$204,3*($C$6-1)+3) -> 4.550534167 | E163: =VLOOKUP($B163,P_All!$A$5:$AB$204,3*($C$6-1)+4) -> 18.99655833 | F163: =VLOOKUP($B163,SDEIS_All!$A$5:$AB$204,3*($C$6-1)+2) -> 1.98445 | G163: =VLOOKUP($B163,SDEIS_All!$A$5:$AB$204,3*($C$6-1)+3) -> 5.550533333 | H163: =VLOOKUP($B163,SDEIS_All!$A$5:$AB$204,3*($C$6-1)+4) -> 19.99655833 | J163: 61.5 | K163: =VLOOKUP($J163,P_All!$AD$5:$BE$245,3*($C$6-1)+2) -> 0.21758 | L163: =VLOOKUP($J163,P_All!$AD$5:$BE$245,3*($C$6-1)+3) -> 3.2934 | M163: =VLOOKUP($J163,P_All!$AD$5:$BE$245,3*($C$6-1)+4) -> 38.43 | N163: =VLOOKUP($J163,SDEIS_All!$AD$5:$BE$245,3*($C$6-1)+2) -> 1.2176 | O163: =VLOOKUP($J163,SDEIS_All!$AD$5:$BE$245,3*($C$6-1)+3) -> 4.2934 | P163: =VLOOKUP($J163,SDEIS_All!$AD$5:$BE$245,3*($C$6-1)+4) -> 39.43
B164: 140 | C164: =VLOOKUP($B164,P_All!$A$5:$AB$204,3*($C$6-1)+2) -> 0.9783643333 | D164: =VLOOKUP($B164,P_All!$A$5:$AB$204,3*($C$6-1)+3) -> 4.429524167 | E164: =VLOOKUP($B164,P_All!$A$5:$AB$204,3*($C$6-1)+4) -> 17.48199167 | F164: =VLOOKUP($B164,SDEIS_All!$A$5:$AB$204,3*($C$6-1)+2) -> 1.978358333 | G164: =VLOOKUP($B164,SDEIS_All!$A$5:$AB$204,3*($C$6-1)+3) -> 5.429525 | H164: =VLOOKUP($B164,SDEIS_All!$A$5:$AB$204,3*($C$6-1)+4) -> 18.48199167 | J164: 61.58333333 | K164: =VLOOKUP($J164,P_All!$AD$5:$BE$245,3*($C$6-1)+2) -> 1.0143 | L164: =VLOOKUP($J164,P_All!$AD$5:$BE$245,3*($C$6-1)+3) -> 3.9235 | M164: =VLOOKUP($J164,P_All!$AD$5:$BE$245,3*($C$6-1)+4) -> 26.111 | N164: =VLOOKUP($J164,SDEIS_All!$AD$5:$BE$245,3*($C$6-1)+2) -> 2.0143 | O164: =VLOOKUP($J164,SDEIS_All!$AD$5:$BE$245,3*($C$6-1)+3) -> 4.9235 | P164: =VLOOKUP($J164,SDEIS_All!$AD$5:$BE$245,3*($C$6-1)+4) -> 27.111
B165: 141 | C165: =VLOOKUP($B165,P_All!$A$5:$AB$204,3*($C$6-1)+2) -> 0.959584 | D165: =VLOOKUP($B165,P_All!$A$5:$AB$204,3*($C$6-1)+3) -> 4.358659167 | E165: =VLOOKUP($B165,P_All!$A$5:$AB$204,3*($C$6-1)+4) -> 18.549475 | F165: =VLOOKUP($B165,SDEIS_All!$A$5:$AB$204,3*($C$6-1)+2) -> 1.959591667 | G165: =VLOOKUP($B165,SDEIS_All!$A$5:$AB$204,3*($C$6-1)+3) -> 5.35865 | H165: =VLOOKUP($B165,SDEIS_All!$A$5:$AB$204,3*($C$6-1)+4) -> 19.54945833 | J165: 61.66666667 | K165: =VLOOKUP($J165,P_All!$AD$5:$BE$245,3*($C$6-1)+2) -> 0.55464 | L165: =VLOOKUP($J165,P_All!$AD$5:$BE$245,3*($C$6-1)+3) -> 4.7864 | M165: =VLOOKUP($J165,P_All!$AD$5:$BE$245,3*($C$6-1)+4) -> 13.914 | N165: =VLOOKUP($J165,SDEIS_All!$AD$5:$BE$245,3*($C$6-1)+2) -> 1.5546 | O165: =VLOOKUP($J165,SDEIS_All!$AD$5:$BE$245,3*($C$6-1)+3) -> 5.7864 | P165: =VLOOKUP($J165,SDEIS_All!$AD$5:$BE$245,3*($C$6-1)+4) -> 14.914
B166: 142 | C166: =VLOOKUP($B166,P_All!$A$5:$AB$204,3*($C$6-1)+2) -> 0.9622393333 | D166: =VLOOKUP($B166,P_All!$A$5:$AB$204,3*($C$6-1)+3) -> 4.246660833 | E166: =VLOOKUP($B166,P_All!$A$5:$AB$204,3*($C$6-1)+4) -> 17.74843333 | F166: =VLOOKUP($B166,SDEIS_All!$A$5:$AB$204,3*($C$6-1)+2) -> 1.962241667 | G166: =VLOOKUP($B166,SDEIS_All!$A$5:$AB$204,3*($C$6-1)+3) -> 5.246666667 | H166: =VLOOKUP($B166,SDEIS_All!$A$5:$AB$204,3*($C$6-1)+4) -> 18.748425 | J166: 61.75 | K166: =VLOOKUP($J166,P_All!$AD$5:$BE$245,3*($C$6-1)+2) -> 1.3224 | L166: =VLOOKUP($J166,P_All!$AD$5:$BE$245,3*($C$6-1)+3) -> 4.7046 | M166: =VLOOKUP($J166,P_All!$AD$5:$BE$245,3*($C$6-1)+4) -> 19.082 | N166: =VLOOKUP($J166,SDEIS_All!$AD$5:$BE$245,3*($C$6-1)+2) -> 2.3224 | O166: =VLOOKUP($J166,SDEIS_All!$AD$5:$BE$245,3*($C$6-1)+3) -> 5.7046 | P166: =VLOOKUP($J166,SDEIS_All!$AD$5:$BE$245,3*($C$6-1)+4) -> 20.082
B167: 143 | C167: =VLOOKUP($B167,P_All!$A$5:$AB$204,3*($C$6-1)+2) -> 0.9899483333 | D167: =VLOOKUP($B167,P_All!$A$5:$AB$204,3*($C$6-1)+3) -> 4.362620833 | E167: =VLOOKUP($B167,P_All!$A$5:$AB$204,3*($C$6-1)+4) -> 17.83825833 | F167: =VLOOKUP($B167,SDEIS_All!$A$5:$AB$204,3*($C$6-1)+2) -> 1.98995 | G167: =VLOOKUP($B167,SDEIS_All!$A$5:$AB$204,3*($C$6-1)+3) -> 5.362616667 | H167: =VLOOKUP($B167,SDEIS_All!$A$5:$AB$204,3*($C$6-1)+4) -> 18.838275 | J167: 61.83333333 | K167: =VLOOKUP($J167,P_All!$AD$5:$BE$245,3*($C$6-1)+2) -> 0.93965 | L167: =VLOOKUP($J167,P_All!$AD$5:$BE$245,3*($C$6-1)+3) -> 2.687 | M167: =VLOOKUP($J167,P_All!$AD$5:$BE$245,3*($C$6-1)+4) -> 8.184 | N167: =VLOOKUP($J167,SDEIS_All!$AD$5:$BE$245,3*($C$6-1)+2) -> 1.9396 | O167: =VLOOKUP($J167,SDEIS_All!$AD$5:$BE$245,3*($C$6-1)+3) -> 3.687 | P167: =VLOOKUP($J167,SDEIS_All!$AD$5:$BE$245,3*($C$6-1)+4) -> 9.184
B168: 144 | C168: =VLOOKUP($B168,P_All!$A$5:$AB$204,3*($C$6-1)+2) -> 0.9471729167 | D168: =VLOOKUP($B168,P_All!$A$5:$AB$204,3*($C$6-1)+3) -> 4.297683333 | E168: =VLOOKUP($B168,P_All!$A$5:$AB$204,3*($C$6-1)+4) -> 18.19083333 | F168: =VLOOKUP($B168,SDEIS_All!$A$5:$AB$204,3*($C$6-1)+2) -> 1.947183333 | G168: =VLOOKUP($B168,SDEIS_All!$A$5:$AB$204,3*($C$6-1)+3) -> 5.297683333 | H168: =VLOOKUP($B168,SDEIS_All!$A$5:$AB$204,3*($C$6-1)+4) -> 19.19083333 | J168: 61.91666667 | K168: =VLOOKUP($J168,P_All!$AD$5:$BE$245,3*($C$6-1)+2) -> 0.408 | L168: =VLOOKUP($J168,P_All!$AD$5:$BE$245,3*($C$6-1)+3) -> 0.80657 | M168: =VLOOKUP($J168,P_All!$AD$5:$BE$245,3*($C$6-1)+4) -> 1.7761 | N168: =VLOOKUP($J168,SDEIS_All!$AD$5:$BE$245,3*($C$6-1)+2) -> 1.408 | O168: =VLOOKUP($J168,SDEIS_All!$AD$5:$BE$245,3*($C$6-1)+3) -> 1.8066 | P168: =VLOOKUP($J168,SDEIS_All!$AD$5:$BE$245,3*($C$6-1)+4) -> 2.7761
B169: 145 | C169: =VLOOKUP($B169,P_All!$A$5:$AB$204,3*($C$6-1)+2) -> 1.01868925 | D169: =VLOOKUP($B169,P_All!$A$5:$AB$204,3*($C$6-1)+3) -> 4.723518333 | E169: =VLOOKUP($B169,P_All!$A$5:$AB$204,3*($C$6-1)+4) -> 18.882325 | F169: =VLOOKUP($B169,SDEIS_All!$A$5:$AB$204,3*($C$6-1)+2) -> 2.0187 | G169: =VLOOKUP($B169,SDEIS_All!$A$5:$AB$204,3*($C$6-1)+3) -> 5.723516667 | H169: =VLOOKUP($B169,SDEIS_All!$A$5:$AB$204,3*($C$6-1)+4) -> 19.882325 | J169: 62 | K169: =VLOOKUP($J169,P_All!$AD$5:$BE$245,3*($C$6-1)+2) -> 0.1387 | L169: =VLOOKUP($J169,P_All!$AD$5:$BE$245,3*($C$6-1)+3) -> 0.56165 | M169: =VLOOKUP($J169,P_All!$AD$5:$BE$245,3*($C$6-1)+4) -> 1.0584 | N169: =VLOOKUP($J169,SDEIS_All!$AD$5:$BE$245,3*($C$6-1)+2) -> 1.1387 | O169: =VLOOKUP($J169,SDEIS_All!$AD$5:$BE$245,3*($C$6-1)+3) -> 1.5616 | P169: =VLOOKUP($J169,SDEIS_All!$AD$5:$BE$245,3*($C$6-1)+4) -> 2.0584
B170: 146 | C170: =VLOOKUP($B170,P_All!$A$5:$AB$204,3*($C$6-1)+2) -> 1.046567417 | D170: =VLOOKUP($B170,P_All!$A$5:$AB$204,3*($C$6-1)+3) -> 4.255396667 | E170: =VLOOKUP($B170,P_All!$A$5:$AB$204,3*($C$6-1)+4) -> 17.44866667 | F170: =VLOOKUP($B170,SDEIS_All!$A$5:$AB$204,3*($C$6-1)+2) -> 2.046575 | G170: =VLOOKUP($B170,SDEIS_All!$A$5:$AB$204,3*($C$6-1)+3) -> 5.255391667 | H170: =VLOOKUP($B170,SDEIS_All!$A$5:$AB$204,3*($C$6-1)+4) -> 18.44868333 | J170: 62.08333333 | K170: =VLOOKUP($J170,P_All!$AD$5:$BE$245,3*($C$6-1)+2) -> 0.092926 | L170: =VLOOKUP($J170,P_All!$AD$5:$BE$245,3*($C$6-1)+3) -> 0.15612 | M170: =VLOOKUP($J170,P_All!$AD$5:$BE$245,3*($C$6-1)+4) -> 1.0268 | N170: =VLOOKUP($J170,SDEIS_All!$AD$5:$BE$245,3*($C$6-1)+2) -> 1.0929 | O170: =VLOOKUP($J170,SDEIS_All!$AD$5:$BE$245,3*($C$6-1)+3) -> 1.1561 | P170: =VLOOKUP($J170,SDEIS_All!$AD$5:$BE$245,3*($C$6-1)+4) -> 2.0268
B171: 147 | C171: =VLOOKUP($B171,P_All!$A$5:$AB$204,3*($C$6-1)+2) -> 0.9637293333 | D171: =VLOOKUP($B171,P_All!$A$5:$AB$204,3*($C$6-1)+3) -> 4.424286667 | E171: =VLOOKUP($B171,P_All!$A$5:$AB$204,3*($C$6-1)+4) -> 17.99994167 | F171: =VLOOKUP($B171,SDEIS_All!$A$5:$AB$204,3*($C$6-1)+2) -> 1.963741667 | G171: =VLOOKUP($B171,SDEIS_All!$A$5:$AB$204,3*($C$6-1)+3) -> 5.424283333 | H171: =VLOOKUP($B171,SDEIS_All!$A$5:$AB$204,3*($C$6-1)+4) -> 18.99994167 | J171: 62.16666667 | K171: =VLOOKUP($J171,P_All!$AD$5:$BE$245,3*($C$6-1)+2) -> 0.10318 | L171: =VLOOKUP($J171,P_All!$AD$5:$BE$245,3*($C$6-1)+3) -> 0.5899 | M171: =VLOOKUP($J171,P_All!$AD$5:$BE$245,3*($C$6-1)+4) -> 7.9515 | N171: =VLOOKUP($J171,SDEIS_All!$AD$5:$BE$245,3*($C$6-1)+2) -> 1.1032 | O171: =VLOOKUP($J171,SDEIS_All!$AD$5:$BE$245,3*($C$6-1)+3) -> 1.5899 | P171: =VLOOKUP($J171,SDEIS_All!$AD$5:$BE$245,3*($C$6-1)+4) -> 8.9515
B172: 148 | C172: =VLOOKUP($B172,P_All!$A$5:$AB$204,3*($C$6-1)+2) -> 1.011776167 | D172: =VLOOKUP($B172,P_All!$A$5:$AB$204,3*($C$6-1)+3) -> 4.267535 | E172: =VLOOKUP($B172,P_All!$A$5:$AB$204,3*($C$6-1)+4) -> 18.165325 | F172: =VLOOKUP($B172,SDEIS_All!$A$5:$AB$204,3*($C$6-1)+2) -> 2.011758333 | G172: =VLOOKUP($B172,SDEIS_All!$A$5:$AB$204,3*($C$6-1)+3) -> 5.267541667 | H172: =VLOOKUP($B172,SDEIS_All!$A$5:$AB$204,3*($C$6-1)+4) -> 19.165325 | J172: 62.25 | K172: =VLOOKUP($J172,P_All!$AD$5:$BE$245,3*($C$6-1)+2) -> 2.4765 | L172: =VLOOKUP($J172,P_All!$AD$5:$BE$245,3*($C$6-1)+3) -> 13.223 | M172: =VLOOKUP($J172,P_All!$AD$5:$BE$245,3*($C$6-1)+4) -> 36.434 | N172: =VLOOKUP($J172,SDEIS_All!$AD$5:$BE$245,3*($C$6-1)+2) -> 3.4765 | O172: =VLOOKUP($J172,SDEIS_All!$AD$5:$BE$245,3*($C$6-1)+3) -> 14.223 | P172: =VLOOKUP($J172,SDEIS_All!$AD$5:$BE$245,3*($C$6-1)+4) -> 37.434
B173: 149 | C173: =VLOOKUP($B173,P_All!$A$5:$AB$204,3*($C$6-1)+2) -> 0.9588715 | D173: =VLOOKUP($B173,P_All!$A$5:$AB$204,3*($C$6-1)+3) -> 4.261774167 | E173: =VLOOKUP($B173,P_All!$A$5:$AB$204,3*($C$6-1)+4) -> 17.76835 | F173: =VLOOKUP($B173,SDEIS_All!$A$5:$AB$204,3*($C$6-1)+2) -> 1.958866667 | G173: =VLOOKUP($B173,SDEIS_All!$A$5:$AB$204,3*($C$6-1)+3) -> 5.261766667 | H173: =VLOOKUP($B173,SDEIS_All!$A$5:$AB$204,3*($C$6-1)+4) -> 18.76835 | J173: 62.33333333 | K173: =VLOOKUP($J173,P_All!$AD$5:$BE$245,3*($C$6-1)+2) -> 3.2541 | L173: =VLOOKUP($J173,P_All!$AD$5:$BE$245,3*($C$6-1)+3) -> 12.472 | M173: =VLOOKUP($J173,P_All!$AD$5:$BE$245,3*($C$6-1)+4) -> 40.889 | N173: =VLOOKUP($J173,SDEIS_All!$AD$5:$BE$245,3*($C$6-1)+2) -> 4.2541 | O173: =VLOOKUP($J173,SDEIS_All!$AD$5:$BE$245,3*($C$6-1)+3) -> 13.472 | P173: =VLOOKUP($J173,SDEIS_All!$AD$5:$BE$245,3*($C$6-1)+4) -> 41.889
B174: 150 | C174: =VLOOKUP($B174,P_All!$A$5:$AB$204,3*($C$6-1)+2) -> 1.024417667 | D174: =VLOOKUP($B174,P_All!$A$5:$AB$204,3*($C$6-1)+3) -> 4.600723333 | E174: =VLOOKUP($B174,P_All!$A$5:$AB$204,3*($C$6-1)+4) -> 18.82923333 | F174: =VLOOKUP($B174,SDEIS_All!$A$5:$AB$204,3*($C$6-1)+2) -> 2.024416667 | G174: =VLOOKUP($B174,SDEIS_All!$A$5:$AB$204,3*($C$6-1)+3) -> 5.600725 | H174: =VLOOKUP($B174,SDEIS_All!$A$5:$AB$204,3*($C$6-1)+4) -> 19.82923333 | J174: 62.41666667 | K174: =VLOOKUP($J174,P_All!$AD$5:$BE$245,3*($C$6-1)+2) -> 0.88102 | L174: =VLOOKUP($J174,P_All!$AD$5:$BE$245,3*($C$6-1)+3) -> 6.5161 | M174: =VLOOKUP($J174,P_All!$AD$5:$BE$245,3*($C$6-1)+4) -> 17.398 | N174: =VLOOKUP($J174,SDEIS_All!$AD$5:$BE$245,3*($C$6-1)+2) -> 1.881 | O174: =VLOOKUP($J174,SDEIS_All!$AD$5:$BE$245,3*($C$6-1)+3) -> 7.5161 | P174: =VLOOKUP($J174,SDEIS_All!$AD$5:$BE$245,3*($C$6-1)+4) -> 18.398
B175: 151 | C175: =VLOOKUP($B175,P_All!$A$5:$AB$204,3*($C$6-1)+2) -> 0.9947304167 | D175: =VLOOKUP($B175,P_All!$A$5:$AB$204,3*($C$6-1)+3) -> 4.421558333 | E175: =VLOOKUP($B175,P_All!$A$5:$AB$204,3*($C$6-1)+4) -> 18.98728333 | F175: =VLOOKUP($B175,SDEIS_All!$A$5:$AB$204,3*($C$6-1)+2) -> 1.994733333 | G175: =VLOOKUP($B175,SDEIS_All!$A$5:$AB$204,3*($C$6-1)+3) -> 5.421558333 | H175: =VLOOKUP($B175,SDEIS_All!$A$5:$AB$204,3*($C$6-1)+4) -> 19.98728333 | J175: 62.5 | K175: =VLOOKUP($J175,P_All!$AD$5:$BE$245,3*($C$6-1)+2) -> 0.29823 | L175: =VLOOKUP($J175,P_All!$AD$5:$BE$245,3*($C$6-1)+3) -> 3.7361 | M175: =VLOOKUP($J175,P_All!$AD$5:$BE$245,3*($C$6-1)+4) -> 36.83 | N175: =VLOOKUP($J175,SDEIS_All!$AD$5:$BE$245,3*($C$6-1)+2) -> 1.2982 | O175: =VLOOKUP($J175,SDEIS_All!$AD$5:$BE$245,3*($C$6-1)+3) -> 4.7361 | P175: =VLOOKUP($J175,SDEIS_All!$AD$5:$BE$245,3*($C$6-1)+4) -> 37.83
B176: 152 | C176: =VLOOKUP($B176,P_All!$A$5:$AB$204,3*($C$6-1)+2) -> 1.018626583 | D176: =VLOOKUP($B176,P_All!$A$5:$AB$204,3*($C$6-1)+3) -> 4.667328333 | E176: =VLOOKUP($B176,P_All!$A$5:$AB$204,3*($C$6-1)+4) -> 18.4495 | F176: =VLOOKUP($B176,SDEIS_All!$A$5:$AB$204,3*($C$6-1)+2) -> 2.018616667 | G176: =VLOOKUP($B176,SDEIS_All!$A$5:$AB$204,3*($C$6-1)+3) -> 5.667325 | H176: =VLOOKUP($B176,SDEIS_All!$A$5:$AB$204,3*($C$6-1)+4) -> 19.44954167 | J176: 62.58333333 | K176: =VLOOKUP($J176,P_All!$AD$5:$BE$245,3*($C$6-1)+2) -> 0.98983 | L176: =VLOOKUP($J176,P_All!$AD$5:$BE$245,3*($C$6-1)+3) -> 2.9171 | M176: =VLOOKUP($J176,P_All!$AD$5:$BE$245,3*($C$6-1)+4) -> 22.846 | N176: =VLOOKUP($J176,SDEIS_All!$AD$5:$BE$245,3*($C$6-1)+2) -> 1.9898 | O176: =VLOOKUP($J176,SDEIS_All!$AD$5:$BE$245,3*($C$6-1)+3) -> 3.9171 | P176: =VLOOKUP($J176,SDEIS_All!$AD$5:$BE$245,3*($C$6-1)+4) -> 23.846
B177: 153 | C177: =VLOOKUP($B177,P_All!$A$5:$AB$204,3*($C$6-1)+2) -> 0.9823605833 | D177: =VLOOKUP($B177,P_All!$A$5:$AB$204,3*($C$6-1)+3) -> 4.55869 | E177: =VLOOKUP($B177,P_All!$A$5:$AB$204,3*($C$6-1)+4) -> 18.47976667 | F177: =VLOOKUP($B177,SDEIS_All!$A$5:$AB$204,3*($C$6-1)+2) -> 1.982366667 | G177: =VLOOKUP($B177,SDEIS_All!$A$5:$AB$204,3*($C$6-1)+3) -> 5.558683333 | H177: =VLOOKUP($B177,SDEIS_All!$A$5:$AB$204,3*($C$6-1)+4) -> 19.479775 | J177: 62.66666667 | K177: =VLOOKUP($J177,P_All!$AD$5:$BE$245,3*($C$6-1)+2) -> 0.5626 | L177: =VLOOKUP($J177,P_All!$AD$5:$BE$245,3*($C$6-1)+3) -> 5.1381 | M177: =VLOOKUP($J177,P_All!$AD$5:$BE$245,3*($C$6-1)+4) -> 14.807 | N177: =VLOOKUP($J177,SDEIS_All!$AD$5:$BE$245,3*($C$6-1)+2) -> 1.5626 | O177: =VLOOKUP($J177,SDEIS_All!$AD$5:$BE$245,3*($C$6-1)+3) -> 6.1381 | P177: =VLOOKUP($J177,SDEIS_All!$AD$5:$BE$245,3*($C$6-1)+4) -> 15.807
B178: 154 | C178: =VLOOKUP($B178,P_All!$A$5:$AB$204,3*($C$6-1)+2) -> 0.9469248333 | D178: =VLOOKUP($B178,P_All!$A$5:$AB$204,3*($C$6-1)+3) -> 4.260966667 | E178: =VLOOKUP($B178,P_All!$A$5:$AB$204,3*($C$6-1)+4) -> 18.29138333 | F178: =VLOOKUP($B178,SDEIS_All!$A$5:$AB$204,3*($C$6-1)+2) -> 1.946908333 | G178: =VLOOKUP($B178,SDEIS_All!$A$5:$AB$204,3*($C$6-1)+3) -> 5.260966667 | H178: =VLOOKUP($B178,SDEIS_All!$A$5:$AB$204,3*($C$6-1)+4) -> 19.29134167 | J178: 62.75 | K178: =VLOOKUP($J178,P_All!$AD$5:$BE$245,3*($C$6-1)+2) -> 1.3228 | L178: =VLOOKUP($J178,P_All!$AD$5:$BE$245,3*($C$6-1)+3) -> 4.5786 | M178: =VLOOKUP($J178,P_All!$AD$5:$BE$245,3*($C$6-1)+4) -> 20.436 | N178: =VLOOKUP($J178,SDEIS_All!$AD$5:$BE$245,3*($C$6-1)+2) -> 2.3228 | O178: =VLOOKUP($J178,SDEIS_All!$AD$5:$BE$245,3*($C$6-1)+3) -> 5.5786 | P178: =VLOOKUP($J178,SDEIS_All!$AD$5:$BE$245,3*($C$6-1)+4) -> 21.436
B179: 155 | C179: =VLOOKUP($B179,P_All!$A$5:$AB$204,3*($C$6-1)+2) -> 0.9918823333 | D179: =VLOOKUP($B179,P_All!$A$5:$AB$204,3*($C$6-1)+3) -> 4.330268333 | E179: =VLOOKUP($B179,P_All!$A$5:$AB$204,3*($C$6-1)+4) -> 17.59653333 | F179: =VLOOKUP($B179,SDEIS_All!$A$5:$AB$204,3*($C$6-1)+2) -> 1.991866667 | G179: =VLOOKUP($B179,SDEIS_All!$A$5:$AB$204,3*($C$6-1)+3) -> 5.330266667 | H179: =VLOOKUP($B179,SDEIS_All!$A$5:$AB$204,3*($C$6-1)+4) -> 18.59655833 | J179: 62.83333333 | K179: =VLOOKUP($J179,P_All!$AD$5:$BE$245,3*($C$6-1)+2) -> 0.94079 | L179: =VLOOKUP($J179,P_All!$AD$5:$BE$245,3*($C$6-1)+3) -> 2.5603 | M179: =VLOOKUP($J179,P_All!$AD$5:$BE$245,3*($C$6-1)+4) -> 8.8181 | N179: =VLOOKUP($J179,SDEIS_All!$AD$5:$BE$245,3*($C$6-1)+2) -> 1.9408 | O179: =VLOOKUP($J179,SDEIS_All!$AD$5:$BE$245,3*($C$6-1)+3) -> 3.5603 | P179: =VLOOKUP($J179,SDEIS_All!$AD$5:$BE$245,3*($C$6-1)+4) -> 9.8181
B180: 156 | C180: =VLOOKUP($B180,P_All!$A$5:$AB$204,3*($C$6-1)+2) -> 1.00610675 | D180: =VLOOKUP($B180,P_All!$A$5:$AB$204,3*($C$6-1)+3) -> 4.526699167 | E180: =VLOOKUP($B180,P_All!$A$5:$AB$204,3*($C$6-1)+4) -> 18.04613333 | F180: =VLOOKUP($B180,SDEIS_All!$A$5:$AB$204,3*($C$6-1)+2) -> 2.006116667 | G180: =VLOOKUP($B180,SDEIS_All!$A$5:$AB$204,3*($C$6-1)+3) -> 5.5267 | H180: =VLOOKUP($B180,SDEIS_All!$A$5:$AB$204,3*($C$6-1)+4) -> 19.04613333 | J180: 62.91666667 | K180: =VLOOKUP($J180,P_All!$AD$5:$BE$245,3*($C$6-1)+2) -> 0.41232 | L180: =VLOOKUP($J180,P_All!$AD$5:$BE$245,3*($C$6-1)+3) -> 0.84066 | M180: =VLOOKUP($J180,P_All!$AD$5:$BE$245,3*($C$6-1)+4) -> 2.0729 | N180: =VLOOKUP($J180,SDEIS_All!$AD$5:$BE$245,3*($C$6-1)+2) -> 1.4123 | O180: =VLOOKUP($J180,SDEIS_All!$AD$5:$BE$245,3*($C$6-1)+3) -> 1.8407 | P180: =VLOOKUP($J180,SDEIS_All!$AD$5:$BE$245,3*($C$6-1)+4) -> 3.0729
B181: 157 | C181: =VLOOKUP($B181,P_All!$A$5:$AB$204,3*($C$6-1)+2) -> 0.9966655833 | D181: =VLOOKUP($B181,P_All!$A$5:$AB$204,3*($C$6-1)+3) -> 4.601380833 | E181: =VLOOKUP($B181,P_All!$A$5:$AB$204,3*($C$6-1)+4) -> 18.46739167 | F181: =VLOOKUP($B181,SDEIS_All!$A$5:$AB$204,3*($C$6-1)+2) -> 1.996658333 | G181: =VLOOKUP($B181,SDEIS_All!$A$5:$AB$204,3*($C$6-1)+3) -> 5.601383333 | H181: =VLOOKUP($B181,SDEIS_All!$A$5:$AB$204,3*($C$6-1)+4) -> 19.46739167 | J181: 63 | K181: =VLOOKUP($J181,P_All!$AD$5:$BE$245,3*($C$6-1)+2) -> 0.13838 | L181: =VLOOKUP($J181,P_All!$AD$5:$BE$245,3*($C$6-1)+3) -> 0.55454 | M181: =VLOOKUP($J181,P_All!$AD$5:$BE$245,3*($C$6-1)+4) -> 1.072 | N181: =VLOOKUP($J181,SDEIS_All!$AD$5:$BE$245,3*($C$6-1)+2) -> 1.1384 | O181: =VLOOKUP($J181,SDEIS_All!$AD$5:$BE$245,3*($C$6-1)+3) -> 1.5545 | P181: =VLOOKUP($J181,SDEIS_All!$AD$5:$BE$245,3*($C$6-1)+4) -> 2.072
B182: 158 | C182: =VLOOKUP($B182,P_All!$A$5:$AB$204,3*($C$6-1)+2) -> 0.9573914167 | D182: =VLOOKUP($B182,P_All!$A$5:$AB$204,3*($C$6-1)+3) -> 4.424700833 | E182: =VLOOKUP($B182,P_All!$A$5:$AB$204,3*($C$6-1)+4) -> 18.600875 | F182: =VLOOKUP($B182,SDEIS_All!$A$5:$AB$204,3*($C$6-1)+2) -> 1.9574 | G182: =VLOOKUP($B182,SDEIS_All!$A$5:$AB$204,3*($C$6-1)+3) -> 5.4247 | H182: =VLOOKUP($B182,SDEIS_All!$A$5:$AB$204,3*($C$6-1)+4) -> 19.600875 | J182: 63.08333333 | K182: =VLOOKUP($J182,P_All!$AD$5:$BE$245,3*($C$6-1)+2) -> 0.090358 | L182: =VLOOKUP($J182,P_All!$AD$5:$BE$245,3*($C$6-1)+3) -> 0.15754 | M182: =VLOOKUP($J182,P_All!$AD$5:$BE$245,3*($C$6-1)+4) -> 1.0932 | N182: =VLOOKUP($J182,SDEIS_All!$AD$5:$BE$245,3*($C$6-1)+2) -> 1.0904 | O182: =VLOOKUP($J182,SDEIS_All!$AD$5:$BE$245,3*($C$6-1)+3) -> 1.1575 | P182: =VLOOKUP($J182,SDEIS_All!$AD$5:$BE$245,3*($C$6-1)+4) -> 2.0932
B183: 159 | C183: =VLOOKUP($B183,P_All!$A$5:$AB$204,3*($C$6-1)+2) -> 0.9652086667 | D183: =VLOOKUP($B183,P_All!$A$5:$AB$204,3*($C$6-1)+3) -> 4.467476667 | E183: =VLOOKUP($B183,P_All!$A$5:$AB$204,3*($C$6-1)+4) -> 17.970275 | F183: =VLOOKUP($B183,SDEIS_All!$A$5:$AB$204,3*($C$6-1)+2) -> 1.9652 | G183: =VLOOKUP($B183,SDEIS_All!$A$5:$AB$204,3*($C$6-1)+3) -> 5.467475 | H183: =VLOOKUP($B183,SDEIS_All!$A$5:$AB$204,3*($C$6-1)+4) -> 18.97030833 | J183: 63.16666667 | K183: =VLOOKUP($J183,P_All!$AD$5:$BE$245,3*($C$6-1)+2) -> 0.085383 | L183: =VLOOKUP($J183,P_All!$AD$5:$BE$245,3*($C$6-1)+3) -> 0.55508 | M183: =VLOOKUP($J183,P_All!$AD$5:$BE$245,3*($C$6-1)+4) -> 8.7404 | N183: =VLOOKUP($J183,SDEIS_All!$AD$5:$BE$245,3*($C$6-1)+2) -> 1.0854 | O183: =VLOOKUP($J183,SDEIS_All!$AD$5:$BE$245,3*($C$6-1)+3) -> 1.5551 | P183: =VLOOKUP($J183,SDEIS_All!$AD$5:$BE$245,3*($C$6-1)+4) -> 9.7404
B184: 160 | C184: =VLOOKUP($B184,P_All!$A$5:$AB$204,3*($C$6-1)+2) -> 0.966712 | D184: =VLOOKUP($B184,P_All!$A$5:$AB$204,3*($C$6-1)+3) -> 4.465195833 | E184: =VLOOKUP($B184,P_All!$A$5:$AB$204,3*($C$6-1)+4) -> 18.289625 | F184: =VLOOKUP($B184,SDEIS_All!$A$5:$AB$204,3*($C$6-1)+2) -> 1.966708333 | G184: =VLOOKUP($B184,SDEIS_All!$A$5:$AB$204,3*($C$6-1)+3) -> 5.465191667 | H184: =VLOOKUP($B184,SDEIS_All!$A$5:$AB$204,3*($C$6-1)+4) -> 19.289625 | J184: 63.25 | K184: =VLOOKUP($J184,P_All!$AD$5:$BE$245,3*($C$6-1)+2) -> 3.2332 | L184: =VLOOKUP($J184,P_All!$AD$5:$BE$245,3*($C$6-1)+3) -> 13.323 | M184: =VLOOKUP($J184,P_All!$AD$5:$BE$245,3*($C$6-1)+4) -> 37.708 | N184: =VLOOKUP($J184,SDEIS_All!$AD$5:$BE$245,3*($C$6-1)+2) -> 4.2332 | O184: =VLOOKUP($J184,SDEIS_All!$AD$5:$BE$245,3*($C$6-1)+3) -> 14.323 | P184: =VLOOKUP($J184,SDEIS_All!$AD$5:$BE$245,3*($C$6-1)+4) -> 38.708
B185: 161 | C185: =VLOOKUP($B185,P_All!$A$5:$AB$204,3*($C$6-1)+2) -> 0.9256196667 | D185: =VLOOKUP($B185,P_All!$A$5:$AB$204,3*($C$6-1)+3) -> 4.447785833 | E185: =VLOOKUP($B185,P_All!$A$5:$AB$204,3*($C$6-1)+4) -> 17.823975 | F185: =VLOOKUP($B185,SDEIS_All!$A$5:$AB$204,3*($C$6-1)+2) -> 1.925625 | G185: =VLOOKUP($B185,SDEIS_All!$A$5:$AB$204,3*($C$6-1)+3) -> 5.447791667 | H185: =VLOOKUP($B185,SDEIS_All!$A$5:$AB$204,3*($C$6-1)+4) -> 18.82399167 | J185: 63.33333333 | K185: =VLOOKUP($J185,P_All!$AD$5:$BE$245,3*($C$6-1)+2) -> 2.9316 | L185: =VLOOKUP($J185,P_All!$AD$5:$BE$245,3*($C$6-1)+3) -> 12.791 | M185: =VLOOKUP($J185,P_All!$AD$5:$BE$245,3*($C$6-1)+4) -> 40.917 | N185: =VLOOKUP($J185,SDEIS_All!$AD$5:$BE$245,3*($C$6-1)+2) -> 3.9316 | O185: =VLOOKUP($J185,SDEIS_All!$AD$5:$BE$245,3*($C$6-1)+3) -> 13.791 | P185: =VLOOKUP($J185,SDEIS_All!$AD$5:$BE$245,3*($C$6-1)+4) -> 41.917
B186: 162 | C186: =VLOOKUP($B186,P_All!$A$5:$AB$204,3*($C$6-1)+2) -> 0.9527770833 | D186: =VLOOKUP($B186,P_All!$A$5:$AB$204,3*($C$6-1)+3) -> 4.523081667 | E186: =VLOOKUP($B186,P_All!$A$5:$AB$204,3*($C$6-1)+4) -> 18.21616667 | F186: =VLOOKUP($B186,SDEIS_All!$A$5:$AB$204,3*($C$6-1)+2) -> 1.952783333 | G186: =VLOOKUP($B186,SDEIS_All!$A$5:$AB$204,3*($C$6-1)+3) -> 5.523075 | H186: =VLOOKUP($B186,SDEIS_All!$A$5:$AB$204,3*($C$6-1)+4) -> 19.21616667 | J186: 63.41666667 | K186: =VLOOKUP($J186,P_All!$AD$5:$BE$245,3*($C$6-1)+2) -> 1.1147 | L186: =VLOOKUP($J186,P_All!$AD$5:$BE$245,3*($C$6-1)+3) -> 6.6824 | M186: =VLOOKUP($J186,P_All!$AD$5:$BE$245,3*($C$6-1)+4) -> 16.805 | N186: =VLOOKUP($J186,SDEIS_All!$AD$5:$BE$245,3*($C$6-1)+2) -> 2.1147 | O186: =VLOOKUP($J186,SDEIS_All!$AD$5:$BE$245,3*($C$6-1)+3) -> 7.6824 | P186: =VLOOKUP($J186,SDEIS_All!$AD$5:$BE$245,3*($C$6-1)+4) -> 17.805
B187: 163 | C187: =VLOOKUP($B187,P_All!$A$5:$AB$204,3*($C$6-1)+2) -> 0.9497176667 | D187: =VLOOKUP($B187,P_All!$A$5:$AB$204,3*($C$6-1)+3) -> 4.295306667 | E187: =VLOOKUP($B187,P_All!$A$5:$AB$204,3*($C$6-1)+4) -> 17.92595 | F187: =VLOOKUP($B187,SDEIS_All!$A$5:$AB$204,3*($C$6-1)+2) -> 1.949716667 | G187: =VLOOKUP($B187,SDEIS_All!$A$5:$AB$204,3*($C$6-1)+3) -> 5.2953 | H187: =VLOOKUP($B187,SDEIS_All!$A$5:$AB$204,3*($C$6-1)+4) -> 18.92595 | J187: 63.5 | K187: =VLOOKUP($J187,P_All!$AD$5:$BE$245,3*($C$6-1)+2) -> 0.2778 | L187: =VLOOKUP($J187,P_All!$AD$5:$BE$245,3*($C$6-1)+3) -> 3.0747 | M187: =VLOOKUP($J187,P_All!$AD$5:$BE$245,3*($C$6-1)+4) -> 38.962 | N187: =VLOOKUP($J187,SDEIS_All!$AD$5:$BE$245,3*($C$6-1)+2) -> 1.2778 | O187: =VLOOKUP($J187,SDEIS_All!$AD$5:$BE$245,3*($C$6-1)+3) -> 4.0747 | P187: =VLOOKUP($J187,SDEIS_All!$AD$5:$BE$245,3*($C$6-1)+4) -> 39.962
B188: 164 | C188: =VLOOKUP($B188,P_All!$A$5:$AB$204,3*($C$6-1)+2) -> 0.9761331667 | D188: =VLOOKUP($B188,P_All!$A$5:$AB$204,3*($C$6-1)+3) -> 4.350851667 | E188: =VLOOKUP($B188,P_All!$A$5:$AB$204,3*($C$6-1)+4) -> 19.04164167 | F188: =VLOOKUP($B188,SDEIS_All!$A$5:$AB$204,3*($C$6-1)+2) -> 1.976133333 | G188: =VLOOKUP($B188,SDEIS_All!$A$5:$AB$204,3*($C$6-1)+3) -> 5.350858333 | H188: =VLOOKUP($B188,SDEIS_All!$A$5:$AB$204,3*($C$6-1)+4) -> 20.041675 | J188: 63.58333333 | K188: =VLOOKUP($J188,P_All!$AD$5:$BE$245,3*($C$6-1)+2) -> 0.84475 | L188: =VLOOKUP($J188,P_All!$AD$5:$BE$245,3*($C$6-1)+3) -> 3.8255 | M188: =VLOOKUP($J188,P_All!$AD$5:$BE$245,3*($C$6-1)+4) -> 23.457 | N188: =VLOOKUP($J188,SDEIS_All!$AD$5:$BE$245,3*($C$6-1)+2) -> 1.8447 | O188: =VLOOKUP($J188,SDEIS_All!$AD$5:$BE$245,3*($C$6-1)+3) -> 4.8255 | P188: =VLOOKUP($J188,SDEIS_All!$AD$5:$BE$245,3*($C$6-1)+4) -> 24.457
B189: 165 | C189: =VLOOKUP($B189,P_All!$A$5:$AB$204,3*($C$6-1)+2) -> 0.9009539167 | D189: =VLOOKUP($B189,P_All!$A$5:$AB$204,3*($C$6-1)+3) -> 4.122819167 | E189: =VLOOKUP($B189,P_All!$A$5:$AB$204,3*($C$6-1)+4) -> 18.39695 | F189: =VLOOKUP($B189,SDEIS_All!$A$5:$AB$204,3*($C$6-1)+2) -> 1.900958333 | G189: =VLOOKUP($B189,SDEIS_All!$A$5:$AB$204,3*($C$6-1)+3) -> 5.122816667 | H189: =VLOOKUP($B189,SDEIS_All!$A$5:$AB$204,3*($C$6-1)+4) -> 19.396975 | J189: 63.66666667 | K189: =VLOOKUP($J189,P_All!$AD$5:$BE$245,3*($C$6-1)+2) -> 0.64693 | L189: =VLOOKUP($J189,P_All!$AD$5:$BE$245,3*($C$6-1)+3) -> 4.7495 | M189: =VLOOKUP($J189,P_All!$AD$5:$BE$245,3*($C$6-1)+4) -> 13.722 | N189: =VLOOKUP($J189,SDEIS_All!$AD$5:$BE$245,3*($C$6-1)+2) -> 1.6469 | O189: =VLOOKUP($J189,SDEIS_All!$AD$5:$BE$245,3*($C$6-1)+3) -> 5.7495 | P189: =VLOOKUP($J189,SDEIS_All!$AD$5:$BE$245,3*($C$6-1)+4) -> 14.722
B190: 166 | C190: =VLOOKUP($B190,P_All!$A$5:$AB$204,3*($C$6-1)+2) -> 1.032688583 | D190: =VLOOKUP($B190,P_All!$A$5:$AB$204,3*($C$6-1)+3) -> 4.6076025 | E190: =VLOOKUP($B190,P_All!$A$5:$AB$204,3*($C$6-1)+4) -> 18.13073333 | F190: =VLOOKUP($B190,SDEIS_All!$A$5:$AB$204,3*($C$6-1)+2) -> 2.032691667 | G190: =VLOOKUP($B190,SDEIS_All!$A$5:$AB$204,3*($C$6-1)+3) -> 5.6076 | H190: =VLOOKUP($B190,SDEIS_All!$A$5:$AB$204,3*($C$6-1)+4) -> 19.13073333 | J190: 63.75 | K190: =VLOOKUP($J190,P_All!$AD$5:$BE$245,3*($C$6-1)+2) -> 1.3784 | L190: =VLOOKUP($J190,P_All!$AD$5:$BE$245,3*($C$6-1)+3) -> 4.6234 | M190: =VLOOKUP($J190,P_All!$AD$5:$BE$245,3*($C$6-1)+4) -> 21.045 | N190: =VLOOKUP($J190,SDEIS_All!$AD$5:$BE$245,3*($C$6-1)+2) -> 2.3784 | O190: =VLOOKUP($J190,SDEIS_All!$AD$5:$BE$245,3*($C$6-1)+3) -> 5.6234 | P190: =VLOOKUP($J190,SDEIS_All!$AD$5:$BE$245,3*($C$6-1)+4) -> 22.045
B191: 167 | C191: =VLOOKUP($B191,P_All!$A$5:$AB$204,3*($C$6-1)+2) -> 0.9383999167 | D191: =VLOOKUP($B191,P_All!$A$5:$AB$204,3*($C$6-1)+3) -> 4.233275 | E191: =VLOOKUP($B191,P_All!$A$5:$AB$204,3*($C$6-1)+4) -> 18.08646667 | F191: =VLOOKUP($B191,SDEIS_All!$A$5:$AB$204,3*($C$6-1)+2) -> 1.9384 | G191: =VLOOKUP($B191,SDEIS_All!$A$5:$AB$204,3*($C$6-1)+3) -> 5.233275 | H191: =VLOOKUP($B191,SDEIS_All!$A$5:$AB$204,3*($C$6-1)+4) -> 19.08646667 | J191: 63.83333333 | K191: =VLOOKUP($J191,P_All!$AD$5:$BE$245,3*($C$6-1)+2) -> 0.9324 | L191: =VLOOKUP($J191,P_All!$AD$5:$BE$245,3*($C$6-1)+3) -> 2.4799 | M191: =VLOOKUP($J191,P_All!$AD$5:$BE$245,3*($C$6-1)+4) -> 9.4225 | N191: =VLOOKUP($J191,SDEIS_All!$AD$5:$BE$245,3*($C$6-1)+2) -> 1.9324 | O191: =VLOOKUP($J191,SDEIS_All!$AD$5:$BE$245,3*($C$6-1)+3) -> 3.4799 | P191: =VLOOKUP($J191,SDEIS_All!$AD$5:$BE$245,3*($C$6-1)+4) -> 10.422
B192: 168 | C192: =VLOOKUP($B192,P_All!$A$5:$AB$204,3*($C$6-1)+2) -> 0.9759120833 | D192: =VLOOKUP($B192,P_All!$A$5:$AB$204,3*($C$6-1)+3) -> 4.61229 | E192: =VLOOKUP($B192,P_All!$A$5:$AB$204,3*($C$6-1)+4) -> 18.259675 | F192: =VLOOKUP($B192,SDEIS_All!$A$5:$AB$204,3*($C$6-1)+2) -> 1.975916667 | G192: =VLOOKUP($B192,SDEIS_All!$A$5:$AB$204,3*($C$6-1)+3) -> 5.612291667 | H192: =VLOOKUP($B192,SDEIS_All!$A$5:$AB$204,3*($C$6-1)+4) -> 19.25965833 | J192: 63.91666667 | K192: =VLOOKUP($J192,P_All!$AD$5:$BE$245,3*($C$6-1)+2) -> 0.39898 | L192: =VLOOKUP($J192,P_All!$AD$5:$BE$245,3*($C$6-1)+3) -> 0.87695 | M192: =VLOOKUP($J192,P_All!$AD$5:$BE$245,3*($C$6-1)+4) -> 2.0881 | N192: =VLOOKUP($J192,SDEIS_All!$AD$5:$BE$245,3*($C$6-1)+2) -> 1.399 | O192: =VLOOKUP($J192,SDEIS_All!$AD$5:$BE$245,3*($C$6-1)+3) -> 1.877 | P192: =VLOOKUP($J192,SDEIS_All!$AD$5:$BE$245,3*($C$6-1)+4) -> 3.0881
B193: 169 | C193: =VLOOKUP($B193,P_All!$A$5:$AB$204,3*($C$6-1)+2) -> 0.9592885 | D193: =VLOOKUP($B193,P_All!$A$5:$AB$204,3*($C$6-1)+3) -> 4.35397 | E193: =VLOOKUP($B193,P_All!$A$5:$AB$204,3*($C$6-1)+4) -> 17.75750833 | F193: =VLOOKUP($B193,SDEIS_All!$A$5:$AB$204,3*($C$6-1)+2) -> 1.959283333 | G193: =VLOOKUP($B193,SDEIS_All!$A$5:$AB$204,3*($C$6-1)+3) -> 5.353975 | H193: =VLOOKUP($B193,SDEIS_All!$A$5:$AB$204,3*($C$6-1)+4) -> 18.75750833 | J193: 64 | K193: =VLOOKUP($J193,P_All!$AD$5:$BE$245,3*($C$6-1)+2) -> 0.13923 | L193: =VLOOKUP($J193,P_All!$AD$5:$BE$245,3*($C$6-1)+3) -> 0.54992 | M193: =VLOOKUP($J193,P_All!$AD$5:$BE$245,3*($C$6-1)+4) -> 1.0447 | N193: =VLOOKUP($J193,SDEIS_All!$AD$5:$BE$245,3*($C$6-1)+2) -> 1.1392 | O193: =VLOOKUP($J193,SDEIS_All!$AD$5:$BE$245,3*($C$6-1)+3) -> 1.5499 | P193: =VLOOKUP($J193,SDEIS_All!$AD$5:$BE$245,3*($C$6-1)+4) -> 2.0447
B194: 170 | C194: =VLOOKUP($B194,P_All!$A$5:$AB$204,3*($C$6-1)+2) -> 0.9886624167 | D194: =VLOOKUP($B194,P_All!$A$5:$AB$204,3*($C$6-1)+3) -> 4.243630833 | E194: =VLOOKUP($B194,P_All!$A$5:$AB$204,3*($C$6-1)+4) -> 18.31911667 | F194: =VLOOKUP($B194,SDEIS_All!$A$5:$AB$204,3*($C$6-1)+2) -> 1.988675 | G194: =VLOOKUP($B194,SDEIS_All!$A$5:$AB$204,3*($C$6-1)+3) -> 5.243633333 | H194: =VLOOKUP($B194,SDEIS_All!$A$5:$AB$204,3*($C$6-1)+4) -> 19.31908333 | J194: 64.08333333 | K194: =VLOOKUP($J194,P_All!$AD$5:$BE$245,3*($C$6-1)+2) -> 0.097011 | L194: =VLOOKUP($J194,P_All!$AD$5:$BE$245,3*($C$6-1)+3) -> 0.20729 | M194: =VLOOKUP($J194,P_All!$AD$5:$BE$245,3*($C$6-1)+4) -> 1.2004 | N194: =VLOOKUP($J194,SDEIS_All!$AD$5:$BE$245,3*($C$6-1)+2) -> 1.097 | O194: =VLOOKUP($J194,SDEIS_All!$AD$5:$BE$245,3*($C$6-1)+3) -> 1.2073 | P194: =VLOOKUP($J194,SDEIS_All!$AD$5:$BE$245,3*($C$6-1)+4) -> 2.2004
B195: 171 | C195: =VLOOKUP($B195,P_All!$A$5:$AB$204,3*($C$6-1)+2) -> 0.9603384167 | D195: =VLOOKUP($B195,P_All!$A$5:$AB$204,3*($C$6-1)+3) -> 4.378454167 | E195: =VLOOKUP($B195,P_All!$A$5:$AB$204,3*($C$6-1)+4) -> 18.32858333 | F195: =VLOOKUP($B195,SDEIS_All!$A$5:$AB$204,3*($C$6-1)+2) -> 1.96035 | G195: =VLOOKUP($B195,SDEIS_All!$A$5:$AB$204,3*($C$6-1)+3) -> 5.378458333 | H195: =VLOOKUP($B195,SDEIS_All!$A$5:$AB$204,3*($C$6-1)+4) -> 19.32858333 | J195: 64.16666667 | K195: =VLOOKUP($J195,P_All!$AD$5:$BE$245,3*($C$6-1)+2) -> 0.097778 | L195: =VLOOKUP($J195,P_All!$AD$5:$BE$245,3*($C$6-1)+3) -> 0.58879 | M195: =VLOOKUP($J195,P_All!$AD$5:$BE$245,3*($C$6-1)+4) -> 7.7919 | N195: =VLOOKUP($J195,SDEIS_All!$AD$5:$BE$245,3*($C$6-1)+2) -> 1.0978 | O195: =VLOOKUP($J195,SDEIS_All!$AD$5:$BE$245,3*($C$6-1)+3) -> 1.5888 | P195: =VLOOKUP($J195,SDEIS_All!$AD$5:$BE$245,3*($C$6-1)+4) -> 8.7919
B196: 172 | C196: =VLOOKUP($B196,P_All!$A$5:$AB$204,3*($C$6-1)+2) -> 1.001601167 | D196: =VLOOKUP($B196,P_All!$A$5:$AB$204,3*($C$6-1)+3) -> 4.302394167 | E196: =VLOOKUP($B196,P_All!$A$5:$AB$204,3*($C$6-1)+4) -> 17.67573333 | F196: =VLOOKUP($B196,SDEIS_All!$A$5:$AB$204,3*($C$6-1)+2) -> 2.0016 | G196: =VLOOKUP($B196,SDEIS_All!$A$5:$AB$204,3*($C$6-1)+3) -> 5.302391667 | H196: =VLOOKUP($B196,SDEIS_All!$A$5:$AB$204,3*($C$6-1)+4) -> 18.67573333 | J196: 64.25 | K196: =VLOOKUP($J196,P_All!$AD$5:$BE$245,3*($C$6-1)+2) -> 2.8796 | L196: =VLOOKUP($J196,P_All!$AD$5:$BE$245,3*($C$6-1)+3) -> 11.905 | M196: =VLOOKUP($J196,P_All!$AD$5:$BE$245,3*($C$6-1)+4) -> 37.449 | N196: =VLOOKUP($J196,SDEIS_All!$AD$5:$BE$245,3*($C$6-1)+2) -> 3.8796 | O196: =VLOOKUP($J196,SDEIS_All!$AD$5:$BE$245,3*($C$6-1)+3) -> 12.905 | P196: =VLOOKUP($J196,SDEIS_All!$AD$5:$BE$245,3*($C$6-1)+4) -> 38.449
B197: 173 | C197: =VLOOKUP($B197,P_All!$A$5:$AB$204,3*($C$6-1)+2) -> 0.9125946667 | D197: =VLOOKUP($B197,P_All!$A$5:$AB$204,3*($C$6-1)+3) -> 4.398379167 | E197: =VLOOKUP($B197,P_All!$A$5:$AB$204,3*($C$6-1)+4) -> 17.82709167 | F197: =VLOOKUP($B197,SDEIS_All!$A$5:$AB$204,3*($C$6-1)+2) -> 1.912591667 | G197: =VLOOKUP($B197,SDEIS_All!$A$5:$AB$204,3*($C$6-1)+3) -> 5.398375 | H197: =VLOOKUP($B197,SDEIS_All!$A$5:$AB$204,3*($C$6-1)+4) -> 18.82709167 | J197: 64.33333333 | K197: =VLOOKUP($J197,P_All!$AD$5:$BE$245,3*($C$6-1)+2) -> 2.6094 | L197: =VLOOKUP($J197,P_All!$AD$5:$BE$245,3*($C$6-1)+3) -> 10.473 | M197: =VLOOKUP($J197,P_All!$AD$5:$BE$245,3*($C$6-1)+4) -> 40.156 | N197: =VLOOKUP($J197,SDEIS_All!$AD$5:$BE$245,3*($C$6-1)+2) -> 3.6094 | O197: =VLOOKUP($J197,SDEIS_All!$AD$5:$BE$245,3*($C$6-1)+3) -> 11.473 | P197: =VLOOKUP($J197,SDEIS_All!$AD$5:$BE$245,3*($C$6-1)+4) -> 41.156
B198: 174 | C198: =VLOOKUP($B198,P_All!$A$5:$AB$204,3*($C$6-1)+2) -> 0.95238975 | D198: =VLOOKUP($B198,P_All!$A$5:$AB$204,3*($C$6-1)+3) -> 4.264111667 | E198: =VLOOKUP($B198,P_All!$A$5:$AB$204,3*($C$6-1)+4) -> 18.020025 | F198: =VLOOKUP($B198,SDEIS_All!$A$5:$AB$204,3*($C$6-1)+2) -> 1.952391667 | G198: =VLOOKUP($B198,SDEIS_All!$A$5:$AB$204,3*($C$6-1)+3) -> 5.264108333 | H198: =VLOOKUP($B198,SDEIS_All!$A$5:$AB$204,3*($C$6-1)+4) -> 19.020025 | J198: 64.41666667 | K198: =VLOOKUP($J198,P_All!$AD$5:$BE$245,3*($C$6-1)+2) -> 0.85195 | L198: =VLOOKUP($J198,P_All!$AD$5:$BE$245,3*($C$6-1)+3) -> 6.4759 | M198: =VLOOKUP($J198,P_All!$AD$5:$BE$245,3*($C$6-1)+4) -> 15.986 | N198: =VLOOKUP($J198,SDEIS_All!$AD$5:$BE$245,3*($C$6-1)+2) -> 1.852 | O198: =VLOOKUP($J198,SDEIS_All!$AD$5:$BE$245,3*($C$6-1)+3) -> 7.4759 | P198: =VLOOKUP($J198,SDEIS_All!$AD$5:$BE$245,3*($C$6-1)+4) -> 16.986
B199: 175 | C199: =VLOOKUP($B199,P_All!$A$5:$AB$204,3*($C$6-1)+2) -> 1.047373 | D199: =VLOOKUP($B199,P_All!$A$5:$AB$204,3*($C$6-1)+3) -> 4.480713333 | E199: =VLOOKUP($B199,P_All!$A$5:$AB$204,3*($C$6-1)+4) -> 18.182625 | F199: =VLOOKUP($B199,SDEIS_All!$A$5:$AB$204,3*($C$6-1)+2) -> 2.047358333 | G199: =VLOOKUP($B199,SDEIS_All!$A$5:$AB$204,3*($C$6-1)+3) -> 5.480708333 | H199: =VLOOKUP($B199,SDEIS_All!$A$5:$AB$204,3*($C$6-1)+4) -> 19.18259167 | J199: 64.5 | K199: =VLOOKUP($J199,P_All!$AD$5:$BE$245,3*($C$6-1)+2) -> 0.33198 | L199: =VLOOKUP($J199,P_All!$AD$5:$BE$245,3*($C$6-1)+3) -> 3.519 | M199: =VLOOKUP($J199,P_All!$AD$5:$BE$245,3*($C$6-1)+4) -> 43.312 | N199: =VLOOKUP($J199,SDEIS_All!$AD$5:$BE$245,3*($C$6-1)+2) -> 1.332 | O199: =VLOOKUP($J199,SDEIS_All!$AD$5:$BE$245,3*($C$6-1)+3) -> 4.519 | P199: =VLOOKUP($J199,SDEIS_All!$AD$5:$BE$245,3*($C$6-1)+4) -> 44.312
B200: 176 | C200: =VLOOKUP($B200,P_All!$A$5:$AB$204,3*($C$6-1)+2) -> 0.9839756667 | D200: =VLOOKUP($B200,P_All!$A$5:$AB$204,3*($C$6-1)+3) -> 4.341600833 | E200: =VLOOKUP($B200,P_All!$A$5:$AB$204,3*($C$6-1)+4) -> 17.83821667 | F200: =VLOOKUP($B200,SDEIS_All!$A$5:$AB$204,3*($C$6-1)+2) -> 1.983975 | G200: =VLOOKUP($B200,SDEIS_All!$A$5:$AB$204,3*($C$6-1)+3) -> 5.341591667 | H200: =VLOOKUP($B200,SDEIS_All!$A$5:$AB$204,3*($C$6-1)+4) -> 18.83821667 | J200: 64.58333333 | K200: =VLOOKUP($J200,P_All!$AD$5:$BE$245,3*($C$6-1)+2) -> 1.0337 | L200: =VLOOKUP($J200,P_All!$AD$5:$BE$245,3*($C$6-1)+3) -> 3.7611 | M200: =VLOOKUP($J200,P_All!$AD$5:$BE$245,3*($C$6-1)+4) -> 23.243 | N200: =VLOOKUP($J200,SDEIS_All!$AD$5:$BE$245,3*($C$6-1)+2) -> 2.0337 | O200: =VLOOKUP($J200,SDEIS_All!$AD$5:$BE$245,3*($C$6-1)+3) -> 4.7611 | P200: =VLOOKUP($J200,SDEIS_All!$AD$5:$BE$245,3*($C$6-1)+4) -> 24.243
B201: 177 | C201: =VLOOKUP($B201,P_All!$A$5:$AB$204,3*($C$6-1)+2) -> 0.9326334167 | D201: =VLOOKUP($B201,P_All!$A$5:$AB$204,3*($C$6-1)+3) -> 4.236498333 | E201: =VLOOKUP($B201,P_All!$A$5:$AB$204,3*($C$6-1)+4) -> 18.07395 | F201: =VLOOKUP($B201,SDEIS_All!$A$5:$AB$204,3*($C$6-1)+2) -> 1.932633333 | G201: =VLOOKUP($B201,SDEIS_All!$A$5:$AB$204,3*($C$6-1)+3) -> 5.236491667 | H201: =VLOOKUP($B201,SDEIS_All!$A$5:$AB$204,3*($C$6-1)+4) -> 19.07395 | J201: 64.66666667 | K201: =VLOOKUP($J201,P_All!$AD$5:$BE$245,3*($C$6-1)+2) -> 0.68737 | L201: =VLOOKUP($J201,P_All!$AD$5:$BE$245,3*($C$6-1)+3) -> 5.1289 | M201: =VLOOKUP($J201,P_All!$AD$5:$BE$245,3*($C$6-1)+4) -> 13.141 | N201: =VLOOKUP($J201,SDEIS_All!$AD$5:$BE$245,3*($C$6-1)+2) -> 1.6874 | O201: =VLOOKUP($J201,SDEIS_All!$AD$5:$BE$245,3*($C$6-1)+3) -> 6.1289 | P201: =VLOOKUP($J201,SDEIS_All!$AD$5:$BE$245,3*($C$6-1)+4) -> 14.141
B202: 178 | C202: =VLOOKUP($B202,P_All!$A$5:$AB$204,3*($C$6-1)+2) -> 0.9996374167 | D202: =VLOOKUP($B202,P_All!$A$5:$AB$204,3*($C$6-1)+3) -> 4.6495475 | E202: =VLOOKUP($B202,P_All!$A$5:$AB$204,3*($C$6-1)+4) -> 18.13225833 | F202: =VLOOKUP($B202,SDEIS_All!$A$5:$AB$204,3*($C$6-1)+2) -> 1.999633333 | G202: =VLOOKUP($B202,SDEIS_All!$A$5:$AB$204,3*($C$6-1)+3) -> 5.64955 | H202: =VLOOKUP($B202,SDEIS_All!$A$5:$AB$204,3*($C$6-1)+4) -> 19.13225833 | J202: 64.75 | K202: =VLOOKUP($J202,P_All!$AD$5:$BE$245,3*($C$6-1)+2) -> 1.3209 | L202: =VLOOKUP($J202,P_All!$AD$5:$BE$245,3*($C$6-1)+3) -> 4.7051 | M202: =VLOOKUP($J202,P_All!$AD$5:$BE$245,3*($C$6-1)+4) -> 19.52 | N202: =VLOOKUP($J202,SDEIS_All!$AD$5:$BE$245,3*($C$6-1)+2) -> 2.3209 | O202: =VLOOKUP($J202,SDEIS_All!$AD$5:$BE$245,3*($C$6-1)+3) -> 5.7051 | P202: =VLOOKUP($J202,SDEIS_All!$AD$5:$BE$245,3*($C$6-1)+4) -> 20.52
B203: 179 | C203: =VLOOKUP($B203,P_All!$A$5:$AB$204,3*($C$6-1)+2) -> 0.9882266667 | D203: =VLOOKUP($B203,P_All!$A$5:$AB$204,3*($C$6-1)+3) -> 4.1781775 | E203: =VLOOKUP($B203,P_All!$A$5:$AB$204,3*($C$6-1)+4) -> 18.46315833 | F203: =VLOOKUP($B203,SDEIS_All!$A$5:$AB$204,3*($C$6-1)+2) -> 1.988216667 | G203: =VLOOKUP($B203,SDEIS_All!$A$5:$AB$204,3*($C$6-1)+3) -> 5.178175 | H203: =VLOOKUP($B203,SDEIS_All!$A$5:$AB$204,3*($C$6-1)+4) -> 19.46314167 | J203: 64.83333333 | K203: =VLOOKUP($J203,P_All!$AD$5:$BE$245,3*($C$6-1)+2) -> 0.9324 | L203: =VLOOKUP($J203,P_All!$AD$5:$BE$245,3*($C$6-1)+3) -> 2.6505 | M203: =VLOOKUP($J203,P_All!$AD$5:$BE$245,3*($C$6-1)+4) -> 8.5936 | N203: =VLOOKUP($J203,SDEIS_All!$AD$5:$BE$245,3*($C$6-1)+2) -> 1.9324 | O203: =VLOOKUP($J203,SDEIS_All!$AD$5:$BE$245,3*($C$6-1)+3) -> 3.6505 | P203: =VLOOKUP($J203,SDEIS_All!$AD$5:$BE$245,3*($C$6-1)+4) -> 9.5936
B204: 180 | C204: =VLOOKUP($B204,P_All!$A$5:$AB$204,3*($C$6-1)+2) -> 0.97315625 | D204: =VLOOKUP($B204,P_All!$A$5:$AB$204,3*($C$6-1)+3) -> 4.413655 | E204: =VLOOKUP($B204,P_All!$A$5:$AB$204,3*($C$6-1)+4) -> 18.25630833 | F204: =VLOOKUP($B204,SDEIS_All!$A$5:$AB$204,3*($C$6-1)+2) -> 1.973175 | G204: =VLOOKUP($B204,SDEIS_All!$A$5:$AB$204,3*($C$6-1)+3) -> 5.41365 | H204: =VLOOKUP($B204,SDEIS_All!$A$5:$AB$204,3*($C$6-1)+4) -> 19.25630833 | J204: 64.91666667 | K204: =VLOOKUP($J204,P_All!$AD$5:$BE$245,3*($C$6-1)+2) -> 0.39944 | L204: =VLOOKUP($J204,P_All!$AD$5:$BE$245,3*($C$6-1)+3) -> 0.90733 | M204: =VLOOKUP($J204,P_All!$AD$5:$BE$245,3*($C$6-1)+4) -> 1.8954 | N204: =VLOOKUP($J204,SDEIS_All!$AD$5:$BE$245,3*($C$6-1)+2) -> 1.3994 | O204: =VLOOKUP($J204,SDEIS_All!$AD$5:$BE$245,3*($C$6-1)+3) -> 1.9073 | P204: =VLOOKUP($J204,SDEIS_All!$AD$5:$BE$245,3*($C$6-1)+4) -> 2.8954
B205: 181 | C205: =VLOOKUP($B205,P_All!$A$5:$AB$204,3*($C$6-1)+2) -> 1.003496167 | D205: =VLOOKUP($B205,P_All!$A$5:$AB$204,3*($C$6-1)+3) -> 4.289496667 | E205: =VLOOKUP($B205,P_All!$A$5:$AB$204,3*($C$6-1)+4) -> 17.62455 | F205: =VLOOKUP($B205,SDEIS_All!$A$5:$AB$204,3*($C$6-1)+2) -> 2.003491667 | G205: =VLOOKUP($B205,SDEIS_All!$A$5:$AB$204,3*($C$6-1)+3) -> 5.2895 | H205: =VLOOKUP($B205,SDEIS_All!$A$5:$AB$204,3*($C$6-1)+4) -> 18.62456667 | J205: 65 | K205: =VLOOKUP($J205,P_All!$AD$5:$BE$245,3*($C$6-1)+2) -> 0.14422 | L205: =VLOOKUP($J205,P_All!$AD$5:$BE$245,3*($C$6-1)+3) -> 0.60737 | M205: =VLOOKUP($J205,P_All!$AD$5:$BE$245,3*($C$6-1)+4) -> 1.0605 | N205: =VLOOKUP($J205,SDEIS_All!$AD$5:$BE$245,3*($C$6-1)+2) -> 1.1442 | O205: =VLOOKUP($J205,SDEIS_All!$AD$5:$BE$245,3*($C$6-1)+3) -> 1.6074 | P205: =VLOOKUP($J205,SDEIS_All!$AD$5:$BE$245,3*($C$6-1)+4) -> 2.0605
... 60 more rows

Sheet P_All
B2: =PlotControl!$A$13 -> SW-001 | C2: =MATCH(B2,PlotControl!$A$13:$A$21,0) -> 1 | E2: =PlotControl!$A$14 -> SW-002 | F2: =MATCH(E2,PlotControl!$A$13:$A$21,0) -> 2 | H2: =PlotControl!$A$15 -> SW-003 | I2: =MATCH(H2,PlotControl!$A$13:$A$21,0) -> 3 | K2: =PlotControl!$A$16 -> SW-004 | L2: =MATCH(K2,PlotControl!$A$13:$A$21,0) -> 4 | N2: =PlotControl!$A$17 -> SW-004a | O2: =MATCH(N2,PlotControl!$A$13:$A$21,0) -> 5 | Q2: =PlotControl!$A$18 -> SW-004b | R2: =MATCH(Q2,PlotControl!$A$13:$A$21,0) -> 6 | T2: =PlotControl!$A$19 -> SW-005 | U2: =MATCH(T2,PlotControl!$A$13:$A$21,0) -> 7 | W2: =PlotControl!$A$20 -> SW-006 | X2: =MATCH(W2,PlotControl!$A$13:$A$21,0) -> 8 | Z2: =PlotControl!$A$21 -> Colby Lake | AA2: =MATCH(Z2,PlotControl!$A$13:$A$21,0) -> 9 | AE2: =PlotControl!$A$13 -> SW-001 | AF2: =MATCH(AE2,PlotControl!$A$13:$A$21,0) -> 1 | AH2: =PlotControl!$A$14 -> SW-002 | AI2: =MATCH(AH2,PlotControl!$A$13:$A$21,0) -> 2 | AK2: =PlotControl!$A$15 -> SW-003 | AL2: =MATCH(AK2,PlotControl!$A$13:$A$21,0) -> 3 | AN2: =PlotControl!$A$16 -> SW-004 | AO2: =MATCH(AN2,PlotControl!$A$13:$A$21,0) -> 4 | AQ2: =PlotControl!$A$17 -> SW-004a | AR2: =MATCH(AQ2,PlotControl!$A$13:$A$21,0) -> 5 | AT2: =PlotControl!$A$18 -> SW-004b | AU2: =MATCH(AT2,PlotControl!$A$13:$A$21,0) -> 6 | AW2: =PlotControl!$A$19 -> SW-005 | AX2: =MATCH(AW2,PlotControl!$A$13:$A$21,0) -> 7 | AZ2: =PlotControl!$A$20 -> SW-006 | BA2: =MATCH(AZ2,PlotControl!$A$13:$A$21,0) -> 8 | BC2: =PlotControl!$A$21 -> Colby Lake | BD2: =MATCH(BC2,PlotControl!$A$13:$A$21,0) -> 9
B3: Annual Project Results | E3: Annual Project Results | H3: Annual Project Results | K3: Annual Project Results | N3: Annual Project Results | Q3: Annual Project Results | T3: Annual Project Results | W3: Annual Project Results | Z3: Annual Project Results | AE3: Monthly Project Results | AH3: Monthly Project Results | AK3: Monthly Project Results | AN3: Monthly Project Results | AQ3: Monthly Project Results | AT3: Monthly Project Results | AW3: Monthly Project Results | AZ3: Monthly Project Results | BC3: Monthly Project Results
A4: Time | B4: P10 | C4: P50 | D4: P90 | E4: P10 | F4: P50 | G4: P90 | H4: P10 | I4: P50 | J4: P90 | K4: P10 | L4: P50 | M4: P90 | N4: P10 | O4: P50 | P4: P90 | Q4: P10 | R4: P50 | S4: P90 | T4: P10 | U4: P50 | V4: P90 | W4: P10 | X4: P50 | Y4: P90 | Z4: P10 | AA4: P50 | AB4: P90 | AD4: Time | AE4: P10 | AF4: P50 | AG4: P90 | AH4: P10 | AI4: P50 | AJ4: P90 | AK4: P10 | AL4: P50 | AM4: P90 | AN4: P10 | AO4: P50 | AP4: P90 | AQ4: P10 | AR4: P50 | AS4: P90 | AT4: P10 | AU4: P50 | AV4: P90 | AW4: P10 | AX4: P50 | AY4: P90 | AZ4: P10 | BA4: P50 | BB4: P90 | BC4: P10 | BD4: P50 | BE4: P90
A5: 1 | B5: =IF(PlotControl!$B$4 = "Annual Max",MAX(OFFSET(P_Flows!$C$10,12*($A5-1),4*(C$2-1),12,1)),AVERAGE(OFFSET(P_Flows!$C$10,12*($A5-1),4*(C$2-1),12,1))) -> 2.769816667 | C5: =IF(PlotControl!$B$4 = "Annual Max",MAX(OFFSET(P_Flows!$D$10,12*($A5-1),4*(C$2-1),12,1)),AVERAGE(OFFSET(P_Flows!$D$10,12*($A5-1),4*(C$2-1),12,1))) -> 3.347358333 | D5: =IF(PlotControl!$B$4 = "Annual Max",MAX(OFFSET(P_Flows!$E$10,12*($A5-1),4*(C$2-1),12,1)),AVERAGE(OFFSET(P_Flows!$E$10,12*($A5-1),4*(C$2-1),12,1))) -> 5.771408333 | E5: =IF(PlotControl!$B$4 = "Annual Max",MAX(OFFSET(P_Flows!$C$10,12*($A5-1),4*(F$2-1),12,1)),AVERAGE(OFFSET(P_Flows!$C$10,12*($A5-1),4*(F$2-1),12,1))) -> 3.589241667 | F5: =IF(PlotControl!$B$4 = "Annual Max",MAX(OFFSET(P_Flows!$D$10,12*($A5-1),4*(F$2-1),12,1)),AVERAGE(OFFSET(P_Flows!$D$10,12*($A5-1),4*(F$2-1),12,1))) -> 6.853833333 | G5: =IF(PlotControl!$B$4 = "Annual Max",MAX(OFFSET(P_Flows!$E$10,12*($A5-1),4*(F$2-1),12,1)),AVERAGE(OFFSET(P_Flows!$E$10,12*($A5-1),4*(F$2-1),12,1))) -> 20.05325833 | H5: =IF(PlotControl!$B$4 = "Annual Max",MAX(OFFSET(P_Flows!$C$10,12*($A5-1),4*(I$2-1),12,1)),AVERAGE(OFFSET(P_Flows!$C$10,12*($A5-1),4*(I$2-1),12,1))) -> 3.821925 | I5: =IF(PlotControl!$B$4 = "Annual Max",MAX(OFFSET(P_Flows!$D$10,12*($A5-1),4*(I$2-1),12,1)),AVERAGE(OFFSET(P_Flows!$D$10,12*($A5-1),4*(I$2-1),12,1))) -> 7.826816667 | J5: =IF(PlotControl!$B$4 = "Annual Max",MAX(OFFSET(P_Flows!$E$10,12*($A5-1),4*(I$2-1),12,1)),AVERAGE(OFFSET(P_Flows!$E$10,12*($A5-1),4*(I$2-1),12,1))) -> 23.95216667 | K5: =IF(PlotControl!$B$4 = "Annual Max",MAX(OFFSET(P_Flows!$C$10,12*($A5-1),4*(L$2-1),12,1)),AVERAGE(OFFSET(P_Flows!$C$10,12*($A5-1),4*(L$2-1),12,1))) -> 4.920708333 | L5: =IF(PlotControl!$B$4 = "Annual Max",MAX(OFFSET(P_Flows!$D$10,12*($A5-1),4*(L$2-1),12,1)),AVERAGE(OFFSET(P_Flows!$D$10,12*($A5-1),4*(L$2-1),12,1))) -> 12.493175 | M5: =IF(PlotControl!$B$4 = "Annual Max",MAX(OFFSET(P_Flows!$E$10,12*($A5-1),4*(L$2-1),12,1)),AVERAGE(OFFSET(P_Flows!$E$10,12*($A5-1),4*(L$2-1),12,1))) -> 42.80788333 | N5: =IF(PlotControl!$B$4 = "Annual Max",MAX(OFFSET(P_Flows!$C$10,12*($A5-1),4*(O$2-1),12,1)),AVERAGE(OFFSET(P_Flows!$C$10,12*($A5-1),4*(O$2-1),12,1))) -> 9.045158333 | O5: =IF(PlotControl!$B$4 = "Annual Max",MAX(OFFSET(P_Flows!$D$10,12*($A5-1),4*(O$2-1),12,1)),AVERAGE(OFFSET(P_Flows!$D$10,12*($A5-1),4*(O$2-1),12,1))) -> 29.90450833 | P5: =IF(PlotControl!$B$4 = "Annual Max",MAX(OFFSET(P_Flows!$E$10,12*($A5-1),4*(O$2-1),12,1)),AVERAGE(OFFSET(P_Flows!$E$10,12*($A5-1),4*(O$2-1),12,1))) -> 112.7039917 | Q5: =IF(PlotControl!$B$4 = "Annual Max",MAX(OFFSET(P_Flows!$C$10,12*($A5-1),4*(R$2-1),12,1)),AVERAGE(OFFSET(P_Flows!$C$10,12*($A5-1),4*(R$2-1),12,1))) -> 12.40166667 | R5: =IF(PlotControl!$B$4 = "Annual Max",MAX(OFFSET(P_Flows!$D$10,12*($A5-1),4*(R$2-1),12,1)),AVERAGE(OFFSET(P_Flows!$D$10,12*($A5-1),4*(R$2-1),12,1))) -> 44.0716 | S5: =IF(PlotControl!$B$4 = "Annual Max",MAX(OFFSET(P_Flows!$E$10,12*($A5-1),4*(R$2-1),12,1)),AVERAGE(OFFSET(P_Flows!$E$10,12*($A5-1),4*(R$2-1),12,1))) -> 169.85725 | T5: =IF(PlotControl!$B$4 = "Annual Max",MAX(OFFSET(P_Flows!$C$10,12*($A5-1),4*(U$2-1),12,1)),AVERAGE(OFFSET(P_Flows!$C$10,12*($A5-1),4*(U$2-1),12,1))) -> 15.54551667 | U5: =IF(PlotControl!$B$4 = "Annual Max",MAX(OFFSET(P_Flows!$D$10,12*($A5-1),4*(U$2-1),12,1)),AVERAGE(OFFSET(P_Flows!$D$10,12*($A5-1),4*(U$2-1),12,1))) -> 57.33820833 | V5: =IF(PlotControl!$B$4 = "Annual Max",MAX(OFFSET(P_Flows!$E$10,12*($A5-1),4*(U$2-1),12,1)),AVERAGE(OFFSET(P_Flows!$E$10,12*($A5-1),4*(U$2-1),12,1))) -> 224.30025 | W5: =IF(PlotControl!$B$4 = "Annual Max",MAX(OFFSET(P_Flows!$C$10,12*($A5-1),4*(X$2-1),12,1)),AVERAGE(OFFSET(P_Flows!$C$10,12*($A5-1),4*(X$2-1),12,1))) -> 16.23349167 | X5: =IF(PlotControl!$B$4 = "Annual Max",MAX(OFFSET(P_Flows!$D$10,12*($A5-1),4*(X$2-1),12,1)),AVERAGE(OFFSET(P_Flows!$D$10,12*($A5-1),4*(X$2-1),12,1))) -> 60.3141 | Y5: =IF(PlotControl!$B$4 = "Annual Max",MAX(OFFSET(P_Flows!$E$10,12*($A5-1),4*(X$2-1),12,1)),AVERAGE(OFFSET(P_Flows!$E$10,12*($A5-1),4*(X$2-1),12,1))) -> 236.7328333 | Z5: =IF(PlotControl!$B$4 = "Annual Max",MAX(OFFSET(P_Flows!$C$10,12*($A5-1),4*(AA$2-1),12,1)),AVERAGE(OFFSET(P_Flows!$C$10,12*($A5-1),4*(AA$2-1),12,1))) -> 18.964325 | AA5: =IF(PlotControl!$B$4 = "Annual Max",MAX(OFFSET(P_Flows!$D$10,12*($A5-1),4*(AA$2-1),12,1)),AVERAGE(OFFSET(P_Flows!$D$10,12*($A5-1),4*(AA$2-1),12,1))) -> 71.87394167 | AB5: =IF(PlotControl!$B$4 = "Annual Max",MAX(OFFSET(P_Flows!$E$10,12*($A5-1),4*(AA$2-1),12,1)),AVERAGE(OFFSET(P_Flows!$E$10,12*($A5-1),4*(AA$2-1),12,1))) -> 283.6286667 | AD5: =PlotControl!$B$8 -> 50 | AE5: =OFFSET(P_Flows!$C$10,ROUND(12*$AD5,0),4*(AF$2-1),1,1) -> 2.6217 | AF5: =OFFSET(P_Flows!$D$10,ROUND(12*$AD5,0),4*(AF$2-1),1,1) -> 2.6842 | AG5: =OFFSET(P_Flows!$E$10,ROUND(12*$AD5,0),4*(AF$2-1),1,1) -> 2.7588 | AH5: =OFFSET(P_Flows!$C$10,ROUND(12*$AD5,0),4*(AI$2-1),1,1) -> 2.7428 | AI5: =OFFSET(P_Flows!$D$10,ROUND(12*$AD5,0),4*(AI$2-1),1,1) -> 3.1556 | AJ5: =OFFSET(P_Flows!$E$10,ROUND(12*$AD5,0),4*(AI$2-1),1,1) -> 3.6471 | AK5: =OFFSET(P_Flows!$C$10,ROUND(12*$AD5,0),4*(AL$2-1),1,1) -> 2.7888 | AL5: =OFFSET(P_Flows!$D$10,ROUND(12*$AD5,0),4*(AL$2-1),1,1) -> 3.3344 | AM5: =OFFSET(P_Flows!$E$10,ROUND(12*$AD5,0),4*(AL$2-1),1,1) -> 3.9841 | AN5: =OFFSET(P_Flows!$C$10,ROUND(12*$AD5,0),4*(AO$2-1),1,1) -> 2.9475 | AO5: =OFFSET(P_Flows!$D$10,ROUND(12*$AD5,0),4*(AO$2-1),1,1) -> 3.9519 | AP5: =OFFSET(P_Flows!$E$10,ROUND(12*$AD5,0),4*(AO$2-1),1,1) -> 5.1481 | AQ5: =OFFSET(P_Flows!$C$10,ROUND(12*$AD5,0),4*(AR$2-1),1,1) -> 3.6208 | AR5: =OFFSET(P_Flows!$D$10,ROUND(12*$AD5,0),4*(AR$2-1),1,1) -> 6.5265 | AS5: =OFFSET(P_Flows!$E$10,ROUND(12*$AD5,0),4*(AR$2-1),1,1) -> 10.102 | AT5: =OFFSET(P_Flows!$C$10,ROUND(12*$AD5,0),4*(AU$2-1),1,1) -> 4.1555 | AU5: =OFFSET(P_Flows!$D$10,ROUND(12*$AD5,0),4*(AU$2-1),1,1) -> 8.5531 | AV5: =OFFSET(P_Flows!$E$10,ROUND(12*$AD5,0),4*(AU$2-1),1,1) -> 13.77 | AW5: =OFFSET(P_Flows!$C$10,ROUND(12*$AD5,0),4*(AX$2-1),1,1) -> 4.6164 | AX5: =OFFSET(P_Flows!$D$10,ROUND(12*$AD5,0),4*(AX$2-1),1,1) -> 10.269 | AY5: =OFFSET(P_Flows!$E$10,ROUND(12*$AD5,0),4*(AX$2-1),1,1) -> 16.91 | AZ5: =OFFSET(P_Flows!$C$10,ROUND(12*$AD5,0),4*(BA$2-1),1,1) -> 4.7184 | BA5: =OFFSET(P_Flows!$D$10,ROUND(12*$AD5,0),4*(BA$2-1),1,1) -> 10.649 | BB5: =OFFSET(P_Flows!$E$10,ROUND(12*$AD5,0),4*(BA$2-1),1,1) -> 17.619 | BC5: =OFFSET(P_Flows!$C$10,ROUND(12*$AD5,0),4*(BD$2-1),1,1) -> 5.1426 | BD5: =OFFSET(P_Flows!$D$10,ROUND(12*$AD5,0),4*(BD$2-1),1,1) -> 12.241 | BE5: =OFFSET(P_Flows!$E$10,ROUND(12*$AD5,0),4*(BD$2-1),1,1) -> 20.611
A6: 2 | B6: =IF(PlotControl!$B$4 = "Annual Max",MAX(OFFSET(P_Flows!$C$10,12*($A6-1),4*(C$2-1),12,1)),AVERAGE(OFFSET(P_Flows!$C$10,12*($A6-1),4*(C$2-1),12,1))) -> 2.757975 | C6: =IF(PlotControl!$B$4 = "Annual Max",MAX(OFFSET(P_Flows!$D$10,12*($A6-1),4*(C$2-1),12,1)),AVERAGE(OFFSET(P_Flows!$D$10,12*($A6-1),4*(C$2-1),12,1))) -> 3.322591667 | D6: =IF(PlotControl!$B$4 = "Annual Max",MAX(OFFSET(P_Flows!$E$10,12*($A6-1),4*(C$2-1),12,1)),AVERAGE(OFFSET(P_Flows!$E$10,12*($A6-1),4*(C$2-1),12,1))) -> 5.724608333 | E6: =IF(PlotControl!$B$4 = "Annual Max",MAX(OFFSET(P_Flows!$C$10,12*($A6-1),4*(F$2-1),12,1)),AVERAGE(OFFSET(P_Flows!$C$10,12*($A6-1),4*(F$2-1),12,1))) -> 3.496133333 | F6: =IF(PlotControl!$B$4 = "Annual Max",MAX(OFFSET(P_Flows!$D$10,12*($A6-1),4*(F$2-1),12,1)),AVERAGE(OFFSET(P_Flows!$D$10,12*($A6-1),4*(F$2-1),12,1))) -> 6.623641667 | G6: =IF(PlotControl!$B$4 = "Annual Max",MAX(OFFSET(P_Flows!$E$10,12*($A6-1),4*(F$2-1),12,1)),AVERAGE(OFFSET(P_Flows!$E$10,12*($A6-1),4*(F$2-1),12,1))) -> 19.42015833 | H6: =IF(PlotControl!$B$4 = "Annual Max",MAX(OFFSET(P_Flows!$C$10,12*($A6-1),4*(I$2-1),12,1)),AVERAGE(OFFSET(P_Flows!$C$10,12*($A6-1),4*(I$2-1),12,1))) -> 3.727025 | I6: =IF(PlotControl!$B$4 = "Annual Max",MAX(OFFSET(P_Flows!$D$10,12*($A6-1),4*(I$2-1),12,1)),AVERAGE(OFFSET(P_Flows!$D$10,12*($A6-1),4*(I$2-1),12,1))) -> 7.62815 | J6: =IF(PlotControl!$B$4 = "Annual Max",MAX(OFFSET(P_Flows!$E$10,12*($A6-1),4*(I$2-1),12,1)),AVERAGE(OFFSET(P_Flows!$E$10,12*($A6-1),4*(I$2-1),12,1))) -> 23.52798333 | K6: =IF(PlotControl!$B$4 = "Annual Max",MAX(OFFSET(P_Flows!$C$10,12*($A6-1),4*(L$2-1),12,1)),AVERAGE(OFFSET(P_Flows!$C$10,12*($A6-1),4*(L$2-1),12,1))) -> 4.715575 | L6: =IF(PlotControl!$B$4 = "Annual Max",MAX(OFFSET(P_Flows!$D$10,12*($A6-1),4*(L$2-1),12,1)),AVERAGE(OFFSET(P_Flows!$D$10,12*($A6-1),4*(L$2-1),12,1))) -> 11.999375 | M6: =IF(PlotControl!$B$4 = "Annual Max",MAX(OFFSET(P_Flows!$E$10,12*($A6-1),4*(L$2-1),12,1)),AVERAGE(OFFSET(P_Flows!$E$10,12*($A6-1),4*(L$2-1),12,1))) -> 41.56875833 | N6: =IF(PlotControl!$B$4 = "Annual Max",MAX(OFFSET(P_Flows!$C$10,12*($A6-1),4*(O$2-1),12,1)),AVERAGE(OFFSET(P_Flows!$C$10,12*($A6-1),4*(O$2-1),12,1))) -> 8.518475 | O6: =IF(PlotControl!$B$4 = "Annual Max",MAX(OFFSET(P_Flows!$D$10,12*($A6-1),4*(O$2-1),12,1)),AVERAGE(OFFSET(P_Flows!$D$10,12*($A6-1),4*(O$2-1),12,1))) -> 28.7433 | P6: =IF(PlotControl!$B$4 = "Annual Max",MAX(OFFSET(P_Flows!$E$10,12*($A6-1),4*(O$2-1),12,1)),AVERAGE(OFFSET(P_Flows!$E$10,12*($A6-1),4*(O$2-1),12,1))) -> 110.2576417 | Q6: =IF(PlotControl!$B$4 = "Annual Max",MAX(OFFSET(P_Flows!$C$10,12*($A6-1),4*(R$2-1),12,1)),AVERAGE(OFFSET(P_Flows!$C$10,12*($A6-1),4*(R$2-1),12,1))) -> 11.65603333 | R6: =IF(PlotControl!$B$4 = "Annual Max",MAX(OFFSET(P_Flows!$D$10,12*($A6-1),4*(R$2-1),12,1)),AVERAGE(OFFSET(P_Flows!$D$10,12*($A6-1),4*(R$2-1),12,1))) -> 42.49049167 | S6: =IF(PlotControl!$B$4 = "Annual Max",MAX(OFFSET(P_Flows!$E$10,12*($A6-1),4*(R$2-1),12,1)),AVERAGE(OFFSET(P_Flows!$E$10,12*($A6-1),4*(R$2-1),12,1))) -> 166.9951667 | T6: =IF(PlotControl!$B$4 = "Annual Max",MAX(OFFSET(P_Flows!$C$10,12*($A6-1),4*(U$2-1),12,1)),AVERAGE(OFFSET(P_Flows!$C$10,12*($A6-1),4*(U$2-1),12,1))) -> 14.5587 | U6: =IF(PlotControl!$B$4 = "Annual Max",MAX(OFFSET(P_Flows!$D$10,12*($A6-1),4*(U$2-1),12,1)),AVERAGE(OFFSET(P_Flows!$D$10,12*($A6-1),4*(U$2-1),12,1))) -> 55.130025 | V6: =IF(PlotControl!$B$4 = "Annual Max",MAX(OFFSET(P_Flows!$E$10,12*($A6-1),4*(U$2-1),12,1)),AVERAGE(OFFSET(P_Flows!$E$10,12*($A6-1),4*(U$2-1),12,1))) -> 220.2578333 | W6: =IF(PlotControl!$B$4 = "Annual Max",MAX(OFFSET(P_Flows!$C$10,12*($A6-1),4*(X$2-1),12,1)),AVERAGE(OFFSET(P_Flows!$C$10,12*($A6-1),4*(X$2-1),12,1))) -> 15.247475 | X6: =IF(PlotControl!$B$4 = "Annual Max",MAX(OFFSET(P_Flows!$D$10,12*($A6-1),4*(X$2-1),12,1)),AVERAGE(OFFSET(P_Flows!$D$10,12*($A6-1),4*(X$2-1),12,1))) -> 58.22688333 | Y6: =IF(PlotControl!$B$4 = "Annual Max",MAX(OFFSET(P_Flows!$E$10,12*($A6-1),4*(X$2-1),12,1)),AVERAGE(OFFSET(P_Flows!$E$10,12*($A6-1),4*(X$2-1),12,1))) -> 233.4089167 | Z6: =IF(PlotControl!$B$4 = "Annual Max",MAX(OFFSET(P_Flows!$C$10,12*($A6-1),4*(AA$2-1),12,1)),AVERAGE(OFFSET(P_Flows!$C$10,12*($A6-1),4*(AA$2-1),12,1))) -> 17.787225 | AA6: =IF(PlotControl!$B$4 = "Annual Max",MAX(OFFSET(P_Flows!$D$10,12*($A6-1),4*(AA$2-1),12,1)),AVERAGE(OFFSET(P_Flows!$D$10,12*($A6-1),4*(AA$2-1),12,1))) -> 69.39565833 | AB6: =IF(PlotControl!$B$4 = "Annual Max",MAX(OFFSET(P_Flows!$E$10,12*($A6-1),4*(AA$2-1),12,1)),AVERAGE(OFFSET(P_Flows!$E$10,12*($A6-1),4*(AA$2-1),12,1))) -> 279.7510833 | AD6: =AD5+1/12 -> 50.08333333 | AE6: =OFFSET(P_Flows!$C$10,ROUND(12*$AD6,0),4*(AF$2-1),1,1) -> 2.6144 | AF6: =OFFSET(P_Flows!$D$10,ROUND(12*$AD6,0),4*(AF$2-1),1,1) -> 2.6364 | AG6: =OFFSET(P_Flows!$E$10,ROUND(12*$AD6,0),4*(AF$2-1),1,1) -> 2.7682 | AH6: =OFFSET(P_Flows!$C$10,ROUND(12*$AD6,0),4*(AI$2-1),1,1) -> 2.6918 | AI6: =OFFSET(P_Flows!$D$10,ROUND(12*$AD6,0),4*(AI$2-1),1,1) -> 2.8321 | AJ6: =OFFSET(P_Flows!$E$10,ROUND(12*$AD6,0),4*(AI$2-1),1,1) -> 3.6716 | AK6: =OFFSET(P_Flows!$C$10,ROUND(12*$AD6,0),4*(AL$2-1),1,1) -> 2.7124 | AL6: =OFFSET(P_Flows!$D$10,ROUND(12*$AD6,0),4*(AL$2-1),1,1) -> 2.8841 | AM6: =OFFSET(P_Flows!$E$10,ROUND(12*$AD6,0),4*(AL$2-1),1,1) -> 3.9117 | AN6: =OFFSET(P_Flows!$C$10,ROUND(12*$AD6,0),4*(AO$2-1),1,1) -> 2.8097 | AO6: =OFFSET(P_Flows!$D$10,ROUND(12*$AD6,0),4*(AO$2-1),1,1) -> 3.1304 | AP6: =OFFSET(P_Flows!$E$10,ROUND(12*$AD6,0),4*(AO$2-1),1,1) -> 5.0485 | AQ6: =OFFSET(P_Flows!$C$10,ROUND(12*$AD6,0),4*(AR$2-1),1,1) -> 3.1926 | AR6: =OFFSET(P_Flows!$D$10,ROUND(12*$AD6,0),4*(AR$2-1),1,1) -> 4.1359 | AS6: =OFFSET(P_Flows!$E$10,ROUND(12*$AD6,0),4*(AR$2-1),1,1) -> 9.3221 | AT6: =OFFSET(P_Flows!$C$10,ROUND(12*$AD6,0),4*(AU$2-1),1,1) -> 3.4942 | AU6: =OFFSET(P_Flows!$D$10,ROUND(12*$AD6,0),4*(AU$2-1),1,1) -> 4.8046 | AV6: =OFFSET(P_Flows!$E$10,ROUND(12*$AD6,0),4*(AU$2-1),1,1) -> 12.635 | AW6: =OFFSET(P_Flows!$C$10,ROUND(12*$AD6,0),4*(AX$2-1),1,1) -> 3.7543 | AX6: =OFFSET(P_Flows!$D$10,ROUND(12*$AD6,0),4*(AX$2-1),1,1) -> 5.4458 | AY6: =OFFSET(P_Flows!$E$10,ROUND(12*$AD6,0),4*(AX$2-1),1,1) -> 15.512 | AZ6: =OFFSET(P_Flows!$C$10,ROUND(12*$AD6,0),4*(BA$2-1),1,1) -> 3.8192 | BA6: =OFFSET(P_Flows!$D$10,ROUND(12*$AD6,0),4*(BA$2-1),1,1) -> 5.6059 | BB6: =OFFSET(P_Flows!$E$10,ROUND(12*$AD6,0),4*(BA$2-1),1,1) -> 16.239 | BC6: =OFFSET(P_Flows!$C$10,ROUND(12*$AD6,0),4*(BD$2-1),1,1) -> 4.0634 | BD6: =OFFSET(P_Flows!$D$10,ROUND(12*$AD6,0),4*(BD$2-1),1,1) -> 6.2079 | BE6: =OFFSET(P_Flows!$E$10,ROUND(12*$AD6,0),4*(BD$2-1),1,1) -> 18.971
A7: 3 | B7: =IF(PlotControl!$B$4 = "Annual Max",MAX(OFFSET(P_Flows!$C$10,12*($A7-1),4*(C$2-1),12,1)),AVERAGE(OFFSET(P_Flows!$C$10,12*($A7-1),4*(C$2-1),12,1))) -> 2.757708333 | C7: =IF(PlotControl!$B$4 = "Annual Max",MAX(OFFSET(P_Flows!$D$10,12*($A7-1),4*(C$2-1),12,1)),AVERAGE(OFFSET(P_Flows!$D$10,12*($A7-1),4*(C$2-1),12,1))) -> 3.347041667 | D7: =IF(PlotControl!$B$4 = "Annual Max",MAX(OFFSET(P_Flows!$E$10,12*($A7-1),4*(C$2-1),12,1)),AVERAGE(OFFSET(P_Flows!$E$10,12*($A7-1),4*(C$2-1),12,1))) -> 5.69845 | E7: =IF(PlotControl!$B$4 = "Annual Max",MAX(OFFSET(P_Flows!$C$10,12*($A7-1),4*(F$2-1),12,1)),AVERAGE(OFFSET(P_Flows!$C$10,12*($A7-1),4*(F$2-1),12,1))) -> 3.494008333 | F7: =IF(PlotControl!$B$4 = "Annual Max",MAX(OFFSET(P_Flows!$D$10,12*($A7-1),4*(F$2-1),12,1)),AVERAGE(OFFSET(P_Flows!$D$10,12*($A7-1),4*(F$2-1),12,1))) -> 6.748375 | G7: =IF(PlotControl!$B$4 = "Annual Max",MAX(OFFSET(P_Flows!$E$10,12*($A7-1),4*(F$2-1),12,1)),AVERAGE(OFFSET(P_Flows!$E$10,12*($A7-1),4*(F$2-1),12,1))) -> 19.32293333 | H7: =IF(PlotControl!$B$4 = "Annual Max",MAX(OFFSET(P_Flows!$C$10,12*($A7-1),4*(I$2-1),12,1)),AVERAGE(OFFSET(P_Flows!$C$10,12*($A7-1),4*(I$2-1),12,1))) -> 3.723141667 | I7: =IF(PlotControl!$B$4 = "Annual Max",MAX(OFFSET(P_Flows!$D$10,12*($A7-1),4*(I$2-1),12,1)),AVERAGE(OFFSET(P_Flows!$D$10,12*($A7-1),4*(I$2-1),12,1))) -> 7.781541667 | J7: =IF(PlotControl!$B$4 = "Annual Max",MAX(OFFSET(P_Flows!$E$10,12*($A7-1),4*(I$2-1),12,1)),AVERAGE(OFFSET(P_Flows!$E$10,12*($A7-1),4*(I$2-1),12,1))) -> 23.398175 | K7: =IF(PlotControl!$B$4 = "Annual Max",MAX(OFFSET(P_Flows!$C$10,12*($A7-1),4*(L$2-1),12,1)),AVERAGE(OFFSET(P_Flows!$C$10,12*($A7-1),4*(L$2-1),12,1))) -> 4.704675 | L7: =IF(PlotControl!$B$4 = "Annual Max",MAX(OFFSET(P_Flows!$D$10,12*($A7-1),4*(L$2-1),12,1)),AVERAGE(OFFSET(P_Flows!$D$10,12*($A7-1),4*(L$2-1),12,1))) -> 12.27708333 | M7: =IF(PlotControl!$B$4 = "Annual Max",MAX(OFFSET(P_Flows!$E$10,12*($A7-1),4*(L$2-1),12,1)),AVERAGE(OFFSET(P_Flows!$E$10,12*($A7-1),4*(L$2-1),12,1))) -> 41.29100833 | N7: =IF(PlotControl!$B$4 = "Annual Max",MAX(OFFSET(P_Flows!$C$10,12*($A7-1),4*(O$2-1),12,1)),AVERAGE(OFFSET(P_Flows!$C$10,12*($A7-1),4*(O$2-1),12,1))) -> 8.466741667 | O7: =IF(PlotControl!$B$4 = "Annual Max",MAX(OFFSET(P_Flows!$D$10,12*($A7-1),4*(O$2-1),12,1)),AVERAGE(OFFSET(P_Flows!$D$10,12*($A7-1),4*(O$2-1),12,1))) -> 29.44273333 | P7: =IF(PlotControl!$B$4 = "Annual Max",MAX(OFFSET(P_Flows!$E$10,12*($A7-1),4*(O$2-1),12,1)),AVERAGE(OFFSET(P_Flows!$E$10,12*($A7-1),4*(O$2-1),12,1))) -> 109.2028667 | Q7: =IF(PlotControl!$B$4 = "Annual Max",MAX(OFFSET(P_Flows!$C$10,12*($A7-1),4*(R$2-1),12,1)),AVERAGE(OFFSET(P_Flows!$C$10,12*($A7-1),4*(R$2-1),12,1))) -> 11.57655 | R7: =IF(PlotControl!$B$4 = "Annual Max",MAX(OFFSET(P_Flows!$D$10,12*($A7-1),4*(R$2-1),12,1)),AVERAGE(OFFSET(P_Flows!$D$10,12*($A7-1),4*(R$2-1),12,1))) -> 43.59471667 | S7: =IF(PlotControl!$B$4 = "Annual Max",MAX(OFFSET(P_Flows!$E$10,12*($A7-1),4*(R$2-1),12,1)),AVERAGE(OFFSET(P_Flows!$E$10,12*($A7-1),4*(R$2-1),12,1))) -> 165.439 | T7: =IF(PlotControl!$B$4 = "Annual Max",MAX(OFFSET(P_Flows!$C$10,12*($A7-1),4*(U$2-1),12,1)),AVERAGE(OFFSET(P_Flows!$C$10,12*($A7-1),4*(U$2-1),12,1))) -> 14.39894167 | U7: =IF(PlotControl!$B$4 = "Annual Max",MAX(OFFSET(P_Flows!$D$10,12*($A7-1),4*(U$2-1),12,1)),AVERAGE(OFFSET(P_Flows!$D$10,12*($A7-1),4*(U$2-1),12,1))) -> 56.41776667 | V7: =IF(PlotControl!$B$4 = "Annual Max",MAX(OFFSET(P_Flows!$E$10,12*($A7-1),4*(U$2-1),12,1)),AVERAGE(OFFSET(P_Flows!$E$10,12*($A7-1),4*(U$2-1),12,1))) -> 217.1665833 | W7: =IF(PlotControl!$B$4 = "Annual Max",MAX(OFFSET(P_Flows!$C$10,12*($A7-1),4*(X$2-1),12,1)),AVERAGE(OFFSET(P_Flows!$C$10,12*($A7-1),4*(X$2-1),12,1))) -> 15.12481667 | X7: =IF(PlotControl!$B$4 = "Annual Max",MAX(OFFSET(P_Flows!$D$10,12*($A7-1),4*(X$2-1),12,1)),AVERAGE(OFFSET(P_Flows!$D$10,12*($A7-1),4*(X$2-1),12,1))) -> 59.79739167 | Y7: =IF(PlotControl!$B$4 = "Annual Max",MAX(OFFSET(P_Flows!$E$10,12*($A7-1),4*(X$2-1),12,1)),AVERAGE(OFFSET(P_Flows!$E$10,12*($A7-1),4*(X$2-1),12,1))) -> 230.952 | Z7: =IF(PlotControl!$B$4 = "Annual Max",MAX(OFFSET(P_Flows!$C$10,12*($A7-1),4*(AA$2-1),12,1)),AVERAGE(OFFSET(P_Flows!$C$10,12*($A7-1),4*(AA$2-1),12,1))) -> 17.64325 | AA7: =IF(PlotControl!$B$4 = "Annual Max",MAX(OFFSET(P_Flows!$D$10,12*($A7-1),4*(AA$2-1),12,1)),AVERAGE(OFFSET(P_Flows!$D$10,12*($A7-1),4*(AA$2-1),12,1))) -> 71.2994 | AB7: =IF(PlotControl!$B$4 = "Annual Max",MAX(OFFSET(P_Flows!$E$10,12*($A7-1),4*(AA$2-1),12,1)),AVERAGE(OFFSET(P_Flows!$E$10,12*($A7-1),4*(AA$2-1),12,1))) -> 276.8681667 | AD7: =AD6+1/12 -> 50.16666667 | AE7: =OFFSET(P_Flows!$C$10,ROUND(12*$AD7,0),4*(AF$2-1),1,1) -> 2.6186 | AF7: =OFFSET(P_Flows!$D$10,ROUND(12*$AD7,0),4*(AF$2-1),1,1) -> 2.7149 | AG7: =OFFSET(P_Flows!$E$10,ROUND(12*$AD7,0),4*(AF$2-1),1,1) -> 4.1184 | AH7: =OFFSET(P_Flows!$C$10,ROUND(12*$AD7,0),4*(AI$2-1),1,1) -> 2.709 | AI7: =OFFSET(P_Flows!$D$10,ROUND(12*$AD7,0),4*(AI$2-1),1,1) -> 3.2737 | AJ7: =OFFSET(P_Flows!$E$10,ROUND(12*$AD7,0),4*(AI$2-1),1,1) -> 11.501 | AK7: =OFFSET(P_Flows!$C$10,ROUND(12*$AD7,0),4*(AL$2-1),1,1) -> 2.7321 | AL7: =OFFSET(P_Flows!$D$10,ROUND(12*$AD7,0),4*(AL$2-1),1,1) -> 3.4166 | AM7: =OFFSET(P_Flows!$E$10,ROUND(12*$AD7,0),4*(AL$2-1),1,1) -> 13.389 | AN7: =OFFSET(P_Flows!$C$10,ROUND(12*$AD7,0),4*(AO$2-1),1,1) -> 2.8366 | AO7: =OFFSET(P_Flows!$D$10,ROUND(12*$AD7,0),4*(AO$2-1),1,1) -> 4.0624 | AP7: =OFFSET(P_Flows!$E$10,ROUND(12*$AD7,0),4*(AO$2-1),1,1) -> 21.92 | AQ7: =OFFSET(P_Flows!$C$10,ROUND(12*$AD7,0),4*(AR$2-1),1,1) -> 3.2924 | AR7: =OFFSET(P_Flows!$D$10,ROUND(12*$AD7,0),4*(AR$2-1),1,1) -> 6.7615 | AS7: =OFFSET(P_Flows!$E$10,ROUND(12*$AD7,0),4*(AR$2-1),1,1) -> 54.655 | AT7: =OFFSET(P_Flows!$C$10,ROUND(12*$AD7,0),4*(AU$2-1),1,1) -> 3.6253 | AU7: =OFFSET(P_Flows!$D$10,ROUND(12*$AD7,0),4*(AU$2-1),1,1) -> 8.7408 | AV7: =OFFSET(P_Flows!$E$10,ROUND(12*$AD7,0),4*(AU$2-1),1,1) -> 79.678 | AW7: =OFFSET(P_Flows!$C$10,ROUND(12*$AD7,0),4*(AX$2-1),1,1) -> 3.8459 | AX7: =OFFSET(P_Flows!$D$10,ROUND(12*$AD7,0),4*(AX$2-1),1,1) -> 9.9936 | AY7: =OFFSET(P_Flows!$E$10,ROUND(12*$AD7,0),4*(AX$2-1),1,1) -> 96.261 | AZ7: =OFFSET(P_Flows!$C$10,ROUND(12*$AD7,0),4*(BA$2-1),1,1) -> 3.9268 | BA7: =OFFSET(P_Flows!$D$10,ROUND(12*$AD7,0),4*(BA$2-1),1,1) -> 10.453 | BB7: =OFFSET(P_Flows!$E$10,ROUND(12*$AD7,0),4*(BA$2-1),1,1) -> 102.34 | BC7: =OFFSET(P_Flows!$C$10,ROUND(12*$AD7,0),4*(BD$2-1),1,1) -> 4.1744 | BD7: =OFFSET(P_Flows!$D$10,ROUND(12*$AD7,0),4*(BD$2-1),1,1) -> 11.963 | BE7: =OFFSET(P_Flows!$E$10,ROUND(12*$AD7,0),4*(BD$2-1),1,1) -> 122.32
A8: 4 | B8: =IF(PlotControl!$B$4 = "Annual Max",MAX(OFFSET(P_Flows!$C$10,12*($A8-1),4*(C$2-1),12,1)),AVERAGE(OFFSET(P_Flows!$C$10,12*($A8-1),4*(C$2-1),12,1))) -> 2.758383333 | C8: =IF(PlotControl!$B$4 = "Annual Max",MAX(OFFSET(P_Flows!$D$10,12*($A8-1),4*(C$2-1),12,1)),AVERAGE(OFFSET(P_Flows!$D$10,12*($A8-1),4*(C$2-1),12,1))) -> 3.325533333 | D8: =IF(PlotControl!$B$4 = "Annual Max",MAX(OFFSET(P_Flows!$E$10,12*($A8-1),4*(C$2-1),12,1)),AVERAGE(OFFSET(P_Flows!$E$10,12*($A8-1),4*(C$2-1),12,1))) -> 5.82435 | E8: =IF(PlotControl!$B$4 = "Annual Max",MAX(OFFSET(P_Flows!$C$10,12*($A8-1),4*(F$2-1),12,1)),AVERAGE(OFFSET(P_Flows!$C$10,12*($A8-1),4*(F$2-1),12,1))) -> 3.497966667 | F8: =IF(PlotControl!$B$4 = "Annual Max",MAX(OFFSET(P_Flows!$D$10,12*($A8-1),4*(F$2-1),12,1)),AVERAGE(OFFSET(P_Flows!$D$10,12*($A8-1),4*(F$2-1),12,1))) -> 6.608075 | G8: =IF(PlotControl!$B$4 = "Annual Max",MAX(OFFSET(P_Flows!$E$10,12*($A8-1),4*(F$2-1),12,1)),AVERAGE(OFFSET(P_Flows!$E$10,12*($A8-1),4*(F$2-1),12,1))) -> 19.912925 | H8: =IF(PlotControl!$B$4 = "Annual Max",MAX(OFFSET(P_Flows!$C$10,12*($A8-1),4*(I$2-1),12,1)),AVERAGE(OFFSET(P_Flows!$C$10,12*($A8-1),4*(I$2-1),12,1))) -> 3.728383333 | I8: =IF(PlotControl!$B$4 = "Annual Max",MAX(OFFSET(P_Flows!$D$10,12*($A8-1),4*(I$2-1),12,1)),AVERAGE(OFFSET(P_Flows!$D$10,12*($A8-1),4*(I$2-1),12,1))) -> 7.607291667 | J8: =IF(PlotControl!$B$4 = "Annual Max",MAX(OFFSET(P_Flows!$E$10,12*($A8-1),4*(I$2-1),12,1)),AVERAGE(OFFSET(P_Flows!$E$10,12*($A8-1),4*(I$2-1),12,1))) -> 24.131675 | K8: =IF(PlotControl!$B$4 = "Annual Max",MAX(OFFSET(P_Flows!$C$10,12*($A8-1),4*(L$2-1),12,1)),AVERAGE(OFFSET(P_Flows!$C$10,12*($A8-1),4*(L$2-1),12,1))) -> 4.7143 | L8: =IF(PlotControl!$B$4 = "Annual Max",MAX(OFFSET(P_Flows!$D$10,12*($A8-1),4*(L$2-1),12,1)),AVERAGE(OFFSET(P_Flows!$D$10,12*($A8-1),4*(L$2-1),12,1))) -> 11.940925 | M8: =IF(PlotControl!$B$4 = "Annual Max",MAX(OFFSET(P_Flows!$E$10,12*($A8-1),4*(L$2-1),12,1)),AVERAGE(OFFSET(P_Flows!$E$10,12*($A8-1),4*(L$2-1),12,1))) -> 42.655075 | N8: =IF(PlotControl!$B$4 = "Annual Max",MAX(OFFSET(P_Flows!$C$10,12*($A8-1),4*(O$2-1),12,1)),AVERAGE(OFFSET(P_Flows!$C$10,12*($A8-1),4*(O$2-1),12,1))) -> 8.4856 | O8: =IF(PlotControl!$B$4 = "Annual Max",MAX(OFFSET(P_Flows!$D$10,12*($A8-1),4*(O$2-1),12,1)),AVERAGE(OFFSET(P_Flows!$D$10,12*($A8-1),4*(O$2-1),12,1))) -> 28.413325 | P8: =IF(PlotControl!$B$4 = "Annual Max",MAX(OFFSET(P_Flows!$E$10,12*($A8-1),4*(O$2-1),12,1)),AVERAGE(OFFSET(P_Flows!$E$10,12*($A8-1),4*(O$2-1),12,1))) -> 112.643175 | Q8: =IF(PlotControl!$B$4 = "Annual Max",MAX(OFFSET(P_Flows!$C$10,12*($A8-1),4*(R$2-1),12,1)),AVERAGE(OFFSET(P_Flows!$C$10,12*($A8-1),4*(R$2-1),12,1))) -> 11.61375833 | R8: =IF(PlotControl!$B$4 = "Annual Max",MAX(OFFSET(P_Flows!$D$10,12*($A8-1),4*(R$2-1),12,1)),AVERAGE(OFFSET(P_Flows!$D$10,12*($A8-1),4*(R$2-1),12,1))) -> 42.06415833 | S8: =IF(PlotControl!$B$4 = "Annual Max",MAX(OFFSET(P_Flows!$E$10,12*($A8-1),4*(R$2-1),12,1)),AVERAGE(OFFSET(P_Flows!$E$10,12*($A8-1),4*(R$2-1),12,1))) -> 170.9635 | T8: =IF(PlotControl!$B$4 = "Annual Max",MAX(OFFSET(P_Flows!$C$10,12*($A8-1),4*(U$2-1),12,1)),AVERAGE(OFFSET(P_Flows!$C$10,12*($A8-1),4*(U$2-1),12,1))) -> 14.46501667 | U8: =IF(PlotControl!$B$4 = "Annual Max",MAX(OFFSET(P_Flows!$D$10,12*($A8-1),4*(U$2-1),12,1)),AVERAGE(OFFSET(P_Flows!$D$10,12*($A8-1),4*(U$2-1),12,1))) -> 54.490575 | V8: =IF(PlotControl!$B$4 = "Annual Max",MAX(OFFSET(P_Flows!$E$10,12*($A8-1),4*(U$2-1),12,1)),AVERAGE(OFFSET(P_Flows!$E$10,12*($A8-1),4*(U$2-1),12,1))) -> 225.0594167 | W8: =IF(PlotControl!$B$4 = "Annual Max",MAX(OFFSET(P_Flows!$C$10,12*($A8-1),4*(X$2-1),12,1)),AVERAGE(OFFSET(P_Flows!$C$10,12*($A8-1),4*(X$2-1),12,1))) -> 15.186025 | X8: =IF(PlotControl!$B$4 = "Annual Max",MAX(OFFSET(P_Flows!$D$10,12*($A8-1),4*(X$2-1),12,1)),AVERAGE(OFFSET(P_Flows!$D$10,12*($A8-1),4*(X$2-1),12,1))) -> 57.721125 | Y8: =IF(PlotControl!$B$4 = "Annual Max",MAX(OFFSET(P_Flows!$E$10,12*($A8-1),4*(X$2-1),12,1)),AVERAGE(OFFSET(P_Flows!$E$10,12*($A8-1),4*(X$2-1),12,1))) -> 239.1888333 | Z8: =IF(PlotControl!$B$4 = "Annual Max",MAX(OFFSET(P_Flows!$C$10,12*($A8-1),4*(AA$2-1),12,1)),AVERAGE(OFFSET(P_Flows!$C$10,12*($A8-1),4*(AA$2-1),12,1))) -> 17.72029167 | AA8: =IF(PlotControl!$B$4 = "Annual Max",MAX(OFFSET(P_Flows!$D$10,12*($A8-1),4*(AA$2-1),12,1)),AVERAGE(OFFSET(P_Flows!$D$10,12*($A8-1),4*(AA$2-1),12,1))) -> 68.82033333 | AB8: =IF(PlotControl!$B$4 = "Annual Max",MAX(OFFSET(P_Flows!$E$10,12*($A8-1),4*(AA$2-1),12,1)),AVERAGE(OFFSET(P_Flows!$E$10,12*($A8-1),4*(AA$2-1),12,1))) -> 286.8260833 | AD8: 50.25 | AE8: =OFFSET(P_Flows!$C$10,ROUND(12*$AD8,0),4*(AF$2-1),1,1) -> 3.0703 | AF8: =OFFSET(P_Flows!$D$10,ROUND(12*$AD8,0),4*(AF$2-1),1,1) -> 4.539 | AG8: =OFFSET(P_Flows!$E$10,ROUND(12*$AD8,0),4*(AF$2-1),1,1) -> 8.1601 | AH8: =OFFSET(P_Flows!$C$10,ROUND(12*$AD8,0),4*(AI$2-1),1,1) -> 5.7007 | AI8: =OFFSET(P_Flows!$D$10,ROUND(12*$AD8,0),4*(AI$2-1),1,1) -> 15.384 | AJ8: =OFFSET(P_Flows!$E$10,ROUND(12*$AD8,0),4*(AI$2-1),1,1) -> 39.257 | AK8: =OFFSET(P_Flows!$C$10,ROUND(12*$AD8,0),4*(AL$2-1),1,1) -> 6.4249 | AL8: =OFFSET(P_Flows!$D$10,ROUND(12*$AD8,0),4*(AL$2-1),1,1) -> 18.37 | AM8: =OFFSET(P_Flows!$E$10,ROUND(12*$AD8,0),4*(AL$2-1),1,1) -> 47.819 | AN8: =OFFSET(P_Flows!$C$10,ROUND(12*$AD8,0),4*(AO$2-1),1,1) -> 9.892 | AO8: =OFFSET(P_Flows!$D$10,ROUND(12*$AD8,0),4*(AO$2-1),1,1) -> 32.664 | AP8: =OFFSET(P_Flows!$E$10,ROUND(12*$AD8,0),4*(AO$2-1),1,1) -> 88.805 | AQ8: =OFFSET(P_Flows!$C$10,ROUND(12*$AD8,0),4*(AR$2-1),1,1) -> 22.695 | AR8: =OFFSET(P_Flows!$D$10,ROUND(12*$AD8,0),4*(AR$2-1),1,1) -> 85.447 | AS8: =OFFSET(P_Flows!$E$10,ROUND(12*$AD8,0),4*(AR$2-1),1,1) -> 240.56 | AT8: =OFFSET(P_Flows!$C$10,ROUND(12*$AD8,0),4*(AU$2-1),1,1) -> 32.921 | AU8: =OFFSET(P_Flows!$D$10,ROUND(12*$AD8,0),4*(AU$2-1),1,1) -> 127.61 | AV8: =OFFSET(P_Flows!$E$10,ROUND(12*$AD8,0),4*(AU$2-1),1,1) -> 361.5 | AW8: =OFFSET(P_Flows!$C$10,ROUND(12*$AD8,0),4*(AX$2-1),1,1) -> 42.065 | AX8: =OFFSET(P_Flows!$D$10,ROUND(12*$AD8,0),4*(AX$2-1),1,1) -> 165.31 | AY8: =OFFSET(P_Flows!$E$10,ROUND(12*$AD8,0),4*(AX$2-1),1,1) -> 469.64 | AZ8: =OFFSET(P_Flows!$C$10,ROUND(12*$AD8,0),4*(BA$2-1),1,1) -> 44.162 | BA8: =OFFSET(P_Flows!$D$10,ROUND(12*$AD8,0),4*(BA$2-1),1,1) -> 173.96 | BB8: =OFFSET(P_Flows!$E$10,ROUND(12*$AD8,0),4*(BA$2-1),1,1) -> 494.45 | BC8: =OFFSET(P_Flows!$C$10,ROUND(12*$AD8,0),4*(BD$2-1),1,1) -> 52.487 | BD8: =OFFSET(P_Flows!$D$10,ROUND(12*$AD8,0),4*(BD$2-1),1,1) -> 208.28 | BE8: =OFFSET(P_Flows!$E$10,ROUND(12*$AD8,0),4*(BD$2-1),1,1) -> 592.89
A9: 5 | B9: =IF(PlotControl!$B$4 = "Annual Max",MAX(OFFSET(P_Flows!$C$10,12*($A9-1),4*(C$2-1),12,1)),AVERAGE(OFFSET(P_Flows!$C$10,12*($A9-1),4*(C$2-1),12,1))) -> 2.7579 | C9: =IF(PlotControl!$B$4 = "Annual Max",MAX(OFFSET(P_Flows!$D$10,12*($A9-1),4*(C$2-1),12,1)),AVERAGE(OFFSET(P_Flows!$D$10,12*($A9-1),4*(C$2-1),12,1))) -> 3.351841667 | D9: =IF(PlotControl!$B$4 = "Annual Max",MAX(OFFSET(P_Flows!$E$10,12*($A9-1),4*(C$2-1),12,1)),AVERAGE(OFFSET(P_Flows!$E$10,12*($A9-1),4*(C$2-1),12,1))) -> 5.858933333 | E9: =IF(PlotControl!$B$4 = "Annual Max",MAX(OFFSET(P_Flows!$C$10,12*($A9-1),4*(F$2-1),12,1)),AVERAGE(OFFSET(P_Flows!$C$10,12*($A9-1),4*(F$2-1),12,1))) -> 3.496691667 | F9: =IF(PlotControl!$B$4 = "Annual Max",MAX(OFFSET(P_Flows!$D$10,12*($A9-1),4*(F$2-1),12,1)),AVERAGE(OFFSET(P_Flows!$D$10,12*($A9-1),4*(F$2-1),12,1))) -> 6.76105 | G9: =IF(PlotControl!$B$4 = "Annual Max",MAX(OFFSET(P_Flows!$E$10,12*($A9-1),4*(F$2-1),12,1)),AVERAGE(OFFSET(P_Flows!$E$10,12*($A9-1),4*(F$2-1),12,1))) -> 20.025675 | H9: =IF(PlotControl!$B$4 = "Annual Max",MAX(OFFSET(P_Flows!$C$10,12*($A9-1),4*(I$2-1),12,1)),AVERAGE(OFFSET(P_Flows!$C$10,12*($A9-1),4*(I$2-1),12,1))) -> 3.726833333 | I9: =IF(PlotControl!$B$4 = "Annual Max",MAX(OFFSET(P_Flows!$D$10,12*($A9-1),4*(I$2-1),12,1)),AVERAGE(OFFSET(P_Flows!$D$10,12*($A9-1),4*(I$2-1),12,1))) -> 7.799008333 | J9: =IF(PlotControl!$B$4 = "Annual Max",MAX(OFFSET(P_Flows!$E$10,12*($A9-1),4*(I$2-1),12,1)),AVERAGE(OFFSET(P_Flows!$E$10,12*($A9-1),4*(I$2-1),12,1))) -> 24.28069167 | K9: =IF(PlotControl!$B$4 = "Annual Max",MAX(OFFSET(P_Flows!$C$10,12*($A9-1),4*(L$2-1),12,1)),AVERAGE(OFFSET(P_Flows!$C$10,12*($A9-1),4*(L$2-1),12,1))) -> 4.711241667 | L9: =IF(PlotControl!$B$4 = "Annual Max",MAX(OFFSET(P_Flows!$D$10,12*($A9-1),4*(L$2-1),12,1)),AVERAGE(OFFSET(P_Flows!$D$10,12*($A9-1),4*(L$2-1),12,1))) -> 12.3093 | M9: =IF(PlotControl!$B$4 = "Annual Max",MAX(OFFSET(P_Flows!$E$10,12*($A9-1),4*(L$2-1),12,1)),AVERAGE(OFFSET(P_Flows!$E$10,12*($A9-1),4*(L$2-1),12,1))) -> 42.94133333 | N9: =IF(PlotControl!$B$4 = "Annual Max",MAX(OFFSET(P_Flows!$C$10,12*($A9-1),4*(O$2-1),12,1)),AVERAGE(OFFSET(P_Flows!$C$10,12*($A9-1),4*(O$2-1),12,1))) -> 8.467825 | O9: =IF(PlotControl!$B$4 = "Annual Max",MAX(OFFSET(P_Flows!$D$10,12*($A9-1),4*(O$2-1),12,1)),AVERAGE(OFFSET(P_Flows!$D$10,12*($A9-1),4*(O$2-1),12,1))) -> 29.43596667 | P9: =IF(PlotControl!$B$4 = "Annual Max",MAX(OFFSET(P_Flows!$E$10,12*($A9-1),4*(O$2-1),12,1)),AVERAGE(OFFSET(P_Flows!$E$10,12*($A9-1),4*(O$2-1),12,1))) -> 113.2776583 | Q9: =IF(PlotControl!$B$4 = "Annual Max",MAX(OFFSET(P_Flows!$C$10,12*($A9-1),4*(R$2-1),12,1)),AVERAGE(OFFSET(P_Flows!$C$10,12*($A9-1),4*(R$2-1),12,1))) -> 11.59331667 | R9: =IF(PlotControl!$B$4 = "Annual Max",MAX(OFFSET(P_Flows!$D$10,12*($A9-1),4*(R$2-1),12,1)),AVERAGE(OFFSET(P_Flows!$D$10,12*($A9-1),4*(R$2-1),12,1))) -> 43.683325 | S9: =IF(PlotControl!$B$4 = "Annual Max",MAX(OFFSET(P_Flows!$E$10,12*($A9-1),4*(R$2-1),12,1)),AVERAGE(OFFSET(P_Flows!$E$10,12*($A9-1),4*(R$2-1),12,1))) -> 172.2130833 | T9: =IF(PlotControl!$B$4 = "Annual Max",MAX(OFFSET(P_Flows!$C$10,12*($A9-1),4*(U$2-1),12,1)),AVERAGE(OFFSET(P_Flows!$C$10,12*($A9-1),4*(U$2-1),12,1))) -> 14.44726667 | U9: =IF(PlotControl!$B$4 = "Annual Max",MAX(OFFSET(P_Flows!$D$10,12*($A9-1),4*(U$2-1),12,1)),AVERAGE(OFFSET(P_Flows!$D$10,12*($A9-1),4*(U$2-1),12,1))) -> 56.718275 | V9: =IF(PlotControl!$B$4 = "Annual Max",MAX(OFFSET(P_Flows!$E$10,12*($A9-1),4*(U$2-1),12,1)),AVERAGE(OFFSET(P_Flows!$E$10,12*($A9-1),4*(U$2-1),12,1))) -> 227.4000833 | W9: =IF(PlotControl!$B$4 = "Annual Max",MAX(OFFSET(P_Flows!$C$10,12*($A9-1),4*(X$2-1),12,1)),AVERAGE(OFFSET(P_Flows!$C$10,12*($A9-1),4*(X$2-1),12,1))) -> 15.158225 | X9: =IF(PlotControl!$B$4 = "Annual Max",MAX(OFFSET(P_Flows!$D$10,12*($A9-1),4*(X$2-1),12,1)),AVERAGE(OFFSET(P_Flows!$D$10,12*($A9-1),4*(X$2-1),12,1))) -> 60.03369167 | Y9: =IF(PlotControl!$B$4 = "Annual Max",MAX(OFFSET(P_Flows!$E$10,12*($A9-1),4*(X$2-1),12,1)),AVERAGE(OFFSET(P_Flows!$E$10,12*($A9-1),4*(X$2-1),12,1))) -> 241.5028333 | Z9: =IF(PlotControl!$B$4 = "Annual Max",MAX(OFFSET(P_Flows!$C$10,12*($A9-1),4*(AA$2-1),12,1)),AVERAGE(OFFSET(P_Flows!$C$10,12*($A9-1),4*(AA$2-1),12,1))) -> 17.69046667 | AA9: =IF(PlotControl!$B$4 = "Annual Max",MAX(OFFSET(P_Flows!$D$10,12*($A9-1),4*(AA$2-1),12,1)),AVERAGE(OFFSET(P_Flows!$D$10,12*($A9-1),4*(AA$2-1),12,1))) -> 71.6136 | AB9: =IF(PlotControl!$B$4 = "Annual Max",MAX(OFFSET(P_Flows!$E$10,12*($A9-1),4*(AA$2-1),12,1)),AVERAGE(OFFSET(P_Flows!$E$10,12*($A9-1),4*(AA$2-1),12,1))) -> 289.6719167 | AD9: 50.33333333 | AE9: =OFFSET(P_Flows!$C$10,ROUND(12*$AD9,0),4*(AF$2-1),1,1) -> 3.1669 | AF9: =OFFSET(P_Flows!$D$10,ROUND(12*$AD9,0),4*(AF$2-1),1,1) -> 4.6817 | AG9: =OFFSET(P_Flows!$E$10,ROUND(12*$AD9,0),4*(AF$2-1),1,1) -> 9.5885 | AH9: =OFFSET(P_Flows!$C$10,ROUND(12*$AD9,0),4*(AI$2-1),1,1) -> 5.6932 | AI9: =OFFSET(P_Flows!$D$10,ROUND(12*$AD9,0),4*(AI$2-1),1,1) -> 13.958 | AJ9: =OFFSET(P_Flows!$E$10,ROUND(12*$AD9,0),4*(AI$2-1),1,1) -> 40.729 | AK9: =OFFSET(P_Flows!$C$10,ROUND(12*$AD9,0),4*(AL$2-1),1,1) -> 6.4869 | AL9: =OFFSET(P_Flows!$D$10,ROUND(12*$AD9,0),4*(AL$2-1),1,1) -> 16.872 | AM9: =OFFSET(P_Flows!$E$10,ROUND(12*$AD9,0),4*(AL$2-1),1,1) -> 50.513 | AN9: =OFFSET(P_Flows!$C$10,ROUND(12*$AD9,0),4*(AO$2-1),1,1) -> 10.016 | AO9: =OFFSET(P_Flows!$D$10,ROUND(12*$AD9,0),4*(AO$2-1),1,1) -> 29.828 | AP9: =OFFSET(P_Flows!$E$10,ROUND(12*$AD9,0),4*(AO$2-1),1,1) -> 94.009 | AQ9: =OFFSET(P_Flows!$C$10,ROUND(12*$AD9,0),4*(AR$2-1),1,1) -> 23.02 | AR9: =OFFSET(P_Flows!$D$10,ROUND(12*$AD9,0),4*(AR$2-1),1,1) -> 77.425 | AS9: =OFFSET(P_Flows!$E$10,ROUND(12*$AD9,0),4*(AR$2-1),1,1) -> 253.59 | AT9: =OFFSET(P_Flows!$C$10,ROUND(12*$AD9,0),4*(AU$2-1),1,1) -> 34.264 | AU9: =OFFSET(P_Flows!$D$10,ROUND(12*$AD9,0),4*(AU$2-1),1,1) -> 118.45 | AV9: =OFFSET(P_Flows!$E$10,ROUND(12*$AD9,0),4*(AU$2-1),1,1) -> 391.64 | AW9: =OFFSET(P_Flows!$C$10,ROUND(12*$AD9,0),4*(AX$2-1),1,1) -> 45.836 | AX9: =OFFSET(P_Flows!$D$10,ROUND(12*$AD9,0),4*(AX$2-1),1,1) -> 160.71 | AY9: =OFFSET(P_Flows!$E$10,ROUND(12*$AD9,0),4*(AX$2-1),1,1) -> 533.7 | AZ9: =OFFSET(P_Flows!$C$10,ROUND(12*$AD9,0),4*(BA$2-1),1,1) -> 48.081 | BA9: =OFFSET(P_Flows!$D$10,ROUND(12*$AD9,0),4*(BA$2-1),1,1) -> 168.92 | BB9: =OFFSET(P_Flows!$E$10,ROUND(12*$AD9,0),4*(BA$2-1),1,1) -> 561.27 | BC9: =OFFSET(P_Flows!$C$10,ROUND(12*$AD9,0),4*(BD$2-1),1,1) -> 57.189 | BD9: =OFFSET(P_Flows!$D$10,ROUND(12*$AD9,0),4*(BD$2-1),1,1) -> 202.22 | BE9: =OFFSET(P_Flows!$E$10,ROUND(12*$AD9,0),4*(BD$2-1),1,1) -> 673.08
A10: 6 | B10: =IF(PlotControl!$B$4 = "Annual Max",MAX(OFFSET(P_Flows!$C$10,12*($A10-1),4*(C$2-1),12,1)),AVERAGE(OFFSET(P_Flows!$C$10,12*($A10-1),4*(C$2-1),12,1))) -> 2.763858333 | C10: =IF(PlotControl!$B$4 = "Annual Max",MAX(OFFSET(P_Flows!$D$10,12*($A10-1),4*(C$2-1),12,1)),AVERAGE(OFFSET(P_Flows!$D$10,12*($A10-1),4*(C$2-1),12,1))) -> 3.38375 | D10: =IF(PlotControl!$B$4 = "Annual Max",MAX(OFFSET(P_Flows!$E$10,12*($A10-1),4*(C$2-1),12,1)),AVERAGE(OFFSET(P_Flows!$E$10,12*($A10-1),4*(C$2-1),12,1))) -> 5.798958333 | E10: =IF(PlotControl!$B$4 = "Annual Max",MAX(OFFSET(P_Flows!$C$10,12*($A10-1),4*(F$2-1),12,1)),AVERAGE(OFFSET(P_Flows!$C$10,12*($A10-1),4*(F$2-1),12,1))) -> 3.534416667 | F10: =IF(PlotControl!$B$4 = "Annual Max",MAX(OFFSET(P_Flows!$D$10,12*($A10-1),4*(F$2-1),12,1)),AVERAGE(OFFSET(P_Flows!$D$10,12*($A10-1),4*(F$2-1),12,1))) -> 6.981666667 | G10: =IF(PlotControl!$B$4 = "Annual Max",MAX(OFFSET(P_Flows!$E$10,12*($A10-1),4*(F$2-1),12,1)),AVERAGE(OFFSET(P_Flows!$E$10,12*($A10-1),4*(F$2-1),12,1))) -> 19.81955 | H10: =IF(PlotControl!$B$4 = "Annual Max",MAX(OFFSET(P_Flows!$C$10,12*($A10-1),4*(I$2-1),12,1)),AVERAGE(OFFSET(P_Flows!$C$10,12*($A10-1),4*(I$2-1),12,1))) -> 3.775283333 | I10: =IF(PlotControl!$B$4 = "Annual Max",MAX(OFFSET(P_Flows!$D$10,12*($A10-1),4*(I$2-1),12,1)),AVERAGE(OFFSET(P_Flows!$D$10,12*($A10-1),4*(I$2-1),12,1))) -> 8.07455 | J10: =IF(PlotControl!$B$4 = "Annual Max",MAX(OFFSET(P_Flows!$E$10,12*($A10-1),4*(I$2-1),12,1)),AVERAGE(OFFSET(P_Flows!$E$10,12*($A10-1),4*(I$2-1),12,1))) -> 24.014425 | K10: =IF(PlotControl!$B$4 = "Annual Max",MAX(OFFSET(P_Flows!$C$10,12*($A10-1),4*(L$2-1),12,1)),AVERAGE(OFFSET(P_Flows!$C$10,12*($A10-1),4*(L$2-1),12,1))) -> 4.8064 | L10: =IF(PlotControl!$B$4 = "Annual Max",MAX(OFFSET(P_Flows!$D$10,12*($A10-1),4*(L$2-1),12,1)),AVERAGE(OFFSET(P_Flows!$D$10,12*($A10-1),4*(L$2-1),12,1))) -> 12.83505 | M10: =IF(PlotControl!$B$4 = "Annual Max",MAX(OFFSET(P_Flows!$E$10,12*($A10-1),4*(L$2-1),12,1)),AVERAGE(OFFSET(P_Flows!$E$10,12*($A10-1),4*(L$2-1),12,1))) -> 42.39391667 | N10: =IF(PlotControl!$B$4 = "Annual Max",MAX(OFFSET(P_Flows!$C$10,12*($A10-1),4*(O$2-1),12,1)),AVERAGE(OFFSET(P_Flows!$C$10,12*($A10-1),4*(O$2-1),12,1))) -> 8.739925 | O10: =IF(PlotControl!$B$4 = "Annual Max",MAX(OFFSET(P_Flows!$D$10,12*($A10-1),4*(O$2-1),12,1)),AVERAGE(OFFSET(P_Flows!$D$10,12*($A10-1),4*(O$2-1),12,1))) -> 30.91164167 | P10: =IF(PlotControl!$B$4 = "Annual Max",MAX(OFFSET(P_Flows!$E$10,12*($A10-1),4*(O$2-1),12,1)),AVERAGE(OFFSET(P_Flows!$E$10,12*($A10-1),4*(O$2-1),12,1))) -> 111.6125833 | Q10: =IF(PlotControl!$B$4 = "Annual Max",MAX(OFFSET(P_Flows!$C$10,12*($A10-1),4*(R$2-1),12,1)),AVERAGE(OFFSET(P_Flows!$C$10,12*($A10-1),4*(R$2-1),12,1))) -> 12.02708333 | R10: =IF(PlotControl!$B$4 = "Annual Max",MAX(OFFSET(P_Flows!$D$10,12*($A10-1),4*(R$2-1),12,1)),AVERAGE(OFFSET(P_Flows!$D$10,12*($A10-1),4*(R$2-1),12,1))) -> 45.95466667 | S10: =IF(PlotControl!$B$4 = "Annual Max",MAX(OFFSET(P_Flows!$E$10,12*($A10-1),4*(R$2-1),12,1)),AVERAGE(OFFSET(P_Flows!$E$10,12*($A10-1),4*(R$2-1),12,1))) -> 169.5619167 | T10: =IF(PlotControl!$B$4 = "Annual Max",MAX(OFFSET(P_Flows!$C$10,12*($A10-1),4*(U$2-1),12,1)),AVERAGE(OFFSET(P_Flows!$C$10,12*($A10-1),4*(U$2-1),12,1))) -> 15.050725 | U10: =IF(PlotControl!$B$4 = "Annual Max",MAX(OFFSET(P_Flows!$D$10,12*($A10-1),4*(U$2-1),12,1)),AVERAGE(OFFSET(P_Flows!$D$10,12*($A10-1),4*(U$2-1),12,1))) -> 59.69126667 | V10: =IF(PlotControl!$B$4 = "Annual Max",MAX(OFFSET(P_Flows!$E$10,12*($A10-1),4*(U$2-1),12,1)),AVERAGE(OFFSET(P_Flows!$E$10,12*($A10-1),4*(U$2-1),12,1))) -> 223.2836667 | W10: =IF(PlotControl!$B$4 = "Annual Max",MAX(OFFSET(P_Flows!$C$10,12*($A10-1),4*(X$2-1),12,1)),AVERAGE(OFFSET(P_Flows!$C$10,12*($A10-1),4*(X$2-1),12,1))) -> 15.7831 | X10: =IF(PlotControl!$B$4 = "Annual Max",MAX(OFFSET(P_Flows!$D$10,12*($A10-1),4*(X$2-1),12,1)),AVERAGE(OFFSET(P_Flows!$D$10,12*($A10-1),4*(X$2-1),12,1))) -> 63.131575 | Y10: =IF(PlotControl!$B$4 = "Annual Max",MAX(OFFSET(P_Flows!$E$10,12*($A10-1),4*(X$2-1),12,1)),AVERAGE(OFFSET(P_Flows!$E$10,12*($A10-1),4*(X$2-1),12,1))) -> 236.98125 | Z10: =IF(PlotControl!$B$4 = "Annual Max",MAX(OFFSET(P_Flows!$C$10,12*($A10-1),4*(AA$2-1),12,1)),AVERAGE(OFFSET(P_Flows!$C$10,12*($A10-1),4*(AA$2-1),12,1))) -> 18.444675 | AA10: =IF(PlotControl!$B$4 = "Annual Max",MAX(OFFSET(P_Flows!$D$10,12*($A10-1),4*(AA$2-1),12,1)),AVERAGE(OFFSET(P_Flows!$D$10,12*($A10-1),4*(AA$2-1),12,1))) -> 75.35225 | AB10: =IF(PlotControl!$B$4 = "Annual Max",MAX(OFFSET(P_Flows!$E$10,12*($A10-1),4*(AA$2-1),12,1)),AVERAGE(OFFSET(P_Flows!$E$10,12*($A10-1),4*(AA$2-1),12,1))) -> 284.301 | AD10: 50.41666667 | AE10: =OFFSET(P_Flows!$C$10,ROUND(12*$AD10,0),4*(AF$2-1),1,1) -> 2.7664 | AF10: =OFFSET(P_Flows!$D$10,ROUND(12*$AD10,0),4*(AF$2-1),1,1) -> 3.8688 | AG10: =OFFSET(P_Flows!$E$10,ROUND(12*$AD10,0),4*(AF$2-1),1,1) -> 5.8921 | AH10: =OFFSET(P_Flows!$C$10,ROUND(12*$AD10,0),4*(AI$2-1),1,1) -> 3.542 | AI10: =OFFSET(P_Flows!$D$10,ROUND(12*$AD10,0),4*(AI$2-1),1,1) -> 9.7843 | AJ10: =OFFSET(P_Flows!$E$10,ROUND(12*$AD10,0),4*(AI$2-1),1,1) -> 21.241 | AK10: =OFFSET(P_Flows!$C$10,ROUND(12*$AD10,0),4*(AL$2-1),1,1) -> 3.7293 | AL10: =OFFSET(P_Flows!$D$10,ROUND(12*$AD10,0),4*(AL$2-1),1,1) -> 11.213 | AM10: =OFFSET(P_Flows!$E$10,ROUND(12*$AD10,0),4*(AL$2-1),1,1) -> 24.947 | AN10: =OFFSET(P_Flows!$C$10,ROUND(12*$AD10,0),4*(AO$2-1),1,1) -> 4.7 | AO10: =OFFSET(P_Flows!$D$10,ROUND(12*$AD10,0),4*(AO$2-1),1,1) -> 18.616 | AP10: =OFFSET(P_Flows!$E$10,ROUND(12*$AD10,0),4*(AO$2-1),1,1) -> 44.155 | AQ10: =OFFSET(P_Flows!$C$10,ROUND(12*$AD10,0),4*(AR$2-1),1,1) -> 8.3083 | AR10: =OFFSET(P_Flows!$D$10,ROUND(12*$AD10,0),4*(AR$2-1),1,1) -> 44.444 | AS10: =OFFSET(P_Flows!$E$10,ROUND(12*$AD10,0),4*(AR$2-1),1,1) -> 111.24 | AT10: =OFFSET(P_Flows!$C$10,ROUND(12*$AD10,0),4*(AU$2-1),1,1) -> 11.02 | AU10: =OFFSET(P_Flows!$D$10,ROUND(12*$AD10,0),4*(AU$2-1),1,1) -> 65.333 | AV10: =OFFSET(P_Flows!$E$10,ROUND(12*$AD10,0),4*(AU$2-1),1,1) -> 165.57 | AW10: =OFFSET(P_Flows!$C$10,ROUND(12*$AD10,0),4*(AX$2-1),1,1) -> 13.186 | AX10: =OFFSET(P_Flows!$D$10,ROUND(12*$AD10,0),4*(AX$2-1),1,1) -> 82.014 | AY10: =OFFSET(P_Flows!$E$10,ROUND(12*$AD10,0),4*(AX$2-1),1,1) -> 208.96 | AZ10: =OFFSET(P_Flows!$C$10,ROUND(12*$AD10,0),4*(BA$2-1),1,1) -> 13.785 | BA10: =OFFSET(P_Flows!$D$10,ROUND(12*$AD10,0),4*(BA$2-1),1,1) -> 86.633 | BB10: =OFFSET(P_Flows!$E$10,ROUND(12*$AD10,0),4*(BA$2-1),1,1) -> 220.97 | BC10: =OFFSET(P_Flows!$C$10,ROUND(12*$AD10,0),4*(BD$2-1),1,1) -> 15.961 | BD10: =OFFSET(P_Flows!$D$10,ROUND(12*$AD10,0),4*(BD$2-1),1,1) -> 103.4 | BE10: =OFFSET(P_Flows!$E$10,ROUND(12*$AD10,0),4*(BD$2-1),1,1) -> 264.58
A11: 7 | B11: =IF(PlotControl!$B$4 = "Annual Max",MAX(OFFSET(P_Flows!$C$10,12*($A11-1),4*(C$2-1),12,1)),AVERAGE(OFFSET(P_Flows!$C$10,12*($A11-1),4*(C$2-1),12,1))) -> 2.7584 | C11: =IF(PlotControl!$B$4 = "Annual Max",MAX(OFFSET(P_Flows!$D$10,12*($A11-1),4*(C$2-1),12,1)),AVERAGE(OFFSET(P_Flows!$D$10,12*($A11-1),4*(C$2-1),12,1))) -> 3.346008333 | D11: =IF(PlotControl!$B$4 = "Annual Max",MAX(OFFSET(P_Flows!$E$10,12*($A11-1),4*(C$2-1),12,1)),AVERAGE(OFFSET(P_Flows!$E$10,12*($A11-1),4*(C$2-1),12,1))) -> 5.706775 | E11: =IF(PlotControl!$B$4 = "Annual Max",MAX(OFFSET(P_Flows!$C$10,12*($A11-1),4*(F$2-1),12,1)),AVERAGE(OFFSET(P_Flows!$C$10,12*($A11-1),4*(F$2-1),12,1))) -> 3.504375 | F11: =IF(PlotControl!$B$4 = "Annual Max",MAX(OFFSET(P_Flows!$D$10,12*($A11-1),4*(F$2-1),12,1)),AVERAGE(OFFSET(P_Flows!$D$10,12*($A11-1),4*(F$2-1),12,1))) -> 6.748591667 | G11: =IF(PlotControl!$B$4 = "Annual Max",MAX(OFFSET(P_Flows!$E$10,12*($A11-1),4*(F$2-1),12,1)),AVERAGE(OFFSET(P_Flows!$E$10,12*($A11-1),4*(F$2-1),12,1))) -> 19.26270833 | H11: =IF(PlotControl!$B$4 = "Annual Max",MAX(OFFSET(P_Flows!$C$10,12*($A11-1),4*(I$2-1),12,1)),AVERAGE(OFFSET(P_Flows!$C$10,12*($A11-1),4*(I$2-1),12,1))) -> 3.736933333 | I11: =IF(PlotControl!$B$4 = "Annual Max",MAX(OFFSET(P_Flows!$D$10,12*($A11-1),4*(I$2-1),12,1)),AVERAGE(OFFSET(P_Flows!$D$10,12*($A11-1),4*(I$2-1),12,1))) -> 7.78685 | J11: =IF(PlotControl!$B$4 = "Annual Max",MAX(OFFSET(P_Flows!$E$10,12*($A11-1),4*(I$2-1),12,1)),AVERAGE(OFFSET(P_Flows!$E$10,12*($A11-1),4*(I$2-1),12,1))) -> 23.33630833 | K11: =IF(PlotControl!$B$4 = "Annual Max",MAX(OFFSET(P_Flows!$C$10,12*($A11-1),4*(L$2-1),12,1)),AVERAGE(OFFSET(P_Flows!$C$10,12*($A11-1),4*(L$2-1),12,1))) -> 4.732366667 | L11: =IF(PlotControl!$B$4 = "Annual Max",MAX(OFFSET(P_Flows!$D$10,12*($A11-1),4*(L$2-1),12,1)),AVERAGE(OFFSET(P_Flows!$D$10,12*($A11-1),4*(L$2-1),12,1))) -> 12.29390833 | M11: =IF(PlotControl!$B$4 = "Annual Max",MAX(OFFSET(P_Flows!$E$10,12*($A11-1),4*(L$2-1),12,1)),AVERAGE(OFFSET(P_Flows!$E$10,12*($A11-1),4*(L$2-1),12,1))) -> 41.141525 | N11: =IF(PlotControl!$B$4 = "Annual Max",MAX(OFFSET(P_Flows!$C$10,12*($A11-1),4*(O$2-1),12,1)),AVERAGE(OFFSET(P_Flows!$C$10,12*($A11-1),4*(O$2-1),12,1))) -> 8.516033333 | O11: =IF(PlotControl!$B$4 = "Annual Max",MAX(OFFSET(P_Flows!$D$10,12*($A11-1),4*(O$2-1),12,1)),AVERAGE(OFFSET(P_Flows!$D$10,12*($A11-1),4*(O$2-1),12,1))) -> 29.34439167 | P11: =IF(PlotControl!$B$4 = "Annual Max",MAX(OFFSET(P_Flows!$E$10,12*($A11-1),4*(O$2-1),12,1)),AVERAGE(OFFSET(P_Flows!$E$10,12*($A11-1),4*(O$2-1),12,1))) -> 108.0520833 | Q11: =IF(PlotControl!$B$4 = "Annual Max",MAX(OFFSET(P_Flows!$C$10,12*($A11-1),4*(R$2-1),12,1)),AVERAGE(OFFSET(P_Flows!$C$10,12*($A11-1),4*(R$2-1),12,1))) -> 11.6849 | R11: =IF(PlotControl!$B$4 = "Annual Max",MAX(OFFSET(P_Flows!$D$10,12*($A11-1),4*(R$2-1),12,1)),AVERAGE(OFFSET(P_Flows!$D$10,12*($A11-1),4*(R$2-1),12,1))) -> 43.62684167 | S11: =IF(PlotControl!$B$4 = "Annual Max",MAX(OFFSET(P_Flows!$E$10,12*($A11-1),4*(R$2-1),12,1)),AVERAGE(OFFSET(P_Flows!$E$10,12*($A11-1),4*(R$2-1),12,1))) -> 164.3926667 | T11: =IF(PlotControl!$B$4 = "Annual Max",MAX(OFFSET(P_Flows!$C$10,12*($A11-1),4*(U$2-1),12,1)),AVERAGE(OFFSET(P_Flows!$C$10,12*($A11-1),4*(U$2-1),12,1))) -> 14.59465 | U11: =IF(PlotControl!$B$4 = "Annual Max",MAX(OFFSET(P_Flows!$D$10,12*($A11-1),4*(U$2-1),12,1)),AVERAGE(OFFSET(P_Flows!$D$10,12*($A11-1),4*(U$2-1),12,1))) -> 56.7674 | V11: =IF(PlotControl!$B$4 = "Annual Max",MAX(OFFSET(P_Flows!$E$10,12*($A11-1),4*(U$2-1),12,1)),AVERAGE(OFFSET(P_Flows!$E$10,12*($A11-1),4*(U$2-1),12,1))) -> 217.0765833 | W11: =IF(PlotControl!$B$4 = "Annual Max",MAX(OFFSET(P_Flows!$C$10,12*($A11-1),4*(X$2-1),12,1)),AVERAGE(OFFSET(P_Flows!$C$10,12*($A11-1),4*(X$2-1),12,1))) -> 15.29323333 | X11: =IF(PlotControl!$B$4 = "Annual Max",MAX(OFFSET(P_Flows!$D$10,12*($A11-1),4*(X$2-1),12,1)),AVERAGE(OFFSET(P_Flows!$D$10,12*($A11-1),4*(X$2-1),12,1))) -> 59.99046667 | Y11: =IF(PlotControl!$B$4 = "Annual Max",MAX(OFFSET(P_Flows!$E$10,12*($A11-1),4*(X$2-1),12,1)),AVERAGE(OFFSET(P_Flows!$E$10,12*($A11-1),4*(X$2-1),12,1))) -> 230.2084167 | Z11: =IF(PlotControl!$B$4 = "Annual Max",MAX(OFFSET(P_Flows!$C$10,12*($A11-1),4*(AA$2-1),12,1)),AVERAGE(OFFSET(P_Flows!$C$10,12*($A11-1),4*(AA$2-1),12,1))) -> 17.85940833 | AA11: =IF(PlotControl!$B$4 = "Annual Max",MAX(OFFSET(P_Flows!$D$10,12*($A11-1),4*(AA$2-1),12,1)),AVERAGE(OFFSET(P_Flows!$D$10,12*($A11-1),4*(AA$2-1),12,1))) -> 71.59295 | AB11: =IF(PlotControl!$B$4 = "Annual Max",MAX(OFFSET(P_Flows!$E$10,12*($A11-1),4*(AA$2-1),12,1)),AVERAGE(OFFSET(P_Flows!$E$10,12*($A11-1),4*(AA$2-1),12,1))) -> 276.225 | AD11: 50.5 | AE11: =OFFSET(P_Flows!$C$10,ROUND(12*$AD11,0),4*(AF$2-1),1,1) -> 2.6594 | AF11: =OFFSET(P_Flows!$D$10,ROUND(12*$AD11,0),4*(AF$2-1),1,1) -> 3.2914 | AG11: =OFFSET(P_Flows!$E$10,ROUND(12*$AD11,0),4*(AF$2-1),1,1) -> 10.979 | AH11: =OFFSET(P_Flows!$C$10,ROUND(12*$AD11,0),4*(AI$2-1),1,1) -> 2.8921 | AI11: =OFFSET(P_Flows!$D$10,ROUND(12*$AD11,0),4*(AI$2-1),1,1) -> 5.9977 | AJ11: =OFFSET(P_Flows!$E$10,ROUND(12*$AD11,0),4*(AI$2-1),1,1) -> 43.775 | AK11: =OFFSET(P_Flows!$C$10,ROUND(12*$AD11,0),4*(AL$2-1),1,1) -> 2.955 | AL11: =OFFSET(P_Flows!$D$10,ROUND(12*$AD11,0),4*(AL$2-1),1,1) -> 6.7303 | AM11: =OFFSET(P_Flows!$E$10,ROUND(12*$AD11,0),4*(AL$2-1),1,1) -> 52.654 | AN11: =OFFSET(P_Flows!$C$10,ROUND(12*$AD11,0),4*(AO$2-1),1,1) -> 3.2676 | AO11: =OFFSET(P_Flows!$D$10,ROUND(12*$AD11,0),4*(AO$2-1),1,1) -> 10.366 | AP11: =OFFSET(P_Flows!$E$10,ROUND(12*$AD11,0),4*(AO$2-1),1,1) -> 96.715 | AQ11: =OFFSET(P_Flows!$C$10,ROUND(12*$AD11,0),4*(AR$2-1),1,1) -> 4.6269 | AR11: =OFFSET(P_Flows!$D$10,ROUND(12*$AD11,0),4*(AR$2-1),1,1) -> 22.891 | AS11: =OFFSET(P_Flows!$E$10,ROUND(12*$AD11,0),4*(AR$2-1),1,1) -> 245.58 | AT11: =OFFSET(P_Flows!$C$10,ROUND(12*$AD11,0),4*(AU$2-1),1,1) -> 5.5566 | AU11: =OFFSET(P_Flows!$D$10,ROUND(12*$AD11,0),4*(AU$2-1),1,1) -> 33.853 | AV11: =OFFSET(P_Flows!$E$10,ROUND(12*$AD11,0),4*(AU$2-1),1,1) -> 377.7 | AW11: =OFFSET(P_Flows!$C$10,ROUND(12*$AD11,0),4*(AX$2-1),1,1) -> 6.5973 | AX11: =OFFSET(P_Flows!$D$10,ROUND(12*$AD11,0),4*(AX$2-1),1,1) -> 46.051 | AY11: =OFFSET(P_Flows!$E$10,ROUND(12*$AD11,0),4*(AX$2-1),1,1) -> 525.43 | AZ11: =OFFSET(P_Flows!$C$10,ROUND(12*$AD11,0),4*(BA$2-1),1,1) -> 6.8213 | BA11: =OFFSET(P_Flows!$D$10,ROUND(12*$AD11,0),4*(BA$2-1),1,1) -> 48.677 | BB11: =OFFSET(P_Flows!$E$10,ROUND(12*$AD11,0),4*(BA$2-1),1,1) -> 557.22 | BC11: =OFFSET(P_Flows!$C$10,ROUND(12*$AD11,0),4*(BD$2-1),1,1) -> 7.6031 | BD11: =OFFSET(P_Flows!$D$10,ROUND(12*$AD11,0),4*(BD$2-1),1,1) -> 57.842 | BE11: =OFFSET(P_Flows!$E$10,ROUND(12*$AD11,0),4*(BD$2-1),1,1) -> 668.21
A12: 8 | B12: =IF(PlotControl!$B$4 = "Annual Max",MAX(OFFSET(P_Flows!$C$10,12*($A12-1),4*(C$2-1),12,1)),AVERAGE(OFFSET(P_Flows!$C$10,12*($A12-1),4*(C$2-1),12,1))) -> 2.760216667 | C12: =IF(PlotControl!$B$4 = "Annual Max",MAX(OFFSET(P_Flows!$D$10,12*($A12-1),4*(C$2-1),12,1)),AVERAGE(OFFSET(P_Flows!$D$10,12*($A12-1),4*(C$2-1),12,1))) -> 3.37635 | D12: =IF(PlotControl!$B$4 = "Annual Max",MAX(OFFSET(P_Flows!$E$10,12*($A12-1),4*(C$2-1),12,1)),AVERAGE(OFFSET(P_Flows!$E$10,12*($A12-1),4*(C$2-1),12,1))) -> 5.76765 | E12: =IF(PlotControl!$B$4 = "Annual Max",MAX(OFFSET(P_Flows!$C$10,12*($A12-1),4*(F$2-1),12,1)),AVERAGE(OFFSET(P_Flows!$C$10,12*($A12-1),4*(F$2-1),12,1))) -> 3.509041667 | F12: =IF(PlotControl!$B$4 = "Annual Max",MAX(OFFSET(P_Flows!$D$10,12*($A12-1),4*(F$2-1),12,1)),AVERAGE(OFFSET(P_Flows!$D$10,12*($A12-1),4*(F$2-1),12,1))) -> 6.878258333 | G12: =IF(PlotControl!$B$4 = "Annual Max",MAX(OFFSET(P_Flows!$E$10,12*($A12-1),4*(F$2-1),12,1)),AVERAGE(OFFSET(P_Flows!$E$10,12*($A12-1),4*(F$2-1),12,1))) -> 19.61075833 | H12: =IF(PlotControl!$B$4 = "Annual Max",MAX(OFFSET(P_Flows!$C$10,12*($A12-1),4*(I$2-1),12,1)),AVERAGE(OFFSET(P_Flows!$C$10,12*($A12-1),4*(I$2-1),12,1))) -> 3.742158333 | I12: =IF(PlotControl!$B$4 = "Annual Max",MAX(OFFSET(P_Flows!$D$10,12*($A12-1),4*(I$2-1),12,1)),AVERAGE(OFFSET(P_Flows!$D$10,12*($A12-1),4*(I$2-1),12,1))) -> 7.942308333 | J12: =IF(PlotControl!$B$4 = "Annual Max",MAX(OFFSET(P_Flows!$E$10,12*($A12-1),4*(I$2-1),12,1)),AVERAGE(OFFSET(P_Flows!$E$10,12*($A12-1),4*(I$2-1),12,1))) -> 23.76586667 | K12: =IF(PlotControl!$B$4 = "Annual Max",MAX(OFFSET(P_Flows!$C$10,12*($A12-1),4*(L$2-1),12,1)),AVERAGE(OFFSET(P_Flows!$C$10,12*($A12-1),4*(L$2-1),12,1))) -> 4.738983333 | L12: =IF(PlotControl!$B$4 = "Annual Max",MAX(OFFSET(P_Flows!$D$10,12*($A12-1),4*(L$2-1),12,1)),AVERAGE(OFFSET(P_Flows!$D$10,12*($A12-1),4*(L$2-1),12,1))) -> 12.55624167 | M12: =IF(PlotControl!$B$4 = "Annual Max",MAX(OFFSET(P_Flows!$E$10,12*($A12-1),4*(L$2-1),12,1)),AVERAGE(OFFSET(P_Flows!$E$10,12*($A12-1),4*(L$2-1),12,1))) -> 41.89485 | N12: =IF(PlotControl!$B$4 = "Annual Max",MAX(OFFSET(P_Flows!$C$10,12*($A12-1),4*(O$2-1),12,1)),AVERAGE(OFFSET(P_Flows!$C$10,12*($A12-1),4*(O$2-1),12,1))) -> 8.514133333 | O12: =IF(PlotControl!$B$4 = "Annual Max",MAX(OFFSET(P_Flows!$D$10,12*($A12-1),4*(O$2-1),12,1)),AVERAGE(OFFSET(P_Flows!$D$10,12*($A12-1),4*(O$2-1),12,1))) -> 29.94785 | P12: =IF(PlotControl!$B$4 = "Annual Max",MAX(OFFSET(P_Flows!$E$10,12*($A12-1),4*(O$2-1),12,1)),AVERAGE(OFFSET(P_Flows!$E$10,12*($A12-1),4*(O$2-1),12,1))) -> 109.945875 | Q12: =IF(PlotControl!$B$4 = "Annual Max",MAX(OFFSET(P_Flows!$C$10,12*($A12-1),4*(R$2-1),12,1)),AVERAGE(OFFSET(P_Flows!$C$10,12*($A12-1),4*(R$2-1),12,1))) -> 11.68896667 | R12: =IF(PlotControl!$B$4 = "Annual Max",MAX(OFFSET(P_Flows!$D$10,12*($A12-1),4*(R$2-1),12,1)),AVERAGE(OFFSET(P_Flows!$D$10,12*($A12-1),4*(R$2-1),12,1))) -> 44.55214167 | S12: =IF(PlotControl!$B$4 = "Annual Max",MAX(OFFSET(P_Flows!$E$10,12*($A12-1),4*(R$2-1),12,1)),AVERAGE(OFFSET(P_Flows!$E$10,12*($A12-1),4*(R$2-1),12,1))) -> 167.3259167 | T12: =IF(PlotControl!$B$4 = "Annual Max",MAX(OFFSET(P_Flows!$C$10,12*($A12-1),4*(U$2-1),12,1)),AVERAGE(OFFSET(P_Flows!$C$10,12*($A12-1),4*(U$2-1),12,1))) -> 14.610475 | U12: =IF(PlotControl!$B$4 = "Annual Max",MAX(OFFSET(P_Flows!$D$10,12*($A12-1),4*(U$2-1),12,1)),AVERAGE(OFFSET(P_Flows!$D$10,12*($A12-1),4*(U$2-1),12,1))) -> 57.98378333 | V12: =IF(PlotControl!$B$4 = "Annual Max",MAX(OFFSET(P_Flows!$E$10,12*($A12-1),4*(U$2-1),12,1)),AVERAGE(OFFSET(P_Flows!$E$10,12*($A12-1),4*(U$2-1),12,1))) -> 220.84525 | W12: =IF(PlotControl!$B$4 = "Annual Max",MAX(OFFSET(P_Flows!$C$10,12*($A12-1),4*(X$2-1),12,1)),AVERAGE(OFFSET(P_Flows!$C$10,12*($A12-1),4*(X$2-1),12,1))) -> 15.30439167 | X12: =IF(PlotControl!$B$4 = "Annual Max",MAX(OFFSET(P_Flows!$D$10,12*($A12-1),4*(X$2-1),12,1)),AVERAGE(OFFSET(P_Flows!$D$10,12*($A12-1),4*(X$2-1),12,1))) -> 61.268425 | Y12: =IF(PlotControl!$B$4 = "Annual Max",MAX(OFFSET(P_Flows!$E$10,12*($A12-1),4*(X$2-1),12,1)),AVERAGE(OFFSET(P_Flows!$E$10,12*($A12-1),4*(X$2-1),12,1))) -> 234.07 | Z12: =IF(PlotControl!$B$4 = "Annual Max",MAX(OFFSET(P_Flows!$C$10,12*($A12-1),4*(AA$2-1),12,1)),AVERAGE(OFFSET(P_Flows!$C$10,12*($A12-1),4*(AA$2-1),12,1))) -> 17.87625 | AA12: =IF(PlotControl!$B$4 = "Annual Max",MAX(OFFSET(P_Flows!$D$10,12*($A12-1),4*(AA$2-1),12,1)),AVERAGE(OFFSET(P_Flows!$D$10,12*($A12-1),4*(AA$2-1),12,1))) -> 73.145675 | AB12: =IF(PlotControl!$B$4 = "Annual Max",MAX(OFFSET(P_Flows!$E$10,12*($A12-1),4*(AA$2-1),12,1)),AVERAGE(OFFSET(P_Flows!$E$10,12*($A12-1),4*(AA$2-1),12,1))) -> 280.93075 | AD12: 50.58333333 | AE12: =OFFSET(P_Flows!$C$10,ROUND(12*$AD12,0),4*(AF$2-1),1,1) -> 2.806 | AF12: =OFFSET(P_Flows!$D$10,ROUND(12*$AD12,0),4*(AF$2-1),1,1) -> 3.2444 | AG12: =OFFSET(P_Flows!$E$10,ROUND(12*$AD12,0),4*(AF$2-1),1,1) -> 7.0831 | AH12: =OFFSET(P_Flows!$C$10,ROUND(12*$AD12,0),4*(AI$2-1),1,1) -> 3.6175 | AI12: =OFFSET(P_Flows!$D$10,ROUND(12*$AD12,0),4*(AI$2-1),1,1) -> 5.7825 | AJ12: =OFFSET(P_Flows!$E$10,ROUND(12*$AD12,0),4*(AI$2-1),1,1) -> 24.74 | AK12: =OFFSET(P_Flows!$C$10,ROUND(12*$AD12,0),4*(AL$2-1),1,1) -> 3.8361 | AL12: =OFFSET(P_Flows!$D$10,ROUND(12*$AD12,0),4*(AL$2-1),1,1) -> 6.4666 | AM12: =OFFSET(P_Flows!$E$10,ROUND(12*$AD12,0),4*(AL$2-1),1,1) -> 29.499 | AN12: =OFFSET(P_Flows!$C$10,ROUND(12*$AD12,0),4*(AO$2-1),1,1) -> 4.7857 | AO12: =OFFSET(P_Flows!$D$10,ROUND(12*$AD12,0),4*(AO$2-1),1,1) -> 9.4367 | AP12: =OFFSET(P_Flows!$E$10,ROUND(12*$AD12,0),4*(AO$2-1),1,1) -> 50.161 | AQ12: =OFFSET(P_Flows!$C$10,ROUND(12*$AD12,0),4*(AR$2-1),1,1) -> 8.4468 | AR12: =OFFSET(P_Flows!$D$10,ROUND(12*$AD12,0),4*(AR$2-1),1,1) -> 20.496 | AS12: =OFFSET(P_Flows!$E$10,ROUND(12*$AD12,0),4*(AR$2-1),1,1) -> 124.64 | AT12: =OFFSET(P_Flows!$C$10,ROUND(12*$AD12,0),4*(AU$2-1),1,1) -> 11.328 | AU12: =OFFSET(P_Flows!$D$10,ROUND(12*$AD12,0),4*(AU$2-1),1,1) -> 29.073 | AV12: =OFFSET(P_Flows!$E$10,ROUND(12*$AD12,0),4*(AU$2-1),1,1) -> 184.77 | AW12: =OFFSET(P_Flows!$C$10,ROUND(12*$AD12,0),4*(AX$2-1),1,1) -> 13.732 | AX12: =OFFSET(P_Flows!$D$10,ROUND(12*$AD12,0),4*(AX$2-1),1,1) -> 36.604 | AY12: =OFFSET(P_Flows!$E$10,ROUND(12*$AD12,0),4*(AX$2-1),1,1) -> 237.27 | AZ12: =OFFSET(P_Flows!$C$10,ROUND(12*$AD12,0),4*(BA$2-1),1,1) -> 14.45 | BA12: =OFFSET(P_Flows!$D$10,ROUND(12*$AD12,0),4*(BA$2-1),1,1) -> 38.872 | BB12: =OFFSET(P_Flows!$E$10,ROUND(12*$AD12,0),4*(BA$2-1),1,1) -> 253.05 | BC12: =OFFSET(P_Flows!$C$10,ROUND(12*$AD12,0),4*(BD$2-1),1,1) -> 16.744 | BD12: =OFFSET(P_Flows!$D$10,ROUND(12*$AD12,0),4*(BD$2-1),1,1) -> 46.073 | BE12: =OFFSET(P_Flows!$E$10,ROUND(12*$AD12,0),4*(BD$2-1),1,1) -> 303.14
A13: 9 | B13: =IF(PlotControl!$B$4 = "Annual Max",MAX(OFFSET(P_Flows!$C$10,12*($A13-1),4*(C$2-1),12,1)),AVERAGE(OFFSET(P_Flows!$C$10,12*($A13-1),4*(C$2-1),12,1))) -> 2.768466667 | C13: =IF(PlotControl!$B$4 = "Annual Max",MAX(OFFSET(P_Flows!$D$10,12*($A13-1),4*(C$2-1),12,1)),AVERAGE(OFFSET(P_Flows!$D$10,12*($A13-1),4*(C$2-1),12,1))) -> 3.349883333 | D13: =IF(PlotControl!$B$4 = "Annual Max",MAX(OFFSET(P_Flows!$E$10,12*($A13-1),4*(C$2-1),12,1)),AVERAGE(OFFSET(P_Flows!$E$10,12*($A13-1),4*(C$2-1),12,1))) -> 5.873858333 | E13: =IF(PlotControl!$B$4 = "Annual Max",MAX(OFFSET(P_Flows!$C$10,12*($A13-1),4*(F$2-1),12,1)),AVERAGE(OFFSET(P_Flows!$C$10,12*($A13-1),4*(F$2-1),12,1))) -> 3.55385 | F13: =IF(PlotControl!$B$4 = "Annual Max",MAX(OFFSET(P_Flows!$D$10,12*($A13-1),4*(F$2-1),12,1)),AVERAGE(OFFSET(P_Flows!$D$10,12*($A13-1),4*(F$2-1),12,1))) -> 6.72615 | G13: =IF(PlotControl!$B$4 = "Annual Max",MAX(OFFSET(P_Flows!$E$10,12*($A13-1),4*(F$2-1),12,1)),AVERAGE(OFFSET(P_Flows!$E$10,12*($A13-1),4*(F$2-1),12,1))) -> 20.051675 | H13: =IF(PlotControl!$B$4 = "Annual Max",MAX(OFFSET(P_Flows!$C$10,12*($A13-1),4*(I$2-1),12,1)),AVERAGE(OFFSET(P_Flows!$C$10,12*($A13-1),4*(I$2-1),12,1))) -> 3.797691667 | I13: =IF(PlotControl!$B$4 = "Annual Max",MAX(OFFSET(P_Flows!$D$10,12*($A13-1),4*(I$2-1),12,1)),AVERAGE(OFFSET(P_Flows!$D$10,12*($A13-1),4*(I$2-1),12,1))) -> 7.758108333 | J13: =IF(PlotControl!$B$4 = "Annual Max",MAX(OFFSET(P_Flows!$E$10,12*($A13-1),4*(I$2-1),12,1)),AVERAGE(OFFSET(P_Flows!$E$10,12*($A13-1),4*(I$2-1),12,1))) -> 24.32059167 | K13: =IF(PlotControl!$B$4 = "Annual Max",MAX(OFFSET(P_Flows!$C$10,12*($A13-1),4*(L$2-1),12,1)),AVERAGE(OFFSET(P_Flows!$C$10,12*($A13-1),4*(L$2-1),12,1))) -> 4.840233333 | L13: =IF(PlotControl!$B$4 = "Annual Max",MAX(OFFSET(P_Flows!$D$10,12*($A13-1),4*(L$2-1),12,1)),AVERAGE(OFFSET(P_Flows!$D$10,12*($A13-1),4*(L$2-1),12,1))) -> 12.2142 | M13: =IF(PlotControl!$B$4 = "Annual Max",MAX(OFFSET(P_Flows!$E$10,12*($A13-1),4*(L$2-1),12,1)),AVERAGE(OFFSET(P_Flows!$E$10,12*($A13-1),4*(L$2-1),12,1))) -> 42.90805833 | N13: =IF(PlotControl!$B$4 = "Annual Max",MAX(OFFSET(P_Flows!$C$10,12*($A13-1),4*(O$2-1),12,1)),AVERAGE(OFFSET(P_Flows!$C$10,12*($A13-1),4*(O$2-1),12,1))) -> 8.780591667 | O13: =IF(PlotControl!$B$4 = "Annual Max",MAX(OFFSET(P_Flows!$D$10,12*($A13-1),4*(O$2-1),12,1)),AVERAGE(OFFSET(P_Flows!$D$10,12*($A13-1),4*(O$2-1),12,1))) -> 28.98720833 | P13: =IF(PlotControl!$B$4 = "Annual Max",MAX(OFFSET(P_Flows!$E$10,12*($A13-1),4*(O$2-1),12,1)),AVERAGE(OFFSET(P_Flows!$E$10,12*($A13-1),4*(O$2-1),12,1))) -> 112.4477667 | Q13: =IF(PlotControl!$B$4 = "Annual Max",MAX(OFFSET(P_Flows!$C$10,12*($A13-1),4*(R$2-1),12,1)),AVERAGE(OFFSET(P_Flows!$C$10,12*($A13-1),4*(R$2-1),12,1))) -> 12.10169167 | R13: =IF(PlotControl!$B$4 = "Annual Max",MAX(OFFSET(P_Flows!$D$10,12*($A13-1),4*(R$2-1),12,1)),AVERAGE(OFFSET(P_Flows!$D$10,12*($A13-1),4*(R$2-1),12,1))) -> 43.14584167 | S13: =IF(PlotControl!$B$4 = "Annual Max",MAX(OFFSET(P_Flows!$E$10,12*($A13-1),4*(R$2-1),12,1)),AVERAGE(OFFSET(P_Flows!$E$10,12*($A13-1),4*(R$2-1),12,1))) -> 171.4418333 | T13: =IF(PlotControl!$B$4 = "Annual Max",MAX(OFFSET(P_Flows!$C$10,12*($A13-1),4*(U$2-1),12,1)),AVERAGE(OFFSET(P_Flows!$C$10,12*($A13-1),4*(U$2-1),12,1))) -> 15.15654167 | U13: =IF(PlotControl!$B$4 = "Annual Max",MAX(OFFSET(P_Flows!$D$10,12*($A13-1),4*(U$2-1),12,1)),AVERAGE(OFFSET(P_Flows!$D$10,12*($A13-1),4*(U$2-1),12,1))) -> 56.26253333 | V13: =IF(PlotControl!$B$4 = "Annual Max",MAX(OFFSET(P_Flows!$E$10,12*($A13-1),4*(U$2-1),12,1)),AVERAGE(OFFSET(P_Flows!$E$10,12*($A13-1),4*(U$2-1),12,1))) -> 227.0035833 | W13: =IF(PlotControl!$B$4 = "Annual Max",MAX(OFFSET(P_Flows!$C$10,12*($A13-1),4*(X$2-1),12,1)),AVERAGE(OFFSET(P_Flows!$C$10,12*($A13-1),4*(X$2-1),12,1))) -> 15.87458333 | X13: =IF(PlotControl!$B$4 = "Annual Max",MAX(OFFSET(P_Flows!$D$10,12*($A13-1),4*(X$2-1),12,1)),AVERAGE(OFFSET(P_Flows!$D$10,12*($A13-1),4*(X$2-1),12,1))) -> 59.39669167 | Y13: =IF(PlotControl!$B$4 = "Annual Max",MAX(OFFSET(P_Flows!$E$10,12*($A13-1),4*(X$2-1),12,1)),AVERAGE(OFFSET(P_Flows!$E$10,12*($A13-1),4*(X$2-1),12,1))) -> 240.4398333 | Z13: =IF(PlotControl!$B$4 = "Annual Max",MAX(OFFSET(P_Flows!$C$10,12*($A13-1),4*(AA$2-1),12,1)),AVERAGE(OFFSET(P_Flows!$C$10,12*($A13-1),4*(AA$2-1),12,1))) -> 18.56564167 | AA13: =IF(PlotControl!$B$4 = "Annual Max",MAX(OFFSET(P_Flows!$D$10,12*($A13-1),4*(AA$2-1),12,1)),AVERAGE(OFFSET(P_Flows!$D$10,12*($A13-1),4*(AA$2-1),12,1))) -> 70.91039167 | AB13: =IF(PlotControl!$B$4 = "Annual Max",MAX(OFFSET(P_Flows!$E$10,12*($A13-1),4*(AA$2-1),12,1)),AVERAGE(OFFSET(P_Flows!$E$10,12*($A13-1),4*(AA$2-1),12,1))) -> 288.6554167 | AD13: 50.66666667 | AE13: =OFFSET(P_Flows!$C$10,ROUND(12*$AD13,0),4*(AF$2-1),1,1) -> 2.7046 | AF13: =OFFSET(P_Flows!$D$10,ROUND(12*$AD13,0),4*(AF$2-1),1,1) -> 3.4766 | AG13: =OFFSET(P_Flows!$E$10,ROUND(12*$AD13,0),4*(AF$2-1),1,1) -> 5.1198 | AH13: =OFFSET(P_Flows!$C$10,ROUND(12*$AD13,0),4*(AI$2-1),1,1) -> 3.159 | AI13: =OFFSET(P_Flows!$D$10,ROUND(12*$AD13,0),4*(AI$2-1),1,1) -> 7.2828 | AJ13: =OFFSET(P_Flows!$E$10,ROUND(12*$AD13,0),4*(AI$2-1),1,1) -> 16.061 | AK13: =OFFSET(P_Flows!$C$10,ROUND(12*$AD13,0),4*(AL$2-1),1,1) -> 3.2939 | AL13: =OFFSET(P_Flows!$D$10,ROUND(12*$AD13,0),4*(AL$2-1),1,1) -> 8.4131 | AM13: =OFFSET(P_Flows!$E$10,ROUND(12*$AD13,0),4*(AL$2-1),1,1) -> 19.31 | AN13: =OFFSET(P_Flows!$C$10,ROUND(12*$AD13,0),4*(AO$2-1),1,1) -> 3.8702 | AO13: =OFFSET(P_Flows!$D$10,ROUND(12*$AD13,0),4*(AO$2-1),1,1) -> 13.24 | AP13: =OFFSET(P_Flows!$E$10,ROUND(12*$AD13,0),4*(AO$2-1),1,1) -> 33.186 | AQ13: =OFFSET(P_Flows!$C$10,ROUND(12*$AD13,0),4*(AR$2-1),1,1) -> 6.3598 | AR13: =OFFSET(P_Flows!$D$10,ROUND(12*$AD13,0),4*(AR$2-1),1,1) -> 30.256 | AS13: =OFFSET(P_Flows!$E$10,ROUND(12*$AD13,0),4*(AR$2-1),1,1) -> 81.589 | AT13: =OFFSET(P_Flows!$C$10,ROUND(12*$AD13,0),4*(AU$2-1),1,1) -> 8.0717 | AU13: =OFFSET(P_Flows!$D$10,ROUND(12*$AD13,0),4*(AU$2-1),1,1) -> 44.182 | AV13: =OFFSET(P_Flows!$E$10,ROUND(12*$AD13,0),4*(AU$2-1),1,1) -> 121.6 | AW13: =OFFSET(P_Flows!$C$10,ROUND(12*$AD13,0),4*(AX$2-1),1,1) -> 9.5663 | AX13: =OFFSET(P_Flows!$D$10,ROUND(12*$AD13,0),4*(AX$2-1),1,1) -> 56.999 | AY13: =OFFSET(P_Flows!$E$10,ROUND(12*$AD13,0),4*(AX$2-1),1,1) -> 158.3 | AZ13: =OFFSET(P_Flows!$C$10,ROUND(12*$AD13,0),4*(BA$2-1),1,1) -> 9.9667 | BA13: =OFFSET(P_Flows!$D$10,ROUND(12*$AD13,0),4*(BA$2-1),1,1) -> 60.44 | BB13: =OFFSET(P_Flows!$E$10,ROUND(12*$AD13,0),4*(BA$2-1),1,1) -> 168.14 | BC13: =OFFSET(P_Flows!$C$10,ROUND(12*$AD13,0),4*(BD$2-1),1,1) -> 11.315 | BD13: =OFFSET(P_Flows!$D$10,ROUND(12*$AD13,0),4*(BD$2-1),1,1) -> 72.024 | BE13: =OFFSET(P_Flows!$E$10,ROUND(12*$AD13,0),4*(BD$2-1),1,1) -> 201.3
A14: 10 | B14: =IF(PlotControl!$B$4 = "Annual Max",MAX(OFFSET(P_Flows!$C$10,12*($A14-1),4*(C$2-1),12,1)),AVERAGE(OFFSET(P_Flows!$C$10,12*($A14-1),4*(C$2-1),12,1))) -> 2.779441667 | C14: =IF(PlotControl!$B$4 = "Annual Max",MAX(OFFSET(P_Flows!$D$10,12*($A14-1),4*(C$2-1),12,1)),AVERAGE(OFFSET(P_Flows!$D$10,12*($A14-1),4*(C$2-1),12,1))) -> 3.414183333 | D14: =IF(PlotControl!$B$4 = "Annual Max",MAX(OFFSET(P_Flows!$E$10,12*($A14-1),4*(C$2-1),12,1)),AVERAGE(OFFSET(P_Flows!$E$10,12*($A14-1),4*(C$2-1),12,1))) -> 5.8506 | E14: =IF(PlotControl!$B$4 = "Annual Max",MAX(OFFSET(P_Flows!$C$10,12*($A14-1),4*(F$2-1),12,1)),AVERAGE(OFFSET(P_Flows!$C$10,12*($A14-1),4*(F$2-1),12,1))) -> 3.611633333 | F14: =IF(PlotControl!$B$4 = "Annual Max",MAX(OFFSET(P_Flows!$D$10,12*($A14-1),4*(F$2-1),12,1)),AVERAGE(OFFSET(P_Flows!$D$10,12*($A14-1),4*(F$2-1),12,1))) -> 7.098858333 | G14: =IF(PlotControl!$B$4 = "Annual Max",MAX(OFFSET(P_Flows!$E$10,12*($A14-1),4*(F$2-1),12,1)),AVERAGE(OFFSET(P_Flows!$E$10,12*($A14-1),4*(F$2-1),12,1))) -> 19.9481 | H14: =IF(PlotControl!$B$4 = "Annual Max",MAX(OFFSET(P_Flows!$C$10,12*($A14-1),4*(I$2-1),12,1)),AVERAGE(OFFSET(P_Flows!$C$10,12*($A14-1),4*(I$2-1),12,1))) -> 3.871958333 | I14: =IF(PlotControl!$B$4 = "Annual Max",MAX(OFFSET(P_Flows!$D$10,12*($A14-1),4*(I$2-1),12,1)),AVERAGE(OFFSET(P_Flows!$D$10,12*($A14-1),4*(I$2-1),12,1))) -> 8.225033333 | J14: =IF(PlotControl!$B$4 = "Annual Max",MAX(OFFSET(P_Flows!$E$10,12*($A14-1),4*(I$2-1),12,1)),AVERAGE(OFFSET(P_Flows!$E$10,12*($A14-1),4*(I$2-1),12,1))) -> 24.195425 | K14: =IF(PlotControl!$B$4 = "Annual Max",MAX(OFFSET(P_Flows!$C$10,12*($A14-1),4*(L$2-1),12,1)),AVERAGE(OFFSET(P_Flows!$C$10,12*($A14-1),4*(L$2-1),12,1))) -> 4.980791667 | L14: =IF(PlotControl!$B$4 = "Annual Max",MAX(OFFSET(P_Flows!$D$10,12*($A14-1),4*(L$2-1),12,1)),AVERAGE(OFFSET(P_Flows!$D$10,12*($A14-1),4*(L$2-1),12,1))) -> 13.09374167 | M14: =IF(PlotControl!$B$4 = "Annual Max",MAX(OFFSET(P_Flows!$E$10,12*($A14-1),4*(L$2-1),12,1)),AVERAGE(OFFSET(P_Flows!$E$10,12*($A14-1),4*(L$2-1),12,1))) -> 42.69555833 | N14: =IF(PlotControl!$B$4 = "Annual Max",MAX(OFFSET(P_Flows!$C$10,12*($A14-1),4*(O$2-1),12,1)),AVERAGE(OFFSET(P_Flows!$C$10,12*($A14-1),4*(O$2-1),12,1))) -> 9.169691667 | O14: =IF(PlotControl!$B$4 = "Annual Max",MAX(OFFSET(P_Flows!$D$10,12*($A14-1),4*(O$2-1),12,1)),AVERAGE(OFFSET(P_Flows!$D$10,12*($A14-1),4*(O$2-1),12,1))) -> 31.414825 | P14: =IF(PlotControl!$B$4 = "Annual Max",MAX(OFFSET(P_Flows!$E$10,12*($A14-1),4*(O$2-1),12,1)),AVERAGE(OFFSET(P_Flows!$E$10,12*($A14-1),4*(O$2-1),12,1))) -> 111.70925 | Q14: =IF(PlotControl!$B$4 = "Annual Max",MAX(OFFSET(P_Flows!$C$10,12*($A14-1),4*(R$2-1),12,1)),AVERAGE(OFFSET(P_Flows!$C$10,12*($A14-1),4*(R$2-1),12,1))) -> 12.72228333 | R14: =IF(PlotControl!$B$4 = "Annual Max",MAX(OFFSET(P_Flows!$D$10,12*($A14-1),4*(R$2-1),12,1)),AVERAGE(OFFSET(P_Flows!$D$10,12*($A14-1),4*(R$2-1),12,1))) -> 46.9209 | S14: =IF(PlotControl!$B$4 = "Annual Max",MAX(OFFSET(P_Flows!$E$10,12*($A14-1),4*(R$2-1),12,1)),AVERAGE(OFFSET(P_Flows!$E$10,12*($A14-1),4*(R$2-1),12,1))) -> 170.5178333 | T14: =IF(PlotControl!$B$4 = "Annual Max",MAX(OFFSET(P_Flows!$C$10,12*($A14-1),4*(U$2-1),12,1)),AVERAGE(OFFSET(P_Flows!$C$10,12*($A14-1),4*(U$2-1),12,1))) -> 16.03198333 | U14: =IF(PlotControl!$B$4 = "Annual Max",MAX(OFFSET(P_Flows!$D$10,12*($A14-1),4*(U$2-1),12,1)),AVERAGE(OFFSET(P_Flows!$D$10,12*($A14-1),4*(U$2-1),12,1))) -> 61.32670833 | V14: =IF(PlotControl!$B$4 = "Annual Max",MAX(OFFSET(P_Flows!$E$10,12*($A14-1),4*(U$2-1),12,1)),AVERAGE(OFFSET(P_Flows!$E$10,12*($A14-1),4*(U$2-1),12,1))) -> 226.15475 | W14: =IF(PlotControl!$B$4 = "Annual Max",MAX(OFFSET(P_Flows!$C$10,12*($A14-1),4*(X$2-1),12,1)),AVERAGE(OFFSET(P_Flows!$C$10,12*($A14-1),4*(X$2-1),12,1))) -> 16.786775 | X14: =IF(PlotControl!$B$4 = "Annual Max",MAX(OFFSET(P_Flows!$D$10,12*($A14-1),4*(X$2-1),12,1)),AVERAGE(OFFSET(P_Flows!$D$10,12*($A14-1),4*(X$2-1),12,1))) -> 64.69596667 | Y14: =IF(PlotControl!$B$4 = "Annual Max",MAX(OFFSET(P_Flows!$E$10,12*($A14-1),4*(X$2-1),12,1)),AVERAGE(OFFSET(P_Flows!$E$10,12*($A14-1),4*(X$2-1),12,1))) -> 239.3521667 | Z14: =IF(PlotControl!$B$4 = "Annual Max",MAX(OFFSET(P_Flows!$C$10,12*($A14-1),4*(AA$2-1),12,1)),AVERAGE(OFFSET(P_Flows!$C$10,12*($A14-1),4*(AA$2-1),12,1))) -> 19.666925 | AA14: =IF(PlotControl!$B$4 = "Annual Max",MAX(OFFSET(P_Flows!$D$10,12*($A14-1),4*(AA$2-1),12,1)),AVERAGE(OFFSET(P_Flows!$D$10,12*($A14-1),4*(AA$2-1),12,1))) -> 77.3013 | AB14: =IF(PlotControl!$B$4 = "Annual Max",MAX(OFFSET(P_Flows!$E$10,12*($A14-1),4*(AA$2-1),12,1)),AVERAGE(OFFSET(P_Flows!$E$10,12*($A14-1),4*(AA$2-1),12,1))) -> 287.413 | AD14: 50.75 | AE14: =OFFSET(P_Flows!$C$10,ROUND(12*$AD14,0),4*(AF$2-1),1,1) -> 2.8144 | AF14: =OFFSET(P_Flows!$D$10,ROUND(12*$AD14,0),4*(AF$2-1),1,1) -> 3.3609 | AG14: =OFFSET(P_Flows!$E$10,ROUND(12*$AD14,0),4*(AF$2-1),1,1) -> 5.7383 | AH14: =OFFSET(P_Flows!$C$10,ROUND(12*$AD14,0),4*(AI$2-1),1,1) -> 3.9275 | AI14: =OFFSET(P_Flows!$D$10,ROUND(12*$AD14,0),4*(AI$2-1),1,1) -> 7.3112 | AJ14: =OFFSET(P_Flows!$E$10,ROUND(12*$AD14,0),4*(AI$2-1),1,1) -> 22.032 | AK14: =OFFSET(P_Flows!$C$10,ROUND(12*$AD14,0),4*(AL$2-1),1,1) -> 4.2447 | AL14: =OFFSET(P_Flows!$D$10,ROUND(12*$AD14,0),4*(AL$2-1),1,1) -> 8.4372 | AM14: =OFFSET(P_Flows!$E$10,ROUND(12*$AD14,0),4*(AL$2-1),1,1) -> 26.677 | AN14: =OFFSET(P_Flows!$C$10,ROUND(12*$AD14,0),4*(AO$2-1),1,1) -> 5.6802 | AO14: =OFFSET(P_Flows!$D$10,ROUND(12*$AD14,0),4*(AO$2-1),1,1) -> 13.532 | AP14: =OFFSET(P_Flows!$E$10,ROUND(12*$AD14,0),4*(AO$2-1),1,1) -> 47.69 | AQ14: =OFFSET(P_Flows!$C$10,ROUND(12*$AD14,0),4*(AR$2-1),1,1) -> 11.468 | AR14: =OFFSET(P_Flows!$D$10,ROUND(12*$AD14,0),4*(AR$2-1),1,1) -> 32.257 | AS14: =OFFSET(P_Flows!$E$10,ROUND(12*$AD14,0),4*(AR$2-1),1,1) -> 124.43 | AT14: =OFFSET(P_Flows!$C$10,ROUND(12*$AD14,0),4*(AU$2-1),1,1) -> 15.694 | AU14: =OFFSET(P_Flows!$D$10,ROUND(12*$AD14,0),4*(AU$2-1),1,1) -> 47.272 | AV14: =OFFSET(P_Flows!$E$10,ROUND(12*$AD14,0),4*(AU$2-1),1,1) -> 186.52 | AW14: =OFFSET(P_Flows!$C$10,ROUND(12*$AD14,0),4*(AX$2-1),1,1) -> 19.328 | AX14: =OFFSET(P_Flows!$D$10,ROUND(12*$AD14,0),4*(AX$2-1),1,1) -> 60.255 | AY14: =OFFSET(P_Flows!$E$10,ROUND(12*$AD14,0),4*(AX$2-1),1,1) -> 240.07 | AZ14: =OFFSET(P_Flows!$C$10,ROUND(12*$AD14,0),4*(BA$2-1),1,1) -> 20.247 | BA14: =OFFSET(P_Flows!$D$10,ROUND(12*$AD14,0),4*(BA$2-1),1,1) -> 63.535 | BB14: =OFFSET(P_Flows!$E$10,ROUND(12*$AD14,0),4*(BA$2-1),1,1) -> 253.6 | BC14: =OFFSET(P_Flows!$C$10,ROUND(12*$AD14,0),4*(BD$2-1),1,1) -> 23.67 | BD14: =OFFSET(P_Flows!$D$10,ROUND(12*$AD14,0),4*(BD$2-1),1,1) -> 75.709 | BE14: =OFFSET(P_Flows!$E$10,ROUND(12*$AD14,0),4*(BD$2-1),1,1) -> 303.81
A15: 11 | B15: =IF(PlotControl!$B$4 = "Annual Max",MAX(OFFSET(P_Flows!$C$10,12*($A15-1),4*(C$2-1),12,1)),AVERAGE(OFFSET(P_Flows!$C$10,12*($A15-1),4*(C$2-1),12,1))) -> 2.768825 | C15: =IF(PlotControl!$B$4 = "Annual Max",MAX(OFFSET(P_Flows!$D$10,12*($A15-1),4*(C$2-1),12,1)),AVERAGE(OFFSET(P_Flows!$D$10,12*($A15-1),4*(C$2-1),12,1))) -> 3.378408333 | D15: =IF(PlotControl!$B$4 = "Annual Max",MAX(OFFSET(P_Flows!$E$10,12*($A15-1),4*(C$2-1),12,1)),AVERAGE(OFFSET(P_Flows!$E$10,12*($A15-1),4*(C$2-1),12,1))) -> 5.868791667 | E15: =IF(PlotControl!$B$4 = "Annual Max",MAX(OFFSET(P_Flows!$C$10,12*($A15-1),4*(F$2-1),12,1)),AVERAGE(OFFSET(P_Flows!$C$10,12*($A15-1),4*(F$2-1),12,1))) -> 3.5558 | F15: =IF(PlotControl!$B$4 = "Annual Max",MAX(OFFSET(P_Flows!$D$10,12*($A15-1),4*(F$2-1),12,1)),AVERAGE(OFFSET(P_Flows!$D$10,12*($A15-1),4*(F$2-1),12,1))) -> 6.915058333 | G15: =IF(PlotControl!$B$4 = "Annual Max",MAX(OFFSET(P_Flows!$E$10,12*($A15-1),4*(F$2-1),12,1)),AVERAGE(OFFSET(P_Flows!$E$10,12*($A15-1),4*(F$2-1),12,1))) -> 19.99918333 | H15: =IF(PlotControl!$B$4 = "Annual Max",MAX(OFFSET(P_Flows!$C$10,12*($A15-1),4*(I$2-1),12,1)),AVERAGE(OFFSET(P_Flows!$C$10,12*($A15-1),4*(I$2-1),12,1))) -> 3.801416667 | I15: =IF(PlotControl!$B$4 = "Annual Max",MAX(OFFSET(P_Flows!$D$10,12*($A15-1),4*(I$2-1),12,1)),AVERAGE(OFFSET(P_Flows!$D$10,12*($A15-1),4*(I$2-1),12,1))) -> 7.991725 | J15: =IF(PlotControl!$B$4 = "Annual Max",MAX(OFFSET(P_Flows!$E$10,12*($A15-1),4*(I$2-1),12,1)),AVERAGE(OFFSET(P_Flows!$E$10,12*($A15-1),4*(I$2-1),12,1))) -> 24.245 | K15: =IF(PlotControl!$B$4 = "Annual Max",MAX(OFFSET(P_Flows!$C$10,12*($A15-1),4*(L$2-1),12,1)),AVERAGE(OFFSET(P_Flows!$C$10,12*($A15-1),4*(L$2-1),12,1))) -> 4.849866667 | L15: =IF(PlotControl!$B$4 = "Annual Max",MAX(OFFSET(P_Flows!$D$10,12*($A15-1),4*(L$2-1),12,1)),AVERAGE(OFFSET(P_Flows!$D$10,12*($A15-1),4*(L$2-1),12,1))) -> 12.65995 | M15: =IF(PlotControl!$B$4 = "Annual Max",MAX(OFFSET(P_Flows!$E$10,12*($A15-1),4*(L$2-1),12,1)),AVERAGE(OFFSET(P_Flows!$E$10,12*($A15-1),4*(L$2-1),12,1))) -> 42.76048333 | N15: =IF(PlotControl!$B$4 = "Annual Max",MAX(OFFSET(P_Flows!$C$10,12*($A15-1),4*(O$2-1),12,1)),AVERAGE(OFFSET(P_Flows!$C$10,12*($A15-1),4*(O$2-1),12,1))) -> 8.800525 | O15: =IF(PlotControl!$B$4 = "Annual Max",MAX(OFFSET(P_Flows!$D$10,12*($A15-1),4*(O$2-1),12,1)),AVERAGE(OFFSET(P_Flows!$D$10,12*($A15-1),4*(O$2-1),12,1))) -> 30.14973333 | P15: =IF(PlotControl!$B$4 = "Annual Max",MAX(OFFSET(P_Flows!$E$10,12*($A15-1),4*(O$2-1),12,1)),AVERAGE(OFFSET(P_Flows!$E$10,12*($A15-1),4*(O$2-1),12,1))) -> 111.6234583 | Q15: =IF(PlotControl!$B$4 = "Annual Max",MAX(OFFSET(P_Flows!$C$10,12*($A15-1),4*(R$2-1),12,1)),AVERAGE(OFFSET(P_Flows!$C$10,12*($A15-1),4*(R$2-1),12,1))) -> 12.1616 | R15: =IF(PlotControl!$B$4 = "Annual Max",MAX(OFFSET(P_Flows!$D$10,12*($A15-1),4*(R$2-1),12,1)),AVERAGE(OFFSET(P_Flows!$D$10,12*($A15-1),4*(R$2-1),12,1))) -> 44.99530833 | S15: =IF(PlotControl!$B$4 = "Annual Max",MAX(OFFSET(P_Flows!$E$10,12*($A15-1),4*(R$2-1),12,1)),AVERAGE(OFFSET(P_Flows!$E$10,12*($A15-1),4*(R$2-1),12,1))) -> 170.50575 | T15: =IF(PlotControl!$B$4 = "Annual Max",MAX(OFFSET(P_Flows!$C$10,12*($A15-1),4*(U$2-1),12,1)),AVERAGE(OFFSET(P_Flows!$C$10,12*($A15-1),4*(U$2-1),12,1))) -> 15.29403333 | U15: =IF(PlotControl!$B$4 = "Annual Max",MAX(OFFSET(P_Flows!$D$10,12*($A15-1),4*(U$2-1),12,1)),AVERAGE(OFFSET(P_Flows!$D$10,12*($A15-1),4*(U$2-1),12,1))) -> 58.77808333 | V15: =IF(PlotControl!$B$4 = "Annual Max",MAX(OFFSET(P_Flows!$E$10,12*($A15-1),4*(U$2-1),12,1)),AVERAGE(OFFSET(P_Flows!$E$10,12*($A15-1),4*(U$2-1),12,1))) -> 226.3211667 | W15: =IF(PlotControl!$B$4 = "Annual Max",MAX(OFFSET(P_Flows!$C$10,12*($A15-1),4*(X$2-1),12,1)),AVERAGE(OFFSET(P_Flows!$C$10,12*($A15-1),4*(X$2-1),12,1))) -> 15.99626667 | X15: =IF(PlotControl!$B$4 = "Annual Max",MAX(OFFSET(P_Flows!$D$10,12*($A15-1),4*(X$2-1),12,1)),AVERAGE(OFFSET(P_Flows!$D$10,12*($A15-1),4*(X$2-1),12,1))) -> 61.96241667 | Y15: =IF(PlotControl!$B$4 = "Annual Max",MAX(OFFSET(P_Flows!$E$10,12*($A15-1),4*(X$2-1),12,1)),AVERAGE(OFFSET(P_Flows!$E$10,12*($A15-1),4*(X$2-1),12,1))) -> 239.3923333 | Z15: =IF(PlotControl!$B$4 = "Annual Max",MAX(OFFSET(P_Flows!$C$10,12*($A15-1),4*(AA$2-1),12,1)),AVERAGE(OFFSET(P_Flows!$C$10,12*($A15-1),4*(AA$2-1),12,1))) -> 18.71945 | AA15: =IF(PlotControl!$B$4 = "Annual Max",MAX(OFFSET(P_Flows!$D$10,12*($A15-1),4*(AA$2-1),12,1)),AVERAGE(OFFSET(P_Flows!$D$10,12*($A15-1),4*(AA$2-1),12,1))) -> 74.02960833 | AB15: =IF(PlotControl!$B$4 = "Annual Max",MAX(OFFSET(P_Flows!$E$10,12*($A15-1),4*(AA$2-1),12,1)),AVERAGE(OFFSET(P_Flows!$E$10,12*($A15-1),4*(AA$2-1),12,1))) -> 287.5295 | AD15: 50.83333333 | AE15: =OFFSET(P_Flows!$C$10,ROUND(12*$AD15,0),4*(AF$2-1),1,1) -> 2.7218 | AF15: =OFFSET(P_Flows!$D$10,ROUND(12*$AD15,0),4*(AF$2-1),1,1) -> 2.8767 | AG15: =OFFSET(P_Flows!$E$10,ROUND(12*$AD15,0),4*(AF$2-1),1,1) -> 3.7112 | AH15: =OFFSET(P_Flows!$C$10,ROUND(12*$AD15,0),4*(AI$2-1),1,1) -> 3.5324 | AI15: =OFFSET(P_Flows!$D$10,ROUND(12*$AD15,0),4*(AI$2-1),1,1) -> 4.7181 | AJ15: =OFFSET(P_Flows!$E$10,ROUND(12*$AD15,0),4*(AI$2-1),1,1) -> 11.107 | AK15: =OFFSET(P_Flows!$C$10,ROUND(12*$AD15,0),4*(AL$2-1),1,1) -> 3.8054 | AL15: =OFFSET(P_Flows!$D$10,ROUND(12*$AD15,0),4*(AL$2-1),1,1) -> 5.3383 | AM15: =OFFSET(P_Flows!$E$10,ROUND(12*$AD15,0),4*(AL$2-1),1,1) -> 13.597 | AN15: =OFFSET(P_Flows!$C$10,ROUND(12*$AD15,0),4*(AO$2-1),1,1) -> 4.9912 | AO15: =OFFSET(P_Flows!$D$10,ROUND(12*$AD15,0),4*(AO$2-1),1,1) -> 8.032 | AP15: =OFFSET(P_Flows!$E$10,ROUND(12*$AD15,0),4*(AO$2-1),1,1) -> 24.416 | AQ15: =OFFSET(P_Flows!$C$10,ROUND(12*$AD15,0),4*(AR$2-1),1,1) -> 9.3317 | AR15: =OFFSET(P_Flows!$D$10,ROUND(12*$AD15,0),4*(AR$2-1),1,1) -> 17.179 | AS15: =OFFSET(P_Flows!$E$10,ROUND(12*$AD15,0),4*(AR$2-1),1,1) -> 60.817 | AT15: =OFFSET(P_Flows!$C$10,ROUND(12*$AD15,0),4*(AU$2-1),1,1) -> 12.836 | AU15: =OFFSET(P_Flows!$D$10,ROUND(12*$AD15,0),4*(AU$2-1),1,1) -> 25.344 | AV15: =OFFSET(P_Flows!$E$10,ROUND(12*$AD15,0),4*(AU$2-1),1,1) -> 93.656 | AW15: =OFFSET(P_Flows!$C$10,ROUND(12*$AD15,0),4*(AX$2-1),1,1) -> 16.29 | AX15: =OFFSET(P_Flows!$D$10,ROUND(12*$AD15,0),4*(AX$2-1),1,1) -> 33.203 | AY15: =OFFSET(P_Flows!$E$10,ROUND(12*$AD15,0),4*(AX$2-1),1,1) -> 125.01 | AZ15: =OFFSET(P_Flows!$C$10,ROUND(12*$AD15,0),4*(BA$2-1),1,1) -> 16.891 | BA15: =OFFSET(P_Flows!$D$10,ROUND(12*$AD15,0),4*(BA$2-1),1,1) -> 34.574 | BB15: =OFFSET(P_Flows!$E$10,ROUND(12*$AD15,0),4*(BA$2-1),1,1) -> 130.48 | BC15: =OFFSET(P_Flows!$C$10,ROUND(12*$AD15,0),4*(BD$2-1),1,1) -> 19.689 | BD15: =OFFSET(P_Flows!$D$10,ROUND(12*$AD15,0),4*(BD$2-1),1,1) -> 40.953 | BE15: =OFFSET(P_Flows!$E$10,ROUND(12*$AD15,0),4*(BD$2-1),1,1) -> 156.03
A16: 12 | B16: =IF(PlotControl!$B$4 = "Annual Max",MAX(OFFSET(P_Flows!$C$10,12*($A16-1),4*(C$2-1),12,1)),AVERAGE(OFFSET(P_Flows!$C$10,12*($A16-1),4*(C$2-1),12,1))) -> 2.754575 | C16: =IF(PlotControl!$B$4 = "Annual Max",MAX(OFFSET(P_Flows!$D$10,12*($A16-1),4*(C$2-1),12,1)),AVERAGE(OFFSET(P_Flows!$D$10,12*($A16-1),4*(C$2-1),12,1))) -> 3.37065 | D16: =IF(PlotControl!$B$4 = "Annual Max",MAX(OFFSET(P_Flows!$E$10,12*($A16-1),4*(C$2-1),12,1)),AVERAGE(OFFSET(P_Flows!$E$10,12*($A16-1),4*(C$2-1),12,1))) -> 5.973725 | E16: =IF(PlotControl!$B$4 = "Annual Max",MAX(OFFSET(P_Flows!$C$10,12*($A16-1),4*(F$2-1),12,1)),AVERAGE(OFFSET(P_Flows!$C$10,12*($A16-1),4*(F$2-1),12,1))) -> 3.482175 | F16: =IF(PlotControl!$B$4 = "Annual Max",MAX(OFFSET(P_Flows!$D$10,12*($A16-1),4*(F$2-1),12,1)),AVERAGE(OFFSET(P_Flows!$D$10,12*($A16-1),4*(F$2-1),12,1))) -> 6.90125 | G16: =IF(PlotControl!$B$4 = "Annual Max",MAX(OFFSET(P_Flows!$E$10,12*($A16-1),4*(F$2-1),12,1)),AVERAGE(OFFSET(P_Flows!$E$10,12*($A16-1),4*(F$2-1),12,1))) -> 20.60888333 | H16: =IF(PlotControl!$B$4 = "Annual Max",MAX(OFFSET(P_Flows!$C$10,12*($A16-1),4*(I$2-1),12,1)),AVERAGE(OFFSET(P_Flows!$C$10,12*($A16-1),4*(I$2-1),12,1))) -> 3.70875 | I16: =IF(PlotControl!$B$4 = "Annual Max",MAX(OFFSET(P_Flows!$D$10,12*($A16-1),4*(I$2-1),12,1)),AVERAGE(OFFSET(P_Flows!$D$10,12*($A16-1),4*(I$2-1),12,1))) -> 7.976808333 | J16: =IF(PlotControl!$B$4 = "Annual Max",MAX(OFFSET(P_Flows!$E$10,12*($A16-1),4*(I$2-1),12,1)),AVERAGE(OFFSET(P_Flows!$E$10,12*($A16-1),4*(I$2-1),12,1))) -> 24.9952 | K16: =IF(PlotControl!$B$4 = "Annual Max",MAX(OFFSET(P_Flows!$C$10,12*($A16-1),4*(L$2-1),12,1)),AVERAGE(OFFSET(P_Flows!$C$10,12*($A16-1),4*(L$2-1),12,1))) -> 4.672883333 | L16: =IF(PlotControl!$B$4 = "Annual Max",MAX(OFFSET(P_Flows!$D$10,12*($A16-1),4*(L$2-1),12,1)),AVERAGE(OFFSET(P_Flows!$D$10,12*($A16-1),4*(L$2-1),12,1))) -> 12.62706667 | M16: =IF(PlotControl!$B$4 = "Annual Max",MAX(OFFSET(P_Flows!$E$10,12*($A16-1),4*(L$2-1),12,1)),AVERAGE(OFFSET(P_Flows!$E$10,12*($A16-1),4*(L$2-1),12,1))) -> 44.114775 | N16: =IF(PlotControl!$B$4 = "Annual Max",MAX(OFFSET(P_Flows!$C$10,12*($A16-1),4*(O$2-1),12,1)),AVERAGE(OFFSET(P_Flows!$C$10,12*($A16-1),4*(O$2-1),12,1))) -> 8.301325 | O16: =IF(PlotControl!$B$4 = "Annual Max",MAX(OFFSET(P_Flows!$D$10,12*($A16-1),4*(O$2-1),12,1)),AVERAGE(OFFSET(P_Flows!$D$10,12*($A16-1),4*(O$2-1),12,1))) -> 30.05611667 | P16: =IF(PlotControl!$B$4 = "Annual Max",MAX(OFFSET(P_Flows!$E$10,12*($A16-1),4*(O$2-1),12,1)),AVERAGE(OFFSET(P_Flows!$E$10,12*($A16-1),4*(O$2-1),12,1))) -> 115.07905 | Q16: =IF(PlotControl!$B$4 = "Annual Max",MAX(OFFSET(P_Flows!$C$10,12*($A16-1),4*(R$2-1),12,1)),AVERAGE(OFFSET(P_Flows!$C$10,12*($A16-1),4*(R$2-1),12,1))) -> 11.38783333 | R16: =IF(PlotControl!$B$4 = "Annual Max",MAX(OFFSET(P_Flows!$D$10,12*($A16-1),4*(R$2-1),12,1)),AVERAGE(OFFSET(P_Flows!$D$10,12*($A16-1),4*(R$2-1),12,1))) -> 44.87121667 | S16: =IF(PlotControl!$B$4 = "Annual Max",MAX(OFFSET(P_Flows!$E$10,12*($A16-1),4*(R$2-1),12,1)),AVERAGE(OFFSET(P_Flows!$E$10,12*($A16-1),4*(R$2-1),12,1))) -> 175.9146667 | T16: =IF(PlotControl!$B$4 = "Annual Max",MAX(OFFSET(P_Flows!$C$10,12*($A16-1),4*(U$2-1),12,1)),AVERAGE(OFFSET(P_Flows!$C$10,12*($A16-1),4*(U$2-1),12,1))) -> 14.25583333 | U16: =IF(PlotControl!$B$4 = "Annual Max",MAX(OFFSET(P_Flows!$D$10,12*($A16-1),4*(U$2-1),12,1)),AVERAGE(OFFSET(P_Flows!$D$10,12*($A16-1),4*(U$2-1),12,1))) -> 58.65363333 | V16: =IF(PlotControl!$B$4 = "Annual Max",MAX(OFFSET(P_Flows!$E$10,12*($A16-1),4*(U$2-1),12,1)),AVERAGE(OFFSET(P_Flows!$E$10,12*($A16-1),4*(U$2-1),12,1))) -> 233.7506667 | W16: =IF(PlotControl!$B$4 = "Annual Max",MAX(OFFSET(P_Flows!$C$10,12*($A16-1),4*(X$2-1),12,1)),AVERAGE(OFFSET(P_Flows!$C$10,12*($A16-1),4*(X$2-1),12,1))) -> 14.896475 | X16: =IF(PlotControl!$B$4 = "Annual Max",MAX(OFFSET(P_Flows!$D$10,12*($A16-1),4*(X$2-1),12,1)),AVERAGE(OFFSET(P_Flows!$D$10,12*($A16-1),4*(X$2-1),12,1))) -> 61.79436667 | Y16: =IF(PlotControl!$B$4 = "Annual Max",MAX(OFFSET(P_Flows!$E$10,12*($A16-1),4*(X$2-1),12,1)),AVERAGE(OFFSET(P_Flows!$E$10,12*($A16-1),4*(X$2-1),12,1))) -> 247.14025 | Z16: =IF(PlotControl!$B$4 = "Annual Max",MAX(OFFSET(P_Flows!$C$10,12*($A16-1),4*(AA$2-1),12,1)),AVERAGE(OFFSET(P_Flows!$C$10,12*($A16-1),4*(AA$2-1),12,1))) -> 17.39656667 | AA16: =IF(PlotControl!$B$4 = "Annual Max",MAX(OFFSET(P_Flows!$D$10,12*($A16-1),4*(AA$2-1),12,1)),AVERAGE(OFFSET(P_Flows!$D$10,12*($A16-1),4*(AA$2-1),12,1))) -> 73.83033333 | AB16: =IF(PlotControl!$B$4 = "Annual Max",MAX(OFFSET(P_Flows!$E$10,12*($A16-1),4*(AA$2-1),12,1)),AVERAGE(OFFSET(P_Flows!$E$10,12*($A16-1),4*(AA$2-1),12,1))) -> 296.8664167 | AD16: 50.91666667 | AE16: =OFFSET(P_Flows!$C$10,ROUND(12*$AD16,0),4*(AF$2-1),1,1) -> 2.6621 | AF16: =OFFSET(P_Flows!$D$10,ROUND(12*$AD16,0),4*(AF$2-1),1,1) -> 2.7278 | AG16: =OFFSET(P_Flows!$E$10,ROUND(12*$AD16,0),4*(AF$2-1),1,1) -> 2.8763 | AH16: =OFFSET(P_Flows!$C$10,ROUND(12*$AD16,0),4*(AI$2-1),1,1) -> 3.0142 | AI16: =OFFSET(P_Flows!$D$10,ROUND(12*$AD16,0),4*(AI$2-1),1,1) -> 3.4526 | AJ16: =OFFSET(P_Flows!$E$10,ROUND(12*$AD16,0),4*(AI$2-1),1,1) -> 4.4439 | AK16: =OFFSET(P_Flows!$C$10,ROUND(12*$AD16,0),4*(AL$2-1),1,1) -> 3.1707 | AL16: =OFFSET(P_Flows!$D$10,ROUND(12*$AD16,0),4*(AL$2-1),1,1) -> 3.7748 | AM16: =OFFSET(P_Flows!$E$10,ROUND(12*$AD16,0),4*(AL$2-1),1,1) -> 5.1406 | AN16: =OFFSET(P_Flows!$C$10,ROUND(12*$AD16,0),4*(AO$2-1),1,1) -> 3.6867 | AO16: =OFFSET(P_Flows!$D$10,ROUND(12*$AD16,0),4*(AO$2-1),1,1) -> 4.8371 | AP16: =OFFSET(P_Flows!$E$10,ROUND(12*$AD16,0),4*(AO$2-1),1,1) -> 7.438 | AQ16: =OFFSET(P_Flows!$C$10,ROUND(12*$AD16,0),4*(AR$2-1),1,1) -> 5.8634 | AR16: =OFFSET(P_Flows!$D$10,ROUND(12*$AD16,0),4*(AR$2-1),1,1) -> 9.24 | AS16: =OFFSET(P_Flows!$E$10,ROUND(12*$AD16,0),4*(AR$2-1),1,1) -> 16.751 | AT16: =OFFSET(P_Flows!$C$10,ROUND(12*$AD16,0),4*(AU$2-1),1,1) -> 7.5493 | AU16: =OFFSET(P_Flows!$D$10,ROUND(12*$AD16,0),4*(AU$2-1),1,1) -> 12.729 | AV16: =OFFSET(P_Flows!$E$10,ROUND(12*$AD16,0),4*(AU$2-1),1,1) -> 24.364 | AW16: =OFFSET(P_Flows!$C$10,ROUND(12*$AD16,0),4*(AX$2-1),1,1) -> 9.1889 | AX16: =OFFSET(P_Flows!$D$10,ROUND(12*$AD16,0),4*(AX$2-1),1,1) -> 16.223 | AY16: =OFFSET(P_Flows!$E$10,ROUND(12*$AD16,0),4*(AX$2-1),1,1) -> 31.868 | AZ16: =OFFSET(P_Flows!$C$10,ROUND(12*$AD16,0),4*(BA$2-1),1,1) -> 9.4567 | BA16: =OFFSET(P_Flows!$D$10,ROUND(12*$AD16,0),4*(BA$2-1),1,1) -> 16.811 | BB16: =OFFSET(P_Flows!$E$10,ROUND(12*$AD16,0),4*(BA$2-1),1,1) -> 33.111 | BC16: =OFFSET(P_Flows!$C$10,ROUND(12*$AD16,0),4*(BD$2-1),1,1) -> 10.807 | BD16: =OFFSET(P_Flows!$D$10,ROUND(12*$AD16,0),4*(BD$2-1),1,1) -> 19.574 | BE16: =OFFSET(P_Flows!$E$10,ROUND(12*$AD16,0),4*(BD$2-1),1,1) -> 39.097
A17: 13 | B17: =IF(PlotControl!$B$4 = "Annual Max",MAX(OFFSET(P_Flows!$C$10,12*($A17-1),4*(C$2-1),12,1)),AVERAGE(OFFSET(P_Flows!$C$10,12*($A17-1),4*(C$2-1),12,1))) -> 2.770075 | C17: =IF(PlotControl!$B$4 = "Annual Max",MAX(OFFSET(P_Flows!$D$10,12*($A17-1),4*(C$2-1),12,1)),AVERAGE(OFFSET(P_Flows!$D$10,12*($A17-1),4*(C$2-1),12,1))) -> 3.362216667 | D17: =IF(PlotControl!$B$4 = "Annual Max",MAX(OFFSET(P_Flows!$E$10,12*($A17-1),4*(C$2-1),12,1)),AVERAGE(OFFSET(P_Flows!$E$10,12*($A17-1),4*(C$2-1),12,1))) -> 5.914908333 | E17: =IF(PlotControl!$B$4 = "Annual Max",MAX(OFFSET(P_Flows!$C$10,12*($A17-1),4*(F$2-1),12,1)),AVERAGE(OFFSET(P_Flows!$C$10,12*($A17-1),4*(F$2-1),12,1))) -> 3.569983333 | F17: =IF(PlotControl!$B$4 = "Annual Max",MAX(OFFSET(P_Flows!$D$10,12*($A17-1),4*(F$2-1),12,1)),AVERAGE(OFFSET(P_Flows!$D$10,12*($A17-1),4*(F$2-1),12,1))) -> 6.840683333 | G17: =IF(PlotControl!$B$4 = "Annual Max",MAX(OFFSET(P_Flows!$E$10,12*($A17-1),4*(F$2-1),12,1)),AVERAGE(OFFSET(P_Flows!$E$10,12*($A17-1),4*(F$2-1),12,1))) -> 20.36173333 | H17: =IF(PlotControl!$B$4 = "Annual Max",MAX(OFFSET(P_Flows!$C$10,12*($A17-1),4*(I$2-1),12,1)),AVERAGE(OFFSET(P_Flows!$C$10,12*($A17-1),4*(I$2-1),12,1))) -> 3.81705 | I17: =IF(PlotControl!$B$4 = "Annual Max",MAX(OFFSET(P_Flows!$D$10,12*($A17-1),4*(I$2-1),12,1)),AVERAGE(OFFSET(P_Flows!$D$10,12*($A17-1),4*(I$2-1),12,1))) -> 7.889725 | J17: =IF(PlotControl!$B$4 = "Annual Max",MAX(OFFSET(P_Flows!$E$10,12*($A17-1),4*(I$2-1),12,1)),AVERAGE(OFFSET(P_Flows!$E$10,12*($A17-1),4*(I$2-1),12,1))) -> 24.653875 | K17: =IF(PlotControl!$B$4 = "Annual Max",MAX(OFFSET(P_Flows!$C$10,12*($A17-1),4*(L$2-1),12,1)),AVERAGE(OFFSET(P_Flows!$C$10,12*($A17-1),4*(L$2-1),12,1))) -> 4.867875 | L17: =IF(PlotControl!$B$4 = "Annual Max",MAX(OFFSET(P_Flows!$D$10,12*($A17-1),4*(L$2-1),12,1)),AVERAGE(OFFSET(P_Flows!$D$10,12*($A17-1),4*(L$2-1),12,1))) -> 12.42530833 | M17: =IF(PlotControl!$B$4 = "Annual Max",MAX(OFFSET(P_Flows!$E$10,12*($A17-1),4*(L$2-1),12,1)),AVERAGE(OFFSET(P_Flows!$E$10,12*($A17-1),4*(L$2-1),12,1))) -> 43.35965833 | N17: =IF(PlotControl!$B$4 = "Annual Max",MAX(OFFSET(P_Flows!$C$10,12*($A17-1),4*(O$2-1),12,1)),AVERAGE(OFFSET(P_Flows!$C$10,12*($A17-1),4*(O$2-1),12,1))) -> 8.829466667 | O17: =IF(PlotControl!$B$4 = "Annual Max",MAX(OFFSET(P_Flows!$D$10,12*($A17-1),4*(O$2-1),12,1)),AVERAGE(OFFSET(P_Flows!$D$10,12*($A17-1),4*(O$2-1),12,1))) -> 29.42689167 | P17: =IF(PlotControl!$B$4 = "Annual Max",MAX(OFFSET(P_Flows!$E$10,12*($A17-1),4*(O$2-1),12,1)),AVERAGE(OFFSET(P_Flows!$E$10,12*($A17-1),4*(O$2-1),12,1))) -> 112.931375 | Q17: =IF(PlotControl!$B$4 = "Annual Max",MAX(OFFSET(P_Flows!$C$10,12*($A17-1),4*(R$2-1),12,1)),AVERAGE(OFFSET(P_Flows!$C$10,12*($A17-1),4*(R$2-1),12,1))) -> 12.19475833 | R17: =IF(PlotControl!$B$4 = "Annual Max",MAX(OFFSET(P_Flows!$D$10,12*($A17-1),4*(R$2-1),12,1)),AVERAGE(OFFSET(P_Flows!$D$10,12*($A17-1),4*(R$2-1),12,1))) -> 43.869025 | S17: =IF(PlotControl!$B$4 = "Annual Max",MAX(OFFSET(P_Flows!$E$10,12*($A17-1),4*(R$2-1),12,1)),AVERAGE(OFFSET(P_Flows!$E$10,12*($A17-1),4*(R$2-1),12,1))) -> 172.4481667 | T17: =IF(PlotControl!$B$4 = "Annual Max",MAX(OFFSET(P_Flows!$C$10,12*($A17-1),4*(U$2-1),12,1)),AVERAGE(OFFSET(P_Flows!$C$10,12*($A17-1),4*(U$2-1),12,1))) -> 15.32821667 | U17: =IF(PlotControl!$B$4 = "Annual Max",MAX(OFFSET(P_Flows!$D$10,12*($A17-1),4*(U$2-1),12,1)),AVERAGE(OFFSET(P_Flows!$D$10,12*($A17-1),4*(U$2-1),12,1))) -> 57.30464167 | V17: =IF(PlotControl!$B$4 = "Annual Max",MAX(OFFSET(P_Flows!$E$10,12*($A17-1),4*(U$2-1),12,1)),AVERAGE(OFFSET(P_Flows!$E$10,12*($A17-1),4*(U$2-1),12,1))) -> 229.0011667 | W17: =IF(PlotControl!$B$4 = "Annual Max",MAX(OFFSET(P_Flows!$C$10,12*($A17-1),4*(X$2-1),12,1)),AVERAGE(OFFSET(P_Flows!$C$10,12*($A17-1),4*(X$2-1),12,1))) -> 16.03 | X17: =IF(PlotControl!$B$4 = "Annual Max",MAX(OFFSET(P_Flows!$D$10,12*($A17-1),4*(X$2-1),12,1)),AVERAGE(OFFSET(P_Flows!$D$10,12*($A17-1),4*(X$2-1),12,1))) -> 60.38858333 | Y17: =IF(PlotControl!$B$4 = "Annual Max",MAX(OFFSET(P_Flows!$E$10,12*($A17-1),4*(X$2-1),12,1)),AVERAGE(OFFSET(P_Flows!$E$10,12*($A17-1),4*(X$2-1),12,1))) -> 242.1455833 | Z17: =IF(PlotControl!$B$4 = "Annual Max",MAX(OFFSET(P_Flows!$C$10,12*($A17-1),4*(AA$2-1),12,1)),AVERAGE(OFFSET(P_Flows!$C$10,12*($A17-1),4*(AA$2-1),12,1))) -> 18.75826667 | AA17: =IF(PlotControl!$B$4 = "Annual Max",MAX(OFFSET(P_Flows!$D$10,12*($A17-1),4*(AA$2-1),12,1)),AVERAGE(OFFSET(P_Flows!$D$10,12*($A17-1),4*(AA$2-1),12,1))) -> 72.12876667 | AB17: =IF(PlotControl!$B$4 = "Annual Max",MAX(OFFSET(P_Flows!$E$10,12*($A17-1),4*(AA$2-1),12,1)),AVERAGE(OFFSET(P_Flows!$E$10,12*($A17-1),4*(AA$2-1),12,1))) -> 290.80925 | AD17: 51 | AE17: =OFFSET(P_Flows!$C$10,ROUND(12*$AD17,0),4*(AF$2-1),1,1) -> 2.6217 | AF17: =OFFSET(P_Flows!$D$10,ROUND(12*$AD17,0),4*(AF$2-1),1,1) -> 2.687 | AG17: =OFFSET(P_Flows!$E$10,ROUND(12*$AD17,0),4*(AF$2-1),1,1) -> 2.7599 | AH17: =OFFSET(P_Flows!$C$10,ROUND(12*$AD17,0),4*(AI$2-1),1,1) -> 2.7428 | AI17: =OFFSET(P_Flows!$D$10,ROUND(12*$AD17,0),4*(AI$2-1),1,1) -> 3.1735 | AJ17: =OFFSET(P_Flows!$E$10,ROUND(12*$AD17,0),4*(AI$2-1),1,1) -> 3.6547 | AK17: =OFFSET(P_Flows!$C$10,ROUND(12*$AD17,0),4*(AL$2-1),1,1) -> 2.7888 | AL17: =OFFSET(P_Flows!$D$10,ROUND(12*$AD17,0),4*(AL$2-1),1,1) -> 3.3581 | AM17: =OFFSET(P_Flows!$E$10,ROUND(12*$AD17,0),4*(AL$2-1),1,1) -> 3.9942 | AN17: =OFFSET(P_Flows!$C$10,ROUND(12*$AD17,0),4*(AO$2-1),1,1) -> 2.9475 | AO17: =OFFSET(P_Flows!$D$10,ROUND(12*$AD17,0),4*(AO$2-1),1,1) -> 3.9955 | AP17: =OFFSET(P_Flows!$E$10,ROUND(12*$AD17,0),4*(AO$2-1),1,1) -> 5.1666 | AQ17: =OFFSET(P_Flows!$C$10,ROUND(12*$AD17,0),4*(AR$2-1),1,1) -> 3.6518 | AR17: =OFFSET(P_Flows!$D$10,ROUND(12*$AD17,0),4*(AR$2-1),1,1) -> 6.694 | AS17: =OFFSET(P_Flows!$E$10,ROUND(12*$AD17,0),4*(AR$2-1),1,1) -> 10.249 | AT17: =OFFSET(P_Flows!$C$10,ROUND(12*$AD17,0),4*(AU$2-1),1,1) -> 4.1988 | AU17: =OFFSET(P_Flows!$D$10,ROUND(12*$AD17,0),4*(AU$2-1),1,1) -> 8.7868 | AV17: =OFFSET(P_Flows!$E$10,ROUND(12*$AD17,0),4*(AU$2-1),1,1) -> 13.925 | AW17: =OFFSET(P_Flows!$C$10,ROUND(12*$AD17,0),4*(AX$2-1),1,1) -> 4.6589 | AX17: =OFFSET(P_Flows!$D$10,ROUND(12*$AD17,0),4*(AX$2-1),1,1) -> 10.62 | AY17: =OFFSET(P_Flows!$E$10,ROUND(12*$AD17,0),4*(AX$2-1),1,1) -> 17.187 | AZ17: =OFFSET(P_Flows!$C$10,ROUND(12*$AD17,0),4*(BA$2-1),1,1) -> 4.7631 | BA17: =OFFSET(P_Flows!$D$10,ROUND(12*$AD17,0),4*(BA$2-1),1,1) -> 11.026 | BB17: =OFFSET(P_Flows!$E$10,ROUND(12*$AD17,0),4*(BA$2-1),1,1) -> 17.909 | BC17: =OFFSET(P_Flows!$C$10,ROUND(12*$AD17,0),4*(BD$2-1),1,1) -> 5.1962 | BD17: =OFFSET(P_Flows!$D$10,ROUND(12*$AD17,0),4*(BD$2-1),1,1) -> 12.683 | BE17: =OFFSET(P_Flows!$E$10,ROUND(12*$AD17,0),4*(BD$2-1),1,1) -> 20.911
A18: 14 | B18: =IF(PlotControl!$B$4 = "Annual Max",MAX(OFFSET(P_Flows!$C$10,12*($A18-1),4*(C$2-1),12,1)),AVERAGE(OFFSET(P_Flows!$C$10,12*($A18-1),4*(C$2-1),12,1))) -> 2.769058333 | C18: =IF(PlotControl!$B$4 = "Annual Max",MAX(OFFSET(P_Flows!$D$10,12*($A18-1),4*(C$2-1),12,1)),AVERAGE(OFFSET(P_Flows!$D$10,12*($A18-1),4*(C$2-1),12,1))) -> 3.3718 | D18: =IF(PlotControl!$B$4 = "Annual Max",MAX(OFFSET(P_Flows!$E$10,12*($A18-1),4*(C$2-1),12,1)),AVERAGE(OFFSET(P_Flows!$E$10,12*($A18-1),4*(C$2-1),12,1))) -> 5.777641667 | E18: =IF(PlotControl!$B$4 = "Annual Max",MAX(OFFSET(P_Flows!$C$10,12*($A18-1),4*(F$2-1),12,1)),AVERAGE(OFFSET(P_Flows!$C$10,12*($A18-1),4*(F$2-1),12,1))) -> 3.571308333 | F18: =IF(PlotControl!$B$4 = "Annual Max",MAX(OFFSET(P_Flows!$D$10,12*($A18-1),4*(F$2-1),12,1)),AVERAGE(OFFSET(P_Flows!$D$10,12*($A18-1),4*(F$2-1),12,1))) -> 6.963933333 | G18: =IF(PlotControl!$B$4 = "Annual Max",MAX(OFFSET(P_Flows!$E$10,12*($A18-1),4*(F$2-1),12,1)),AVERAGE(OFFSET(P_Flows!$E$10,12*($A18-1),4*(F$2-1),12,1))) -> 19.81203333 | H18: =IF(PlotControl!$B$4 = "Annual Max",MAX(OFFSET(P_Flows!$C$10,12*($A18-1),4*(I$2-1),12,1)),AVERAGE(OFFSET(P_Flows!$C$10,12*($A18-1),4*(I$2-1),12,1))) -> 3.815983333 | I18: =IF(PlotControl!$B$4 = "Annual Max",MAX(OFFSET(P_Flows!$D$10,12*($A18-1),4*(I$2-1),12,1)),AVERAGE(OFFSET(P_Flows!$D$10,12*($A18-1),4*(I$2-1),12,1))) -> 8.03655 | J18: =IF(PlotControl!$B$4 = "Annual Max",MAX(OFFSET(P_Flows!$E$10,12*($A18-1),4*(I$2-1),12,1)),AVERAGE(OFFSET(P_Flows!$E$10,12*($A18-1),4*(I$2-1),12,1))) -> 23.95496667 | K18: =IF(PlotControl!$B$4 = "Annual Max",MAX(OFFSET(P_Flows!$C$10,12*($A18-1),4*(L$2-1),12,1)),AVERAGE(OFFSET(P_Flows!$C$10,12*($A18-1),4*(L$2-1),12,1))) -> 4.861825 | L18: =IF(PlotControl!$B$4 = "Annual Max",MAX(OFFSET(P_Flows!$D$10,12*($A18-1),4*(L$2-1),12,1)),AVERAGE(OFFSET(P_Flows!$D$10,12*($A18-1),4*(L$2-1),12,1))) -> 12.69105 | M18: =IF(PlotControl!$B$4 = "Annual Max",MAX(OFFSET(P_Flows!$E$10,12*($A18-1),4*(L$2-1),12,1)),AVERAGE(OFFSET(P_Flows!$E$10,12*($A18-1),4*(L$2-1),12,1))) -> 41.9997 | N18: =IF(PlotControl!$B$4 = "Annual Max",MAX(OFFSET(P_Flows!$C$10,12*($A18-1),4*(O$2-1),12,1)),AVERAGE(OFFSET(P_Flows!$C$10,12*($A18-1),4*(O$2-1),12,1))) -> 8.8082 | O18: =IF(PlotControl!$B$4 = "Annual Max",MAX(OFFSET(P_Flows!$D$10,12*($A18-1),4*(O$2-1),12,1)),AVERAGE(OFFSET(P_Flows!$D$10,12*($A18-1),4*(O$2-1),12,1))) -> 30.197775 | P18: =IF(PlotControl!$B$4 = "Annual Max",MAX(OFFSET(P_Flows!$E$10,12*($A18-1),4*(O$2-1),12,1)),AVERAGE(OFFSET(P_Flows!$E$10,12*($A18-1),4*(O$2-1),12,1))) -> 109.364175 | Q18: =IF(PlotControl!$B$4 = "Annual Max",MAX(OFFSET(P_Flows!$C$10,12*($A18-1),4*(R$2-1),12,1)),AVERAGE(OFFSET(P_Flows!$C$10,12*($A18-1),4*(R$2-1),12,1))) -> 12.15548333 | R18: =IF(PlotControl!$B$4 = "Annual Max",MAX(OFFSET(P_Flows!$D$10,12*($A18-1),4*(R$2-1),12,1)),AVERAGE(OFFSET(P_Flows!$D$10,12*($A18-1),4*(R$2-1),12,1))) -> 45.00964167 | S18: =IF(PlotControl!$B$4 = "Annual Max",MAX(OFFSET(P_Flows!$E$10,12*($A18-1),4*(R$2-1),12,1)),AVERAGE(OFFSET(P_Flows!$E$10,12*($A18-1),4*(R$2-1),12,1))) -> 166.8199167 | T18: =IF(PlotControl!$B$4 = "Annual Max",MAX(OFFSET(P_Flows!$C$10,12*($A18-1),4*(U$2-1),12,1)),AVERAGE(OFFSET(P_Flows!$C$10,12*($A18-1),4*(U$2-1),12,1))) -> 15.26329167 | U18: =IF(PlotControl!$B$4 = "Annual Max",MAX(OFFSET(P_Flows!$D$10,12*($A18-1),4*(U$2-1),12,1)),AVERAGE(OFFSET(P_Flows!$D$10,12*($A18-1),4*(U$2-1),12,1))) -> 58.76410833 | V18: =IF(PlotControl!$B$4 = "Annual Max",MAX(OFFSET(P_Flows!$E$10,12*($A18-1),4*(U$2-1),12,1)),AVERAGE(OFFSET(P_Flows!$E$10,12*($A18-1),4*(U$2-1),12,1))) -> 221.2355 | W18: =IF(PlotControl!$B$4 = "Annual Max",MAX(OFFSET(P_Flows!$C$10,12*($A18-1),4*(X$2-1),12,1)),AVERAGE(OFFSET(P_Flows!$C$10,12*($A18-1),4*(X$2-1),12,1))) -> 15.95925 | X18: =IF(PlotControl!$B$4 = "Annual Max",MAX(OFFSET(P_Flows!$D$10,12*($A18-1),4*(X$2-1),12,1)),AVERAGE(OFFSET(P_Flows!$D$10,12*($A18-1),4*(X$2-1),12,1))) -> 61.909025 | Y18: =IF(PlotControl!$B$4 = "Annual Max",MAX(OFFSET(P_Flows!$E$10,12*($A18-1),4*(X$2-1),12,1)),AVERAGE(OFFSET(P_Flows!$E$10,12*($A18-1),4*(X$2-1),12,1))) -> 233.855 | Z18: =IF(PlotControl!$B$4 = "Annual Max",MAX(OFFSET(P_Flows!$C$10,12*($A18-1),4*(AA$2-1),12,1)),AVERAGE(OFFSET(P_Flows!$C$10,12*($A18-1),4*(AA$2-1),12,1))) -> 18.670675 | AA18: =IF(PlotControl!$B$4 = "Annual Max",MAX(OFFSET(P_Flows!$D$10,12*($A18-1),4*(AA$2-1),12,1)),AVERAGE(OFFSET(P_Flows!$D$10,12*($A18-1),4*(AA$2-1),12,1))) -> 73.94574167 | AB18: =IF(PlotControl!$B$4 = "Annual Max",MAX(OFFSET(P_Flows!$E$10,12*($A18-1),4*(AA$2-1),12,1)),AVERAGE(OFFSET(P_Flows!$E$10,12*($A18-1),4*(AA$2-1),12,1))) -> 280.7901667 | AD18: 51.08333333 | AE18: =OFFSET(P_Flows!$C$10,ROUND(12*$AD18,0),4*(AF$2-1),1,1) -> 2.6143 | AF18: =OFFSET(P_Flows!$D$10,ROUND(12*$AD18,0),4*(AF$2-1),1,1) -> 2.6242 | AG18: =OFFSET(P_Flows!$E$10,ROUND(12*$AD18,0),4*(AF$2-1),1,1) -> 2.7642 | AH18: =OFFSET(P_Flows!$C$10,ROUND(12*$AD18,0),4*(AI$2-1),1,1) -> 2.6913 | AI18: =OFFSET(P_Flows!$D$10,ROUND(12*$AD18,0),4*(AI$2-1),1,1) -> 2.7545 | AJ18: =OFFSET(P_Flows!$E$10,ROUND(12*$AD18,0),4*(AI$2-1),1,1) -> 3.6464 | AK18: =OFFSET(P_Flows!$C$10,ROUND(12*$AD18,0),4*(AL$2-1),1,1) -> 2.7118 | AL18: =OFFSET(P_Flows!$D$10,ROUND(12*$AD18,0),4*(AL$2-1),1,1) -> 2.7891 | AM18: =OFFSET(P_Flows!$E$10,ROUND(12*$AD18,0),4*(AL$2-1),1,1) -> 3.8808 | AN18: =OFFSET(P_Flows!$C$10,ROUND(12*$AD18,0),4*(AO$2-1),1,1) -> 2.8087 | AO18: =OFFSET(P_Flows!$D$10,ROUND(12*$AD18,0),4*(AO$2-1),1,1) -> 2.953 | AP18: =OFFSET(P_Flows!$E$10,ROUND(12*$AD18,0),4*(AO$2-1),1,1) -> 4.9908 | AQ18: =OFFSET(P_Flows!$C$10,ROUND(12*$AD18,0),4*(AR$2-1),1,1) -> 3.2475 | AR18: =OFFSET(P_Flows!$D$10,ROUND(12*$AD18,0),4*(AR$2-1),1,1) -> 4.1076 | AS18: =OFFSET(P_Flows!$E$10,ROUND(12*$AD18,0),4*(AR$2-1),1,1) -> 9.2625 | AT18: =OFFSET(P_Flows!$C$10,ROUND(12*$AD18,0),4*(AU$2-1),1,1) -> 3.577 | AU18: =OFFSET(P_Flows!$D$10,ROUND(12*$AD18,0),4*(AU$2-1),1,1) -> 4.5649 | AV18: =OFFSET(P_Flows!$E$10,ROUND(12*$AD18,0),4*(AU$2-1),1,1) -> 12.558 | AW18: =OFFSET(P_Flows!$C$10,ROUND(12*$AD18,0),4*(AX$2-1),1,1) -> 3.8612 | AX18: =OFFSET(P_Flows!$D$10,ROUND(12*$AD18,0),4*(AX$2-1),1,1) -> 4.9705 | AY18: =OFFSET(P_Flows!$E$10,ROUND(12*$AD18,0),4*(AX$2-1),1,1) -> 15.39 | AZ18: =OFFSET(P_Flows!$C$10,ROUND(12*$AD18,0),4*(BA$2-1),1,1) -> 3.9322 | BA18: =OFFSET(P_Flows!$D$10,ROUND(12*$AD18,0),4*(BA$2-1),1,1) -> 5.0681 | BB18: =OFFSET(P_Flows!$E$10,ROUND(12*$AD18,0),4*(BA$2-1),1,1) -> 16.092 | BC18: =OFFSET(P_Flows!$C$10,ROUND(12*$AD18,0),4*(BD$2-1),1,1) -> 4.1953 | BD18: =OFFSET(P_Flows!$D$10,ROUND(12*$AD18,0),4*(BD$2-1),1,1) -> 5.4453 | BE18: =OFFSET(P_Flows!$E$10,ROUND(12*$AD18,0),4*(BD$2-1),1,1) -> 18.762
A19: 15 | B19: =IF(PlotControl!$B$4 = "Annual Max",MAX(OFFSET(P_Flows!$C$10,12*($A19-1),4*(C$2-1),12,1)),AVERAGE(OFFSET(P_Flows!$C$10,12*($A19-1),4*(C$2-1),12,1))) -> 2.747575 | C19: =IF(PlotControl!$B$4 = "Annual Max",MAX(OFFSET(P_Flows!$D$10,12*($A19-1),4*(C$2-1),12,1)),AVERAGE(OFFSET(P_Flows!$D$10,12*($A19-1),4*(C$2-1),12,1))) -> 3.344433333 | D19: =IF(PlotControl!$B$4 = "Annual Max",MAX(OFFSET(P_Flows!$E$10,12*($A19-1),4*(C$2-1),12,1)),AVERAGE(OFFSET(P_Flows!$E$10,12*($A19-1),4*(C$2-1),12,1))) -> 6.02235 | E19: =IF(PlotControl!$B$4 = "Annual Max",MAX(OFFSET(P_Flows!$C$10,12*($A19-1),4*(F$2-1),12,1)),AVERAGE(OFFSET(P_Flows!$C$10,12*($A19-1),4*(F$2-1),12,1))) -> 3.449008333 | F19: =IF(PlotControl!$B$4 = "Annual Max",MAX(OFFSET(P_Flows!$D$10,12*($A19-1),4*(F$2-1),12,1)),AVERAGE(OFFSET(P_Flows!$D$10,12*($A19-1),4*(F$2-1),12,1))) -> 6.782616667 | G19: =IF(PlotControl!$B$4 = "Annual Max",MAX(OFFSET(P_Flows!$E$10,12*($A19-1),4*(F$2-1),12,1)),AVERAGE(OFFSET(P_Flows!$E$10,12*($A19-1),4*(F$2-1),12,1))) -> 21.16083333 | H19: =IF(PlotControl!$B$4 = "Annual Max",MAX(OFFSET(P_Flows!$C$10,12*($A19-1),4*(I$2-1),12,1)),AVERAGE(OFFSET(P_Flows!$C$10,12*($A19-1),4*(I$2-1),12,1))) -> 3.663208333 | I19: =IF(PlotControl!$B$4 = "Annual Max",MAX(OFFSET(P_Flows!$D$10,12*($A19-1),4*(I$2-1),12,1)),AVERAGE(OFFSET(P_Flows!$D$10,12*($A19-1),4*(I$2-1),12,1))) -> 7.807466667 | J19: =IF(PlotControl!$B$4 = "Annual Max",MAX(OFFSET(P_Flows!$E$10,12*($A19-1),4*(I$2-1),12,1)),AVERAGE(OFFSET(P_Flows!$E$10,12*($A19-1),4*(I$2-1),12,1))) -> 25.59616667 | K19: =IF(PlotControl!$B$4 = "Annual Max",MAX(OFFSET(P_Flows!$C$10,12*($A19-1),4*(L$2-1),12,1)),AVERAGE(OFFSET(P_Flows!$C$10,12*($A19-1),4*(L$2-1),12,1))) -> 4.57075 | L19: =IF(PlotControl!$B$4 = "Annual Max",MAX(OFFSET(P_Flows!$D$10,12*($A19-1),4*(L$2-1),12,1)),AVERAGE(OFFSET(P_Flows!$D$10,12*($A19-1),4*(L$2-1),12,1))) -> 12.22935833 | M19: =IF(PlotControl!$B$4 = "Annual Max",MAX(OFFSET(P_Flows!$E$10,12*($A19-1),4*(L$2-1),12,1)),AVERAGE(OFFSET(P_Flows!$E$10,12*($A19-1),4*(L$2-1),12,1))) -> 44.90809167 | N19: =IF(PlotControl!$B$4 = "Annual Max",MAX(OFFSET(P_Flows!$C$10,12*($A19-1),4*(O$2-1),12,1)),AVERAGE(OFFSET(P_Flows!$C$10,12*($A19-1),4*(O$2-1),12,1))) -> 7.997591667 | O19: =IF(PlotControl!$B$4 = "Annual Max",MAX(OFFSET(P_Flows!$D$10,12*($A19-1),4*(O$2-1),12,1)),AVERAGE(OFFSET(P_Flows!$D$10,12*($A19-1),4*(O$2-1),12,1))) -> 28.84865833 | P19: =IF(PlotControl!$B$4 = "Annual Max",MAX(OFFSET(P_Flows!$E$10,12*($A19-1),4*(O$2-1),12,1)),AVERAGE(OFFSET(P_Flows!$E$10,12*($A19-1),4*(O$2-1),12,1))) -> 116.9246667 | Q19: =IF(PlotControl!$B$4 = "Annual Max",MAX(OFFSET(P_Flows!$C$10,12*($A19-1),4*(R$2-1),12,1)),AVERAGE(OFFSET(P_Flows!$C$10,12*($A19-1),4*(R$2-1),12,1))) -> 10.9068 | R19: =IF(PlotControl!$B$4 = "Annual Max",MAX(OFFSET(P_Flows!$D$10,12*($A19-1),4*(R$2-1),12,1)),AVERAGE(OFFSET(P_Flows!$D$10,12*($A19-1),4*(R$2-1),12,1))) -> 42.95180833 | S19: =IF(PlotControl!$B$4 = "Annual Max",MAX(OFFSET(P_Flows!$E$10,12*($A19-1),4*(R$2-1),12,1)),AVERAGE(OFFSET(P_Flows!$E$10,12*($A19-1),4*(R$2-1),12,1))) -> 178.40625 | T19: =IF(PlotControl!$B$4 = "Annual Max",MAX(OFFSET(P_Flows!$C$10,12*($A19-1),4*(U$2-1),12,1)),AVERAGE(OFFSET(P_Flows!$C$10,12*($A19-1),4*(U$2-1),12,1))) -> 13.61731667 | U19: =IF(PlotControl!$B$4 = "Annual Max",MAX(OFFSET(P_Flows!$D$10,12*($A19-1),4*(U$2-1),12,1)),AVERAGE(OFFSET(P_Flows!$D$10,12*($A19-1),4*(U$2-1),12,1))) -> 56.12413333 | V19: =IF(PlotControl!$B$4 = "Annual Max",MAX(OFFSET(P_Flows!$E$10,12*($A19-1),4*(U$2-1),12,1)),AVERAGE(OFFSET(P_Flows!$E$10,12*($A19-1),4*(U$2-1),12,1))) -> 236.90175 | W19: =IF(PlotControl!$B$4 = "Annual Max",MAX(OFFSET(P_Flows!$C$10,12*($A19-1),4*(X$2-1),12,1)),AVERAGE(OFFSET(P_Flows!$C$10,12*($A19-1),4*(X$2-1),12,1))) -> 14.22365 | X19: =IF(PlotControl!$B$4 = "Annual Max",MAX(OFFSET(P_Flows!$D$10,12*($A19-1),4*(X$2-1),12,1)),AVERAGE(OFFSET(P_Flows!$D$10,12*($A19-1),4*(X$2-1),12,1))) -> 59.13019167 | Y19: =IF(PlotControl!$B$4 = "Annual Max",MAX(OFFSET(P_Flows!$E$10,12*($A19-1),4*(X$2-1),12,1)),AVERAGE(OFFSET(P_Flows!$E$10,12*($A19-1),4*(X$2-1),12,1))) -> 250.4654167 | Z19: =IF(PlotControl!$B$4 = "Annual Max",MAX(OFFSET(P_Flows!$C$10,12*($A19-1),4*(AA$2-1),12,1)),AVERAGE(OFFSET(P_Flows!$C$10,12*($A19-1),4*(AA$2-1),12,1))) -> 16.580525 | AA19: =IF(PlotControl!$B$4 = "Annual Max",MAX(OFFSET(P_Flows!$D$10,12*($A19-1),4*(AA$2-1),12,1)),AVERAGE(OFFSET(P_Flows!$D$10,12*($A19-1),4*(AA$2-1),12,1))) -> 70.59288333 | AB19: =IF(PlotControl!$B$4 = "Annual Max",MAX(OFFSET(P_Flows!$E$10,12*($A19-1),4*(AA$2-1),12,1)),AVERAGE(OFFSET(P_Flows!$E$10,12*($A19-1),4*(AA$2-1),12,1))) -> 300.7228333 | AD19: 51.16666667 | AE19: =OFFSET(P_Flows!$C$10,ROUND(12*$AD19,0),4*(AF$2-1),1,1) -> 2.6161 | AF19: =OFFSET(P_Flows!$D$10,ROUND(12*$AD19,0),4*(AF$2-1),1,1) -> 2.7328 | AG19: =OFFSET(P_Flows!$E$10,ROUND(12*$AD19,0),4*(AF$2-1),1,1) -> 4.0268 | AH19: =OFFSET(P_Flows!$C$10,ROUND(12*$AD19,0),4*(AI$2-1),1,1) -> 2.6944 | AI19: =OFFSET(P_Flows!$D$10,ROUND(12*$AD19,0),4*(AI$2-1),1,1) -> 3.3785 | AJ19: =OFFSET(P_Flows!$E$10,ROUND(12*$AD19,0),4*(AI$2-1),1,1) -> 10.964 | AK19: =OFFSET(P_Flows!$C$10,ROUND(12*$AD19,0),4*(AL$2-1),1,1) -> 2.7144 | AL19: =OFFSET(P_Flows!$D$10,ROUND(12*$AD19,0),4*(AL$2-1),1,1) -> 3.5436 | AM19: =OFFSET(P_Flows!$E$10,ROUND(12*$AD19,0),4*(AL$2-1),1,1) -> 12.738 | AN19: =OFFSET(P_Flows!$C$10,ROUND(12*$AD19,0),4*(AO$2-1),1,1) -> 2.8048 | AO19: =OFFSET(P_Flows!$D$10,ROUND(12*$AD19,0),4*(AO$2-1),1,1) -> 4.2898 | AP19: =OFFSET(P_Flows!$E$10,ROUND(12*$AD19,0),4*(AO$2-1),1,1) -> 20.754 | AQ19: =OFFSET(P_Flows!$C$10,ROUND(12*$AD19,0),4*(AR$2-1),1,1) -> 3.3862 | AR19: =OFFSET(P_Flows!$D$10,ROUND(12*$AD19,0),4*(AR$2-1),1,1) -> 7.5048 | AS19: =OFFSET(P_Flows!$E$10,ROUND(12*$AD19,0),4*(AR$2-1),1,1) -> 51.991 | AT19: =OFFSET(P_Flows!$C$10,ROUND(12*$AD19,0),4*(AU$2-1),1,1) -> 3.7206 | AU19: =OFFSET(P_Flows!$D$10,ROUND(12*$AD19,0),4*(AU$2-1),1,1) -> 9.7484 | AV19: =OFFSET(P_Flows!$E$10,ROUND(12*$AD19,0),4*(AU$2-1),1,1) -> 75.506 | AW19: =OFFSET(P_Flows!$C$10,ROUND(12*$AD19,0),4*(AX$2-1),1,1) -> 3.9156 | AX19: =OFFSET(P_Flows!$D$10,ROUND(12*$AD19,0),4*(AX$2-1),1,1) -> 11.193 | AY19: =OFFSET(P_Flows!$E$10,ROUND(12*$AD19,0),4*(AX$2-1),1,1) -> 91.088 | AZ19: =OFFSET(P_Flows!$C$10,ROUND(12*$AD19,0),4*(BA$2-1),1,1) -> 3.981 | BA19: =OFFSET(P_Flows!$D$10,ROUND(12*$AD19,0),4*(BA$2-1),1,1) -> 11.72 | BB19: =OFFSET(P_Flows!$E$10,ROUND(12*$AD19,0),4*(BA$2-1),1,1) -> 96.805 | BC19: =OFFSET(P_Flows!$C$10,ROUND(12*$AD19,0),4*(BD$2-1),1,1) -> 4.2193 | BD19: =OFFSET(P_Flows!$D$10,ROUND(12*$AD19,0),4*(BD$2-1),1,1) -> 13.451 | BE19: =OFFSET(P_Flows!$E$10,ROUND(12*$AD19,0),4*(BD$2-1),1,1) -> 115.58
A20: 16 | B20: =IF(PlotControl!$B$4 = "Annual Max",MAX(OFFSET(P_Flows!$C$10,12*($A20-1),4*(C$2-1),12,1)),AVERAGE(OFFSET(P_Flows!$C$10,12*($A20-1),4*(C$2-1),12,1))) -> 2.773033333 | C20: =IF(PlotControl!$B$4 = "Annual Max",MAX(OFFSET(P_Flows!$D$10,12*($A20-1),4*(C$2-1),12,1)),AVERAGE(OFFSET(P_Flows!$D$10,12*($A20-1),4*(C$2-1),12,1))) -> 3.363008333 | D20: =IF(PlotControl!$B$4 = "Annual Max",MAX(OFFSET(P_Flows!$E$10,12*($A20-1),4*(C$2-1),12,1)),AVERAGE(OFFSET(P_Flows!$E$10,12*($A20-1),4*(C$2-1),12,1))) -> 5.805475 | E20: =IF(PlotControl!$B$4 = "Annual Max",MAX(OFFSET(P_Flows!$C$10,12*($A20-1),4*(F$2-1),12,1)),AVERAGE(OFFSET(P_Flows!$C$10,12*($A20-1),4*(F$2-1),12,1))) -> 3.607925 | F20: =IF(PlotControl!$B$4 = "Annual Max",MAX(OFFSET(P_Flows!$D$10,12*($A20-1),4*(F$2-1),12,1)),AVERAGE(OFFSET(P_Flows!$D$10,12*($A20-1),4*(F$2-1),12,1))) -> 6.948383333 | G20: =IF(PlotControl!$B$4 = "Annual Max",MAX(OFFSET(P_Flows!$E$10,12*($A20-1),4*(F$2-1),12,1)),AVERAGE(OFFSET(P_Flows!$E$10,12*($A20-1),4*(F$2-1),12,1))) -> 20.15678333 | H20: =IF(PlotControl!$B$4 = "Annual Max",MAX(OFFSET(P_Flows!$C$10,12*($A20-1),4*(I$2-1),12,1)),AVERAGE(OFFSET(P_Flows!$C$10,12*($A20-1),4*(I$2-1),12,1))) -> 3.859941667 | I20: =IF(PlotControl!$B$4 = "Annual Max",MAX(OFFSET(P_Flows!$D$10,12*($A20-1),4*(I$2-1),12,1)),AVERAGE(OFFSET(P_Flows!$D$10,12*($A20-1),4*(I$2-1),12,1))) -> 8.005866667 | J20: =IF(PlotControl!$B$4 = "Annual Max",MAX(OFFSET(P_Flows!$E$10,12*($A20-1),4*(I$2-1),12,1)),AVERAGE(OFFSET(P_Flows!$E$10,12*($A20-1),4*(I$2-1),12,1))) -> 24.34223333 | K20: =IF(PlotControl!$B$4 = "Annual Max",MAX(OFFSET(P_Flows!$C$10,12*($A20-1),4*(L$2-1),12,1)),AVERAGE(OFFSET(P_Flows!$C$10,12*($A20-1),4*(L$2-1),12,1))) -> 4.93585 | L20: =IF(PlotControl!$B$4 = "Annual Max",MAX(OFFSET(P_Flows!$D$10,12*($A20-1),4*(L$2-1),12,1)),AVERAGE(OFFSET(P_Flows!$D$10,12*($A20-1),4*(L$2-1),12,1))) -> 12.57933333 | M20: =IF(PlotControl!$B$4 = "Annual Max",MAX(OFFSET(P_Flows!$E$10,12*($A20-1),4*(L$2-1),12,1)),AVERAGE(OFFSET(P_Flows!$E$10,12*($A20-1),4*(L$2-1),12,1))) -> 42.53571667 | N20: =IF(PlotControl!$B$4 = "Annual Max",MAX(OFFSET(P_Flows!$C$10,12*($A20-1),4*(O$2-1),12,1)),AVERAGE(OFFSET(P_Flows!$C$10,12*($A20-1),4*(O$2-1),12,1))) -> 9.009208333 | O20: =IF(PlotControl!$B$4 = "Annual Max",MAX(OFFSET(P_Flows!$D$10,12*($A20-1),4*(O$2-1),12,1)),AVERAGE(OFFSET(P_Flows!$D$10,12*($A20-1),4*(O$2-1),12,1))) -> 29.81406667 | P20: =IF(PlotControl!$B$4 = "Annual Max",MAX(OFFSET(P_Flows!$E$10,12*($A20-1),4*(O$2-1),12,1)),AVERAGE(OFFSET(P_Flows!$E$10,12*($A20-1),4*(O$2-1),12,1))) -> 110.6251167 | Q20: =IF(PlotControl!$B$4 = "Annual Max",MAX(OFFSET(P_Flows!$C$10,12*($A20-1),4*(R$2-1),12,1)),AVERAGE(OFFSET(P_Flows!$C$10,12*($A20-1),4*(R$2-1),12,1))) -> 12.4573 | R20: =IF(PlotControl!$B$4 = "Annual Max",MAX(OFFSET(P_Flows!$D$10,12*($A20-1),4*(R$2-1),12,1)),AVERAGE(OFFSET(P_Flows!$D$10,12*($A20-1),4*(R$2-1),12,1))) -> 44.37020833 | S20: =IF(PlotControl!$B$4 = "Annual Max",MAX(OFFSET(P_Flows!$E$10,12*($A20-1),4*(R$2-1),12,1)),AVERAGE(OFFSET(P_Flows!$E$10,12*($A20-1),4*(R$2-1),12,1))) -> 168.5979167 | T20: =IF(PlotControl!$B$4 = "Annual Max",MAX(OFFSET(P_Flows!$C$10,12*($A20-1),4*(U$2-1),12,1)),AVERAGE(OFFSET(P_Flows!$C$10,12*($A20-1),4*(U$2-1),12,1))) -> 15.671475 | U20: =IF(PlotControl!$B$4 = "Annual Max",MAX(OFFSET(P_Flows!$D$10,12*($A20-1),4*(U$2-1),12,1)),AVERAGE(OFFSET(P_Flows!$D$10,12*($A20-1),4*(U$2-1),12,1))) -> 57.895175 | V20: =IF(PlotControl!$B$4 = "Annual Max",MAX(OFFSET(P_Flows!$E$10,12*($A20-1),4*(U$2-1),12,1)),AVERAGE(OFFSET(P_Flows!$E$10,12*($A20-1),4*(U$2-1),12,1))) -> 223.7158333 | W20: =IF(PlotControl!$B$4 = "Annual Max",MAX(OFFSET(P_Flows!$C$10,12*($A20-1),4*(X$2-1),12,1)),AVERAGE(OFFSET(P_Flows!$C$10,12*($A20-1),4*(X$2-1),12,1))) -> 16.38624167 | X20: =IF(PlotControl!$B$4 = "Annual Max",MAX(OFFSET(P_Flows!$D$10,12*($A20-1),4*(X$2-1),12,1)),AVERAGE(OFFSET(P_Flows!$D$10,12*($A20-1),4*(X$2-1),12,1))) -> 60.99395833 | Y20: =IF(PlotControl!$B$4 = "Annual Max",MAX(OFFSET(P_Flows!$E$10,12*($A20-1),4*(X$2-1),12,1)),AVERAGE(OFFSET(P_Flows!$E$10,12*($A20-1),4*(X$2-1),12,1))) -> 236.4609167 | Z20: =IF(PlotControl!$B$4 = "Annual Max",MAX(OFFSET(P_Flows!$C$10,12*($A20-1),4*(AA$2-1),12,1)),AVERAGE(OFFSET(P_Flows!$C$10,12*($A20-1),4*(AA$2-1),12,1))) -> 19.17908333 | AA20: =IF(PlotControl!$B$4 = "Annual Max",MAX(OFFSET(P_Flows!$D$10,12*($A20-1),4*(AA$2-1),12,1)),AVERAGE(OFFSET(P_Flows!$D$10,12*($A20-1),4*(AA$2-1),12,1))) -> 72.82365833 | AB20: =IF(PlotControl!$B$4 = "Annual Max",MAX(OFFSET(P_Flows!$E$10,12*($A20-1),4*(AA$2-1),12,1)),AVERAGE(OFFSET(P_Flows!$E$10,12*($A20-1),4*(AA$2-1),12,1))) -> 283.8351667 | AD20: 51.25 | AE20: =OFFSET(P_Flows!$C$10,ROUND(12*$AD20,0),4*(AF$2-1),1,1) -> 3.0709 | AF20: =OFFSET(P_Flows!$D$10,ROUND(12*$AD20,0),4*(AF$2-1),1,1) -> 4.3612 | AG20: =OFFSET(P_Flows!$E$10,ROUND(12*$AD20,0),4*(AF$2-1),1,1) -> 8.1646 | AH20: =OFFSET(P_Flows!$C$10,ROUND(12*$AD20,0),4*(AI$2-1),1,1) -> 5.7045 | AI20: =OFFSET(P_Flows!$D$10,ROUND(12*$AD20,0),4*(AI$2-1),1,1) -> 14.212 | AJ20: =OFFSET(P_Flows!$E$10,ROUND(12*$AD20,0),4*(AI$2-1),1,1) -> 39.287 | AK20: =OFFSET(P_Flows!$C$10,ROUND(12*$AD20,0),4*(AL$2-1),1,1) -> 6.4295 | AL20: =OFFSET(P_Flows!$D$10,ROUND(12*$AD20,0),4*(AL$2-1),1,1) -> 16.924 | AM20: =OFFSET(P_Flows!$E$10,ROUND(12*$AD20,0),4*(AL$2-1),1,1) -> 47.856 | AN20: =OFFSET(P_Flows!$C$10,ROUND(12*$AD20,0),4*(AO$2-1),1,1) -> 9.9007 | AO20: =OFFSET(P_Flows!$D$10,ROUND(12*$AD20,0),4*(AO$2-1),1,1) -> 29.907 | AP20: =OFFSET(P_Flows!$E$10,ROUND(12*$AD20,0),4*(AO$2-1),1,1) -> 88.876 | AQ20: =OFFSET(P_Flows!$C$10,ROUND(12*$AD20,0),4*(AR$2-1),1,1) -> 22.719 | AR20: =OFFSET(P_Flows!$D$10,ROUND(12*$AD20,0),4*(AR$2-1),1,1) -> 78.168 | AS20: =OFFSET(P_Flows!$E$10,ROUND(12*$AD20,0),4*(AR$2-1),1,1) -> 240.67 | AT20: =OFFSET(P_Flows!$C$10,ROUND(12*$AD20,0),4*(AU$2-1),1,1) -> 32.957 | AU20: =OFFSET(P_Flows!$D$10,ROUND(12*$AD20,0),4*(AU$2-1),1,1) -> 116.34 | AV20: =OFFSET(P_Flows!$E$10,ROUND(12*$AD20,0),4*(AU$2-1),1,1) -> 361.66 | AW20: =OFFSET(P_Flows!$C$10,ROUND(12*$AD20,0),4*(AX$2-1),1,1) -> 42.112 | AX20: =OFFSET(P_Flows!$D$10,ROUND(12*$AD20,0),4*(AX$2-1),1,1) -> 150.55 | AY20: =OFFSET(P_Flows!$E$10,ROUND(12*$AD20,0),4*(AX$2-1),1,1) -> 469.85 | AZ20: =OFFSET(P_Flows!$C$10,ROUND(12*$AD20,0),4*(BA$2-1),1,1) -> 44.212 | BA20: =OFFSET(P_Flows!$D$10,ROUND(12*$AD20,0),4*(BA$2-1),1,1) -> 158.4 | BB20: =OFFSET(P_Flows!$E$10,ROUND(12*$AD20,0),4*(BA$2-1),1,1) -> 494.67 | BC20: =OFFSET(P_Flows!$C$10,ROUND(12*$AD20,0),4*(BD$2-1),1,1) -> 52.547 | BD20: =OFFSET(P_Flows!$D$10,ROUND(12*$AD20,0),4*(BD$2-1),1,1) -> 189.54 | BE20: =OFFSET(P_Flows!$E$10,ROUND(12*$AD20,0),4*(BD$2-1),1,1) -> 593.16
A21: 17 | B21: =IF(PlotControl!$B$4 = "Annual Max",MAX(OFFSET(P_Flows!$C$10,12*($A21-1),4*(C$2-1),12,1)),AVERAGE(OFFSET(P_Flows!$C$10,12*($A21-1),4*(C$2-1),12,1))) -> 2.766525 | C21: =IF(PlotControl!$B$4 = "Annual Max",MAX(OFFSET(P_Flows!$D$10,12*($A21-1),4*(C$2-1),12,1)),AVERAGE(OFFSET(P_Flows!$D$10,12*($A21-1),4*(C$2-1),12,1))) -> 3.359233333 | D21: =IF(PlotControl!$B$4 = "Annual Max",MAX(OFFSET(P_Flows!$E$10,12*($A21-1),4*(C$2-1),12,1)),AVERAGE(OFFSET(P_Flows!$E$10,12*($A21-1),4*(C$2-1),12,1))) -> 5.832425 | E21: =IF(PlotControl!$B$4 = "Annual Max",MAX(OFFSET(P_Flows!$C$10,12*($A21-1),4*(F$2-1),12,1)),AVERAGE(OFFSET(P_Flows!$C$10,12*($A21-1),4*(F$2-1),12,1))) -> 3.5722 | F21: =IF(PlotControl!$B$4 = "Annual Max",MAX(OFFSET(P_Flows!$D$10,12*($A21-1),4*(F$2-1),12,1)),AVERAGE(OFFSET(P_Flows!$D$10,12*($A21-1),4*(F$2-1),12,1))) -> 6.924975 | G21: =IF(PlotControl!$B$4 = "Annual Max",MAX(OFFSET(P_Flows!$E$10,12*($A21-1),4*(F$2-1),12,1)),AVERAGE(OFFSET(P_Flows!$E$10,12*($A21-1),4*(F$2-1),12,1))) -> 20.404225 | H21: =IF(PlotControl!$B$4 = "Annual Max",MAX(OFFSET(P_Flows!$C$10,12*($A21-1),4*(I$2-1),12,1)),AVERAGE(OFFSET(P_Flows!$C$10,12*($A21-1),4*(I$2-1),12,1))) -> 3.815158333 | I21: =IF(PlotControl!$B$4 = "Annual Max",MAX(OFFSET(P_Flows!$D$10,12*($A21-1),4*(I$2-1),12,1)),AVERAGE(OFFSET(P_Flows!$D$10,12*($A21-1),4*(I$2-1),12,1))) -> 7.969708333 | J21: =IF(PlotControl!$B$4 = "Annual Max",MAX(OFFSET(P_Flows!$E$10,12*($A21-1),4*(I$2-1),12,1)),AVERAGE(OFFSET(P_Flows!$E$10,12*($A21-1),4*(I$2-1),12,1))) -> 24.62008333 | K21: =IF(PlotControl!$B$4 = "Annual Max",MAX(OFFSET(P_Flows!$C$10,12*($A21-1),4*(L$2-1),12,1)),AVERAGE(OFFSET(P_Flows!$C$10,12*($A21-1),4*(L$2-1),12,1))) -> 4.847258333 | L21: =IF(PlotControl!$B$4 = "Annual Max",MAX(OFFSET(P_Flows!$D$10,12*($A21-1),4*(L$2-1),12,1)),AVERAGE(OFFSET(P_Flows!$D$10,12*($A21-1),4*(L$2-1),12,1))) -> 12.48285 | M21: =IF(PlotControl!$B$4 = "Annual Max",MAX(OFFSET(P_Flows!$E$10,12*($A21-1),4*(L$2-1),12,1)),AVERAGE(OFFSET(P_Flows!$E$10,12*($A21-1),4*(L$2-1),12,1))) -> 42.94926667 | N21: =IF(PlotControl!$B$4 = "Annual Max",MAX(OFFSET(P_Flows!$C$10,12*($A21-1),4*(O$2-1),12,1)),AVERAGE(OFFSET(P_Flows!$C$10,12*($A21-1),4*(O$2-1),12,1))) -> 8.767958333 | O21: =IF(PlotControl!$B$4 = "Annual Max",MAX(OFFSET(P_Flows!$D$10,12*($A21-1),4*(O$2-1),12,1)),AVERAGE(OFFSET(P_Flows!$D$10,12*($A21-1),4*(O$2-1),12,1))) -> 29.51549167 | P21: =IF(PlotControl!$B$4 = "Annual Max",MAX(OFFSET(P_Flows!$E$10,12*($A21-1),4*(O$2-1),12,1)),AVERAGE(OFFSET(P_Flows!$E$10,12*($A21-1),4*(O$2-1),12,1))) -> 111.636675 | Q21: =IF(PlotControl!$B$4 = "Annual Max",MAX(OFFSET(P_Flows!$C$10,12*($A21-1),4*(R$2-1),12,1)),AVERAGE(OFFSET(P_Flows!$C$10,12*($A21-1),4*(R$2-1),12,1))) -> 12.08719167 | R21: =IF(PlotControl!$B$4 = "Annual Max",MAX(OFFSET(P_Flows!$D$10,12*($A21-1),4*(R$2-1),12,1)),AVERAGE(OFFSET(P_Flows!$D$10,12*($A21-1),4*(R$2-1),12,1))) -> 43.90194167 | S21: =IF(PlotControl!$B$4 = "Annual Max",MAX(OFFSET(P_Flows!$E$10,12*($A21-1),4*(R$2-1),12,1)),AVERAGE(OFFSET(P_Flows!$E$10,12*($A21-1),4*(R$2-1),12,1))) -> 170.0266667 | T21: =IF(PlotControl!$B$4 = "Annual Max",MAX(OFFSET(P_Flows!$C$10,12*($A21-1),4*(U$2-1),12,1)),AVERAGE(OFFSET(P_Flows!$C$10,12*($A21-1),4*(U$2-1),12,1))) -> 15.19815 | U21: =IF(PlotControl!$B$4 = "Annual Max",MAX(OFFSET(P_Flows!$D$10,12*($A21-1),4*(U$2-1),12,1)),AVERAGE(OFFSET(P_Flows!$D$10,12*($A21-1),4*(U$2-1),12,1))) -> 57.32231667 | V21: =IF(PlotControl!$B$4 = "Annual Max",MAX(OFFSET(P_Flows!$E$10,12*($A21-1),4*(U$2-1),12,1)),AVERAGE(OFFSET(P_Flows!$E$10,12*($A21-1),4*(U$2-1),12,1))) -> 225.548 | W21: =IF(PlotControl!$B$4 = "Annual Max",MAX(OFFSET(P_Flows!$C$10,12*($A21-1),4*(X$2-1),12,1)),AVERAGE(OFFSET(P_Flows!$C$10,12*($A21-1),4*(X$2-1),12,1))) -> 15.88474167 | X21: =IF(PlotControl!$B$4 = "Annual Max",MAX(OFFSET(P_Flows!$D$10,12*($A21-1),4*(X$2-1),12,1)),AVERAGE(OFFSET(P_Flows!$D$10,12*($A21-1),4*(X$2-1),12,1))) -> 60.39169167 | Y21: =IF(PlotControl!$B$4 = "Annual Max",MAX(OFFSET(P_Flows!$E$10,12*($A21-1),4*(X$2-1),12,1)),AVERAGE(OFFSET(P_Flows!$E$10,12*($A21-1),4*(X$2-1),12,1))) -> 238.39875 | Z21: =IF(PlotControl!$B$4 = "Annual Max",MAX(OFFSET(P_Flows!$C$10,12*($A21-1),4*(AA$2-1),12,1)),AVERAGE(OFFSET(P_Flows!$C$10,12*($A21-1),4*(AA$2-1),12,1))) -> 18.57329167 | AA21: =IF(PlotControl!$B$4 = "Annual Max",MAX(OFFSET(P_Flows!$D$10,12*($A21-1),4*(AA$2-1),12,1)),AVERAGE(OFFSET(P_Flows!$D$10,12*($A21-1),4*(AA$2-1),12,1))) -> 72.0882 | AB21: =IF(PlotControl!$B$4 = "Annual Max",MAX(OFFSET(P_Flows!$E$10,12*($A21-1),4*(AA$2-1),12,1)),AVERAGE(OFFSET(P_Flows!$E$10,12*($A21-1),4*(AA$2-1),12,1))) -> 286.1205833 | AD21: 51.33333333 | AE21: =OFFSET(P_Flows!$C$10,ROUND(12*$AD21,0),4*(AF$2-1),1,1) -> 3.0617 | AF21: =OFFSET(P_Flows!$D$10,ROUND(12*$AD21,0),4*(AF$2-1),1,1) -> 4.3951 | AG21: =OFFSET(P_Flows!$E$10,ROUND(12*$AD21,0),4*(AF$2-1),1,1) -> 10.012 | AH21: =OFFSET(P_Flows!$C$10,ROUND(12*$AD21,0),4*(AI$2-1),1,1) -> 5.1191 | AI21: =OFFSET(P_Flows!$D$10,ROUND(12*$AD21,0),4*(AI$2-1),1,1) -> 12.394 | AJ21: =OFFSET(P_Flows!$E$10,ROUND(12*$AD21,0),4*(AI$2-1),1,1) -> 43.038 | AK21: =OFFSET(P_Flows!$C$10,ROUND(12*$AD21,0),4*(AL$2-1),1,1) -> 5.7655 | AL21: =OFFSET(P_Flows!$D$10,ROUND(12*$AD21,0),4*(AL$2-1),1,1) -> 14.907 | AM21: =OFFSET(P_Flows!$E$10,ROUND(12*$AD21,0),4*(AL$2-1),1,1) -> 53.414 | AN21: =OFFSET(P_Flows!$C$10,ROUND(12*$AD21,0),4*(AO$2-1),1,1) -> 8.6392 | AO21: =OFFSET(P_Flows!$D$10,ROUND(12*$AD21,0),4*(AO$2-1),1,1) -> 26.08 | AP21: =OFFSET(P_Flows!$E$10,ROUND(12*$AD21,0),4*(AO$2-1),1,1) -> 99.544 | AQ21: =OFFSET(P_Flows!$C$10,ROUND(12*$AD21,0),4*(AR$2-1),1,1) -> 19.382 | AR21: =OFFSET(P_Flows!$D$10,ROUND(12*$AD21,0),4*(AR$2-1),1,1) -> 67.269 | AS21: =OFFSET(P_Flows!$E$10,ROUND(12*$AD21,0),4*(AR$2-1),1,1) -> 268.79 | AT21: =OFFSET(P_Flows!$C$10,ROUND(12*$AD21,0),4*(AU$2-1),1,1) -> 28.6 | AU21: =OFFSET(P_Flows!$D$10,ROUND(12*$AD21,0),4*(AU$2-1),1,1) -> 102.7 | AV21: =OFFSET(P_Flows!$E$10,ROUND(12*$AD21,0),4*(AU$2-1),1,1) -> 415.18 | AW21: =OFFSET(P_Flows!$C$10,ROUND(12*$AD21,0),4*(AX$2-1),1,1) -> 37.986 | AX21: =OFFSET(P_Flows!$D$10,ROUND(12*$AD21,0),4*(AX$2-1),1,1) -> 139.17 | AY21: =OFFSET(P_Flows!$E$10,ROUND(12*$AD21,0),4*(AX$2-1),1,1) -> 565.84 | AZ21: =OFFSET(P_Flows!$C$10,ROUND(12*$AD21,0),4*(BA$2-1),1,1) -> 39.807 | BA21: =OFFSET(P_Flows!$D$10,ROUND(12*$AD21,0),4*(BA$2-1),1,1) -> 146.25 | BB21: =OFFSET(P_Flows!$E$10,ROUND(12*$AD21,0),4*(BA$2-1),1,1) -> 595.07 | BC21: =OFFSET(P_Flows!$C$10,ROUND(12*$AD21,0),4*(BD$2-1),1,1) -> 47.194 | BD21: =OFFSET(P_Flows!$D$10,ROUND(12*$AD21,0),4*(BD$2-1),1,1) -> 174.95 | BE21: =OFFSET(P_Flows!$E$10,ROUND(12*$AD21,0),4*(BD$2-1),1,1) -> 713.66
A22: 18 | B22: =IF(PlotControl!$B$4 = "Annual Max",MAX(OFFSET(P_Flows!$C$10,12*($A22-1),4*(C$2-1),12,1)),AVERAGE(OFFSET(P_Flows!$C$10,12*($A22-1),4*(C$2-1),12,1))) -> 2.764025 | C22: =IF(PlotControl!$B$4 = "Annual Max",MAX(OFFSET(P_Flows!$D$10,12*($A22-1),4*(C$2-1),12,1)),AVERAGE(OFFSET(P_Flows!$D$10,12*($A22-1),4*(C$2-1),12,1))) -> 3.367216667 | D22: =IF(PlotControl!$B$4 = "Annual Max",MAX(OFFSET(P_Flows!$E$10,12*($A22-1),4*(C$2-1),12,1)),AVERAGE(OFFSET(P_Flows!$E$10,12*($A22-1),4*(C$2-1),12,1))) -> 5.921108333 | E22: =IF(PlotControl!$B$4 = "Annual Max",MAX(OFFSET(P_Flows!$C$10,12*($A22-1),4*(F$2-1),12,1)),AVERAGE(OFFSET(P_Flows!$C$10,12*($A22-1),4*(F$2-1),12,1))) -> 3.564791667 | F22: =IF(PlotControl!$B$4 = "Annual Max",MAX(OFFSET(P_Flows!$D$10,12*($A22-1),4*(F$2-1),12,1)),AVERAGE(OFFSET(P_Flows!$D$10,12*($A22-1),4*(F$2-1),12,1))) -> 7.0229 | G22: =IF(PlotControl!$B$4 = "Annual Max",MAX(OFFSET(P_Flows!$E$10,12*($A22-1),4*(F$2-1),12,1)),AVERAGE(OFFSET(P_Flows!$E$10,12*($A22-1),4*(F$2-1),12,1))) -> 21.0813 | H22: =IF(PlotControl!$B$4 = "Annual Max",MAX(OFFSET(P_Flows!$C$10,12*($A22-1),4*(I$2-1),12,1)),AVERAGE(OFFSET(P_Flows!$C$10,12*($A22-1),4*(I$2-1),12,1))) -> 3.803608333 | I22: =IF(PlotControl!$B$4 = "Annual Max",MAX(OFFSET(P_Flows!$D$10,12*($A22-1),4*(I$2-1),12,1)),AVERAGE(OFFSET(P_Flows!$D$10,12*($A22-1),4*(I$2-1),12,1))) -> 8.085058333 | J22: =IF(PlotControl!$B$4 = "Annual Max",MAX(OFFSET(P_Flows!$E$10,12*($A22-1),4*(I$2-1),12,1)),AVERAGE(OFFSET(P_Flows!$E$10,12*($A22-1),4*(I$2-1),12,1))) -> 25.4241 | K22: =IF(PlotControl!$B$4 = "Annual Max",MAX(OFFSET(P_Flows!$C$10,12*($A22-1),4*(L$2-1),12,1)),AVERAGE(OFFSET(P_Flows!$C$10,12*($A22-1),4*(L$2-1),12,1))) -> 4.818583333 | L22: =IF(PlotControl!$B$4 = "Annual Max",MAX(OFFSET(P_Flows!$D$10,12*($A22-1),4*(L$2-1),12,1)),AVERAGE(OFFSET(P_Flows!$D$10,12*($A22-1),4*(L$2-1),12,1))) -> 12.682725 | M22: =IF(PlotControl!$B$4 = "Annual Max",MAX(OFFSET(P_Flows!$E$10,12*($A22-1),4*(L$2-1),12,1)),AVERAGE(OFFSET(P_Flows!$E$10,12*($A22-1),4*(L$2-1),12,1))) -> 44.35839167 | N22: =IF(PlotControl!$B$4 = "Annual Max",MAX(OFFSET(P_Flows!$C$10,12*($A22-1),4*(O$2-1),12,1)),AVERAGE(OFFSET(P_Flows!$C$10,12*($A22-1),4*(O$2-1),12,1))) -> 8.677841667 | O22: =IF(PlotControl!$B$4 = "Annual Max",MAX(OFFSET(P_Flows!$D$10,12*($A22-1),4*(O$2-1),12,1)),AVERAGE(OFFSET(P_Flows!$D$10,12*($A22-1),4*(O$2-1),12,1))) -> 30.07141667 | P22: =IF(PlotControl!$B$4 = "Annual Max",MAX(OFFSET(P_Flows!$E$10,12*($A22-1),4*(O$2-1),12,1)),AVERAGE(OFFSET(P_Flows!$E$10,12*($A22-1),4*(O$2-1),12,1))) -> 115.4370417 | Q22: =IF(PlotControl!$B$4 = "Annual Max",MAX(OFFSET(P_Flows!$C$10,12*($A22-1),4*(R$2-1),12,1)),AVERAGE(OFFSET(P_Flows!$C$10,12*($A22-1),4*(R$2-1),12,1))) -> 11.933675 | R22: =IF(PlotControl!$B$4 = "Annual Max",MAX(OFFSET(P_Flows!$D$10,12*($A22-1),4*(R$2-1),12,1)),AVERAGE(OFFSET(P_Flows!$D$10,12*($A22-1),4*(R$2-1),12,1))) -> 44.71555 | S22: =IF(PlotControl!$B$4 = "Annual Max",MAX(OFFSET(P_Flows!$E$10,12*($A22-1),4*(R$2-1),12,1)),AVERAGE(OFFSET(P_Flows!$E$10,12*($A22-1),4*(R$2-1),12,1))) -> 175.7128333 | T22: =IF(PlotControl!$B$4 = "Annual Max",MAX(OFFSET(P_Flows!$C$10,12*($A22-1),4*(U$2-1),12,1)),AVERAGE(OFFSET(P_Flows!$C$10,12*($A22-1),4*(U$2-1),12,1))) -> 14.96864167 | U22: =IF(PlotControl!$B$4 = "Annual Max",MAX(OFFSET(P_Flows!$D$10,12*($A22-1),4*(U$2-1),12,1)),AVERAGE(OFFSET(P_Flows!$D$10,12*($A22-1),4*(U$2-1),12,1))) -> 58.33286667 | V22: =IF(PlotControl!$B$4 = "Annual Max",MAX(OFFSET(P_Flows!$E$10,12*($A22-1),4*(U$2-1),12,1)),AVERAGE(OFFSET(P_Flows!$E$10,12*($A22-1),4*(U$2-1),12,1))) -> 232.8454167 | W22: =IF(PlotControl!$B$4 = "Annual Max",MAX(OFFSET(P_Flows!$C$10,12*($A22-1),4*(X$2-1),12,1)),AVERAGE(OFFSET(P_Flows!$C$10,12*($A22-1),4*(X$2-1),12,1))) -> 15.64465 | X22: =IF(PlotControl!$B$4 = "Annual Max",MAX(OFFSET(P_Flows!$D$10,12*($A22-1),4*(X$2-1),12,1)),AVERAGE(OFFSET(P_Flows!$D$10,12*($A22-1),4*(X$2-1),12,1))) -> 61.44705833 | Y22: =IF(PlotControl!$B$4 = "Annual Max",MAX(OFFSET(P_Flows!$E$10,12*($A22-1),4*(X$2-1),12,1)),AVERAGE(OFFSET(P_Flows!$E$10,12*($A22-1),4*(X$2-1),12,1))) -> 246.07825 | Z22: =IF(PlotControl!$B$4 = "Annual Max",MAX(OFFSET(P_Flows!$C$10,12*($A22-1),4*(AA$2-1),12,1)),AVERAGE(OFFSET(P_Flows!$C$10,12*($A22-1),4*(AA$2-1),12,1))) -> 18.28205833 | AA22: =IF(PlotControl!$B$4 = "Annual Max",MAX(OFFSET(P_Flows!$D$10,12*($A22-1),4*(AA$2-1),12,1)),AVERAGE(OFFSET(P_Flows!$D$10,12*($A22-1),4*(AA$2-1),12,1))) -> 73.34500833 | AB22: =IF(PlotControl!$B$4 = "Annual Max",MAX(OFFSET(P_Flows!$E$10,12*($A22-1),4*(AA$2-1),12,1)),AVERAGE(OFFSET(P_Flows!$E$10,12*($A22-1),4*(AA$2-1),12,1))) -> 295.3065833 | AD22: 51.41666667 | AE22: =OFFSET(P_Flows!$C$10,ROUND(12*$AD22,0),4*(AF$2-1),1,1) -> 2.7483 | AF22: =OFFSET(P_Flows!$D$10,ROUND(12*$AD22,0),4*(AF$2-1),1,1) -> 3.7343 | AG22: =OFFSET(P_Flows!$E$10,ROUND(12*$AD22,0),4*(AF$2-1),1,1) -> 5.5017 | AH22: =OFFSET(P_Flows!$C$10,ROUND(12*$AD22,0),4*(AI$2-1),1,1) -> 3.4399 | AI22: =OFFSET(P_Flows!$D$10,ROUND(12*$AD22,0),4*(AI$2-1),1,1) -> 9.0229 | AJ22: =OFFSET(P_Flows!$E$10,ROUND(12*$AD22,0),4*(AI$2-1),1,1) -> 19.03 | AK22: =OFFSET(P_Flows!$C$10,ROUND(12*$AD22,0),4*(AL$2-1),1,1) -> 3.6069 | AL22: =OFFSET(P_Flows!$D$10,ROUND(12*$AD22,0),4*(AL$2-1),1,1) -> 10.3 | AM22: =OFFSET(P_Flows!$E$10,ROUND(12*$AD22,0),4*(AL$2-1),1,1) -> 22.297 | AN22: =OFFSET(P_Flows!$C$10,ROUND(12*$AD22,0),4*(AO$2-1),1,1) -> 4.4724 | AO22: =OFFSET(P_Flows!$D$10,ROUND(12*$AD22,0),4*(AO$2-1),1,1) -> 16.918 | AP22: =OFFSET(P_Flows!$E$10,ROUND(12*$AD22,0),4*(AO$2-1),1,1) -> 39.226 | AQ22: =OFFSET(P_Flows!$C$10,ROUND(12*$AD22,0),4*(AR$2-1),1,1) -> 7.9931 | AR22: =OFFSET(P_Flows!$D$10,ROUND(12*$AD22,0),4*(AR$2-1),1,1) -> 40.167 | AS22: =OFFSET(P_Flows!$E$10,ROUND(12*$AD22,0),4*(AR$2-1),1,1) -> 98.02 | AT22: =OFFSET(P_Flows!$C$10,ROUND(12*$AD22,0),4*(AU$2-1),1,1) -> 10.55 | AU22: =OFFSET(P_Flows!$D$10,ROUND(12*$AD22,0),4*(AU$2-1),1,1) -> 58.862 | AV22: =OFFSET(P_Flows!$E$10,ROUND(12*$AD22,0),4*(AU$2-1),1,1) -> 145.94 | AW22: =OFFSET(P_Flows!$C$10,ROUND(12*$AD22,0),4*(AX$2-1),1,1) -> 12.504 | AX22: =OFFSET(P_Flows!$D$10,ROUND(12*$AD22,0),4*(AX$2-1),1,1) -> 73.814 | AY22: =OFFSET(P_Flows!$E$10,ROUND(12*$AD22,0),4*(AX$2-1),1,1) -> 184.21 | AZ22: =OFFSET(P_Flows!$C$10,ROUND(12*$AD22,0),4*(BA$2-1),1,1) -> 13.046 | BA22: =OFFSET(P_Flows!$D$10,ROUND(12*$AD22,0),4*(BA$2-1),1,1) -> 77.954 | BB22: =OFFSET(P_Flows!$E$10,ROUND(12*$AD22,0),4*(BA$2-1),1,1) -> 194.8 | BC22: =OFFSET(P_Flows!$C$10,ROUND(12*$AD22,0),4*(BD$2-1),1,1) -> 15.01 | BD22: =OFFSET(P_Flows!$D$10,ROUND(12*$AD22,0),4*(BD$2-1),1,1) -> 92.98 | BE22: =OFFSET(P_Flows!$E$10,ROUND(12*$AD22,0),4*(BD$2-1),1,1) -> 233.26
A23: 19 | B23: =IF(PlotControl!$B$4 = "Annual Max",MAX(OFFSET(P_Flows!$C$10,12*($A23-1),4*(C$2-1),12,1)),AVERAGE(OFFSET(P_Flows!$C$10,12*($A23-1),4*(C$2-1),12,1))) -> 2.766983333 | C23: =IF(PlotControl!$B$4 = "Annual Max",MAX(OFFSET(P_Flows!$D$10,12*($A23-1),4*(C$2-1),12,1)),AVERAGE(OFFSET(P_Flows!$D$10,12*($A23-1),4*(C$2-1),12,1))) -> 3.376958333 | D23: =IF(PlotControl!$B$4 = "Annual Max",MAX(OFFSET(P_Flows!$E$10,12*($A23-1),4*(C$2-1),12,1)),AVERAGE(OFFSET(P_Flows!$E$10,12*($A23-1),4*(C$2-1),12,1))) -> 5.945391667 | E23: =IF(PlotControl!$B$4 = "Annual Max",MAX(OFFSET(P_Flows!$C$10,12*($A23-1),4*(F$2-1),12,1)),AVERAGE(OFFSET(P_Flows!$C$10,12*($A23-1),4*(F$2-1),12,1))) -> 3.584525 | F23: =IF(PlotControl!$B$4 = "Annual Max",MAX(OFFSET(P_Flows!$D$10,12*($A23-1),4*(F$2-1),12,1)),AVERAGE(OFFSET(P_Flows!$D$10,12*($A23-1),4*(F$2-1),12,1))) -> 7.053975 | G23: =IF(PlotControl!$B$4 = "Annual Max",MAX(OFFSET(P_Flows!$E$10,12*($A23-1),4*(F$2-1),12,1)),AVERAGE(OFFSET(P_Flows!$E$10,12*($A23-1),4*(F$2-1),12,1))) -> 21.2121 | H23: =IF(PlotControl!$B$4 = "Annual Max",MAX(OFFSET(P_Flows!$C$10,12*($A23-1),4*(I$2-1),12,1)),AVERAGE(OFFSET(P_Flows!$C$10,12*($A23-1),4*(I$2-1),12,1))) -> 3.827116667 | I23: =IF(PlotControl!$B$4 = "Annual Max",MAX(OFFSET(P_Flows!$D$10,12*($A23-1),4*(I$2-1),12,1)),AVERAGE(OFFSET(P_Flows!$D$10,12*($A23-1),4*(I$2-1),12,1))) -> 8.119608333 | J23: =IF(PlotControl!$B$4 = "Annual Max",MAX(OFFSET(P_Flows!$E$10,12*($A23-1),4*(I$2-1),12,1)),AVERAGE(OFFSET(P_Flows!$E$10,12*($A23-1),4*(I$2-1),12,1))) -> 25.567625 | K23: =IF(PlotControl!$B$4 = "Annual Max",MAX(OFFSET(P_Flows!$C$10,12*($A23-1),4*(L$2-1),12,1)),AVERAGE(OFFSET(P_Flows!$C$10,12*($A23-1),4*(L$2-1),12,1))) -> 4.8555 | L23: =IF(PlotControl!$B$4 = "Annual Max",MAX(OFFSET(P_Flows!$D$10,12*($A23-1),4*(L$2-1),12,1)),AVERAGE(OFFSET(P_Flows!$D$10,12*($A23-1),4*(L$2-1),12,1))) -> 12.696675 | M23: =IF(PlotControl!$B$4 = "Annual Max",MAX(OFFSET(P_Flows!$E$10,12*($A23-1),4*(L$2-1),12,1)),AVERAGE(OFFSET(P_Flows!$E$10,12*($A23-1),4*(L$2-1),12,1))) -> 44.450425 | N23: =IF(PlotControl!$B$4 = "Annual Max",MAX(OFFSET(P_Flows!$C$10,12*($A23-1),4*(O$2-1),12,1)),AVERAGE(OFFSET(P_Flows!$C$10,12*($A23-1),4*(O$2-1),12,1))) -> 8.770691667 | O23: =IF(PlotControl!$B$4 = "Annual Max",MAX(OFFSET(P_Flows!$D$10,12*($A23-1),4*(O$2-1),12,1)),AVERAGE(OFFSET(P_Flows!$D$10,12*($A23-1),4*(O$2-1),12,1))) -> 30.03364167 | P23: =IF(PlotControl!$B$4 = "Annual Max",MAX(OFFSET(P_Flows!$E$10,12*($A23-1),4*(O$2-1),12,1)),AVERAGE(OFFSET(P_Flows!$E$10,12*($A23-1),4*(O$2-1),12,1))) -> 115.5005833 | Q23: =IF(PlotControl!$B$4 = "Annual Max",MAX(OFFSET(P_Flows!$C$10,12*($A23-1),4*(R$2-1),12,1)),AVERAGE(OFFSET(P_Flows!$C$10,12*($A23-1),4*(R$2-1),12,1))) -> 12.07120833 | R23: =IF(PlotControl!$B$4 = "Annual Max",MAX(OFFSET(P_Flows!$D$10,12*($A23-1),4*(R$2-1),12,1)),AVERAGE(OFFSET(P_Flows!$D$10,12*($A23-1),4*(R$2-1),12,1))) -> 44.638375 | S23: =IF(PlotControl!$B$4 = "Annual Max",MAX(OFFSET(P_Flows!$E$10,12*($A23-1),4*(R$2-1),12,1)),AVERAGE(OFFSET(P_Flows!$E$10,12*($A23-1),4*(R$2-1),12,1))) -> 175.6941667 | T23: =IF(PlotControl!$B$4 = "Annual Max",MAX(OFFSET(P_Flows!$C$10,12*($A23-1),4*(U$2-1),12,1)),AVERAGE(OFFSET(P_Flows!$C$10,12*($A23-1),4*(U$2-1),12,1))) -> 15.15248333 | U23: =IF(PlotControl!$B$4 = "Annual Max",MAX(OFFSET(P_Flows!$D$10,12*($A23-1),4*(U$2-1),12,1)),AVERAGE(OFFSET(P_Flows!$D$10,12*($A23-1),4*(U$2-1),12,1))) -> 58.27030833 | V23: =IF(PlotControl!$B$4 = "Annual Max",MAX(OFFSET(P_Flows!$E$10,12*($A23-1),4*(U$2-1),12,1)),AVERAGE(OFFSET(P_Flows!$E$10,12*($A23-1),4*(U$2-1),12,1))) -> 232.78425 | W23: =IF(PlotControl!$B$4 = "Annual Max",MAX(OFFSET(P_Flows!$C$10,12*($A23-1),4*(X$2-1),12,1)),AVERAGE(OFFSET(P_Flows!$C$10,12*($A23-1),4*(X$2-1),12,1))) -> 15.83955 | X23: =IF(PlotControl!$B$4 = "Annual Max",MAX(OFFSET(P_Flows!$D$10,12*($A23-1),4*(X$2-1),12,1)),AVERAGE(OFFSET(P_Flows!$D$10,12*($A23-1),4*(X$2-1),12,1))) -> 61.39819167 | Y23: =IF(PlotControl!$B$4 = "Annual Max",MAX(OFFSET(P_Flows!$E$10,12*($A23-1),4*(X$2-1),12,1)),AVERAGE(OFFSET(P_Flows!$E$10,12*($A23-1),4*(X$2-1),12,1))) -> 246.04675 | Z23: =IF(PlotControl!$B$4 = "Annual Max",MAX(OFFSET(P_Flows!$C$10,12*($A23-1),4*(AA$2-1),12,1)),AVERAGE(OFFSET(P_Flows!$C$10,12*($A23-1),4*(AA$2-1),12,1))) -> 18.51379167 | AA23: =IF(PlotControl!$B$4 = "Annual Max",MAX(OFFSET(P_Flows!$D$10,12*($A23-1),4*(AA$2-1),12,1)),AVERAGE(OFFSET(P_Flows!$D$10,12*($A23-1),4*(AA$2-1),12,1))) -> 73.27624167 | AB23: =IF(PlotControl!$B$4 = "Annual Max",MAX(OFFSET(P_Flows!$E$10,12*($A23-1),4*(AA$2-1),12,1)),AVERAGE(OFFSET(P_Flows!$E$10,12*($A23-1),4*(AA$2-1),12,1))) -> 295.2225833 | AD23: 51.5 | AE23: =OFFSET(P_Flows!$C$10,ROUND(12*$AD23,0),4*(AF$2-1),1,1) -> 2.6641 | AF23: =OFFSET(P_Flows!$D$10,ROUND(12*$AD23,0),4*(AF$2-1),1,1) -> 3.2771 | AG23: =OFFSET(P_Flows!$E$10,ROUND(12*$AD23,0),4*(AF$2-1),1,1) -> 12.412 | AH23: =OFFSET(P_Flows!$C$10,ROUND(12*$AD23,0),4*(AI$2-1),1,1) -> 2.9148 | AI23: =OFFSET(P_Flows!$D$10,ROUND(12*$AD23,0),4*(AI$2-1),1,1) -> 5.9273 | AJ23: =OFFSET(P_Flows!$E$10,ROUND(12*$AD23,0),4*(AI$2-1),1,1) -> 50.816 | AK23: =OFFSET(P_Flows!$C$10,ROUND(12*$AD23,0),4*(AL$2-1),1,1) -> 2.9827 | AL23: =OFFSET(P_Flows!$D$10,ROUND(12*$AD23,0),4*(AL$2-1),1,1) -> 6.6448 | AM23: =OFFSET(P_Flows!$E$10,ROUND(12*$AD23,0),4*(AL$2-1),1,1) -> 61.213 | AN23: =OFFSET(P_Flows!$C$10,ROUND(12*$AD23,0),4*(AO$2-1),1,1) -> 3.3196 | AO23: =OFFSET(P_Flows!$D$10,ROUND(12*$AD23,0),4*(AO$2-1),1,1) -> 10.205 | AP23: =OFFSET(P_Flows!$E$10,ROUND(12*$AD23,0),4*(AO$2-1),1,1) -> 112.81 | AQ23: =OFFSET(P_Flows!$C$10,ROUND(12*$AD23,0),4*(AR$2-1),1,1) -> 4.6003 | AR23: =OFFSET(P_Flows!$D$10,ROUND(12*$AD23,0),4*(AR$2-1),1,1) -> 22.541 | AS23: =OFFSET(P_Flows!$E$10,ROUND(12*$AD23,0),4*(AR$2-1),1,1) -> 286.57 | AT23: =OFFSET(P_Flows!$C$10,ROUND(12*$AD23,0),4*(AU$2-1),1,1) -> 5.5093 | AU23: =OFFSET(P_Flows!$D$10,ROUND(12*$AD23,0),4*(AU$2-1),1,1) -> 33.232 | AV23: =OFFSET(P_Flows!$E$10,ROUND(12*$AD23,0),4*(AU$2-1),1,1) -> 441.29 | AW23: =OFFSET(P_Flows!$C$10,ROUND(12*$AD23,0),4*(AX$2-1),1,1) -> 6.6373 | AX23: =OFFSET(P_Flows!$D$10,ROUND(12*$AD23,0),4*(AX$2-1),1,1) -> 45.186 | AY23: =OFFSET(P_Flows!$E$10,ROUND(12*$AD23,0),4*(AX$2-1),1,1) -> 614.27 | AZ23: =OFFSET(P_Flows!$C$10,ROUND(12*$AD23,0),4*(BA$2-1),1,1) -> 6.8718 | BA23: =OFFSET(P_Flows!$D$10,ROUND(12*$AD23,0),4*(BA$2-1),1,1) -> 47.759 | BB23: =OFFSET(P_Flows!$E$10,ROUND(12*$AD23,0),4*(BA$2-1),1,1) -> 651.5 | BC23: =OFFSET(P_Flows!$C$10,ROUND(12*$AD23,0),4*(BD$2-1),1,1) -> 7.6854 | BD23: =OFFSET(P_Flows!$D$10,ROUND(12*$AD23,0),4*(BD$2-1),1,1) -> 56.68 | BE23: =OFFSET(P_Flows!$E$10,ROUND(12*$AD23,0),4*(BD$2-1),1,1) -> 781.46
A24: 20 | B24: =IF(PlotControl!$B$4 = "Annual Max",MAX(OFFSET(P_Flows!$C$10,12*($A24-1),4*(C$2-1),12,1)),AVERAGE(OFFSET(P_Flows!$C$10,12*($A24-1),4*(C$2-1),12,1))) -> 2.76875 | C24: =IF(PlotControl!$B$4 = "Annual Max",MAX(OFFSET(P_Flows!$D$10,12*($A24-1),4*(C$2-1),12,1)),AVERAGE(OFFSET(P_Flows!$D$10,12*($A24-1),4*(C$2-1),12,1))) -> 3.346866667 | D24: =IF(PlotControl!$B$4 = "Annual Max",MAX(OFFSET(P_Flows!$E$10,12*($A24-1),4*(C$2-1),12,1)),AVERAGE(OFFSET(P_Flows!$E$10,12*($A24-1),4*(C$2-1),12,1))) -> 5.746975 | E24: =IF(PlotControl!$B$4 = "Annual Max",MAX(OFFSET(P_Flows!$C$10,12*($A24-1),4*(F$2-1),12,1)),AVERAGE(OFFSET(P_Flows!$C$10,12*($A24-1),4*(F$2-1),12,1))) -> 3.608258333 | F24: =IF(PlotControl!$B$4 = "Annual Max",MAX(OFFSET(P_Flows!$D$10,12*($A24-1),4*(F$2-1),12,1)),AVERAGE(OFFSET(P_Flows!$D$10,12*($A24-1),4*(F$2-1),12,1))) -> 6.941791667 | G24: =IF(PlotControl!$B$4 = "Annual Max",MAX(OFFSET(P_Flows!$E$10,12*($A24-1),4*(F$2-1),12,1)),AVERAGE(OFFSET(P_Flows!$E$10,12*($A24-1),4*(F$2-1),12,1))) -> 20.2535 | H24: =IF(PlotControl!$B$4 = "Annual Max",MAX(OFFSET(P_Flows!$C$10,12*($A24-1),4*(I$2-1),12,1)),AVERAGE(OFFSET(P_Flows!$C$10,12*($A24-1),4*(I$2-1),12,1))) -> 3.855741667 | I24: =IF(PlotControl!$B$4 = "Annual Max",MAX(OFFSET(P_Flows!$D$10,12*($A24-1),4*(I$2-1),12,1)),AVERAGE(OFFSET(P_Flows!$D$10,12*($A24-1),4*(I$2-1),12,1))) -> 7.97365 | J24: =IF(PlotControl!$B$4 = "Annual Max",MAX(OFFSET(P_Flows!$E$10,12*($A24-1),4*(I$2-1),12,1)),AVERAGE(OFFSET(P_Flows!$E$10,12*($A24-1),4*(I$2-1),12,1))) -> 24.35791667 | K24: =IF(PlotControl!$B$4 = "Annual Max",MAX(OFFSET(P_Flows!$C$10,12*($A24-1),4*(L$2-1),12,1)),AVERAGE(OFFSET(P_Flows!$C$10,12*($A24-1),4*(L$2-1),12,1))) -> 4.907466667 | L24: =IF(PlotControl!$B$4 = "Annual Max",MAX(OFFSET(P_Flows!$D$10,12*($A24-1),4*(L$2-1),12,1)),AVERAGE(OFFSET(P_Flows!$D$10,12*($A24-1),4*(L$2-1),12,1))) -> 12.42953333 | M24: =IF(PlotControl!$B$4 = "Annual Max",MAX(OFFSET(P_Flows!$E$10,12*($A24-1),4*(L$2-1),12,1)),AVERAGE(OFFSET(P_Flows!$E$10,12*($A24-1),4*(L$2-1),12,1))) -> 42.188475 | N24: =IF(PlotControl!$B$4 = "Annual Max",MAX(OFFSET(P_Flows!$C$10,12*($A24-1),4*(O$2-1),12,1)),AVERAGE(OFFSET(P_Flows!$C$10,12*($A24-1),4*(O$2-1),12,1))) -> 8.919725 | O24: =IF(PlotControl!$B$4 = "Annual Max",MAX(OFFSET(P_Flows!$D$10,12*($A24-1),4*(O$2-1),12,1)),AVERAGE(OFFSET(P_Flows!$D$10,12*($A24-1),4*(O$2-1),12,1))) -> 29.32855 | P24: =IF(PlotControl!$B$4 = "Annual Max",MAX(OFFSET(P_Flows!$E$10,12*($A24-1),4*(O$2-1),12,1)),AVERAGE(OFFSET(P_Flows!$E$10,12*($A24-1),4*(O$2-1),12,1))) -> 109.413175 | Q24: =IF(PlotControl!$B$4 = "Annual Max",MAX(OFFSET(P_Flows!$C$10,12*($A24-1),4*(R$2-1),12,1)),AVERAGE(OFFSET(P_Flows!$C$10,12*($A24-1),4*(R$2-1),12,1))) -> 12.29635 | R24: =IF(PlotControl!$B$4 = "Annual Max",MAX(OFFSET(P_Flows!$D$10,12*($A24-1),4*(R$2-1),12,1)),AVERAGE(OFFSET(P_Flows!$D$10,12*($A24-1),4*(R$2-1),12,1))) -> 43.532175 | S24: =IF(PlotControl!$B$4 = "Annual Max",MAX(OFFSET(P_Flows!$E$10,12*($A24-1),4*(R$2-1),12,1)),AVERAGE(OFFSET(P_Flows!$E$10,12*($A24-1),4*(R$2-1),12,1))) -> 166.24075 | T24: =IF(PlotControl!$B$4 = "Annual Max",MAX(OFFSET(P_Flows!$C$10,12*($A24-1),4*(U$2-1),12,1)),AVERAGE(OFFSET(P_Flows!$C$10,12*($A24-1),4*(U$2-1),12,1))) -> 15.45188333 | U24: =IF(PlotControl!$B$4 = "Annual Max",MAX(OFFSET(P_Flows!$D$10,12*($A24-1),4*(U$2-1),12,1)),AVERAGE(OFFSET(P_Flows!$D$10,12*($A24-1),4*(U$2-1),12,1))) -> 56.76679167 | V24: =IF(PlotControl!$B$4 = "Annual Max",MAX(OFFSET(P_Flows!$E$10,12*($A24-1),4*(U$2-1),12,1)),AVERAGE(OFFSET(P_Flows!$E$10,12*($A24-1),4*(U$2-1),12,1))) -> 220.1046667 | W24: =IF(PlotControl!$B$4 = "Annual Max",MAX(OFFSET(P_Flows!$C$10,12*($A24-1),4*(X$2-1),12,1)),AVERAGE(OFFSET(P_Flows!$C$10,12*($A24-1),4*(X$2-1),12,1))) -> 16.15018333 | X24: =IF(PlotControl!$B$4 = "Annual Max",MAX(OFFSET(P_Flows!$D$10,12*($A24-1),4*(X$2-1),12,1)),AVERAGE(OFFSET(P_Flows!$D$10,12*($A24-1),4*(X$2-1),12,1))) -> 59.790075 | Y24: =IF(PlotControl!$B$4 = "Annual Max",MAX(OFFSET(P_Flows!$E$10,12*($A24-1),4*(X$2-1),12,1)),AVERAGE(OFFSET(P_Flows!$E$10,12*($A24-1),4*(X$2-1),12,1))) -> 232.60225 | Z24: =IF(PlotControl!$B$4 = "Annual Max",MAX(OFFSET(P_Flows!$C$10,12*($A24-1),4*(AA$2-1),12,1)),AVERAGE(OFFSET(P_Flows!$C$10,12*($A24-1),4*(AA$2-1),12,1))) -> 18.884825 | AA24: =IF(PlotControl!$B$4 = "Annual Max",MAX(OFFSET(P_Flows!$D$10,12*($A24-1),4*(AA$2-1),12,1)),AVERAGE(OFFSET(P_Flows!$D$10,12*($A24-1),4*(AA$2-1),12,1))) -> 71.33221667 | AB24: =IF(PlotControl!$B$4 = "Annual Max",MAX(OFFSET(P_Flows!$E$10,12*($A24-1),4*(AA$2-1),12,1)),AVERAGE(OFFSET(P_Flows!$E$10,12*($A24-1),4*(AA$2-1),12,1))) -> 279.0174167 | AD24: 51.58333333 | AE24: =OFFSET(P_Flows!$C$10,ROUND(12*$AD24,0),4*(AF$2-1),1,1) -> 2.7741 | AF24: =OFFSET(P_Flows!$D$10,ROUND(12*$AD24,0),4*(AF$2-1),1,1) -> 3.2888 | AG24: =OFFSET(P_Flows!$E$10,ROUND(12*$AD24,0),4*(AF$2-1),1,1) -> 7.9669 | AH24: =OFFSET(P_Flows!$C$10,ROUND(12*$AD24,0),4*(AI$2-1),1,1) -> 3.4598 | AI24: =OFFSET(P_Flows!$D$10,ROUND(12*$AD24,0),4*(AI$2-1),1,1) -> 6.0014 | AJ24: =OFFSET(P_Flows!$E$10,ROUND(12*$AD24,0),4*(AI$2-1),1,1) -> 29.105 | AK24: =OFFSET(P_Flows!$C$10,ROUND(12*$AD24,0),4*(AL$2-1),1,1) -> 3.6446 | AL24: =OFFSET(P_Flows!$D$10,ROUND(12*$AD24,0),4*(AL$2-1),1,1) -> 6.7325 | AM24: =OFFSET(P_Flows!$E$10,ROUND(12*$AD24,0),4*(AL$2-1),1,1) -> 34.801 | AN24: =OFFSET(P_Flows!$C$10,ROUND(12*$AD24,0),4*(AO$2-1),1,1) -> 4.447 | AO24: =OFFSET(P_Flows!$D$10,ROUND(12*$AD24,0),4*(AO$2-1),1,1) -> 9.9069 | AP24: =OFFSET(P_Flows!$E$10,ROUND(12*$AD24,0),4*(AO$2-1),1,1) -> 59.537 | AQ24: =OFFSET(P_Flows!$C$10,ROUND(12*$AD24,0),4*(AR$2-1),1,1) -> 7.6681 | AR24: =OFFSET(P_Flows!$D$10,ROUND(12*$AD24,0),4*(AR$2-1),1,1) -> 21.799 | AS24: =OFFSET(P_Flows!$E$10,ROUND(12*$AD24,0),4*(AR$2-1),1,1) -> 148.47 | AT24: =OFFSET(P_Flows!$C$10,ROUND(12*$AD24,0),4*(AU$2-1),1,1) -> 10.015 | AU24: =OFFSET(P_Flows!$D$10,ROUND(12*$AD24,0),4*(AU$2-1),1,1) -> 31.127 | AV24: =OFFSET(P_Flows!$E$10,ROUND(12*$AD24,0),4*(AU$2-1),1,1) -> 220.46 | AW24: =OFFSET(P_Flows!$C$10,ROUND(12*$AD24,0),4*(AX$2-1),1,1) -> 12.016 | AX24: =OFFSET(P_Flows!$D$10,ROUND(12*$AD24,0),4*(AX$2-1),1,1) -> 39.239 | AY24: =OFFSET(P_Flows!$E$10,ROUND(12*$AD24,0),4*(AX$2-1),1,1) -> 283.31 | AZ24: =OFFSET(P_Flows!$C$10,ROUND(12*$AD24,0),4*(BA$2-1),1,1) -> 12.607 | BA24: =OFFSET(P_Flows!$D$10,ROUND(12*$AD24,0),4*(BA$2-1),1,1) -> 41.663 | BB24: =OFFSET(P_Flows!$E$10,ROUND(12*$AD24,0),4*(BA$2-1),1,1) -> 302.2 | BC24: =OFFSET(P_Flows!$C$10,ROUND(12*$AD24,0),4*(BD$2-1),1,1) -> 14.512 | BD24: =OFFSET(P_Flows!$D$10,ROUND(12*$AD24,0),4*(BD$2-1),1,1) -> 49.358 | BE24: =OFFSET(P_Flows!$E$10,ROUND(12*$AD24,0),4*(BD$2-1),1,1) -> 362.16
A25: 21 | B25: =IF(PlotControl!$B$4 = "Annual Max",MAX(OFFSET(P_Flows!$C$10,12*($A25-1),4*(C$2-1),12,1)),AVERAGE(OFFSET(P_Flows!$C$10,12*($A25-1),4*(C$2-1),12,1))) -> 2.772491667 | C25: =IF(PlotControl!$B$4 = "Annual Max",MAX(OFFSET(P_Flows!$D$10,12*($A25-1),4*(C$2-1),12,1)),AVERAGE(OFFSET(P_Flows!$D$10,12*($A25-1),4*(C$2-1),12,1))) -> 3.324266667 | D25: =IF(PlotControl!$B$4 = "Annual Max",MAX(OFFSET(P_Flows!$E$10,12*($A25-1),4*(C$2-1),12,1)),AVERAGE(OFFSET(P_Flows!$E$10,12*($A25-1),4*(C$2-1),12,1))) -> 5.73635 | E25: =IF(PlotControl!$B$4 = "Annual Max",MAX(OFFSET(P_Flows!$C$10,12*($A25-1),4*(F$2-1),12,1)),AVERAGE(OFFSET(P_Flows!$C$10,12*($A25-1),4*(F$2-1),12,1))) -> 3.629033333 | F25: =IF(PlotControl!$B$4 = "Annual Max",MAX(OFFSET(P_Flows!$D$10,12*($A25-1),4*(F$2-1),12,1)),AVERAGE(OFFSET(P_Flows!$D$10,12*($A25-1),4*(F$2-1),12,1))) -> 6.810291667 | G25: =IF(PlotControl!$B$4 = "Annual Max",MAX(OFFSET(P_Flows!$E$10,12*($A25-1),4*(F$2-1),12,1)),AVERAGE(OFFSET(P_Flows!$E$10,12*($A25-1),4*(F$2-1),12,1))) -> 20.29159167 | H25: =IF(PlotControl!$B$4 = "Annual Max",MAX(OFFSET(P_Flows!$C$10,12*($A25-1),4*(I$2-1),12,1)),AVERAGE(OFFSET(P_Flows!$C$10,12*($A25-1),4*(I$2-1),12,1))) -> 3.881025 | I25: =IF(PlotControl!$B$4 = "Annual Max",MAX(OFFSET(P_Flows!$D$10,12*($A25-1),4*(I$2-1),12,1)),AVERAGE(OFFSET(P_Flows!$D$10,12*($A25-1),4*(I$2-1),12,1))) -> 7.8143 | J25: =IF(PlotControl!$B$4 = "Annual Max",MAX(OFFSET(P_Flows!$E$10,12*($A25-1),4*(I$2-1),12,1)),AVERAGE(OFFSET(P_Flows!$E$10,12*($A25-1),4*(I$2-1),12,1))) -> 24.40679167 | K25: =IF(PlotControl!$B$4 = "Annual Max",MAX(OFFSET(P_Flows!$C$10,12*($A25-1),4*(L$2-1),12,1)),AVERAGE(OFFSET(P_Flows!$C$10,12*($A25-1),4*(L$2-1),12,1))) -> 4.981858333 | L25: =IF(PlotControl!$B$4 = "Annual Max",MAX(OFFSET(P_Flows!$D$10,12*($A25-1),4*(L$2-1),12,1)),AVERAGE(OFFSET(P_Flows!$D$10,12*($A25-1),4*(L$2-1),12,1))) -> 12.262075 | M25: =IF(PlotControl!$B$4 = "Annual Max",MAX(OFFSET(P_Flows!$E$10,12*($A25-1),4*(L$2-1),12,1)),AVERAGE(OFFSET(P_Flows!$E$10,12*($A25-1),4*(L$2-1),12,1))) -> 42.848375 | N25: =IF(PlotControl!$B$4 = "Annual Max",MAX(OFFSET(P_Flows!$C$10,12*($A25-1),4*(O$2-1),12,1)),AVERAGE(OFFSET(P_Flows!$C$10,12*($A25-1),4*(O$2-1),12,1))) -> 9.020966667 | O25: =IF(PlotControl!$B$4 = "Annual Max",MAX(OFFSET(P_Flows!$D$10,12*($A25-1),4*(O$2-1),12,1)),AVERAGE(OFFSET(P_Flows!$D$10,12*($A25-1),4*(O$2-1),12,1))) -> 28.478175 | P25: =IF(PlotControl!$B$4 = "Annual Max",MAX(OFFSET(P_Flows!$E$10,12*($A25-1),4*(O$2-1),12,1)),AVERAGE(OFFSET(P_Flows!$E$10,12*($A25-1),4*(O$2-1),12,1))) -> 109.4366833 | Q25: =IF(PlotControl!$B$4 = "Annual Max",MAX(OFFSET(P_Flows!$C$10,12*($A25-1),4*(R$2-1),12,1)),AVERAGE(OFFSET(P_Flows!$C$10,12*($A25-1),4*(R$2-1),12,1))) -> 12.45435833 | R25: =IF(PlotControl!$B$4 = "Annual Max",MAX(OFFSET(P_Flows!$D$10,12*($A25-1),4*(R$2-1),12,1)),AVERAGE(OFFSET(P_Flows!$D$10,12*($A25-1),4*(R$2-1),12,1))) -> 42.2855 | S25: =IF(PlotControl!$B$4 = "Annual Max",MAX(OFFSET(P_Flows!$E$10,12*($A25-1),4*(R$2-1),12,1)),AVERAGE(OFFSET(P_Flows!$E$10,12*($A25-1),4*(R$2-1),12,1))) -> 166.4376667 | T25: =IF(PlotControl!$B$4 = "Annual Max",MAX(OFFSET(P_Flows!$C$10,12*($A25-1),4*(U$2-1),12,1)),AVERAGE(OFFSET(P_Flows!$C$10,12*($A25-1),4*(U$2-1),12,1))) -> 15.663 | U25: =IF(PlotControl!$B$4 = "Annual Max",MAX(OFFSET(P_Flows!$D$10,12*($A25-1),4*(U$2-1),12,1)),AVERAGE(OFFSET(P_Flows!$D$10,12*($A25-1),4*(U$2-1),12,1))) -> 55.20581667 | V25: =IF(PlotControl!$B$4 = "Annual Max",MAX(OFFSET(P_Flows!$E$10,12*($A25-1),4*(U$2-1),12,1)),AVERAGE(OFFSET(P_Flows!$E$10,12*($A25-1),4*(U$2-1),12,1))) -> 220.5660833 | W25: =IF(PlotControl!$B$4 = "Annual Max",MAX(OFFSET(P_Flows!$C$10,12*($A25-1),4*(X$2-1),12,1)),AVERAGE(OFFSET(P_Flows!$C$10,12*($A25-1),4*(X$2-1),12,1))) -> 16.375125 | X25: =IF(PlotControl!$B$4 = "Annual Max",MAX(OFFSET(P_Flows!$D$10,12*($A25-1),4*(X$2-1),12,1)),AVERAGE(OFFSET(P_Flows!$D$10,12*($A25-1),4*(X$2-1),12,1))) -> 58.13549167 | Y25: =IF(PlotControl!$B$4 = "Annual Max",MAX(OFFSET(P_Flows!$E$10,12*($A25-1),4*(X$2-1),12,1)),AVERAGE(OFFSET(P_Flows!$E$10,12*($A25-1),4*(X$2-1),12,1))) -> 233.0683333 | Z25: =IF(PlotControl!$B$4 = "Annual Max",MAX(OFFSET(P_Flows!$C$10,12*($A25-1),4*(AA$2-1),12,1)),AVERAGE(OFFSET(P_Flows!$C$10,12*($A25-1),4*(AA$2-1),12,1))) -> 19.15729167 | AA25: =IF(PlotControl!$B$4 = "Annual Max",MAX(OFFSET(P_Flows!$D$10,12*($A25-1),4*(AA$2-1),12,1)),AVERAGE(OFFSET(P_Flows!$D$10,12*($A25-1),4*(AA$2-1),12,1))) -> 69.351975 | AB25: =IF(PlotControl!$B$4 = "Annual Max",MAX(OFFSET(P_Flows!$E$10,12*($A25-1),4*(AA$2-1),12,1)),AVERAGE(OFFSET(P_Flows!$E$10,12*($A25-1),4*(AA$2-1),12,1))) -> 279.61775 | AD25: 51.66666667 | AE25: =OFFSET(P_Flows!$C$10,ROUND(12*$AD25,0),4*(AF$2-1),1,1) -> 2.7056 | AF25: =OFFSET(P_Flows!$D$10,ROUND(12*$AD25,0),4*(AF$2-1),1,1) -> 3.5783 | AG25: =OFFSET(P_Flows!$E$10,ROUND(12*$AD25,0),4*(AF$2-1),1,1) -> 5.2211 | AH25: =OFFSET(P_Flows!$C$10,ROUND(12*$AD25,0),4*(AI$2-1),1,1) -> 3.1643 | AI25: =OFFSET(P_Flows!$D$10,ROUND(12*$AD25,0),4*(AI$2-1),1,1) -> 7.826 | AJ25: =OFFSET(P_Flows!$E$10,ROUND(12*$AD25,0),4*(AI$2-1),1,1) -> 16.602 | AK25: =OFFSET(P_Flows!$C$10,ROUND(12*$AD25,0),4*(AL$2-1),1,1) -> 3.3005 | AL25: =OFFSET(P_Flows!$D$10,ROUND(12*$AD25,0),4*(AL$2-1),1,1) -> 9.0875 | AM25: =OFFSET(P_Flows!$E$10,ROUND(12*$AD25,0),4*(AL$2-1),1,1) -> 19.982 | AN25: =OFFSET(P_Flows!$C$10,ROUND(12*$AD25,0),4*(AO$2-1),1,1) -> 3.8823 | AO25: =OFFSET(P_Flows!$D$10,ROUND(12*$AD25,0),4*(AO$2-1),1,1) -> 14.474 | AP25: =OFFSET(P_Flows!$E$10,ROUND(12*$AD25,0),4*(AO$2-1),1,1) -> 34.416 | AQ25: =OFFSET(P_Flows!$C$10,ROUND(12*$AD25,0),4*(AR$2-1),1,1) -> 6.5236 | AR25: =OFFSET(P_Flows!$D$10,ROUND(12*$AD25,0),4*(AR$2-1),1,1) -> 33.772 | AS25: =OFFSET(P_Flows!$E$10,ROUND(12*$AD25,0),4*(AR$2-1),1,1) -> 85.249 | AT25: =OFFSET(P_Flows!$C$10,ROUND(12*$AD25,0),4*(AU$2-1),1,1) -> 8.1962 | AU25: =OFFSET(P_Flows!$D$10,ROUND(12*$AD25,0),4*(AU$2-1),1,1) -> 49.304 | AV25: =OFFSET(P_Flows!$E$10,ROUND(12*$AD25,0),4*(AU$2-1),1,1) -> 126.96 | AW25: =OFFSET(P_Flows!$C$10,ROUND(12*$AD25,0),4*(AX$2-1),1,1) -> 9.7292 | AX25: =OFFSET(P_Flows!$D$10,ROUND(12*$AD25,0),4*(AX$2-1),1,1) -> 63.539 | AY25: =OFFSET(P_Flows!$E$10,ROUND(12*$AD25,0),4*(AX$2-1),1,1) -> 165.19 | AZ25: =OFFSET(P_Flows!$C$10,ROUND(12*$AD25,0),4*(BA$2-1),1,1) -> 10.14 | BA25: =OFFSET(P_Flows!$D$10,ROUND(12*$AD25,0),4*(BA$2-1),1,1) -> 67.353 | BB25: =OFFSET(P_Flows!$E$10,ROUND(12*$AD25,0),4*(BA$2-1),1,1) -> 175.44 | BC25: =OFFSET(P_Flows!$C$10,ROUND(12*$AD25,0),4*(BD$2-1),1,1) -> 11.523 | BD25: =OFFSET(P_Flows!$D$10,ROUND(12*$AD25,0),4*(BD$2-1),1,1) -> 80.194 | BE25: =OFFSET(P_Flows!$E$10,ROUND(12*$AD25,0),4*(BD$2-1),1,1) -> 209.93
